Workbook

Sheet Cover Page
F2: THIS IS THE PUBLIC VERSION OF THE MODIFIED FLSM
F6: Fixed Line Services Access Pricing Model FY2015-19
D8: Version: | F8: FY2015 to FY2019 (update based on FLSM 1.2)
D10: Date: | F10: 09 December 2014
F12: This version of the FLSM is based on version 1.2 released by the ACCC in May 2013 (used to determine WADSL prices in the 2013 FAD). Modifications have been made to facilitate the estimation of service prices beyond the previous FAD period (FY2012-14), to accommodate a new cost allocation framework and expenditure forecasts (with flow through impacts to the calculation of prices and the service types used within the model) and to correct identified errors in the model – including the calculation of the RAB and depreciation impact of asset disposals.

Sheet Model Design
A1: A. Model Design
B37: Key
C38: Information Sheets
C39: Input Sheets
C40: Calculation sheets
C41: ACCC adjustment sheets
B44: Model Conventions
B46: Orange with red writing | E46: User inputs
B47: Black writing | E47: All other cells
B48: Blue with white writing | E48: Header and start of table
B50: Information sheets
B51: Red writing | E51: User inputs
B52: Black writing | E52: All other cells
B53: Grey with white writing | E53: Header and start of table
B56: NB: all cost values are in Australian Dollars (AUD) unless otherwise stated.

Sheet NBN Scenario Selection
B2: NBN Scenario Selection
B4: Purpose
B5: Set out Rollout Scenario selected to flow through to forecasts, and present resulting prices
B8: NBN Rollout
B10: Click on cell and Select NBN Rollout Assumption | D10: Base Case | F10: =IF(D10=$AA$10,"","Enter rollout figures below in '000 premises passed as at end of financial year") ->  | AA10: Base Case
AA11: User Specified
E12: Y05 | F12: Y06 | G12: Y07 | H12: Y08 | I12: Y09 | J12: Y10
B13: Rollout Rate - User Specified | E13: 2013/2014 | F13: 2014/2015 | G13: 2015/2016 | H13: 2016/2017 | I13: 2017/2018 | J13: 2018/2019
C14: Cumulative premises per Technology
C15: FTTN | D15: '000 | E15: 0 | F15: 1810 | G15: 2172 | H15: 2534 | I15: 2896 | J15: 3620
C16: FTTdp/B | D16: '000 | E16: 0 | F16: 690 | G16: 828 | H16: 966 | I16: 1104 | J16: 1380
C17: FTTP | D17: '000 | E17: 281 | F17: 1445 | G17: 1734 | H17: 2023 | I17: 2312 | J17: 2890
C18: HFC | D18: '000 | E18: 0 | F18: 1635 | G18: 1962 | H18: 2289 | I18: 2616 | J18: 3270
C19: Total | D19: '000 | E19: =SUM(E15:E18) -> 281 | F19: 5580 | G19: 6696 | H19: 7812 | I19: 8928 | J19: 11160
B23: A. Total Revenue Required from 7. Service Costs Adjusted for Inflation $M | E23: ='Price Summary'!E22 -> -566880.193
B26: A. Prices for FY15-FY19 Solved for Revenue Requirement | D26: ='Price Summary'!G25-1 -> -0.9242008488 | E26: change from current prices
B28: Fixed Line Access Services | E28: Prices | J28: Revenue Generated $M | L28: Change
B29: Code | C29: Service | E29: =F13 -> 2014/2015 | F29: =G13 -> 2015/2016 | G29: 2016/2017 | H29: 2017/2018 | I29: 2018/2019
B30: S01 | C30: =VLOOKUP($B30,Services,2,FALSE) -> Unconditioned Local Loop Service Band 1 - 3 | D30: =VLOOKUP($B30,Services,5,FALSE) -> $ / month | E30: ='Price Summary'!E27 -> 16.21 | F30: ='Price Summary'!F12 -> 17.43870424 | G30: =F30 -> 17.43870424 | H30: =G30 -> 17.43870424 | I30: 17.43870424 | J30: ='Price Summary'!G12 -> 2.261556349e-05 | K30: ='Price Summary'!H12 -> 212754.0278 | L30: =(I30/E30)-1 -> 0.07579915125 | N30: ULL Bands 1-3
B31: S02 | C31: Unconditioned Local Loop Service Band 4 | D31: $ / month | E31: ='Price Summary'!E28 -> 48.19 | F31: ='Price Summary'!F13 -> 51.8427611 | G31: =F31 -> 51.8427611 | H31: 51.8427611 | I31: 51.8427611 | J31: ='Price Summary'!G13 -> 2.241093984e-05 | K31: ='Price Summary'!H13 -> 70918.00927 | L31: =(I31/E31)-1 -> 0.07579915125 | N31: ULL Band 4
B32: S03 | C32: Wholesale Line Rental | D32: $ / month | E32: ='Price Summary'!E29 -> 22.84 | F32: ='Price Summary'!F14 -> 24.57125261 | G32: 24.57125261 | H32: 24.57125261 | I32: 24.57125261 | J32: ='Price Summary'!G14 -> 4.248730989e-05 | K32: ='Price Summary'!H14 -> 283667.596 | L32: 0.07579915125 | N32: WLR
B33: S04 | C33: PSTN FOAS & FTAS | D33: ¢ / minute | E33: ='Price Summary'!E30 -> 0.95 | F33: ='Price Summary'!F15 -> 1.022009194 | G33: 1.022009194 | H33: 1.022009194 | I33: 1.022009194 | J33: ='Price Summary'!G15 -> 7.363350919e-08 | K33: ='Price Summary'!H15 -> -14.94397095 | L33: 0.07579915125 | N33: FOAS/FTAS
B34: S05 | C34: Local Carriage Service | D34: ¢ / call | E34: ='Price Summary'!E31 -> 8.9 | F34: ='Price Summary'!F16 -> 9.574612446 | G34: 9.574612446 | H34: 9.574612446 | I34: 9.574612446 | J34: ='Price Summary'!G16 -> 1.025434143e-07 | K34: ='Price Summary'!H16 -> -7.471985412 | L34: 0.07579915125 | N34: LCS
B35: S06 | C35: Line Sharing Service | D35: $ / month | E35: ='Price Summary'!E32 -> 1.8 | F35: ='Price Summary'!F17 -> 1.936438472 | G35: 1.936438472 | H35: 1.936438472 | I35: 1.936438472 | J35: ='Price Summary'!G17 -> 8.37096736e-05 | K35: ='Price Summary'!H17 -> -213.6674267 | L35: 0.07579915125 | N35: LSS
B36: S07 | C36: Wholesale ADSL | D36: $ / month | J36: =SUM(J37:J39) -> 0.00287951046 | K36: =SUM('Price Summary'!H18:H21) -> -223.3535195
C37: WADSL Zone 1 port | D37: $ / month | E37: ='Price Summary'!E34 -> 24.44 | F37: ='Price Summary'!F19 -> 26.29253126 | G37: 26.29253126 | H37: 26.29253126 | I37: 26.29253126 | J37: ='Price Summary'!G19 -> 1.136591346e-05 | L37: 0.07579915125 | N37: WADSL Zone 1
C38: WADSL Zone 2/3 port | D38: $ / month | E38: ='Price Summary'!E35 -> 29.66 | F38: ='Price Summary'!F20 -> 31.90820283 | G38: 31.90820283 | H38: 31.90820283 | I38: 31.90820283 | J38: ='Price Summary'!G20 -> 0.001365555905 | L38: 0.07579915125 | N38: WADSL Zone 2/3
C39: AGVC/VLAN | D39: $ / Mbps / month | E39: ='Price Summary'!E36 -> 32.31 | F39: ='Price Summary'!F21 -> 34.75907058 | G39: 34.75907058 | H39: 34.75907058 | I39: 34.75907058 | J39: ='Price Summary'!G21 -> 0.001502588641 | L39: 0.07579915125 | N39: WDSL AGVC
C40: Total | J40: =SUM(J30:J36) -> 0.003050910124 | K40: =SUM(K30:K39) -> 566880.1961
B44: B. Prices for FY15-FY19 Solved for Revenue Requirement remaining
B46: Fixed Line Access Services | E46: Prices | J46: Revenue Generated $M | L46: Change
B47: Code | C47: Service | E47: =E29 -> 2014/2015 | F47: =F29 -> 2015/2016 | G47: 2016/2017 | H47: 2017/2018 | I47: 2018/2019
B48: S01 | C48: =VLOOKUP($B48,Services,2,FALSE) -> Unconditioned Local Loop Service Band 1 - 3 | D48: =VLOOKUP($B48,Services,5,FALSE) -> $ / month | E48: ='Price Summary'!E27 -> 16.21 | F48: ='Price Summary'!$G142 -> -2.200508715e+11 | G48: ='Price Summary'!$G142 -> -2.200508715e+11 | H48: ='Price Summary'!$G142 -> -2.200508715e+11 | I48: ='Price Summary'!$G142 -> -2.200508715e+11 | J48: =SUM('Price Summary'!E142,'Price Summary'!H142) -> -212754.0277 | K48: ='Price Summary'!I142 -> 0 | L48: =(I48/E48)-1 -> -1.35750075e+10 | N48: ULL Bands 1-3
B49: S02 | C49: Unconditioned Local Loop Service Band 4 | D49: $ / month | E49: ='Price Summary'!E28 -> 48.19 | F49: ='Price Summary'!$G143 -> -2.200508715e+11 | G49: ='Price Summary'!$G143 -> -2.200508715e+11 | H49: ='Price Summary'!$G143 -> -2.200508715e+11 | I49: ='Price Summary'!$G143 -> -2.200508715e+11 | J49: =SUM('Price Summary'!E143,'Price Summary'!H143) -> -70918.00924 | K49: ='Price Summary'!I143 -> 0 | L49: =(I49/E49)-1 -> -4566318149 | N49: ULL Band 4
B50: S03 | C50: Wholesale Line Rental | D50: $ / month | E50: ='Price Summary'!E29 -> 22.84 | F50: ='Price Summary'!$G144 -> -2.200474265e+11 | G50: ='Price Summary'!$G144 -> -2.200474265e+11 | H50: ='Price Summary'!$G144 -> -2.200474265e+11 | I50: ='Price Summary'!$G144 -> -2.200474265e+11 | J50: =SUM('Price Summary'!E144,'Price Summary'!H144) -> -283667.5959 | K50: ='Price Summary'!I144 -> 0 | L50: -9634300635 | N50: WLR
B51: S04 | C51: PSTN FOAS & FTAS | D51: ¢ / minute | E51: ='Price Summary'!E30 -> 0.95 | F51: ='Price Summary'!$G145 -> 278217102.8 | G51: ='Price Summary'!$G145 -> 278217102.8 | H51: ='Price Summary'!$G145 -> 278217102.8 | I51: ='Price Summary'!$G145 -> 278217102.8 | J51: =SUM('Price Summary'!E145,'Price Summary'!H145) -> 14.94397103 | K51: ='Price Summary'!I145 -> 0 | L51: 292860107.2 | N51: FOAS/FTAS
B52: S05 | C52: Local Carriage Service | D52: ¢ / call | E52: ='Price Summary'!E31 -> 8.9 | F52: ='Price Summary'!$G146 -> 926994590.6 | G52: ='Price Summary'!$G146 -> 926994590.6 | H52: ='Price Summary'!$G146 -> 926994590.6 | I52: ='Price Summary'!$G146 -> 926994590.6 | J52: =SUM('Price Summary'!E146,'Price Summary'!H146) -> 7.471985514 | K52: ='Price Summary'!I146 -> 0 | L52: 104156694.6 | N52: LCS
B53: S06 | C53: Line Sharing Service | D53: $ / month | E53: ='Price Summary'!E32 -> 1.8 | F53: ='Price Summary'!$G147 -> 6629869.859 | G53: ='Price Summary'!$G147 -> 6629869.859 | H53: ='Price Summary'!$G147 -> 6629869.859 | I53: ='Price Summary'!$G147 -> 6629869.859 | J53: =SUM('Price Summary'!E147,'Price Summary'!H147) -> 213.6675104 | K53: ='Price Summary'!I147 -> 0 | L53: 3683260.033 | N53: LSS
B54: S07 | C54: Wholesale ADSL | D54: $ / month | K54: ='Price Summary'!I148 -> 0
C55: WADSL Zone 1 port | D55: $ / month | E55: ='Price Summary'!E34 -> 24.44 | F55: ='Price Summary'!$G149 -> 693.048346 | G55: ='Price Summary'!$G149 -> 693.048346 | H55: ='Price Summary'!$G149 -> 693.048346 | I55: ='Price Summary'!$G149 -> 693.048346 | J55: =SUM('Price Summary'!E149,'Price Summary'!H149) -> 0.000226248021 | L55: 27.35713363 | N55: WADSL Zone 1
C56: WADSL Zone 2/3 port | D56: $ / month | E56: ='Price Summary'!E35 -> 29.66 | F56: ='Price Summary'!$G150 -> 69997.88294 | G56: ='Price Summary'!$G150 -> 69997.88294 | H56: ='Price Summary'!$G150 -> 69997.88294 | I56: ='Price Summary'!$G150 -> 69997.88294 | J56: =SUM('Price Summary'!E150,'Price Summary'!H150) -> 2.233680808 | L56: 2359.00954 | N56: WADSL Zone 2/3
C57: AGVC/VLAN | D57: $ / Mbps / month | E57: ='Price Summary'!E36 -> 32.31 | F57: ='Price Summary'!$G151 -> 69304.8346 | G57: ='Price Summary'!$G151 -> 69304.8346 | H57: ='Price Summary'!$G151 -> 69304.8346 | I57: ='Price Summary'!$G151 -> 69304.8346 | J57: =SUM('Price Summary'!E151,'Price Summary'!H151) -> 2.233939035 | L57: 2143.996428 | N57: WDSL AGVC
C58: Total | J58: =SUM(J48:J57) -> -567099.0816 | K58: 0
B62: C. Glide Path for Prices for FY15-FY19 Solved for Revenue Requirement remaining
B64: Fixed Line Access Services | E64: Prices | J64: Revenue Generated $M | L64: Change
B65: Code | C65: Service | E65: =E47 -> 2014/2015 | F65: =F47 -> 2015/2016 | G65: 2016/2017 | H65: 2017/2018 | I65: 2018/2019 | P65: 2015/16 | Q65: 2016/17 | R65: 2017/18 | S65: 2018/19
B66: S01 | C66: =VLOOKUP($B66,Services,2,FALSE) -> Unconditioned Local Loop Service Band 1 - 3 | D66: =VLOOKUP($B66,Services,5,FALSE) -> $ / month | E66: ='Price Summary'!E114 -> 16.21 | F66: ='Price Summary'!F114 -> 16.77017462 | G66: ='Price Summary'!G114 -> 17.33034924 | H66: ='Price Summary'!H114 -> 17.89052387 | I66: ='Price Summary'!I114 -> 18.45069849 | J66: ='Price Summary'!J127 -> 2.262674333e-05 | K66: ='Price Summary'!K127 -> 212754.0278 | L66: =(I66/E66)-1 -> 0.1382293946 | N66: ULL Bands 1-3 | P66: =(F66/$E66)-1 -> 0.03455734866 | Q66: =(G66/$E66)-1 -> 0.06911469732 | R66: 0.103672046 | S66: 0.1382293946
B67: S02 | C67: Unconditioned Local Loop Service Band 4 | D67: $ / month | E67: ='Price Summary'!E115 -> 48.19 | F67: ='Price Summary'!F115 -> 49.85531863 | G67: ='Price Summary'!G115 -> 51.52063726 | H67: ='Price Summary'!H115 -> 53.1859559 | I67: ='Price Summary'!I115 -> 54.85127453 | J67: ='Price Summary'!J128 -> 2.242201853e-05 | K67: ='Price Summary'!K128 -> 70918.00927 | L67: =(I67/E67)-1 -> 0.1382293946 | N67: ULL Band 4 | P67: =(F67/$E67)-1 -> 0.03455734866 | Q67: 0.06911469732 | R67: 0.103672046 | S67: 0.1382293946
B68: S03 | C68: Wholesale Line Rental | D68: $ / month | E68: ='Price Summary'!E116 -> 22.84 | F68: ='Price Summary'!F116 -> 23.62928984 | G68: ='Price Summary'!G116 -> 24.41857969 | H68: ='Price Summary'!H116 -> 25.20786953 | I68: ='Price Summary'!I116 -> 25.99715937 | J68: ='Price Summary'!J129 -> 4.250831319e-05 | K68: ='Price Summary'!K129 -> 283667.596 | L68: 0.1382293946 | N68: WLR | P68: 0.03455734866 | Q68: 0.06911469732 | R68: 0.103672046 | S68: 0.1382293946
B69: S04 | C69: PSTN FOAS & FTAS | D69: ¢ / minute | E69: ='Price Summary'!E117 -> 0.95 | F69: ='Price Summary'!F117 -> 0.9828294812 | G69: ='Price Summary'!G117 -> 1.015658962 | H69: ='Price Summary'!H117 -> 1.048488444 | I69: ='Price Summary'!I117 -> 1.081317925 | J69: ='Price Summary'!J130 -> 7.366990938e-08 | K69: ='Price Summary'!K130 -> -14.94397095 | L69: 0.1382293946 | N69: FOAS/FTAS | P69: 0.03455734866 | Q69: 0.06911469732 | R69: 0.103672046 | S69: 0.1382293946
B70: S05 | C70: Local Carriage Service | D70: ¢ / call | E70: ='Price Summary'!E118 -> 8.9 | F70: ='Price Summary'!F118 -> 9.207560403 | G70: ='Price Summary'!G118 -> 9.515120806 | H70: ='Price Summary'!H118 -> 9.822681209 | I70: ='Price Summary'!I118 -> 10.13024161 | J70: ='Price Summary'!J131 -> 1.027345896e-07 | K70: ='Price Summary'!K131 -> -7.471985412 | L70: 0.1382293946 | N70: LCS | P70: 0.03455734866 | Q70: 0.06911469732 | R70: 0.103672046 | S70: 0.1382293946
B71: S06 | C71: Line Sharing Service | D71: $ / month | E71: ='Price Summary'!E119 -> 1.8 | F71: ='Price Summary'!F119 -> 1.862203228 | G71: ='Price Summary'!G119 -> 1.924406455 | H71: ='Price Summary'!H119 -> 1.986609683 | I71: ='Price Summary'!I119 -> 2.04881291 | J71: ='Price Summary'!J132 -> 8.375105488e-05 | K71: ='Price Summary'!K132 -> -213.6674267 | L71: 0.1382293946 | N71: LSS | P71: 0.03455734866 | Q71: 0.06911469732 | R71: 0.103672046 | S71: 0.1382293946
B72: S07 | C72: Wholesale ADSL | D72: $ / month | K72: ='Price Summary'!K133 -> -223.353518
C73: WADSL Zone 1 port | D73: $ / month | E73: ='Price Summary'!E121 -> 24.44 | F73: ='Price Summary'!F121 -> 25.2845816 | G73: ='Price Summary'!G121 -> 26.1291632 | H73: ='Price Summary'!H121 -> 26.9737448 | I73: ='Price Summary'!I121 -> 27.8183264 | J73: ='Price Summary'!J134 -> 1.137153212e-05 | L73: 0.1382293946 | N73: WADSL Zone 1 | P73: 0.03455734866 | Q73: 0.06911469732 | R73: 0.103672046 | S73: 0.1382293946
C74: WADSL Zone 2/3 port | D74: $ / month | E74: ='Price Summary'!E122 -> 29.66 | F74: ='Price Summary'!F122 -> 30.68497096 | G74: ='Price Summary'!G122 -> 31.70994192 | H74: ='Price Summary'!H122 -> 32.73491288 | I74: ='Price Summary'!I122 -> 33.75988385 | J74: ='Price Summary'!J135 -> 0.001366230958 | L74: 0.1382293946 | N74: WADSL Zone 2/3 | P74: 0.03455734866 | Q74: 0.06911469732 | R74: 0.103672046 | S74: 0.1382293946
C75: AGVC/VLAN | D75: $ / Mbps / month | E75: ='Price Summary'!E123 -> 32.31 | F75: ='Price Summary'!F123 -> 33.42654794 | G75: ='Price Summary'!G123 -> 34.54309587 | H75: ='Price Summary'!H123 -> 35.65964381 | I75: ='Price Summary'!I123 -> 36.77619174 | J75: ='Price Summary'!J136 -> 0.001503331435 | L75: 0.1382293946 | N75: WDSL AGVC | P75: 0.03455734866 | Q75: 0.06911469732 | R75: 0.103672046 | S75: 0.1382293946
C76: Total | J76: =SUM(J66:J75) -> 0.00305241846 | K76: 566880.1961

Sheet NBN Rollout Parameters
B2: NBN Rollout Parameters
F3: 5 | G3: 6 | H3: 7 | I3: 8 | J3: 9 | K3: 10
B4: Purpose
B5: Set out Rollout Scenario selected to flow through to forecasts
B8: Selected Rollout Scenario
F10: Y05 | G10: Y06 | H10: Y07 | I10: Y08 | J10: Y09 | K10: Y10 | N10: Base Case
B11: Rollout Rate | F11: 2013/2014 | G11: 2014/2015 | H11: 2015/2016 | I11: 2016/2017 | J11: 2017/2018 | K11: 2018/2019
C12: Proportion of period | N12: Rollout - NBN Co Strategic Review - November 2013 | P12: CY2016 | Q12: CY2020 | S12: CY2016 | T12: CY2020
B13: Cumulative premises per Technology | C13: FTTN | D13: '000 | F13: 0 | G13: =IF(NBN_Rollout="Base Case",Q29,'NBN Scenario Selection'!F15) -> 220 | H13: =IF(NBN_Rollout="Base Case",R29,'NBN Scenario Selection'!G15) -> 440 | I13: =IF(NBN_Rollout="Base Case",S29,'NBN Scenario Selection'!H15) -> 933.75 | J13: =IF(NBN_Rollout="Base Case",T29,'NBN Scenario Selection'!I15) -> 1701.25 | K13: =IF(NBN_Rollout="Base Case",U29,'NBN Scenario Selection'!J15) -> 2468.75 | N13: Premises per Technology | O13: FTTN | P13: 550 | Q13: 3620 | S13: =P13/Q13 -> 0.1519337017 | T13: =Q13/Q13 -> 1
C14: FTTdp/B | D14: '000 | F14: 0 | G14: =IF(NBN_Rollout="Base Case",Q30,'NBN Scenario Selection'!F16) -> 0 | H14: =IF(NBN_Rollout="Base Case",R30,'NBN Scenario Selection'!G16) -> 0 | I14: =IF(NBN_Rollout="Base Case",S30,'NBN Scenario Selection'!H16) -> 172.5 | J14: =IF(NBN_Rollout="Base Case",T30,'NBN Scenario Selection'!I16) -> 517.5 | K14: =IF(NBN_Rollout="Base Case",U30,'NBN Scenario Selection'!J16) -> 862.5 | O14: FTTdp/B | P14: 0 | Q14: 1380 | S14: =P14/Q14 -> 0 | T14: =Q14/Q14 -> 1
C15: FTTP | D15: '000 | F15: 281 | G15: =IF(NBN_Rollout="Base Case",Q31,'NBN Scenario Selection'!F17) -> 532 | H15: =IF(NBN_Rollout="Base Case",R31,'NBN Scenario Selection'!G17) -> 1064 | I15: =IF(NBN_Rollout="Base Case",S31,'NBN Scenario Selection'!H17) -> 1525 | J15: =IF(NBN_Rollout="Base Case",T31,'NBN Scenario Selection'!I17) -> 1915 | K15: =IF(NBN_Rollout="Base Case",U31,'NBN Scenario Selection'!J17) -> 2305 | O15: FTTP | P15: 1330 | Q15: =2890 -> 2890 | S15: =P15/Q15 -> 0.4602076125 | T15: =Q15/Q15 -> 1
C16: HFC | D16: '000 | F16: 0 | G16: =IF(NBN_Rollout="Base Case",Q32,'NBN Scenario Selection'!F18) -> 1044 | H16: =IF(NBN_Rollout="Base Case",R32,'NBN Scenario Selection'!G18) -> 2088 | I16: =IF(NBN_Rollout="Base Case",S32,'NBN Scenario Selection'!H18) -> 2692.5 | J16: =IF(NBN_Rollout="Base Case",T32,'NBN Scenario Selection'!I18) -> 2857.5 | K16: =IF(NBN_Rollout="Base Case",U32,'NBN Scenario Selection'!J18) -> 3022.5 | O16: HFC | P16: 2610 | Q16: 3270 | S16: =P16/Q16 -> 0.7981651376 | T16: =Q16/Q16 -> 1
C17: Total | D17: '000 | F17: =SUM(F13:F16) -> 281 | G17: 1796 | H17: 3592 | I17: 5323.75 | J17: 6991.25 | K17: 8658.75 | O17: Total | P17: =SUM(P13:P16) -> 4490 | Q17: =SUM(Q13:Q16) -> 11160 | S17: =P17/Q17 -> 0.4023297491 | T17: =Q17/Q17 -> 1
B19: Cumulative % premises per Technology | C19: FTTN | F19: =F13/$Q13 -> 0 | G19: 0.06077348066 | H19: 0.1215469613 | I19: 0.257941989 | J19: 0.4699585635 | K19: 0.6819751381 | P19: Migration rate
C20: FTTdp/B | F20: 0 | G20: 0 | H20: 0 | I20: 0.125 | J20: 0.375 | K20: 0.625 | N20: Migration Rate Calculations | P20: at 12 months | Q20: at 2 years
C21: FTTP | F21: 0.09723183391 | G21: 0.184083045 | H21: 0.36816609 | I21: 0.5276816609 | J21: 0.6626297578 | K21: 0.7975778547 | N21: Technology | O21: FTTN | P21: 0.5477 | Q21: 1
C22: HFC | F22: 0 | G22: 0.319266055 | H22: 0.6385321101 | I22: 0.8233944954 | J22: 0.873853211 | K22: 0.9243119266 | O22: FTTdp/B | P22: =P21 -> 0.5477 | Q22: 1
C23: Overall % | F23: =F17/$Q$17 -> 0.02517921147 | G23: 0.1609318996 | H23: 0.3218637993 | I23: 0.4770385305 | J23: 0.6264560932 | K23: 0.7758736559 | O23: FTTP | P23: =P22 -> 0.5477 | Q23: 1
C24: % FTTP, FTTdp/B | F24: =SUM(F14:F15)/SUM($Q$14:$Q$15) -> 0.06580796253 | G24: 0.1245901639 | H24: 0.2491803279 | I24: 0.3975409836 | J24: 0.5696721311 | K24: 0.7418032787 | O24: HFC | P24: =P23 -> 0.5477 | Q24: 1
C25: % FTTN | F25: =SUM(F13)/SUM($Q$13) -> 0 | G25: 0.06077348066 | H25: 0.1215469613 | I25: 0.257941989 | J25: 0.4699585635 | K25: 0.6819751381
P26: Y05 | Q26: Y06 | R26: Y07 | S26: Y08 | T26: Y09 | U26: Y10
F27: Y05 | G27: Y06 | H27: Y07 | I27: Y08 | J27: Y09 | K27: Y10 | N27: Rollout Rate - Base Case | P27: 2013/2014 | Q27: 2014/2015 | R27: 2015/2016 | S27: 2016/2017 | T27: 2017/2018 | U27: 2018/2019
B28: Brownfields Migrated | F28: 2013/2014 | G28: 2014/2015 | H28: 2015/2016 | I28: 2016/2017 | J28: 2017/2018 | K28: 2018/2019 | O28: Proportion of period | Q28: =12/30 -> 0.4 | R28: =24/30 -> 0.8 | S28: =6/48 -> 0.125 | T28: =18/48 -> 0.375 | U28: =30/48 -> 0.625
B29: Cumulative Premises per Technology | C29: FTTN | D29: '000 | G29: =$Q21*E13+$P21*(F13-E13) -> 0 | H29: 120.494 | I29: 340.494 | J29: 710.426875 | K29: 1354.10975 | N29: Cumulative premises per Technology | O29: FTTN | P29: 0 | Q29: =Q$28*$P13 -> 220 | R29: 440 | S29: =$P13+($Q13-$P13)*S$28 -> 933.75 | T29: 1701.25 | U29: 2468.75
C30: FTTdp/B | D30: '000 | G30: 0 | H30: =$Q22*F14+$P22*(G14-F14) -> 0 | I30: 0 | J30: 94.47825 | K30: 361.4565 | O30: FTTdp/B | P30: 0 | Q30: 0 | R30: 0 | S30: 172.5 | T30: 517.5 | U30: 862.5
C31: FTTP | D31: '000 | G31: 153.9037 | H31: 418.4727 | I31: 823.3764 | J31: 1316.4897 | K31: 1738.603 | O31: FTTP | P31: 281 | Q31: 532 | R31: 1064 | S31: 1525 | T31: 1915 | U31: 2305
C32: HFC | D32: '000 | G32: 0 | H32: 571.7988 | I32: 1615.7988 | J32: 2419.08465 | K32: 2782.8705 | O32: HFC | P32: 0 | Q32: 1044 | R32: 2088 | S32: 2692.5 | T32: 2857.5 | U32: 3022.5
C33: Total | D33: '000 | G33: =SUM(G29:G32) -> 153.9037 | H33: =SUM(H29:H32) -> 1110.7655 | I33: =SUM(I29:I32) -> 2779.6692 | J33: =SUM(J29:J32) -> 4540.479475 | K33: =SUM(K29:K32) -> 6237.03975 | O33: Total | P33: =SUM(P29:P32) -> 281 | Q33: 1796 | R33: 3592 | S33: 5323.75 | T33: 6991.25 | U33: 8658.75
C34: % of brownfields migrated | G34: =G33/$Q$17 -> 0.01379065412 | H34: =H33/$Q$17 -> 0.09953095878 | I34: =I33/$Q$17 -> 0.2490743011 | J34: =J33/$Q$17 -> 0.4068529996 | K34: =K33/$Q$17 -> 0.5588745296
F36: Y05 | G36: Y06 | H36: Y07 | I36: Y08 | J36: Y09 | K36: Y10
B37: FTTN Build (% of Cu transferred in FY) | F37: 2013/2014 | G37: 2014/2015 | H37: 2015/2016 | I37: 2016/2017 | J37: 2017/2018 | K37: 2018/2019
B38: Technology | C38: FTTN | G38: =((G13*$C$39)-(F13*$C$39))*1000/SUM('Demand Forecasts'!F88,'Demand Forecasts'!F91,'Demand Forecasts'!F97,'Demand Forecasts'!F102,'Demand Forecasts'!F103,'Demand Forecasts'!F105) -> 36666.66667 | H38: =((H13*$C$39)-(G13*$C$39))*1000/SUM('Demand Forecasts'!G88,'Demand Forecasts'!G91,'Demand Forecasts'!G97,'Demand Forecasts'!G102,'Demand Forecasts'!G103,'Demand Forecasts'!G105) -> 37179.39484 | I38: =((I13*$C$39)-(H13*$C$39))*1000/SUM('Demand Forecasts'!H88,'Demand Forecasts'!H91,'Demand Forecasts'!H97,'Demand Forecasts'!H102,'Demand Forecasts'!H103,'Demand Forecasts'!H105) -> 91387.55793 | J38: =((J13*$C$39)-(I13*$C$39))*1000/SUM('Demand Forecasts'!I88,'Demand Forecasts'!I91,'Demand Forecasts'!I97,'Demand Forecasts'!I102,'Demand Forecasts'!I103,'Demand Forecasts'!I105) -> 170345.3043 | K38: =((K13*$C$39)-(J13*$C$39))*1000/SUM('Demand Forecasts'!J88,'Demand Forecasts'!J91,'Demand Forecasts'!J97,'Demand Forecasts'!J102,'Demand Forecasts'!J103,'Demand Forecasts'!J105) -> 215657.6137
B39: CU SIOs to Premises | C39: 1

Sheet Price Summary
B1: COMMERCIAL IN CONFIDENCE
B2: Price Summary
F3: 5 | G3: 6 | H3: 7 | I3: 8 | J3: 9 | K3: 10
B4: Purpose
B5: Calculate Prices resulting from FLSM
F7: 5 | G7: 6 | H7: 7 | I7: 8 | J7: 9 | K7: 10
B8: Results
B10: Scenario A.
B11: Code | C11: Service | E11: Total Revenue Requirement $M | F11: Prices $ | G11: Revenue Generated $M | H11: Check
B12: S01 | C12: =VLOOKUP($B12,Services,2,FALSE) -> Unconditioned Local Loop Service Band 1 - 3 | E12: =J94 -> -212754.0277 | F12: =F27 -> 17.43870424 | G12: =J79 -> 2.261556349e-05 | H12: =G12-E12 -> 212754.0278
B13: S02 | C13: Unconditioned Local Loop Service Band 4 | E13: =J95 -> -70918.00924 | F13: =F28 -> 51.8427611 | G13: =J80 -> 2.241093984e-05 | H13: 70918.00927
B14: S03 | C14: Wholesale Line Rental | E14: -283667.5959 | F14: 24.57125261 | G14: 4.248730989e-05 | H14: 283667.596
B15: S04 | C15: PSTN FOAS & FTAS | E15: 14.94397103 | F15: 1.022009194 | G15: 7.363350919e-08 | H15: -14.94397095
B16: S05 | C16: Local Carriage Service | E16: 7.471985514 | F16: 9.574612446 | G16: 1.025434143e-07 | H16: -7.471985412
B17: S06 | C17: Line Sharing Service | E17: 213.6675104 | F17: 1.936438472 | G17: 8.37096736e-05 | H17: -213.6674267
B18: S07 | C18: Wholesale ADSL | E18: 223.356399 | H18: -223.356399
C19: WADSL Zone 1 port | F19: 26.29253126 | G19: 1.136591346e-05 | H19: 1.136591346e-05
C20: WADSL Zone 2/3 port | F20: 31.90820283 | G20: 0.001365555905 | H20: 0.001365555905
C21: AGVC/VLAN | F21: 34.75907058 | G21: 0.001502588641 | H21: 0.001502588641
C22: Total | E22: =SUM(E12:E18) -> -566880.193 | G22: =SUM(G12:G21) -> 0.003050910124 | H22: =SUM(H12:H21) -> 566880.1961
B25: Fixed Line Access Services Prices | F25: Average overall price change | G25: 0.07579915125
B26: Code | C26: Service | D26: Units | E26: Current price | F26: Alternative price
B27: S01 | C27: =VLOOKUP($B27,Services,2,FALSE) -> Unconditioned Local Loop Service Band 1 - 3 | D27: =VLOOKUP($B27,Services,5,FALSE) -> $ / month | E27: 16.21 | F27: =E27*(1+$G$25) -> 17.43870424
B28: S02 | C28: Unconditioned Local Loop Service Band 4 | D28: $ / month | E28: 48.19 | F28: =E28*(1+$G$25) -> 51.8427611
B29: S03 | C29: Wholesale Line Rental | D29: $ / month | E29: 22.84 | F29: 24.57125261
B30: S04 | C30: PSTN FOAS & FTAS | D30: ¢ / minute | E30: 0.95 | F30: 1.022009194
B31: S05 | C31: Local Carriage Service | D31: ¢ / call | E31: 8.9 | F31: 9.574612446
B32: S06 | C32: Line Sharing Service | D32: $ / month | E32: 1.8 | F32: 1.936438472
B33: S07 | C33: Wholesale ADSL
C34: WADSL Zone 1 port | D34: $ / month | E34: 24.44 | F34: =E34*(1+$G$25) -> 26.29253126
C35: WADSL Zone 2/3 port | D35: $ / month | E35: 29.66 | F35: 31.90820283
C36: AGVC/VLAN | D36: $ / Mbps / month | E36: 32.31 | F36: 34.75907058
E42: Y06 | F42: Y07 | G42: Y08 | H42: Y09 | I42: Y10
E43: =VLOOKUP(E42,FYears,2,FALSE) -> 2014/2015 | F43: =VLOOKUP(F42,FYears,2,FALSE) -> 2015/2016 | G43: =VLOOKUP(G42,FYears,2,FALSE) -> 2016/2017 | H43: =VLOOKUP(H42,FYears,2,FALSE) -> 2017/2018 | I43: =VLOOKUP(I42,FYears,2,FALSE) -> 2018/2019
B44: Cumulative inflation index | E44: =VLOOKUP(E42,Infl_per_yr,5,FALSE) -> 1.164565804 | F44: =VLOOKUP(F42,Infl_per_yr,5,FALSE) -> 1.19600908 | G44: =VLOOKUP(G42,Infl_per_yr,5,FALSE) -> 1.229497335 | H44: =VLOOKUP(H42,Infl_per_yr,5,FALSE) -> 1.262693763 | I44: =VLOOKUP(I42,Infl_per_yr,5,FALSE) -> 1.296786494
B47: Fixed Line Access Services | E47: Service Prices Adjusted for Inflation | J47: 5 Year Average
B48: Code | C48: Service | D48: Units | E48: =E$43 -> 2014/2015 | F48: =F$43 -> 2015/2016 | G48: =G$43 -> 2016/2017 | H48: =H$43 -> 2017/2018 | I48: =I$43 -> 2018/2019
B49: S01 | C49: =VLOOKUP($B49,Services,2,FALSE) -> Unconditioned Local Loop Service Band 1 - 3 | D49: =VLOOKUP($B49,Services,5,FALSE) -> $ / month | E49: =VLOOKUP($B49,'7. Service Costs'!$C$101:$S$107,'7. Service Costs'!M$3,FALSE)/12*E$44 -> 6006923.827 | F49: =VLOOKUP($B49,'7. Service Costs'!$C$101:$S$107,'7. Service Costs'!N$3,FALSE)/12*F$44 -> -7.763937854e+10 | G49: =VLOOKUP($B49,'7. Service Costs'!$C$101:$S$107,'7. Service Costs'!O$3,FALSE)/12*G$44 -> -9.134248325e+10 | H49: =VLOOKUP($B49,'7. Service Costs'!$C$101:$S$107,'7. Service Costs'!P$3,FALSE)/12*H$44 -> -2.737382853e+11 | I49: =VLOOKUP($B49,'7. Service Costs'!$C$101:$S$107,'7. Service Costs'!Q$3,FALSE)/12*I$44 -> -6.576791327e+11 | J49: =AVERAGE(E49:I49) -> -2.200786546e+11
B50: S02 | C50: Unconditioned Local Loop Service Band 4 | D50: $ / month | E50: =VLOOKUP($B50,'7. Service Costs'!$C$101:$S$107,'7. Service Costs'!M$3,FALSE)/12*E$44 -> 6006923.827 | F50: =VLOOKUP($B50,'7. Service Costs'!$C$101:$S$107,'7. Service Costs'!N$3,FALSE)/12*F$44 -> -7.763937854e+10 | G50: =VLOOKUP($B50,'7. Service Costs'!$C$101:$S$107,'7. Service Costs'!O$3,FALSE)/12*G$44 -> -9.134248325e+10 | H50: =VLOOKUP($B50,'7. Service Costs'!$C$101:$S$107,'7. Service Costs'!P$3,FALSE)/12*H$44 -> -2.737382853e+11 | I50: =VLOOKUP($B50,'7. Service Costs'!$C$101:$S$107,'7. Service Costs'!Q$3,FALSE)/12*I$44 -> -6.576791327e+11 | J50: =AVERAGE(E50:I50) -> -2.200786546e+11
B51: S03 | C51: Wholesale Line Rental | D51: $ / month | E51: =VLOOKUP($B51,'7. Service Costs'!$C$101:$S$107,'7. Service Costs'!M$3,FALSE)/12*E$44 -> 7556944.802 | F51: =VLOOKUP($B51,'7. Service Costs'!$C$101:$S$107,'7. Service Costs'!N$3,FALSE)/12*F$44 -> -7.763656589e+10 | G51: =VLOOKUP($B51,'7. Service Costs'!$C$101:$S$107,'7. Service Costs'!O$3,FALSE)/12*G$44 -> -9.133962271e+10 | H51: =VLOOKUP($B51,'7. Service Costs'!$C$101:$S$107,'7. Service Costs'!P$3,FALSE)/12*H$44 -> -2.737353724e+11 | I51: =VLOOKUP($B51,'7. Service Costs'!$C$101:$S$107,'7. Service Costs'!Q$3,FALSE)/12*I$44 -> -6.576761516e+11 | J51: -2.200760311e+11
B52: S04 | C52: PSTN FOAS & FTAS | D52: ¢ / minute | E52: =VLOOKUP($B52,'7. Service Costs'!$C$101:$S$107,'7. Service Costs'!M$3,FALSE)*100*E$44 -> 655876083.9 | F52: =VLOOKUP($B52,'7. Service Costs'!$C$101:$S$107,'7. Service Costs'!N$3,FALSE)*100*F$44 -> 27331477.11 | G52: =VLOOKUP($B52,'7. Service Costs'!$C$101:$S$107,'7. Service Costs'!O$3,FALSE)*100*G$44 -> 33221629.88 | H52: =VLOOKUP($B52,'7. Service Costs'!$C$101:$S$107,'7. Service Costs'!P$3,FALSE)*100*H$44 -> 42572485.33 | I52: =VLOOKUP($B52,'7. Service Costs'!$C$101:$S$107,'7. Service Costs'!Q$3,FALSE)*100*I$44 -> 57937169.52 | J52: 163387769.1
B53: S05 | C53: Local Carriage Service | D53: ¢ / call | E53: =VLOOKUP($B53,'7. Service Costs'!$C$101:$S$107,'7. Service Costs'!M$3,FALSE)*100*E$44 -> 2273304166 | F53: =VLOOKUP($B53,'7. Service Costs'!$C$101:$S$107,'7. Service Costs'!N$3,FALSE)*100*F$44 -> 93518055.42 | G53: =VLOOKUP($B53,'7. Service Costs'!$C$101:$S$107,'7. Service Costs'!O$3,FALSE)*100*G$44 -> 112154716.9 | H53: =VLOOKUP($B53,'7. Service Costs'!$C$101:$S$107,'7. Service Costs'!P$3,FALSE)*100*H$44 -> 124299152.6 | I53: =VLOOKUP($B53,'7. Service Costs'!$C$101:$S$107,'7. Service Costs'!Q$3,FALSE)*100*I$44 -> 155664416.7 | J53: 551788101.6
B54: S06 | C54: Line Sharing Service | D54: $ / month | E54: =VLOOKUP($B54,'7. Service Costs'!$C$101:$S$107,'7. Service Costs'!M$3,FALSE)/12*E$44 -> 2646614.732 | F54: =VLOOKUP($B54,'7. Service Costs'!$C$101:$S$107,'7. Service Costs'!N$3,FALSE)/12*F$44 -> 5543923.37 | G54: =VLOOKUP($B54,'7. Service Costs'!$C$101:$S$107,'7. Service Costs'!O$3,FALSE)/12*G$44 -> 5632457.684 | H54: =VLOOKUP($B54,'7. Service Costs'!$C$101:$S$107,'7. Service Costs'!P$3,FALSE)/12*H$44 -> 5725518.164 | I54: =VLOOKUP($B54,'7. Service Costs'!$C$101:$S$107,'7. Service Costs'!Q$3,FALSE)/12*I$44 -> 5843569.118 | J54: 5078416.614
B55: S07 | C55: Wholesale ADSL | D55: $ / month | E55: =VLOOKUP($B55,'7. Service Costs'!$C$101:$S$107,'7. Service Costs'!M$3,FALSE)/12*E$44 -> 3384158.146 | F55: =VLOOKUP($B55,'7. Service Costs'!$C$101:$S$107,'7. Service Costs'!N$3,FALSE)/12*F$44 -> 5565756.572 | G55: =VLOOKUP($B55,'7. Service Costs'!$C$101:$S$107,'7. Service Costs'!O$3,FALSE)/12*G$44 -> 5658966.413 | H55: =VLOOKUP($B55,'7. Service Costs'!$C$101:$S$107,'7. Service Costs'!P$3,FALSE)/12*H$44 -> 5759448.034 | I55: =VLOOKUP($B55,'7. Service Costs'!$C$101:$S$107,'7. Service Costs'!Q$3,FALSE)/12*I$44 -> 5889686.522 | J55: 5251603.137
C56: WADSL Zone 1 port | D56: $ / month | E56: =E173 -> 338.4158146 | F56: =F173 -> 556.5756572 | G56: 565.8966413 | H56: 575.9448034 | I56: 588.9686522 | J56: 525.1603137
C57: WADSL Zone 2/3 port | D57: $ / month | E57: =E174 -> 34179.99727 | F57: 56214.14138 | G57: 57155.56077 | H57: 58170.42514 | I57: 59485.83387 | J57: 53041.19169
C58: AGVC/VLAN | D58: $ / Mbps / month | E58: =E171 -> 33841.58146 | F58: =F171 -> 55657.56572 | G58: 56589.66413 | H58: 57594.48034 | I58: 58896.86522 | J58: 52516.03137
B61: Fixed Line Access Services | E61: Annual Demand
B62: Code | C62: Service | D62: Unit | E62: =E$43 -> 2014/2015 | F62: =F$43 -> 2015/2016 | G62: =G$43 -> 2016/2017 | H62: =H$43 -> 2017/2018 | I62: =I$43 -> 2018/2019
B63: =B49 -> S01 | C63: =VLOOKUP($B63,Services,2,FALSE) -> Unconditioned Local Loop Service Band 1 - 3 | D63: =VLOOKUP($B63,Services,3,FALSE) -> Line | E63: =VLOOKUP($B63,'5. Service Demand'!$C$12:$S$19,'5. Service Demand'!M$3,FALSE) -> 0.02958628038 | F63: =VLOOKUP($B63,'5. Service Demand'!$C$12:$S$19,'5. Service Demand'!N$3,FALSE) -> 0.02701407124 | G63: =VLOOKUP($B63,'5. Service Demand'!$C$12:$S$19,'5. Service Demand'!O$3,FALSE) -> 0.02252777097 | H63: =VLOOKUP($B63,'5. Service Demand'!$C$12:$S$19,'5. Service Demand'!P$3,FALSE) -> 0.01779441001 | I63: =VLOOKUP($B63,'5. Service Demand'!$C$12:$S$19,'5. Service Demand'!Q$3,FALSE) -> 0.01323376411
B64: =B50 -> S02 | C64: Unconditioned Local Loop Service Band 4 | D64: Line | E64: =VLOOKUP($B64,'5. Service Demand'!$C$12:$S$19,'5. Service Demand'!M$3,FALSE) -> 0.009862093459 | F64: =VLOOKUP($B64,'5. Service Demand'!$C$12:$S$19,'5. Service Demand'!N$3,FALSE) -> 0.009004690412 | G64: =VLOOKUP($B64,'5. Service Demand'!$C$12:$S$19,'5. Service Demand'!O$3,FALSE) -> 0.007509256989 | H64: =VLOOKUP($B64,'5. Service Demand'!$C$12:$S$19,'5. Service Demand'!P$3,FALSE) -> 0.005931470004 | I64: =VLOOKUP($B64,'5. Service Demand'!$C$12:$S$19,'5. Service Demand'!Q$3,FALSE) -> 0.004411254704
B65: S03 | C65: Wholesale Line Rental | D65: Line | E65: =VLOOKUP($B65,'5. Service Demand'!$C$12:$S$19,'5. Service Demand'!M$3,FALSE) -> 0.03944837384 | F65: =VLOOKUP($B65,'5. Service Demand'!$C$12:$S$19,'5. Service Demand'!N$3,FALSE) -> 0.03601876165 | G65: =VLOOKUP($B65,'5. Service Demand'!$C$12:$S$19,'5. Service Demand'!O$3,FALSE) -> 0.03003702796 | H65: =VLOOKUP($B65,'5. Service Demand'!$C$12:$S$19,'5. Service Demand'!P$3,FALSE) -> 0.02372588002 | I65: =VLOOKUP($B65,'5. Service Demand'!$C$12:$S$19,'5. Service Demand'!Q$3,FALSE) -> 0.01764501882
B66: S04 | C66: PSTN FOAS & FTAS | D66: Minute | E66: =VLOOKUP($B66,'5. Service Demand'!$C$12:$S$19,'5. Service Demand'!M$3,FALSE) -> 1.972418692 | F66: =VLOOKUP($B66,'5. Service Demand'!$C$12:$S$19,'5. Service Demand'!N$3,FALSE) -> 1.800938082 | G66: =VLOOKUP($B66,'5. Service Demand'!$C$12:$S$19,'5. Service Demand'!O$3,FALSE) -> 1.501851398 | H66: =VLOOKUP($B66,'5. Service Demand'!$C$12:$S$19,'5. Service Demand'!P$3,FALSE) -> 1.186294001 | I66: =VLOOKUP($B66,'5. Service Demand'!$C$12:$S$19,'5. Service Demand'!Q$3,FALSE) -> 0.8822509409
B67: S05 | C67: Local Carriage Service | D67: Minute | E67: =VLOOKUP($B67,'5. Service Demand'!$C$12:$S$19,'5. Service Demand'!M$3,FALSE) -> 0.9862093459 | F67: =VLOOKUP($B67,'5. Service Demand'!$C$12:$S$19,'5. Service Demand'!N$3,FALSE) -> 0.9004690412 | G67: =VLOOKUP($B67,'5. Service Demand'!$C$12:$S$19,'5. Service Demand'!O$3,FALSE) -> 0.7509256989 | H67: =VLOOKUP($B67,'5. Service Demand'!$C$12:$S$19,'5. Service Demand'!P$3,FALSE) -> 0.5931470004 | I67: =VLOOKUP($B67,'5. Service Demand'!$C$12:$S$19,'5. Service Demand'!Q$3,FALSE) -> 0.4411254704
B68: S06 | C68: Line Sharing Service | D68: Line | E68: =VLOOKUP($B68,'5. Service Demand'!$C$12:$S$19,'5. Service Demand'!M$3,FALSE) -> 0.9862093459 | F68: =VLOOKUP($B68,'5. Service Demand'!$C$12:$S$19,'5. Service Demand'!N$3,FALSE) -> 0.9004690412 | G68: =VLOOKUP($B68,'5. Service Demand'!$C$12:$S$19,'5. Service Demand'!O$3,FALSE) -> 0.7509256989 | H68: =VLOOKUP($B68,'5. Service Demand'!$C$12:$S$19,'5. Service Demand'!P$3,FALSE) -> 0.5931470004 | I68: =VLOOKUP($B68,'5. Service Demand'!$C$12:$S$19,'5. Service Demand'!Q$3,FALSE) -> 0.4411254704
B69: S07 | C69: Wholesale ADSL | D69: SIO | E69: =VLOOKUP($B69,'5. Service Demand'!$C$12:$S$19,'5. Service Demand'!M$3,FALSE) -> 0.9862093459 | F69: =VLOOKUP($B69,'5. Service Demand'!$C$12:$S$19,'5. Service Demand'!N$3,FALSE) -> 0.9004690412 | G69: =VLOOKUP($B69,'5. Service Demand'!$C$12:$S$19,'5. Service Demand'!O$3,FALSE) -> 0.7509256989 | H69: =VLOOKUP($B69,'5. Service Demand'!$C$12:$S$19,'5. Service Demand'!P$3,FALSE) -> 0.5931470004 | I69: =VLOOKUP($B69,'5. Service Demand'!$C$12:$S$19,'5. Service Demand'!Q$3,FALSE) -> 0.4411254704
C70: WADSL Zone 1 port | D70: SIO | E70: ='Demand Forecasts'!G$93*'Demand Forecasts'!G75 -> 0.009862093459 | F70: ='Demand Forecasts'!H$93*'Demand Forecasts'!H75 -> 0.009004690412 | G70: ='Demand Forecasts'!I$93*'Demand Forecasts'!I75 -> 0.007509256989 | H70: ='Demand Forecasts'!J$93*'Demand Forecasts'!J75 -> 0.005931470004 | I70: ='Demand Forecasts'!K$93*'Demand Forecasts'!K75 -> 0.004411254704
C71: WADSL Zone 2/3 port | D71: SIO | E71: =E69-E70 -> 0.9763472524 | F71: =F69-F70 -> 0.8914643508 | G71: 0.7434164419 | H71: 0.5872155304 | I71: 0.4367142157
C72: AGVC/VLAN | D72: Peak Mbps/user | E72: =E73/SUM(E70:E71) -> 1 | F72: =F73/SUM(F70:F71) -> 1 | G72: =G73/SUM(G70:G71) -> 1 | H72: =H73/SUM(H70:H71) -> 1 | I72: =I73/SUM(I70:I71) -> 1
D73: Total Mbps | E73: ='Demand Forecasts'!G95 -> 0.9862093459 | F73: ='Demand Forecasts'!H95 -> 0.9004690412 | G73: ='Demand Forecasts'!I95 -> 0.7509256989 | H73: ='Demand Forecasts'!J95 -> 0.5931470004 | I73: ='Demand Forecasts'!K95 -> 0.4411254704
C74: LCS average call duration | D74: Minutes | E74: ='Demand Forecasts'!F29 -> 3.46 | F74: ='Demand Forecasts'!G29 -> 3.466057419 | G74: ='Demand Forecasts'!H29 -> 3.421624636 | H74: ='Demand Forecasts'!I29 -> 3.375954681 | I74: ='Demand Forecasts'!J29 -> 2.919706275
C75: =C67 -> Local Carriage Service | D75: Calls | E75: =E67/E74 -> 0.2850316029 | F75: =F67/F74 -> 0.2597963428 | G75: 0.2194646634 | H75: 0.1756975601 | I75: 0.1510855644
B77: Fixed Line Access Services | E77: Revenue Generated $
B78: Code | C78: Service | D78: $M | E78: =E$43 -> 2014/2015 | F78: =F$43 -> 2015/2016 | G78: =G$43 -> 2016/2017 | H78: =H$43 -> 2017/2018 | I78: =I$43 -> 2018/2019 | J78: Sum of Yearly Revenue
B79: =B63 -> S01 | C79: =VLOOKUP($B79,Services,2,FALSE) -> Unconditioned Local Loop Service Band 1 - 3 | E79: =$E27*E63*12/1000000 -> 5.755123259e-06 | F79: =$F27*F63*12/1000000 -> 5.653084784e-06 | G79: 4.714261622e-06 | H79: 3.723737441e-06 | I79: 2.76935638e-06 | J79: =SUM(E79:I79) -> 2.261556349e-05
B80: =B64 -> S02 | C80: Unconditioned Local Loop Service Band 4 | E80: =$E28*E64*12/1000000 -> 5.703051405e-06 | F80: 5.601936166e-06 | G80: 4.671607393e-06 | H80: 3.690045389e-06 | I80: 2.744299485e-06 | J80: =SUM(E80:I80) -> 2.241093984e-05
B81: S03 | C81: Wholesale Line Rental | E81: =$E29*E65*12/1000000 -> 1.08120103e-05 | F81: 1.06203131e-05 | G81: 8.856568821e-06 | H81: 6.995695097e-06 | I81: 5.202722577e-06 | J81: 4.248730989e-05
B82: S04 | C82: PSTN FOAS & FTAS | E82: =$E30*E66/100/1000000 -> 1.873797757e-08 | F82: =$F30*F66/100/1000000 -> 1.840575278e-08 | G82: =$F30*G66/100/1000000 -> 1.534905936e-08 | H82: =$F30*H66/100/1000000 -> 1.212403375e-08 | I82: =$F30*I66/100/1000000 -> 9.016685727e-09 | J82: 7.363350919e-08
B83: S05 | C83: Local Carriage Service | E83: =$E31*E75/100/1000000 -> 2.536781265e-08 | F83: =$F31*F75/100/1000000 -> 2.487449297e-08 | G83: =$F31*G75/100/1000000 -> 2.101289098e-08 | H83: 1.682236046e-08 | I83: 1.446585725e-08 | J83: 1.025434143e-07
B84: S06 | C84: Line Sharing Service | E84: =$E32*E68*12/1000000 -> 2.130212187e-05 | F84: =$F32*F68*12/1000000 -> 2.092443473e-05 | G84: =$F32*G68*12/1000000 -> 1.744945696e-05 | H84: =$F32*H68*12/1000000 -> 1.378311206e-05 | I84: =$F32*I68*12/1000000 -> 1.025054798e-05 | J84: 8.37096736e-05
B85: S07 | C85: Wholesale ADSL | E85: =SUM(E86:E88) -> 0.0007327669564 | F85: =SUM(F86:F88) -> 0.0007197749805 | G85: 0.0006002399923 | H85: =SUM(H86:H88) -> 0.0004741222087 | I85: =SUM(I86:I88) -> 0.0003526063222 | J85: 0.00287951046
C86: WADSL Zone 1 port | E86: =$E34*E70*12/1000000 -> 2.89235477e-06 | F86: =$F34*F70*12/1000000 -> 2.841073249e-06 | G86: 2.369248489e-06 | H86: 1.871440326e-06 | I86: 1.391796626e-06 | J86: 1.136591346e-05
C87: WADSL Zone 2/3 port | E87: =$E35*E71*12/1000000 -> 0.0003475015141 | F87: 0.0003413403038 | G87: 0.0002846529914 | H87: 0.000224843907 | I87: 0.0001672171893 | J87: 0.001365555905
C88: AGVC/VLAN | E88: =$E36*E72*12*E69/1000000 -> 0.0003823730876 | F88: =$F36*F72*12*F69/1000000 -> 0.0003755936035 | G88: =$F36*G72*12*G69/1000000 -> 0.0003132177524 | H88: =$F36*H72*12*H69/1000000 -> 0.0002474068614 | I88: =$F36*I72*12*I69/1000000 -> 0.0001839973363 | J88: 0.001502588641
C89: Total | E89: =SUM(E79:E85) -> 0.0007763833691 | F89: =SUM(F79:F85) -> 0.0007626180296 | G89: 0.000635968249 | H89: 0.0005023437451 | I89: 0.0003735967312 | J89: =SUM(J79:J85) -> 0.003050910124
B92: Fixed Line Access Services | E92: Revenue Required from 7. Service Costs
B93: Code | C93: Service | D93: $M | E93: =E$43 -> 2014/2015 | F93: =F$43 -> 2015/2016 | G93: =G$43 -> 2016/2017 | H93: =H$43 -> 2017/2018 | I93: =I$43 -> 2018/2019 | J93: Total
B94: =B79 -> S01 | C94: =VLOOKUP($B94,Services,2,FALSE) -> Unconditioned Local Loop Service Band 1 - 3 | E94: =INDEX('7. Service Costs'!$H$87:$S$93,MATCH($B94,'7. Service Costs'!$C$87:$C$93,0),MATCH(E$42,'7. Service Costs'!$H$85:$S$85,0))*E$44 -> 2.132670391 | F94: =INDEX('7. Service Costs'!$H$87:$S$93,MATCH($B94,'7. Service Costs'!$C$87:$C$93,0),MATCH(F$42,'7. Service Costs'!$H$85:$S$85,0))*F$44 -> -25168.26843 | G94: =INDEX('7. Service Costs'!$H$87:$S$93,MATCH($B94,'7. Service Costs'!$C$87:$C$93,0),MATCH(G$42,'7. Service Costs'!$H$85:$S$85,0))*G$44 -> -24692.91051 | H94: =INDEX('7. Service Costs'!$H$87:$S$93,MATCH($B94,'7. Service Costs'!$C$87:$C$93,0),MATCH(H$42,'7. Service Costs'!$H$85:$S$85,0))*H$44 -> -58452.13542 | I94: =INDEX('7. Service Costs'!$H$87:$S$93,MATCH($B94,'7. Service Costs'!$C$87:$C$93,0),MATCH(I$42,'7. Service Costs'!$H$85:$S$85,0))*I$44 -> -104442.846 | J94: =SUM(E94:I94) -> -212754.0277
B95: =B80 -> S02 | C95: Unconditioned Local Loop Service Band 4 | E95: =INDEX('7. Service Costs'!$H$87:$S$93,MATCH($B95,'7. Service Costs'!$C$87:$C$93,0),MATCH(E$42,'7. Service Costs'!$H$85:$S$85,0))*E$44 -> 0.7108901302 | F95: =INDEX('7. Service Costs'!$H$87:$S$93,MATCH($B95,'7. Service Costs'!$C$87:$C$93,0),MATCH(F$42,'7. Service Costs'!$H$85:$S$85,0))*F$44 -> -8389.42281 | G95: =INDEX('7. Service Costs'!$H$87:$S$93,MATCH($B95,'7. Service Costs'!$C$87:$C$93,0),MATCH(G$42,'7. Service Costs'!$H$85:$S$85,0))*G$44 -> -8230.970169 | H95: =INDEX('7. Service Costs'!$H$87:$S$93,MATCH($B95,'7. Service Costs'!$C$87:$C$93,0),MATCH(H$42,'7. Service Costs'!$H$85:$S$85,0))*H$44 -> -19484.04514 | I95: =INDEX('7. Service Costs'!$H$87:$S$93,MATCH($B95,'7. Service Costs'!$C$87:$C$93,0),MATCH(I$42,'7. Service Costs'!$H$85:$S$85,0))*I$44 -> -34814.28202 | J95: =SUM(E95:I95) -> -70918.00924
B96: S03 | C96: Wholesale Line Rental | E96: =INDEX('7. Service Costs'!$H$87:$S$93,MATCH($B96,'7. Service Costs'!$C$87:$C$93,0),MATCH(E$42,'7. Service Costs'!$H$85:$S$85,0))*E$44 -> 3.577310203 | F96: =INDEX('7. Service Costs'!$H$87:$S$93,MATCH($B96,'7. Service Costs'!$C$87:$C$93,0),MATCH(F$42,'7. Service Costs'!$H$85:$S$85,0))*F$44 -> -33556.47555 | G96: =INDEX('7. Service Costs'!$H$87:$S$93,MATCH($B96,'7. Service Costs'!$C$87:$C$93,0),MATCH(G$42,'7. Service Costs'!$H$85:$S$85,0))*G$44 -> -32922.84961 | H96: =INDEX('7. Service Costs'!$H$87:$S$93,MATCH($B96,'7. Service Costs'!$C$87:$C$93,0),MATCH(H$42,'7. Service Costs'!$H$85:$S$85,0))*H$44 -> -77935.35122 | I96: =INDEX('7. Service Costs'!$H$87:$S$93,MATCH($B96,'7. Service Costs'!$C$87:$C$93,0),MATCH(I$42,'7. Service Costs'!$H$85:$S$85,0))*I$44 -> -139256.4968 | J96: -283667.5959
B97: S04 | C97: PSTN FOAS & FTAS | E97: =INDEX('7. Service Costs'!$H$87:$S$93,MATCH($B97,'7. Service Costs'!$C$87:$C$93,0),MATCH(E$42,'7. Service Costs'!$H$85:$S$85,0))*E$44 -> 12.93662247 | F97: =INDEX('7. Service Costs'!$H$87:$S$93,MATCH($B97,'7. Service Costs'!$C$87:$C$93,0),MATCH(F$42,'7. Service Costs'!$H$85:$S$85,0))*F$44 -> 0.4922229798 | G97: =INDEX('7. Service Costs'!$H$87:$S$93,MATCH($B97,'7. Service Costs'!$C$87:$C$93,0),MATCH(G$42,'7. Service Costs'!$H$85:$S$85,0))*G$44 -> 0.4989395128 | H97: =INDEX('7. Service Costs'!$H$87:$S$93,MATCH($B97,'7. Service Costs'!$C$87:$C$93,0),MATCH(H$42,'7. Service Costs'!$H$85:$S$85,0))*H$44 -> 0.5050348395 | I97: =INDEX('7. Service Costs'!$H$87:$S$93,MATCH($B97,'7. Service Costs'!$C$87:$C$93,0),MATCH(I$42,'7. Service Costs'!$H$85:$S$85,0))*I$44 -> 0.5111512232 | J97: 14.94397103
B98: S05 | C98: Local Carriage Service | E98: =INDEX('7. Service Costs'!$H$87:$S$93,MATCH($B98,'7. Service Costs'!$C$87:$C$93,0),MATCH(E$42,'7. Service Costs'!$H$85:$S$85,0))*E$44 -> 6.468311237 | F98: =INDEX('7. Service Costs'!$H$87:$S$93,MATCH($B98,'7. Service Costs'!$C$87:$C$93,0),MATCH(F$42,'7. Service Costs'!$H$85:$S$85,0))*F$44 -> 0.2461114899 | G98: =INDEX('7. Service Costs'!$H$87:$S$93,MATCH($B98,'7. Service Costs'!$C$87:$C$93,0),MATCH(G$42,'7. Service Costs'!$H$85:$S$85,0))*G$44 -> 0.2494697564 | H98: =INDEX('7. Service Costs'!$H$87:$S$93,MATCH($B98,'7. Service Costs'!$C$87:$C$93,0),MATCH(H$42,'7. Service Costs'!$H$85:$S$85,0))*H$44 -> 0.2525174198 | I98: =INDEX('7. Service Costs'!$H$87:$S$93,MATCH($B98,'7. Service Costs'!$C$87:$C$93,0),MATCH(I$42,'7. Service Costs'!$H$85:$S$85,0))*I$44 -> 0.2555756116 | J98: 7.471985514
B99: S06 | C99: Line Sharing Service | E99: =INDEX('7. Service Costs'!$H$87:$S$93,MATCH($B99,'7. Service Costs'!$C$87:$C$93,0),MATCH(E$42,'7. Service Costs'!$H$85:$S$85,0))*E$44 -> 31.32139421 | F99: =INDEX('7. Service Costs'!$H$87:$S$93,MATCH($B99,'7. Service Costs'!$C$87:$C$93,0),MATCH(F$42,'7. Service Costs'!$H$85:$S$85,0))*F$44 -> 59.90557634 | G99: =INDEX('7. Service Costs'!$H$87:$S$93,MATCH($B99,'7. Service Costs'!$C$87:$C$93,0),MATCH(G$42,'7. Service Costs'!$H$85:$S$85,0))*G$44 -> 50.75468668 | H99: =INDEX('7. Service Costs'!$H$87:$S$93,MATCH($B99,'7. Service Costs'!$C$87:$C$93,0),MATCH(H$42,'7. Service Costs'!$H$85:$S$85,0))*H$44 -> 40.7528871 | I99: =INDEX('7. Service Costs'!$H$87:$S$93,MATCH($B99,'7. Service Costs'!$C$87:$C$93,0),MATCH(I$42,'7. Service Costs'!$H$85:$S$85,0))*I$44 -> 30.93296612 | J99: 213.6675104
B100: S07 | C100: Wholesale ADSL | E100: =INDEX('7. Service Costs'!$H$87:$S$93,MATCH($B100,'7. Service Costs'!$C$87:$C$93,0),MATCH(E$42,'7. Service Costs'!$H$85:$S$85,0))*E$44 -> 40.0498607 | F100: =INDEX('7. Service Costs'!$H$87:$S$93,MATCH($B100,'7. Service Costs'!$C$87:$C$93,0),MATCH(F$42,'7. Service Costs'!$H$85:$S$85,0))*F$44 -> 60.14149781 | G100: =INDEX('7. Service Costs'!$H$87:$S$93,MATCH($B100,'7. Service Costs'!$C$87:$C$93,0),MATCH(G$42,'7. Service Costs'!$H$85:$S$85,0))*G$44 -> 50.99355971 | H100: =INDEX('7. Service Costs'!$H$87:$S$93,MATCH($B100,'7. Service Costs'!$C$87:$C$93,0),MATCH(H$42,'7. Service Costs'!$H$85:$S$85,0))*H$44 -> 40.99439191 | I100: =INDEX('7. Service Costs'!$H$87:$S$93,MATCH($B100,'7. Service Costs'!$C$87:$C$93,0),MATCH(I$42,'7. Service Costs'!$H$85:$S$85,0))*I$44 -> 31.17708885 | J100: 223.356399
C101: WADSL Zone 1 port
C102: WADSL Zone 2/3 port
C103: AGVC/VLAN
C104: Total | E104: =SUM(E94:E103) -> 97.19705934 | F104: -66993.38138 | G104: -65744.23363 | H104: -155789.0269 | I104: -278450.7481 | J104: -566880.193
B109: Scenario C.
C111: Glide Path Results | E111: Prices
B112: Code | C112: Service | E112: =E$43 -> 2014/2015 | F112: =F$43 -> 2015/2016 | G112: =G$43 -> 2016/2017 | H112: =H$43 -> 2017/2018 | I112: =I$43 -> 2018/2019
C113: % change from 2014/15 prices | E113: 0 | F113: =I113/4 -> 0.03455734866 | G113: =I113/4*2 -> 0.06911469732 | H113: =I113/4*3 -> 0.103672046 | I113: 0.1382293946
B114: S01 | C114: =VLOOKUP($B114,Services,2,FALSE) -> Unconditioned Local Loop Service Band 1 - 3 | E114: =$E27*(1+E$113) -> 16.21 | F114: 16.77017462 | G114: 17.33034924 | H114: 17.89052387 | I114: 18.45069849
B115: S02 | C115: Unconditioned Local Loop Service Band 4 | E115: 48.19 | F115: 49.85531863 | G115: 51.52063726 | H115: 53.1859559 | I115: 54.85127453
B116: S03 | C116: Wholesale Line Rental | E116: 22.84 | F116: 23.62928984 | G116: 24.41857969 | H116: 25.20786953 | I116: 25.99715937
B117: S04 | C117: PSTN FOAS & FTAS | E117: 0.95 | F117: 0.9828294812 | G117: 1.015658962 | H117: 1.048488444 | I117: 1.081317925
B118: S05 | C118: Local Carriage Service | E118: 8.9 | F118: 9.207560403 | G118: 9.515120806 | H118: 9.822681209 | I118: 10.13024161
B119: S06 | C119: Line Sharing Service | E119: 1.8 | F119: 1.862203228 | G119: 1.924406455 | H119: 1.986609683 | I119: 2.04881291
B120: S07 | C120: Wholesale ADSL
C121: WADSL Zone 1 port | E121: =$E34*(1+E$113) -> 24.44 | F121: 25.2845816 | G121: 26.1291632 | H121: 26.9737448 | I121: 27.8183264
C122: WADSL Zone 2/3 port | E122: 29.66 | F122: 30.68497096 | G122: 31.70994192 | H122: 32.73491288 | I122: 33.75988385
C123: AGVC/VLAN | E123: 32.31 | F123: 33.42654794 | G123: 34.54309587 | H123: 35.65964381 | I123: 36.77619174
B125: Fixed Line Access Services | E125: Revenue Generated $
B126: Code | C126: Service | D126: $M | E126: =E$43 -> 2014/2015 | F126: =F$43 -> 2015/2016 | G126: =G$43 -> 2016/2017 | H126: =H$43 -> 2017/2018 | I126: =I$43 -> 2018/2019 | J126: Total | K126: Check
B127: S01 | C127: =VLOOKUP($B127,Services,2,FALSE) -> Unconditioned Local Loop Service Band 1 - 3 | E127: =E114*12*E63/1000000 -> 5.755123259e-06 | F127: =F114*12*F63/1000000 -> 5.436368303e-06 | G127: 4.684969663e-06 | H127: 3.820215804e-06 | I127: 2.930066298e-06 | J127: =SUM(E127:I127) -> 2.262674333e-05 | K127: =J127-J94 -> 212754.0278
B128: S02 | C128: Unconditioned Local Loop Service Band 4 | E128: =E115*12*E64/1000000 -> 5.703051405e-06 | F128: =F115*12*F64/1000000 -> 5.387180516e-06 | G128: 4.642580466e-06 | H128: 3.785650825e-06 | I128: 2.903555314e-06 | J128: =SUM(E128:I128) -> 2.242201853e-05 | K128: 70918.00927
B129: S03 | C129: Wholesale Line Rental | E129: =E116*12*E65/1000000 -> 1.08120103e-05 | F129: =F116*12*F65/1000000 -> 1.021317311e-05 | G129: 8.801538729e-06 | H129: 7.176946656e-06 | I129: 5.504644396e-06 | J129: 4.250831319e-05 | K129: 283667.596
B130: S04 | C130: PSTN FOAS & FTAS | E130: =E117*E66/100/1000000 -> 1.873797757e-08 | F130: =F117*F66/100/1000000 -> 1.770015041e-08 | G130: 1.525368832e-08 | H130: 1.243815551e-08 | I130: 9.539937566e-09 | J130: 7.366990938e-08 | K130: -14.94397095
B131: S05 | C131: Local Carriage Service | E131: =E118*E75/100/1000000 -> 2.536781265e-08 | F131: =F118*F75/100/1000000 -> 2.392090518e-08 | G131: 2.088232785e-08 | H131: 1.725821122e-08 | I131: 1.530533272e-08 | J131: 1.027345896e-07 | K131: -7.471985412
B132: S06 | C132: Line Sharing Service | E132: =E119*12*E68/1000000 -> 2.130212187e-05 | F132: =F119*12*F68/1000000 -> 2.012227626e-05 | G132: 1.734103515e-05 | H132: 1.414021889e-05 | I132: 1.084540271e-05 | J132: 8.375105488e-05 | K132: -213.6674267
B133: S07 | C133: Wholesale ADSL | E133: =SUM(E134:E136) -> 0.0007327669564 | F133: =SUM(F134:F136) -> 0.0006921817094 | G133: 0.0005965104145 | H133: 0.0004864062474 | I133: 0.0003730685976 | J133: 0.002880933925 | K133: -223.353518
C134: WADSL Zone 1 port | E134: =E121*12*E70/1000000 -> 2.89235477e-06 | F134: =F121*12*F70/1000000 -> 2.732157954e-06 | G134: 2.354527217e-06 | H134: 1.919927499e-06 | I134: 1.472564679e-06 | J134: 1.137153212e-05
C135: WADSL Zone 2/3 port | E135: =E122*12*E71/1000000 -> 0.0003475015141 | F135: =F122*12*F71/1000000 -> 0.0003282546926 | G135: 0.0002828843064 | H135: 0.0002306693908 | I135: 0.0001769210544 | J135: 0.001366230958
C136: AGVC/VLAN | E136: =E123*12*E73/1000000 -> 0.0003823730876 | F136: =F123*12*F73/1000000 -> 0.0003611948588 | G136: 0.0003112715809 | H136: 0.0002538169291 | I136: 0.0001946749786 | J136: 0.001503331435
C137: Total | E137: =SUM(E127:E133) -> 0.0007763833691 | F137: =SUM(F127:F133) -> 0.0007333823286 | G137: 0.0006320166745 | H137: 0.000515358976 | I137: 0.0003952771116 | J137: =SUM(J127:J133) -> 0.00305241846 | K137: 566880.1961
B139: Scenario B.
B141: Code | C141: Service | D141: FY15 Prices | E141: Revenue Generated $M | F141: Revenue Remainder $M | G141: Prices $ | H141: Revenue Generated $M | I141: Check
B142: S01 | C142: =VLOOKUP($B142,Services,2,FALSE) -> Unconditioned Local Loop Service Band 1 - 3 | D142: =E27 -> 16.21 | E142: =D142*12*E63/1000000 -> 5.755123259e-06 | F142: =J94-E142 -> -212754.0277 | G142: =F142/SUM(F63:I63)*1000000/12 -> -2.200508715e+11 | H142: =G142*12*SUM(F63:I63)/1000000 -> -212754.0277 | I142: =H142-F142 -> 0
B143: S02 | C143: Unconditioned Local Loop Service Band 4 | D143: =E28 -> 48.19 | E143: =D143*12*E64/1000000 -> 5.703051405e-06 | F143: =J95-E143 -> -70918.00925 | G143: =F143/SUM(F64:I64)*1000000/12 -> -2.200508715e+11 | H143: =G143*12*SUM(F64:I64)/1000000 -> -70918.00925 | I143: =H143-F143 -> 0
B144: S03 | C144: Wholesale Line Rental | D144: 22.84 | E144: =D144*12*E65/1000000 -> 1.08120103e-05 | F144: -283667.5959 | G144: =F144/SUM(F65:I65)*1000000/12 -> -2.200474265e+11 | H144: =G144*12*SUM(F65:I65)/1000000 -> -283667.5959 | I144: 0
B145: S04 | C145: PSTN FOAS & FTAS | D145: 0.95 | E145: =D145*E66/100/1000000 -> 1.873797757e-08 | F145: 14.94397101 | G145: =F145/SUM(F66:I66)*1000000*100 -> 278217102.8 | H145: =G145/100*SUM(F66:I66)/1000000 -> 14.94397101 | I145: 0
B146: S05 | C146: Local Carriage Service | D146: 8.9 | E146: =D146*E75/100/1000000 -> 2.536781265e-08 | F146: 7.471985489 | G146: =F146/SUM(F75:I75)*1000000*100 -> 926994590.6 | H146: =G146/100*SUM(F75:I75)/1000000 -> 7.471985489 | I146: 0
B147: S06 | C147: Line Sharing Service | D147: 1.8 | E147: =D147*12*E68/1000000 -> 2.130212187e-05 | F147: 213.6674891 | G147: =F147/SUM(F68:I68)*1000000/12 -> 6629869.859 | H147: =G147*12*SUM(F68:I68)/1000000 -> 213.6674891 | I147: 0
B148: S07 | C148: Wholesale ADSL | E148: =SUM(E149:E151) -> 0.0007327669564 | F148: 223.3556662 | G148: =F148/SUM(F69:I69)*1000000/12 -> 6930483.46 | H148: =G148*12*SUM(F69:I69)/1000000 -> 223.3556662 | I148: 0
C149: WADSL Zone 1 port | D149: 24.44 | E149: =D149*12*E70/1000000 -> 2.89235477e-06 | G149: =K173 -> 693.048346 | H149: =G149*12*SUM(F70:I70)/1000000 -> 0.0002233556662
C150: WADSL Zone 2/3 port | D150: 29.66 | E150: =D150*12*E71/1000000 -> 0.0003475015141 | G150: =K174 -> 69997.88294 | H150: =G150*12*SUM(F71:I71)/1000000 -> 2.233333306
C151: AGVC/VLAN | D151: 32.31 | E151: =D151*12*E73/1000000 -> 0.0003823730876 | G151: =K171 -> 69304.8346 | H151: =G151*12*SUM(F73:I73)/1000000 -> 2.233556662
C152: Total | E152: =SUM(E142:E151)-E148 -> 0.0007763833691 | F152: =SUM(F142:F151) -> -566880.1938 | H152: =SUM(H142:H148) -> -566880.1938 | I152: =SUM(I142:I151) -> 0
B157: Calculation of port and AGVC/VLAN prices (per SIO)
E158: Y06 | F158: Y07 | G158: Y08 | H158: Y09 | I158: Y10
B159: Code | C159: Service | E159: =VLOOKUP(E158,FYears,2,FALSE) -> 2014/2015 | F159: =VLOOKUP(F158,FYears,2,FALSE) -> 2015/2016 | G159: =VLOOKUP(G158,FYears,2,FALSE) -> 2016/2017 | H159: =VLOOKUP(H158,FYears,2,FALSE) -> 2017/2018 | I159: =VLOOKUP(I158,FYears,2,FALSE) -> 2018/2019 | K159: Scenario B.
B160: S07 | C160: =VLOOKUP($B160,Services,2,FALSE) -> Wholesale ADSL | D160: per SIO | E160: =E55 -> 3384158.146 | F160: =F55 -> 5565756.572 | G160: =G55 -> 5658966.413 | H160: =H55 -> 5759448.034 | I160: =I55 -> 5889686.522 | K160: =G148 -> 6930483.46
C162: Relativities from the IAD
C163: AGVC/VLAN | E163: 0.01 | F163: 0.01 | G163: 0.01 | H163: 0.01 | I163: 0.01 | K163: 0.01
C164: Port (weighted average) | E164: 0.01 | F164: 0.01 | G164: 0.01 | H164: 0.01 | I164: 0.01 | K164: 0.01
C165: Zone 1 | E165: 0.01 | F165: 0.01 | G165: 0.01 | H165: 0.01 | I165: 0.01 | K165: 0.01
C166: Zone 2/3 | E166: 0.01 | F166: 0.01 | G166: 0.01 | H166: 0.01 | I166: 0.01 | K166: 0.01
C168: AGVC/VLAN | E168: =E$160*E163 -> 33841.58146 | F168: =F$160*F163 -> 55657.56572 | G168: 56589.66413 | H168: 57594.48034 | I168: 58896.86522 | K168: =K$160*K163 -> 69304.8346
C169: Port (weighted average) | E169: =E160*E164 -> 33841.58146 | F169: =F160*F164 -> 55657.56572 | G169: =G160*G164 -> 56589.66413 | H169: =H160*H164 -> 57594.48034 | I169: =I160*I164 -> 58896.86522 | K169: =K160*K164 -> 69304.8346
C171: Monthly AGVC/VLAN price (per Mbps) | E171: =E168/E72 -> 33841.58146 | F171: =F168/F72 -> 55657.56572 | G171: =G168/G72 -> 56589.66413 | H171: =H168/H72 -> 57594.48034 | I171: =I168/I72 -> 58896.86522 | K171: =K168/SUM(F73:I73)*SUM(F69:I69) -> 69304.8346
C173: Monthly Zone 1 port price | E173: =E165*E$169 -> 338.4158146 | F173: =F165*F$169 -> 556.5756572 | G173: =G165*G$169 -> 565.8966413 | H173: =H165*H$169 -> 575.9448034 | I173: =I165*I$169 -> 588.9686522 | K173: =K165*K$169 -> 693.048346
C174: Monthly Zone 2/3 port price | E174: =(E$169*E69-E173*E70)/E71 -> 34179.99727 | F174: =(F$169*F69-F173*F70)/F71 -> 56214.14138 | G174: =(G$169*G69-G173*G70)/G71 -> 57155.56077 | H174: =(H$169*H69-H173*H70)/H71 -> 58170.42514 | I174: =(I$169*I69-I173*I70)/I71 -> 59485.83387 | K174: =(K$169*SUM(F69:I69)-K173*SUM(F70:I70))/SUM(F71:I71) -> 69997.88294
B179: Calculation of geographic OTA split
E180: CBD | F180: Metro | G180: Provincial | H180: Rural | I180: Total
C181: Telstra POTS (CAN RKR end of December 2013) | E181: 1 | F181: 1 | G181: 1 | H181: 1 | I181: =SUM(E181:H181) -> 4
C182: Total distance from local exchange to the POI (km) | E182: 1 | F182: 1 | G182: 1 | H182: 1 | I182: =SUM(E182:H182) -> 4
C183: OTA minutes (13/14) (millions) | E183: 1 | F183: 1 | G183: 1 | H183: 1 | I183: =SUM(E183:H183) -> 4
C184: OTA distribution in 2014 | E184: =E183/$I183 -> 0.25 | F184: =F183/$I183 -> 0.25 | G184: =G183/$I183 -> 0.25 | H184: =H183/$I183 -> 0.25 | I184: =SUM(E184:H184) -> 1
C186: Local switching asset
C187: Port dependent component | E187: =Allocations!LS_Port_Alloc -> 0.5
C188: Traffic dependent component | E188: =Allocations!LS_Other_Alloc -> 0.5
C190: Geographic split for relevant asset classes | E190: CBD | F190: Metro | G190: Provincial | H190: Rural | I190: Total
B191: CO01 | C191: =VLOOKUP($B191,Core_AC,2,FALSE) -> Switching Equipment - Local
C192: Port dependent component | E192: =E181/$I181 -> 0.25 | F192: =F181/$I181 -> 0.25 | G192: =G181/$I181 -> 0.25 | H192: =H181/$I181 -> 0.25 | I192: =SUM(E192:H192) -> 1
C193: Traffic dependent component | E193: =E184 -> 0.25 | F193: =F184 -> 0.25 | G193: =G184 -> 0.25 | H193: =H184 -> 0.25 | I193: =SUM(E193:H193) -> 1
C194: Total | E194: =SUMPRODUCT($E187:$E188,E192:E193) -> 0.25 | F194: =SUMPRODUCT($E187:$E188,F192:F193) -> 0.25 | G194: =SUMPRODUCT($E187:$E188,G192:G193) -> 0.25 | H194: =SUMPRODUCT($E187:$E188,H192:H193) -> 0.25 | I194: =SUM(E194:H194) -> 1
B196: CO04 | C196: =VLOOKUP($B196,Core_AC,2,FALSE) -> Inter-exchange Cables | E196: =E182/$I182 -> 0.25 | F196: =F182/$I182 -> 0.25 | G196: =G182/$I182 -> 0.25 | H196: =H182/$I182 -> 0.25 | I196: =SUM(E196:H196) -> 1
B198: CO05 | C198: =VLOOKUP($B198,Core_AC,2,FALSE) -> Transmission Equipment
C199: LE to POC | G199: 1 | H199: 1
C200: POC to LAS | G200: 1 | H200: 1
C201: LE to LAS | E201: 1 | F201: 1
C202: LAS to TNS | E202: 1 | F202: 1
C203: Total weighting | E203: =SUM(E199:E202) -> 2 | F203: =SUM(F199:F202) -> 2 | G203: =SUM(G199:G202) -> 2 | H203: =SUM(H199:H202) -> 2
C204: Weighted break-up | E204: =E193*E203/SUMPRODUCT($E$203:$H$203,$E$193:$H$193) -> 0.25 | F204: =F193*F203/SUMPRODUCT($E$203:$H$203,$E$193:$H$193) -> 0.25 | G204: 0.25 | H204: 0.25 | I204: =SUM(E204:H204) -> 1
B206: CO09 | C206: =VLOOKUP($B206,Core_AC,2,FALSE) -> Network Buildings/Support
C207: As per Local switching | E207: =E194 -> 0.25 | F207: =F194 -> 0.25 | G207: =G194 -> 0.25 | H207: =H194 -> 0.25 | I207: =SUM(E207:H207) -> 1
E209: Allocation | K209: FY15 | M209: FY16 | O209: FY17 | Q209: FY18 | S209: FY19 | U209: Total
E210: CBD | F210: Metro | G210: Provincial | H210: Rural | I210: Total | K210: Revenue ($m) | L210: Percent | M210: Revenue ($m) | N210: Percent | O210: Revenue ($m) | P210: Percent | Q210: Revenue ($m) | R210: Percent | S210: Revenue ($m) | T210: Percent | U210: Revenue ($m) | V210: Percent
B211: CO01 | C211: =VLOOKUP($B211,Core_AC,2,FALSE) -> Switching Equipment - Local | E211: =E194 -> 0.25 | F211: =F194 -> 0.25 | G211: =G194 -> 0.25 | H211: =H194 -> 0.25 | I211: =SUM(E211:H211) -> 1 | K211: =VLOOKUP($B211,'7. Service Costs'!$C$409:$N$428,8,FALSE)*E$44 -> 1.198621317 | L211: =K211/K$222 -> 0.09265334706 | M211: =VLOOKUP($B211,'7. Service Costs'!$C$459:$N$478,8,FALSE)*F$44 -> 0.05957742713 | N211: =M211/M$222 -> 0.1210377549 | O211: =VLOOKUP($B211,'7. Service Costs'!$C$509:$N$528,8,FALSE)*G$44 -> 0.06000051667 | P211: =O211/O$222 -> 0.1202561901 | Q211: =VLOOKUP($B211,'7. Service Costs'!$C$559:$N$578,8,FALSE)*H$44 -> 0.06030262121 | R211: =Q211/Q$222 -> 0.1194029825 | S211: =VLOOKUP($B211,'7. Service Costs'!$C$609:$N$628,8,FALSE)*I$44 -> 0.06055812696 | T211: =S211/S$222 -> 0.1184740755 | U211: =SUM(K211,M211,O211,Q211,S211) -> 1.439060009 | V211: =U211/U$222 -> 0.09629704722
B212: CO04 | C212: =VLOOKUP($B212,Core_AC,2,FALSE) -> Inter-exchange Cables | E212: =E196 -> 0.25 | F212: =F196 -> 0.25 | G212: =G196 -> 0.25 | H212: =H196 -> 0.25 | I212: =SUM(E212:H212) -> 1 | K212: =VLOOKUP($B212,'7. Service Costs'!$C$409:$N$428,8,FALSE)*E$44 -> 0.5890437907 | L212: =K212/K$222 -> 0.04553304536 | M212: =VLOOKUP($B212,'7. Service Costs'!$C$459:$N$478,8,FALSE)*F$44 -> 0.03547556453 | N212: =M212/M$222 -> 0.0720723081 | O212: =VLOOKUP($B212,'7. Service Costs'!$C$509:$N$528,8,FALSE)*G$44 -> 0.03595241608 | P212: =O212/O$222 -> 0.07205772251 | Q212: =VLOOKUP($B212,'7. Service Costs'!$C$559:$N$578,8,FALSE)*H$44 -> 0.0363739917 | R212: =Q212/Q$222 -> 0.07202279116 | S212: =VLOOKUP($B212,'7. Service Costs'!$C$609:$N$628,8,FALSE)*I$44 -> 0.03678884705 | T212: =S212/S$222 -> 0.0719725801 | U212: =SUM(K212,M212,O212,Q212,S212) -> 0.7336346101 | V212: =U212/U$222 -> 0.04909235631
B213: CO05 | C213: =VLOOKUP($B213,Core_AC,2,FALSE) -> Transmission Equipment | E213: =E204 -> 0.25 | F213: =F204 -> 0.25 | G213: =G204 -> 0.25 | H213: =H204 -> 0.25 | I213: =I204 -> 1 | K213: =VLOOKUP($B213,'7. Service Costs'!$C$409:$N$428,8,FALSE)*E$44 -> 0.8537243832 | L213: =K213/K$222 -> 0.06599283734 | M213: =VLOOKUP($B213,'7. Service Costs'!$C$459:$N$478,8,FALSE)*F$44 -> 0.0005426499646 | N213: =M213/M$222 -> 0.001102449981 | O213: =VLOOKUP($B213,'7. Service Costs'!$C$509:$N$528,8,FALSE)*G$44 -> 0.0004535506327 | P213: =O213/O$222 -> 0.0009090300237 | Q213: =VLOOKUP($B213,'7. Service Costs'!$C$559:$N$578,8,FALSE)*H$44 -> 0.0003577963384 | R213: =Q213/Q$222 -> 0.0007084592522 | S213: =VLOOKUP($B213,'7. Service Costs'!$C$609:$N$628,8,FALSE)*I$44 -> 0.0002558385624 | T213: =S213/S$222 -> 0.0005005147729 | U213: =SUM(K213,M213,O213,Q213,S213) -> 0.8553342187 | V213: =U213/U$222 -> 0.05723608408
B214: CO09 | C214: =VLOOKUP($B214,Core_AC,2,FALSE) -> Network Buildings/Support | E214: =E207 -> 0.25 | F214: =F207 -> 0.25 | G214: =G207 -> 0.25 | H214: =H207 -> 0.25 | I214: =I207 -> 1 | K214: =VLOOKUP($B214,'7. Service Costs'!$C$409:$N$428,8,FALSE)*E$44 -> 0.435228022 | L214: =K214/K$222 -> 0.03364309679 | M214: =VLOOKUP($B214,'7. Service Costs'!$C$459:$N$478,8,FALSE)*F$44 -> 0.0002673105017 | N214: =M214/M$222 -> 0.0005430691547 | O214: =VLOOKUP($B214,'7. Service Costs'!$C$509:$N$528,8,FALSE)*G$44 -> 0.0002541514637 | P214: =O214/O$222 -> 0.0005093837257 | Q214: =VLOOKUP($B214,'7. Service Costs'!$C$559:$N$578,8,FALSE)*H$44 -> 0.000229121412 | R214: =Q214/Q$222 -> 0.0004536748055 | S214: =VLOOKUP($B214,'7. Service Costs'!$C$609:$N$628,8,FALSE)*I$44 -> 0.0001892536991 | T214: =S214/S$222 -> 0.0003702501738 | U214: =SUM(K214,M214,O214,Q214,S214) -> 0.4361678591 | V214: =U214/U$222 -> 0.02918688357
L215: =SUM(L211:L214) -> 0.2378223265 | N215: =SUM(N211:N214) -> 0.1947555821 | P215: =SUM(P211:P214) -> 0.1937323263 | R215: =SUM(R211:R214) -> 0.1925879077 | T215: =SUM(T211:T214) -> 0.1913174206 | V215: =SUM(V211:V214) -> 0.2318123712
B216: CO02 | C216: =VLOOKUP($B216,Core_AC,2,FALSE) -> Switching Equipment - Trunk | K216: =VLOOKUP($B216,'7. Service Costs'!$C$409:$N$428,8,FALSE)*E$44 -> 1.783364257 | L216: =K216/K$222 -> 0.137853937 | M216: =VLOOKUP($B216,'7. Service Costs'!$C$459:$N$478,8,FALSE)*F$44 -> 0.1219410644 | N216: =M216/M$222 -> 0.2477359862 | O216: =VLOOKUP($B216,'7. Service Costs'!$C$509:$N$528,8,FALSE)*G$44 -> 0.122721896 | P216: =O216/O$222 -> 0.2459656761 | Q216: =VLOOKUP($B216,'7. Service Costs'!$C$559:$N$578,8,FALSE)*H$44 -> 0.1232551742 | R216: =Q216/Q$222 -> 0.2440529966 | S216: =VLOOKUP($B216,'7. Service Costs'!$C$609:$N$628,8,FALSE)*I$44 -> 0.1236951621 | T216: =S216/S$222 -> 0.2419934485 | U216: =SUM(K216,M216,O216,Q216,S216) -> 2.274977553 | V216: =U216/U$222 -> 0.1522338329
B217: CO06 | C217: Core Radio Bearer Equipment | K217: =VLOOKUP($B217,'7. Service Costs'!$C$409:$N$428,8,FALSE)*E$44 -> 0.6033516216 | L217: 0.04663903972 | M217: =VLOOKUP($B217,'7. Service Costs'!$C$459:$N$478,8,FALSE)*F$44 -> 0.04921575129 | N217: 0.09998693008 | O217: =VLOOKUP($B217,'7. Service Costs'!$C$509:$N$528,8,FALSE)*G$44 -> 0.04911188695 | P217: 0.09843262591 | Q217: =VLOOKUP($B217,'7. Service Costs'!$C$559:$N$578,8,FALSE)*H$44 -> 0.04887904723 | R217: 0.09678358758 | S217: =VLOOKUP($B217,'7. Service Costs'!$C$609:$N$628,8,FALSE)*I$44 -> 0.04857301474 | T217: 0.09502676692 | U217: 0.7991313218 | V217: 0.05347517558
B218: CO07 | C218: Other Communications Plant and Equipment | K218: =VLOOKUP($B218,'7. Service Costs'!$C$409:$N$428,8,FALSE)*E$44 -> 0.4324813147 | L218: 0.03343077651 | M218: =VLOOKUP($B218,'7. Service Costs'!$C$459:$N$478,8,FALSE)*F$44 -> 0.0002650813182 | N218: 0.0005385403358 | O218: =VLOOKUP($B218,'7. Service Costs'!$C$509:$N$528,8,FALSE)*G$44 -> 0.0002519042433 | P218: 0.0005048797285 | Q218: =VLOOKUP($B218,'7. Service Costs'!$C$559:$N$578,8,FALSE)*H$44 -> 0.0002269536112 | R218: 0.0004493824236 | S218: =VLOOKUP($B218,'7. Service Costs'!$C$609:$N$628,8,FALSE)*I$44 -> 0.0001873302352 | T218: 0.0003664871677 | U218: 0.4334125842 | V218: 0.02900250986
B219: CO08 | C219: Network Land | K219: =VLOOKUP($B219,'7. Service Costs'!$C$409:$N$428,8,FALSE)*E$44 -> 0.3731568433 | L219: 0.02884499886 | M219: =VLOOKUP($B219,'7. Service Costs'!$C$459:$N$478,8,FALSE)*F$44 -> 0.003557315902 | N219: 0.007227058148 | O219: =VLOOKUP($B219,'7. Service Costs'!$C$509:$N$528,8,FALSE)*G$44 -> 0.004216267418 | P219: 0.008450464832 | Q219: =VLOOKUP($B219,'7. Service Costs'!$C$559:$N$578,8,FALSE)*H$44 -> 0.00503389378 | R219: 0.009967426271 | S219: =VLOOKUP($B219,'7. Service Costs'!$C$609:$N$628,8,FALSE)*I$44 -> 0.006094867511 | T219: 0.0119238132 | U219: 0.3920591879 | V219: 0.02623527991
B220: CO03 | C220: Switching Equipment - Other | K220: =VLOOKUP($B220,'7. Service Costs'!$C$409:$N$428,8,FALSE)*E$44 -> 1.795226749 | L220: 0.1387709068 | M220: =VLOOKUP($B220,'7. Service Costs'!$C$459:$N$478,8,FALSE)*F$44 -> 0.1333660375 | N220: 0.2709470102 | O220: =VLOOKUP($B220,'7. Service Costs'!$C$509:$N$528,8,FALSE)*G$44 -> 0.1336613471 | P220: 0.2678910991 | Q220: =VLOOKUP($B220,'7. Service Costs'!$C$559:$N$578,8,FALSE)*H$44 -> 0.1336471597 | R220: 0.2646297815 | S220: =VLOOKUP($B220,'7. Service Costs'!$C$609:$N$628,8,FALSE)*I$44 -> 0.1334835542 | T220: 0.2611431606 | U220: 2.329384848 | V220: 0.1558745857
B221: CO10 | C221: Indirect Capital Assets | K221: =VLOOKUP($B221,'7. Service Costs'!$C$409:$N$428,8,FALSE)*E$44 -> 4.872423579 | L221: 0.3766380146 | M221: =VLOOKUP($B221,'7. Service Costs'!$C$459:$N$478,8,FALSE)*F$44 -> 0.08801364334 | N221: 0.1788088929 | O221: =VLOOKUP($B221,'7. Service Costs'!$C$509:$N$528,8,FALSE)*G$44 -> 0.09231517538 | P221: 0.185022928 | Q221: =VLOOKUP($B221,'7. Service Costs'!$C$559:$N$578,8,FALSE)*H$44 -> 0.09672870431 | R221: 0.1915289179 | S221: =VLOOKUP($B221,'7. Service Costs'!$C$609:$N$628,8,FALSE)*I$44 -> 0.1013248766 | T221: 0.198228903 | U221: 5.250805979 | V221: 0.3513662448
K222: =SUM(K211:K221) -> 12.93662188 | M222: 0.4922218458 | O222: 0.4989391119 | Q222: 0.5050344635 | S222: 0.5111508716 | U222: 14.94396817
C224: Revenue break-up | E224: CBD | F224: Metro | G224: Provincial | H224: Rural | I224: Total
C225: Total FY15-FY19 | E225: =SUMPRODUCT(E211:E214,$V211:$V214)/$V215 -> 0.25 | F225: =SUMPRODUCT(F211:F214,$V211:$V214)/$V215 -> 0.25 | G225: =SUMPRODUCT(G211:G214,$V211:$V214)/$V215 -> 0.25 | H225: =SUMPRODUCT(H211:H214,$V211:$V214)/$V215 -> 0.25 | I225: =SUMPRODUCT(I211:I214,$V211:$V214)/$V215 -> 1
C226: Price differential
C227: Total FY15-FY19 | E227: =(E225/E$184)/($F225/$F$184) -> 1 | F227: =(F225/F$184)/($F225/$F$184) -> 1 | G227: =(G225/G$184)/($F225/$F$184) -> 1 | H227: =(H225/H$184)/($F225/$F$184) -> 1 | I227: =(I225/I$184)/($F225/$F$184) -> 1
E229: CBD | F229: Metro | G229: Provincial | H229: Rural
B230: S04 | C230: =VLOOKUP($B230,Services,2,FALSE) -> PSTN FOAS & FTAS | D230: =VLOOKUP($B230,Services,5,FALSE) -> ¢ / minute | E230: =E225/E184*$F$15 -> 1.022009194 | F230: =F225/F184*$F$15 -> 1.022009194 | G230: 1.022009194 | H230: 1.022009194
B233: .

Sheet C. Masterlists
A2: C. | B2: Masterlists
B4: C.0 | C4: Purpose
C5: Input for reference data (used in other sheets)
B7: B.1 | C7: Dimensions
C10: Period
C12: Select model calculation period (years) | E12: 10
C15: Asset Classes
C17: Number of actual CAN Asset Classes | E17: 10 | G17: Note: you must change the number of classes when you add extra asset classes
C18: Number of actual Core Asset Classes | E18: 12 | G18: Note: you must change the number of classes when you add extra asset classes
C22: Base year (moved from 2. RAB)
C24: RAB valuation year (30 June) | E24: 2009 | F24: This is the base year for valuation.
B26: C.1 | C26: CAN Asset Classes
C28: Code | D28: Asset Class Description
C29: CA01 | D29: Ducts and pipes
C30: CA02 | D30: Copper cables
C31: CA03 | D31: Other cables
C32: CA04 | D32: Pair gain systems
C33: CA05 | D33: CAN Radio Bearer Equipment
C34: CA06 | D34: Other CAN assets
C35: CA07 | D35: Other Communications Plant and Equipment
C36: CA08 | D36: Network Land
C37: CA09 | D37: Network Buildings/Support
C38: CA10 | D38: Indirect Capital Assets
C39: CA11 | D39: Spare CAN Asset Class 11
C40: CA12 | D40: Spare CAN Asset Class 12
C41: CA13 | D41: Spare CAN Asset Class 13
C42: CA14 | D42: Spare CAN Asset Class 14
C43: CA15 | D43: Spare CAN Asset Class 15
C44: CA16 | D44: Spare CAN Asset Class 16
C45: CA17 | D45: Spare CAN Asset Class 17
C46: CA18 | D46: Spare CAN Asset Class 18
C47: CA19 | D47: Spare CAN Asset Class 19
C48: CA20 | D48: Spare CAN Asset Class 20
B51: C.2 | C51: Core Asset Classes
C53: Code | D53: Asset Class Description
C54: CO01 | D54: Switching Equipment - Local
C55: CO02 | D55: Switching Equipment - Trunk
C56: CO03 | D56: Switching Equipment - Other
C57: CO04 | D57: Inter-exchange Cables
C58: CO05 | D58: Transmission Equipment
C59: CO06 | D59: Core Radio Bearer Equipment
C60: CO07 | D60: Other Communications Plant and Equipment
C61: CO08 | D61: Network Land
C62: CO09 | D62: Network Buildings/Support
C63: CO10 | D63: Indirect Capital Assets
C64: CO11 | D64: LSS equipment
C65: CO12 | D65: Data Equipment
C66: CO13 | D66: Spare Core Asset Class 13
C67: CO14 | D67: Spare Core Asset Class 14
C68: CO15 | D68: Spare Core Asset Class 15
C69: CO16 | D69: Spare Core Asset Class 16
C70: CO17 | D70: Spare Core Asset Class 17
C71: CO18 | D71: Spare Core Asset Class 18
C72: CO19 | D72: Spare Core Asset Class 19
C73: CO20 | D73: Spare Core Asset Class 20
B76: C.3 | C76: Services
C78: Code | D78: Service | E78: Unit | F78: Abbreviation | G78: Price Unit
C79: S01 | D79: Unconditioned Local Loop Service Band 1 - 3 | E79: Line | F79: ULLB13 | G79: $ / month | I79: SIO
C80: S02 | D80: Unconditioned Local Loop Service Band 4 | E80: Line | F80: ULLB4 | G80: $ / month | I80: SIO
C81: S03 | D81: Wholesale Line Rental | E81: Line | F81: WLR | G81: $ / month | I81: SIO
C82: S04 | D82: PSTN FOAS & FTAS | E82: Minute | F82: PSTN | G82: ¢ / minute
C83: S05 | D83: Local Carriage Service | E83: Minute | F83: LCS | G83: ¢ / call
C84: S06 | D84: Line Sharing Service | E84: Line | F84: LSS | G84: $ / month
C85: S07 | D85: Wholesale ADSL | E85: SIO | F85: WADSL | G85: $ / month
B88: C.4 | C88: Years
C90: Code | D90: Financial Year
C91: Y00 | D91: =Start_year-1&"/"&Start_year -> 2008/2009
C92: Y01 | D92: =Start_year&"/"&Start_year+1 -> 2009/2010
C93: Y02 | D93: =Start_year+1&"/"&Start_year+2 -> 2010/2011
C94: Y03 | D94: =Start_year+2&"/"&Start_year+3 -> 2011/2012
C95: Y04 | D95: =Start_year+3&"/"&Start_year+4 -> 2012/2013
C96: Y05 | D96: =Start_year+4&"/"&Start_year+5 -> 2013/2014
C97: Y06 | D97: =Start_year+5&"/"&Start_year+6 -> 2014/2015
C98: Y07 | D98: =Start_year+6&"/"&Start_year+7 -> 2015/2016
C99: Y08 | D99: =Start_year+7&"/"&Start_year+8 -> 2016/2017
C100: Y09 | D100: =Start_year+8&"/"&Start_year+9 -> 2017/2018
C101: Y10 | D101: =Start_year+9&"/"&Start_year+10 -> 2018/2019
C102: Y11 | D102: =Start_year+10&"/"&Start_year+11 -> 2019/2020
C103: Y12 | D103: =Start_year+11&"/"&Start_year+12 -> 2020/2021

Sheet Allocation Summary
B2: Allocation Summary
F3: 5 | G3: 6 | H3: 7 | I3: 8 | J3: 9 | K3: 10
B4: Purpose
B5: Summarise allocators per Asset Class, Service and year
F7: 5 | G7: 6 | H7: 7 | I7: 8 | J7: 9 | K7: 10
B8: Allocators
B11: Y05 | C11: FY2014
F12: S01 | G12: S02 | H12: S03 | I12: S04 | J12: S05 | K12: S06 | L12: S07
B13: Code | C13: Asset Class | E13: ULLS | F13: Band 1-3 | G13: Band 4 | H13: WLR | I13: PSTN | J13: LCS | K13: LSS | L13: WADSL
B14: CAN Asset Class
B15: CA01 | C15: Ducts and pipes | E15: =SUM(F15:G15) -> 0.03333333333 | F15: =Allocations!E13 -> 0.025 | G15: =Allocations!F13 -> 0.008333333333 | H15: =Allocations!G13 -> 0.03333333333 | I15: =Allocations!H13 -> 0 | J15: =Allocations!I13 -> 0 | K15: =Allocations!J13 -> 0 | L15: =Allocations!K13 -> 0
B16: CA02 | C16: Copper cables | E16: =SUM(F16:G16) -> 0.1666666667 | F16: =Allocations!E14 -> 0.125 | G16: =Allocations!F14 -> 0.04166666667 | H16: =Allocations!G14 -> 0.1666666667 | I16: =Allocations!H14 -> 0 | J16: =Allocations!I14 -> 0 | K16: =Allocations!J14 -> 0 | L16: =Allocations!K14 -> 0
B17: CA03 | C17: Other cables | E17: =Allocations!E15 -> 0.008620689655 | H17: =Allocations!G15 -> 0.01149425287 | I17: =Allocations!H15 -> 0 | J17: =Allocations!I15 -> 0 | K17: =Allocations!J15 -> 0.2873563218 | L17: =Allocations!K15 -> 0.2873563218
B18: CA04 | C18: Pair gain systems | E18: =Allocations!E16 -> 0.008620689655 | H18: =Allocations!G16 -> 0.01149425287 | I18: =Allocations!H16 -> 0 | J18: =Allocations!I16 -> 0 | K18: =Allocations!J16 -> 0.2873563218 | L18: =Allocations!K16 -> 0.2873563218
B19: CA05 | C19: CAN Radio Bearer Equipment | E19: =Allocations!E17 -> 0.008620689655 | H19: =Allocations!G17 -> 0.01149425287 | I19: =Allocations!H17 -> 0 | J19: =Allocations!I17 -> 0 | K19: =Allocations!J17 -> 0.2873563218 | L19: =Allocations!K17 -> 0.2873563218
B20: CA06 | C20: Other CAN assets | E20: =SUM(F20:G20) -> 0.01149425287 | F20: =Allocations!E18 -> 0.008620689655 | G20: =Allocations!F18 -> 0.002873563218 | H20: =Allocations!G18 -> 0.01149425287 | I20: =Allocations!H18 -> 0 | J20: =Allocations!I18 -> 0 | K20: =Allocations!J18 -> 0.2873563218 | L20: =Allocations!K18 -> 0.2873563218
B21: CA07 | C21: Other Communications Plant and Equipment | E21: =SUM(F21:G21) -> 0.01149425287 | F21: =Allocations!E19 -> 0.008620689655 | G21: =Allocations!F19 -> 0.002873563218 | H21: =Allocations!G19 -> 0.01149425287 | I21: =Allocations!H19 -> 0 | J21: =Allocations!I19 -> 0 | K21: =Allocations!J19 -> 0.2873563218 | L21: =Allocations!K19 -> 0.2873563218
B22: CA08 | C22: Network Land | E22: =SUM(F22:G22) -> 0.01149425287 | F22: =Allocations!E20 -> 0.008620689655 | G22: =Allocations!F20 -> 0.002873563218 | H22: =Allocations!G20 -> 0.01149425287 | I22: =Allocations!H20 -> 0 | J22: =Allocations!I20 -> 0 | K22: =Allocations!J20 -> 0.2873563218 | L22: =Allocations!K20 -> 0.2873563218
B23: CA09 | C23: Network Buildings/Support | E23: =SUM(F23:G23) -> 0.01149425287 | F23: =Allocations!E21 -> 0.008620689655 | G23: =Allocations!F21 -> 0.002873563218 | H23: =Allocations!G21 -> 0.01149425287 | I23: =Allocations!H21 -> 0 | J23: =Allocations!I21 -> 0 | K23: =Allocations!J21 -> 0.2873563218 | L23: =Allocations!K21 -> 0.2873563218
B24: CA10 | C24: Indirect Capital Assets | E24: =SUM(F24:G24) -> 0.03693018623 | F24: =Allocations!E22 -> 0.02769763967 | G24: =Allocations!F22 -> 0.009232546558 | H24: =Allocations!G22 -> 0.03693018623 | I24: =Allocations!H22 -> 0 | J24: =Allocations!I22 -> 0 | K24: =Allocations!J22 -> 0.2068086819 | L24: =Allocations!K22 -> 0.2068086819
B25: CA11 | C25: Spare CAN Asset Class 11
B26: CA12 | C26: Spare CAN Asset Class 12
B27: CA13 | C27: Spare CAN Asset Class 13
B28: CA14 | C28: Spare CAN Asset Class 14
B29: CA15 | C29: Spare CAN Asset Class 15
B30: CA16 | C30: Spare CAN Asset Class 16
B31: CA17 | C31: Spare CAN Asset Class 17
B32: CA18 | C32: Spare CAN Asset Class 18
B33: CA19 | C33: Spare CAN Asset Class 19
B34: CA20 | C34: Spare CAN Asset Class 20
B35: Core Asset Class
B36: CO01 | C36: Switching Equipment - Local | E36: =Allocations!E34 -> 0.004310344828 | H36: =Allocations!G34 -> 0.005747126437 | I36: =Allocations!H34 -> 0.07142857143 | J36: =Allocations!I34 -> 0.07142857143 | K36: =Allocations!J34 -> 0.1436781609 | L36: =Allocations!K34 -> 0.1436781609
B37: CO02 | C37: Switching Equipment - Trunk | E37: =Allocations!E35 -> 0 | H37: =Allocations!G35 -> 0 | I37: =Allocations!H35 -> 0.1428571429 | J37: =Allocations!I35 -> 0.1428571429 | K37: =Allocations!J35 -> 0 | L37: =Allocations!K35 -> 0
B38: CO03 | C38: Switching Equipment - Other | E38: =Allocations!E36 -> 0 | H38: =Allocations!G36 -> 0 | I38: =Allocations!H36 -> 0.1428571429 | J38: =Allocations!I36 -> 0.1428571429 | K38: =Allocations!J36 -> 0 | L38: =Allocations!K36 -> 0
B39: CO04 | C39: Inter-exchange Cables | E39: =Allocations!E37 -> 0 | H39: =Allocations!G37 -> 0 | I39: =Allocations!H37 -> 0.04761904762 | J39: =Allocations!I37 -> 0.04761904762 | K39: =Allocations!J37 -> 0 | L39: =Allocations!K37 -> 0.1666666667
B40: CO05 | C40: Transmission Equipment | E40: =Allocations!E38 -> 0 | H40: =Allocations!G38 -> 0 | I40: =Allocations!H38 -> 0.04761904762 | J40: =Allocations!I38 -> 0.04761904762 | K40: =Allocations!J38 -> 0 | L40: =Allocations!K38 -> 0.1666666667
B41: CO06 | C41: Core Radio Bearer Equipment | E41: =Allocations!E39 -> 0 | H41: =Allocations!G39 -> 0 | I41: =Allocations!H39 -> 0.04761904762 | J41: =Allocations!I39 -> 0.04761904762 | K41: =Allocations!J39 -> 0 | L41: =Allocations!K39 -> 0.1666666667
B42: CO07 | C42: Other Communications Plant and Equipment | E42: =Allocations!E40 -> 0.001112934936 | H42: =Allocations!G40 -> 0.001483913247 | I42: =Allocations!H40 -> 0.01578486034 | J42: =Allocations!I40 -> 0.01578486034 | K42: =Allocations!J40 -> 0.03709783118 | L42: =Allocations!K40 -> 0.06053254579
B43: CO08 | C43: Network Land | E43: =Allocations!E41 -> 0.001112934936 | H43: =Allocations!G41 -> 0.001483913247 | I43: =Allocations!H41 -> 0.01578486034 | J43: =Allocations!I41 -> 0.01578486034 | K43: =Allocations!J41 -> 0.03709783118 | L43: =Allocations!K41 -> 0.06053254579
B44: CO09 | C44: Network Buildings/Support | E44: =Allocations!E42 -> 0.001112934936 | H44: =Allocations!G42 -> 0.001483913247 | I44: =Allocations!H42 -> 0.01578486034 | J44: =Allocations!I42 -> 0.01578486034 | K44: =Allocations!J42 -> 0.03709783118 | L44: =Allocations!K42 -> 0.06053254579
B45: CO10 | C45: Indirect Capital Assets | E45: =Allocations!E43 -> 0.002662027836 | H45: =Allocations!G43 -> 0.003549370447 | I45: =Allocations!H43 -> 0.0377557899 | J45: =Allocations!I43 -> 0.0377557899 | K45: =Allocations!J43 -> 0.08873426119 | L45: =Allocations!K43 -> 0.144787729
B46: CO11 | C46: LSS equipment | E46: =Allocations!E44 -> 0.00286259542 | H46: =Allocations!G44 -> 0.003816793893 | I46: =Allocations!H44 -> 0.09541984733 | J46: =Allocations!I44 -> 0.09541984733 | K46: =Allocations!J44 -> 0.09541984733 | L46: =Allocations!K44 -> 0.09541984733
B47: CO12 | C47: Data Equipment | E47: =Allocations!E45 -> 0.008620689655 | H47: =Allocations!G45 -> 0.01149425287 | I47: =Allocations!H45 -> 0 | J47: =Allocations!I45 -> 0 | K47: =Allocations!J45 -> 0.2873563218 | L47: =Allocations!K45 -> 0.2873563218
B48: CO13 | C48: Spare Core Asset Class 13
B49: CO14 | C49: Spare Core Asset Class 14
B50: CO15 | C50: Spare Core Asset Class 15
B51: CO16 | C51: Spare Core Asset Class 16
B52: CO17 | C52: Spare Core Asset Class 17
B53: CO18 | C53: Spare Core Asset Class 18
B54: CO19 | C54: Spare Core Asset Class 19
B55: CO20 | C55: Spare Core Asset Class 20
B58: Y06 | C58: FY2015
F59: S01 | G59: S02 | H59: S03 | I59: S04 | J59: S05 | K59: S06 | L59: S07
B60: Code | C60: Asset Class | E60: ULLS | F60: Band 1 | G60: Band 4 | H60: WLR | I60: PSTN | J60: LCS | K60: LSS | L60: WADSL
B61: CAN Asset Class
B62: CA01 | C62: =VLOOKUP(B62,CAN_AC,2,FALSE) -> Ducts and pipes | E62: =SUM(F62:G62) -> 0.08206755451 | F62: =Allocations!E58 -> 0.06155066588 | G62: =Allocations!F58 -> 0.02051688863 | H62: =Allocations!G58 -> 0.08206755451 | I62: =Allocations!H58 -> 0 | J62: =Allocations!I58 -> 0 | K62: =Allocations!J58 -> 0 | L62: =Allocations!K58 -> 0
B63: CA02 | C63: Copper cables | E63: =SUM(F63:G63) -> 0.1666666667 | F63: =Allocations!E59 -> 0.125 | G63: =Allocations!F59 -> 0.04166666667 | H63: =Allocations!G59 -> 0.1666666667 | I63: =Allocations!H59 -> 0 | J63: =Allocations!I59 -> 0 | K63: =Allocations!J59 -> 0 | L63: =Allocations!K59 -> 0
B64: CA03 | C64: Other cables | E64: =Allocations!E60 -> 0.008620689655 | H64: =Allocations!G60 -> 0.01149425287 | I64: =Allocations!H60 -> 0 | J64: =Allocations!I60 -> 0 | K64: =Allocations!J60 -> 0.2873563218 | L64: =Allocations!K60 -> 0.2873563218
B65: CA04 | C65: Pair gain systems | E65: =Allocations!E61 -> 0.008620689655 | H65: =Allocations!G61 -> 0.01149425287 | I65: =Allocations!H61 -> 0 | J65: =Allocations!I61 -> 0 | K65: =Allocations!J61 -> 0.2873563218 | L65: =Allocations!K61 -> 0.2873563218
B66: CA05 | C66: CAN Radio Bearer Equipment | E66: =Allocations!E62 -> 0.008620689655 | H66: =Allocations!G62 -> 0.01149425287 | I66: =Allocations!H62 -> 0 | J66: =Allocations!I62 -> 0 | K66: =Allocations!J62 -> 0.2873563218 | L66: =Allocations!K62 -> 0.2873563218
B67: CA06 | C67: Other CAN assets | E67: =SUM(F67:G67) -> 0.01149425287 | F67: =Allocations!E63 -> 0.008620689655 | G67: =Allocations!F63 -> 0.002873563218 | H67: =Allocations!G63 -> 0.01149425287 | I67: =Allocations!H63 -> 0 | J67: =Allocations!I63 -> 0 | K67: =Allocations!J63 -> 0.2873563218 | L67: =Allocations!K63 -> 0.2873563218
B68: CA07 | C68: Other Communications Plant and Equipment | E68: =SUM(F68:G68) -> 0.01149425287 | F68: =Allocations!E64 -> 0.008620689655 | G68: =Allocations!F64 -> 0.002873563218 | H68: =Allocations!G64 -> 0.01149425287 | I68: =Allocations!H64 -> 0 | J68: =Allocations!I64 -> 0 | K68: =Allocations!J64 -> 0.2873563218 | L68: =Allocations!K64 -> 0.2873563218
B69: CA08 | C69: Network Land | E69: =SUM(F69:G69) -> 0.01149425287 | F69: =Allocations!E65 -> 0.008620689655 | G69: =Allocations!F65 -> 0.002873563218 | H69: =Allocations!G65 -> 0.01149425287 | I69: =Allocations!H65 -> 0 | J69: =Allocations!I65 -> 0 | K69: =Allocations!J65 -> 0.2873563218 | L69: =Allocations!K65 -> 0.2873563218
B70: CA09 | C70: Network Buildings/Support | E70: =SUM(F70:G70) -> 0.01149425287 | F70: =Allocations!E66 -> 0.008620689655 | G70: =Allocations!F66 -> 0.002873563218 | H70: =Allocations!G66 -> 0.01149425287 | I70: =Allocations!H66 -> 0 | J70: =Allocations!I66 -> 0 | K70: =Allocations!J66 -> 0.2873563218 | L70: =Allocations!K66 -> 0.2873563218
B71: CA10 | C71: Indirect Capital Assets | E71: =SUM(F71:G71) -> 0.03355391335 | F71: =Allocations!E67 -> 0.02516543502 | G71: =Allocations!F67 -> 0.008388478338 | H71: =Allocations!G67 -> 0.03355391335 | I71: =Allocations!H67 -> 0 | J71: =Allocations!I67 -> 0 | K71: =Allocations!J67 -> 0.231337807 | L71: =Allocations!K67 -> 0.231337807
B72: CA11 | C72: Spare CAN Asset Class 11
B73: CA12 | C73: Spare CAN Asset Class 12
B74: CA13 | C74: Spare CAN Asset Class 13
B75: CA14 | C75: Spare CAN Asset Class 14
B76: CA15 | C76: Spare CAN Asset Class 15
B77: CA16 | C77: Spare CAN Asset Class 16
B78: CA17 | C78: Spare CAN Asset Class 17
B79: CA18 | C79: Spare CAN Asset Class 18
B80: CA19 | C80: Spare CAN Asset Class 19
B81: CA20 | C81: Spare CAN Asset Class 20
B82: Core Asset Class
B83: CO01 | C83: =VLOOKUP(B83,Core_AC,2,FALSE) -> Switching Equipment - Local | E83: =Allocations!E79 -> 0.004310344828 | H83: =Allocations!G79 -> 0.005747126437 | I83: =Allocations!H79 -> 0.1111111111 | J83: =Allocations!I79 -> 0.05555555556 | K83: =Allocations!J79 -> 0.1436781609 | L83: =Allocations!K79 -> 0.1436781609
B84: CO02 | C84: Switching Equipment - Trunk | E84: =Allocations!E80 -> 0 | H84: =Allocations!G80 -> 0 | I84: =Allocations!H80 -> 0.2222222222 | J84: =Allocations!I80 -> 0.1111111111 | K84: =Allocations!J80 -> 0 | L84: =Allocations!K80 -> 0
B85: CO03 | C85: Switching Equipment - Other | E85: =Allocations!E81 -> 0 | H85: =Allocations!G81 -> 0 | I85: =Allocations!H81 -> 0.2222222222 | J85: =Allocations!I81 -> 0.1111111111 | K85: =Allocations!J81 -> 0 | L85: =Allocations!K81 -> 0
B86: CO04 | C86: Inter-exchange Cables | E86: =Allocations!E82 -> 0 | H86: =Allocations!G82 -> 0 | I86: =Allocations!H82 -> 0.07407407407 | J86: =Allocations!I82 -> 0.03703703704 | K86: =Allocations!J82 -> 0 | L86: =Allocations!K82 -> 0.1666666667
B87: CO05 | C87: Transmission Equipment | E87: =Allocations!E83 -> 0 | H87: =Allocations!G83 -> 0 | I87: =Allocations!H83 -> 0.07407407407 | J87: =Allocations!I83 -> 0.03703703704 | K87: =Allocations!J83 -> 0 | L87: =Allocations!K83 -> 0.1666666667
B88: CO06 | C88: Core Radio Bearer Equipment | E88: =Allocations!E84 -> 0 | H88: =Allocations!G84 -> 0 | I88: =Allocations!H84 -> 0.07407407407 | J88: =Allocations!I84 -> 0.03703703704 | K88: =Allocations!J84 -> 0 | L88: =Allocations!K84 -> 0.1666666667
B89: CO07 | C89: Other Communications Plant and Equipment | E89: =Allocations!E85 -> 0.00105403486 | H89: =Allocations!G85 -> 0.001405379813 | I89: =Allocations!H85 -> 0.04944333247 | J89: =Allocations!I85 -> 0.02472166623 | K89: =Allocations!J85 -> 0.03513449533 | L89: =Allocations!K85 -> 0.06849439985
B90: CO08 | C90: Network Land | E90: =Allocations!E86 -> 0.00105403486 | H90: =Allocations!G86 -> 0.001405379813 | I90: =Allocations!H86 -> 0.04944333247 | J90: =Allocations!I86 -> 0.02472166623 | K90: =Allocations!J86 -> 0.03513449533 | L90: =Allocations!K86 -> 0.06849439985
B91: CO09 | C91: Network Buildings/Support | E91: =Allocations!E87 -> 0.00105403486 | H91: =Allocations!G87 -> 0.001405379813 | I91: =Allocations!H87 -> 0.04944333247 | J91: =Allocations!I87 -> 0.02472166623 | K91: =Allocations!J87 -> 0.03513449533 | L91: =Allocations!K87 -> 0.06849439985
B92: CO10 | C92: Indirect Capital Assets | E92: =Allocations!E88 -> 0.001887282483 | H92: =Allocations!G88 -> 0.002516376644 | I92: =Allocations!H88 -> 0.0885298379 | J92: =Allocations!I88 -> 0.04426491895 | K92: =Allocations!J88 -> 0.06290941611 | L92: =Allocations!K88 -> 0.1226413717
B93: CO11 | C93: LSS equipment | E93: =Allocations!E89 -> 0.002403846154 | H93: =Allocations!G89 -> 0.003205128205 | I93: =Allocations!H89 -> 0.1602564103 | J93: =Allocations!I89 -> 0.08012820513 | K93: =Allocations!J89 -> 0.08012820513 | L93: =Allocations!K89 -> 0.08012820513
B94: CO12 | C94: Data Equipment | E94: =Allocations!E90 -> 0.008620689655 | H94: =Allocations!G90 -> 0.01149425287 | I94: =Allocations!H90 -> 0 | J94: =Allocations!I90 -> 0 | K94: =Allocations!J90 -> 0.2873563218 | L94: =Allocations!K90 -> 0.2873563218
B95: CO13 | C95: Spare Core Asset Class 13
B96: CO14 | C96: Spare Core Asset Class 14
B97: CO15 | C97: Spare Core Asset Class 15
B98: CO16 | C98: Spare Core Asset Class 16
B99: CO17 | C99: Spare Core Asset Class 17
B100: CO18 | C100: Spare Core Asset Class 18
B101: CO19 | C101: Spare Core Asset Class 19
B102: CO20 | C102: Spare Core Asset Class 20
B104: Y07 | C104: FY2016
F105: S01 | G105: S02 | H105: S03 | I105: S04 | J105: S05 | K105: S06 | L105: S07
B106: Code | C106: Asset Class | E106: ULLS | F106: Band 1 | G106: Band 4 | H106: WLR | I106: PSTN | J106: LCS | K106: LSS | L106: WADSL
B107: CAN Asset Class
B108: CA01 | C108: =VLOOKUP(B108,CAN_AC,2,FALSE) -> Ducts and pipes | E108: =SUM(F108:G108) -> 0.08103901085 | F108: =Allocations!E103 -> 0.06077925813 | G108: =Allocations!F103 -> 0.02025975271 | H108: =Allocations!G103 -> 0.08103901085 | I108: =Allocations!H103 -> 0 | J108: =Allocations!I103 -> 0 | K108: =Allocations!J103 -> 0 | L108: =Allocations!K103 -> 0
B109: CA02 | C109: Copper cables | E109: =SUM(F109:G109) -> 0.1666666667 | F109: =Allocations!E104 -> 0.125 | G109: =Allocations!F104 -> 0.04166666667 | H109: =Allocations!G104 -> 0.1666666667 | I109: =Allocations!H104 -> 0 | J109: =Allocations!I104 -> 0 | K109: =Allocations!J104 -> 0 | L109: =Allocations!K104 -> 0
B110: CA03 | C110: Other cables | E110: =Allocations!E105 -> 0.008620689655 | H110: =Allocations!G105 -> 0.01149425287 | I110: =Allocations!H105 -> 0 | J110: =Allocations!I105 -> 0 | K110: =Allocations!J105 -> 0.2873563218 | L110: =Allocations!K105 -> 0.2873563218
B111: CA04 | C111: Pair gain systems | E111: =Allocations!E106 -> 0.008620689655 | H111: =Allocations!G106 -> 0.01149425287 | I111: =Allocations!H106 -> 0 | J111: =Allocations!I106 -> 0 | K111: =Allocations!J106 -> 0.2873563218 | L111: =Allocations!K106 -> 0.2873563218
B112: CA05 | C112: CAN Radio Bearer Equipment | E112: =Allocations!E107 -> 0.008620689655 | H112: =Allocations!G107 -> 0.01149425287 | I112: =Allocations!H107 -> 0 | J112: =Allocations!I107 -> 0 | K112: =Allocations!J107 -> 0.2873563218 | L112: =Allocations!K107 -> 0.2873563218
B113: CA06 | C113: Other CAN assets | E113: =SUM(F113:G113) -> 0.01149425287 | F113: =Allocations!E108 -> 0.008620689655 | G113: =Allocations!F108 -> 0.002873563218 | H113: =Allocations!G108 -> 0.01149425287 | I113: =Allocations!H108 -> 0 | J113: =Allocations!I108 -> 0 | K113: =Allocations!J108 -> 0.2873563218 | L113: =Allocations!K108 -> 0.2873563218
B114: CA07 | C114: Other Communications Plant and Equipment | E114: =SUM(F114:G114) -> 0.01149425287 | F114: =Allocations!E109 -> 0.008620689655 | G114: =Allocations!F109 -> 0.002873563218 | H114: =Allocations!G109 -> 0.01149425287 | I114: =Allocations!H109 -> 0 | J114: =Allocations!I109 -> 0 | K114: =Allocations!J109 -> 0.2873563218 | L114: =Allocations!K109 -> 0.2873563218
B115: CA08 | C115: Network Land | E115: =SUM(F115:G115) -> 0.01149425287 | F115: =Allocations!E110 -> 0.008620689655 | G115: =Allocations!F110 -> 0.002873563218 | H115: =Allocations!G110 -> 0.01149425287 | I115: =Allocations!H110 -> 0 | J115: =Allocations!I110 -> 0 | K115: =Allocations!J110 -> 0.2873563218 | L115: =Allocations!K110 -> 0.2873563218
B116: CA09 | C116: Network Buildings/Support | E116: =SUM(F116:G116) -> 0.01149425287 | F116: =Allocations!E111 -> 0.008620689655 | G116: =Allocations!F111 -> 0.002873563218 | H116: =Allocations!G111 -> 0.01149425287 | I116: =Allocations!H111 -> 0 | J116: =Allocations!I111 -> 0 | K116: =Allocations!J111 -> 0.2873563218 | L116: =Allocations!K111 -> 0.2873563218
B117: CA10 | C117: Indirect Capital Assets | E117: =SUM(F117:G117) -> 0.1668479998 | F117: =Allocations!E112 -> 0.1251359999 | G117: =Allocations!F112 -> 0.04171199996 | H117: =Allocations!G112 -> 0.1668479998 | I117: =Allocations!H112 -> 0 | J117: =Allocations!I112 -> 0 | K117: =Allocations!J112 -> -0.0002952749877 | L117: =Allocations!K112 -> -0.0002952749877
B118: CA11 | C118: Spare CAN Asset Class 11
B119: CA12 | C119: Spare CAN Asset Class 12
B120: CA13 | C120: Spare CAN Asset Class 13
B121: CA14 | C121: Spare CAN Asset Class 14
B122: CA15 | C122: Spare CAN Asset Class 15
B123: CA16 | C123: Spare CAN Asset Class 16
B124: CA17 | C124: Spare CAN Asset Class 17
B125: CA18 | C125: Spare CAN Asset Class 18
B126: CA19 | C126: Spare CAN Asset Class 19
B127: CA20 | C127: Spare CAN Asset Class 20
B128: Core Asset Class
B129: CO01 | C129: =VLOOKUP(B129,Core_AC,2,FALSE) -> Switching Equipment - Local | E129: =Allocations!E124 -> 0.004310344828 | H129: =Allocations!G124 -> 0.005747126437 | I129: =Allocations!H124 -> 0.1111111111 | J129: =Allocations!I124 -> 0.05555555556 | K129: =Allocations!J124 -> 0.1436781609 | L129: =Allocations!K124 -> 0.1436781609
B130: CO02 | C130: Switching Equipment - Trunk | E130: =Allocations!E125 -> 0 | H130: =Allocations!G125 -> 0 | I130: =Allocations!H125 -> 0.2222222222 | J130: =Allocations!I125 -> 0.1111111111 | K130: =Allocations!J125 -> 0 | L130: =Allocations!K125 -> 0
B131: CO03 | C131: Switching Equipment - Other | E131: =Allocations!E126 -> 0 | H131: =Allocations!G126 -> 0 | I131: =Allocations!H126 -> 0.2222222222 | J131: =Allocations!I126 -> 0.1111111111 | K131: =Allocations!J126 -> 0 | L131: =Allocations!K126 -> 0
B132: CO04 | C132: Inter-exchange Cables | E132: =Allocations!E127 -> 0 | H132: =Allocations!G127 -> 0 | I132: =Allocations!H127 -> 0.07407407407 | J132: =Allocations!I127 -> 0.03703703704 | K132: =Allocations!J127 -> 0 | L132: =Allocations!K127 -> 0.1666666667
B133: CO05 | C133: Transmission Equipment | E133: =Allocations!E128 -> 0 | H133: =Allocations!G128 -> 0 | I133: =Allocations!H128 -> 0.07407407407 | J133: =Allocations!I128 -> 0.03703703704 | K133: =Allocations!J128 -> 0 | L133: =Allocations!K128 -> 0.1666666667
B134: CO06 | C134: Core Radio Bearer Equipment | E134: =Allocations!E129 -> 0 | H134: =Allocations!G129 -> 0 | I134: =Allocations!H129 -> 0.07407407407 | J134: =Allocations!I129 -> 0.03703703704 | K134: =Allocations!J129 -> 0 | L134: =Allocations!K129 -> 0.1666666667
B135: CO07 | C135: Other Communications Plant and Equipment | E135: =Allocations!E130 -> 0.001624589193 | H135: =Allocations!G130 -> 0.002166118923 | I135: =Allocations!H130 -> 0.05127758739 | J135: =Allocations!I130 -> 0.02563879369 | K135: =Allocations!J130 -> 0.05415297309 | L135: =Allocations!K130 -> 0.07873027311
B136: CO08 | C136: Network Land | E136: =Allocations!E131 -> 0.001624589193 | H136: =Allocations!G131 -> 0.002166118923 | I136: =Allocations!H131 -> 0.05127758739 | J136: =Allocations!I131 -> 0.02563879369 | K136: =Allocations!J131 -> 0.05415297309 | L136: =Allocations!K131 -> 0.07873027311
B137: CO09 | C137: Network Buildings/Support | E137: =Allocations!E132 -> 0.001624589193 | H137: =Allocations!G132 -> 0.002166118923 | I137: =Allocations!H132 -> 0.05127758739 | J137: =Allocations!I132 -> 0.02563879369 | K137: =Allocations!J132 -> 0.05415297309 | L137: =Allocations!K132 -> 0.07873027311
B138: CO10 | C138: Indirect Capital Assets | E138: =Allocations!E133 -> 0.003109901854 | H138: =Allocations!G133 -> 0.004146535805 | I138: =Allocations!H133 -> 0.09815913144 | J138: =Allocations!I133 -> 0.04907956572 | K138: =Allocations!J133 -> 0.1036633951 | L138: =Allocations!K133 -> 0.1507109757
B139: CO11 | C139: LSS equipment | E139: =Allocations!E134 -> 0.002403846154 | H139: =Allocations!G134 -> 0.003205128205 | I139: =Allocations!H134 -> 0.1602564103 | J139: =Allocations!I134 -> 0.08012820513 | K139: =Allocations!J134 -> 0.08012820513 | L139: =Allocations!K134 -> 0.08012820513
B140: CO12 | C140: Data Equipment | E140: =Allocations!E135 -> 0.008620689655 | H140: =Allocations!G135 -> 0.01149425287 | I140: =Allocations!H135 -> 0 | J140: =Allocations!I135 -> 0 | K140: =Allocations!J135 -> 0.2873563218 | L140: =Allocations!K135 -> 0.2873563218
B141: CO13 | C141: Spare Core Asset Class 13
B142: CO14 | C142: Spare Core Asset Class 14
B143: CO15 | C143: Spare Core Asset Class 15
B144: CO16 | C144: Spare Core Asset Class 16
B145: CO17 | C145: Spare Core Asset Class 17
B146: CO18 | C146: Spare Core Asset Class 18
B147: CO19 | C147: Spare Core Asset Class 19
B148: CO20 | C148: Spare Core Asset Class 20
B150: Y08 | C150: FY2017
F151: S01 | G151: S02 | H151: S03 | I151: S04 | J151: S05 | K151: S06 | L151: S07
B152: Code | C152: Asset Class | E152: ULLS | F152: Band 1 | G152: Band 4 | H152: WLR | I152: PSTN | J152: LCS | K152: LSS | L152: WADSL
B153: CAN Asset Class
B154: CA01 | C154: =VLOOKUP(B154,CAN_AC,2,FALSE) -> Ducts and pipes | E154: =SUM(F154:G154) -> 0.07917200876 | F154: =Allocations!E148 -> 0.05937900657 | G154: =Allocations!F148 -> 0.01979300219 | H154: =Allocations!G148 -> 0.07917200876 | I154: =Allocations!H148 -> 0 | J154: =Allocations!I148 -> 0 | K154: =Allocations!J148 -> 0 | L154: =Allocations!K148 -> 0
B155: CA02 | C155: Copper cables | E155: =SUM(F155:G155) -> 0.1666666667 | F155: =Allocations!E149 -> 0.125 | G155: =Allocations!F149 -> 0.04166666667 | H155: =Allocations!G149 -> 0.1666666667 | I155: =Allocations!H149 -> 0 | J155: =Allocations!I149 -> 0 | K155: =Allocations!J149 -> 0 | L155: =Allocations!K149 -> 0
B156: CA03 | C156: Other cables | E156: =Allocations!E150 -> 0.008620689655 | H156: =Allocations!G150 -> 0.01149425287 | I156: =Allocations!H150 -> 0 | J156: =Allocations!I150 -> 0 | K156: =Allocations!J150 -> 0.2873563218 | L156: =Allocations!K150 -> 0.2873563218
B157: CA04 | C157: Pair gain systems | E157: =Allocations!E151 -> 0.008620689655 | H157: =Allocations!G151 -> 0.01149425287 | I157: =Allocations!H151 -> 0 | J157: =Allocations!I151 -> 0 | K157: =Allocations!J151 -> 0.2873563218 | L157: =Allocations!K151 -> 0.2873563218
B158: CA05 | C158: CAN Radio Bearer Equipment | E158: =Allocations!E152 -> 0.008620689655 | H158: =Allocations!G152 -> 0.01149425287 | I158: =Allocations!H152 -> 0 | J158: =Allocations!I152 -> 0 | K158: =Allocations!J152 -> 0.2873563218 | L158: =Allocations!K152 -> 0.2873563218
B159: CA06 | C159: Other CAN assets | E159: =SUM(F159:G159) -> 0.01149425287 | F159: =Allocations!E153 -> 0.008620689655 | G159: =Allocations!F153 -> 0.002873563218 | H159: =Allocations!G153 -> 0.01149425287 | I159: =Allocations!H153 -> 0 | J159: =Allocations!I153 -> 0 | K159: =Allocations!J153 -> 0.2873563218 | L159: =Allocations!K153 -> 0.2873563218
B160: CA07 | C160: Other Communications Plant and Equipment | E160: =SUM(F160:G160) -> 0.01149425287 | F160: =Allocations!E154 -> 0.008620689655 | G160: =Allocations!F154 -> 0.002873563218 | H160: =Allocations!G154 -> 0.01149425287 | I160: =Allocations!H154 -> 0 | J160: =Allocations!I154 -> 0 | K160: =Allocations!J154 -> 0.2873563218 | L160: =Allocations!K154 -> 0.2873563218
B161: CA08 | C161: Network Land | E161: =SUM(F161:G161) -> 0.01149425287 | F161: =Allocations!E155 -> 0.008620689655 | G161: =Allocations!F155 -> 0.002873563218 | H161: =Allocations!G155 -> 0.01149425287 | I161: =Allocations!H155 -> 0 | J161: =Allocations!I155 -> 0 | K161: =Allocations!J155 -> 0.2873563218 | L161: =Allocations!K155 -> 0.2873563218
B162: CA09 | C162: Network Buildings/Support | E162: =SUM(F162:G162) -> 0.01149425287 | F162: =Allocations!E156 -> 0.008620689655 | G162: =Allocations!F156 -> 0.002873563218 | H162: =Allocations!G156 -> 0.01149425287 | I162: =Allocations!H156 -> 0 | J162: =Allocations!I156 -> 0 | K162: =Allocations!J156 -> 0.2873563218 | L162: =Allocations!K156 -> 0.2873563218
B163: CA10 | C163: Indirect Capital Assets | E163: =SUM(F163:G163) -> 0.16682363 | F163: =Allocations!E157 -> 0.1251177225 | G163: =Allocations!F157 -> 0.04170590749 | H163: =Allocations!G157 -> 0.16682363 | I163: =Allocations!H157 -> 0 | J163: =Allocations!I157 -> 0 | K163: =Allocations!J157 -> -0.0002549442608 | L163: =Allocations!K157 -> -0.0002549442608
B164: CA11 | C164: Spare CAN Asset Class 11
B165: CA12 | C165: Spare CAN Asset Class 12
B166: CA13 | C166: Spare CAN Asset Class 13
B167: CA14 | C167: Spare CAN Asset Class 14
B168: CA15 | C168: Spare CAN Asset Class 15
B169: CA16 | C169: Spare CAN Asset Class 16
B170: CA17 | C170: Spare CAN Asset Class 17
B171: CA18 | C171: Spare CAN Asset Class 18
B172: CA19 | C172: Spare CAN Asset Class 19
B173: CA20 | C173: Spare CAN Asset Class 20
B174: Core Asset Class
B175: CO01 | C175: =VLOOKUP(B175,Core_AC,2,FALSE) -> Switching Equipment - Local | E175: =Allocations!E169 -> 0.004310344828 | H175: =Allocations!G169 -> 0.005747126437 | I175: =Allocations!H169 -> 0.1111111111 | J175: =Allocations!I169 -> 0.05555555556 | K175: =Allocations!J169 -> 0.1436781609 | L175: =Allocations!K169 -> 0.1436781609
B176: CO02 | C176: Switching Equipment - Trunk | E176: =Allocations!E170 -> 0 | H176: =Allocations!G170 -> 0 | I176: =Allocations!H170 -> 0.2222222222 | J176: =Allocations!I170 -> 0.1111111111 | K176: =Allocations!J170 -> 0 | L176: =Allocations!K170 -> 0
B177: CO03 | C177: Switching Equipment - Other | E177: =Allocations!E171 -> 0 | H177: =Allocations!G171 -> 0 | I177: =Allocations!H171 -> 0.2222222222 | J177: =Allocations!I171 -> 0.1111111111 | K177: =Allocations!J171 -> 0 | L177: =Allocations!K171 -> 0
B178: CO04 | C178: Inter-exchange Cables | E178: =Allocations!E172 -> 0 | H178: =Allocations!G172 -> 0 | I178: =Allocations!H172 -> 0.07407407407 | J178: =Allocations!I172 -> 0.03703703704 | K178: =Allocations!J172 -> 0 | L178: =Allocations!K172 -> 0.1666666667
B179: CO05 | C179: Transmission Equipment | E179: =Allocations!E173 -> 0 | H179: =Allocations!G173 -> 0 | I179: =Allocations!H173 -> 0.07407407407 | J179: =Allocations!I173 -> 0.03703703704 | K179: =Allocations!J173 -> 0 | L179: =Allocations!K173 -> 0.1666666667
B180: CO06 | C180: Core Radio Bearer Equipment | E180: =Allocations!E174 -> 0 | H180: =Allocations!G174 -> 0 | I180: =Allocations!H174 -> 0.07407407407 | J180: =Allocations!I174 -> 0.03703703704 | K180: =Allocations!J174 -> 0 | L180: =Allocations!K174 -> 0.1666666667
B181: CO07 | C181: Other Communications Plant and Equipment | E181: =Allocations!E175 -> 0.001570536461 | H181: =Allocations!G175 -> 0.002094048614 | I181: =Allocations!H175 -> 0.05921649709 | J181: =Allocations!I175 -> 0.02960824855 | K181: =Allocations!J175 -> 0.05235121535 | L181: =Allocations!K175 -> 0.08070181664
B182: CO08 | C182: Network Land | E182: =Allocations!E176 -> 0.001570536461 | H182: =Allocations!G176 -> 0.002094048614 | I182: =Allocations!H176 -> 0.05921649709 | J182: =Allocations!I176 -> 0.02960824855 | K182: =Allocations!J176 -> 0.05235121535 | L182: =Allocations!K176 -> 0.08070181664
B183: CO09 | C183: Network Buildings/Support | E183: =Allocations!E177 -> 0.001570536461 | H183: =Allocations!G177 -> 0.002094048614 | I183: =Allocations!H177 -> 0.05921649709 | J183: =Allocations!I177 -> 0.02960824855 | K183: =Allocations!J177 -> 0.05235121535 | L183: =Allocations!K177 -> 0.08070181664
B184: CO10 | C184: Indirect Capital Assets | E184: =Allocations!E178 -> 0.002769197907 | H184: =Allocations!G178 -> 0.003692263876 | I184: =Allocations!H178 -> 0.1044115842 | J184: =Allocations!I178 -> 0.05220579208 | K184: =Allocations!J178 -> 0.09230659691 | L184: =Allocations!K178 -> 0.1422948829
B185: CO11 | C185: LSS equipment | E185: =Allocations!E179 -> 0.002403846154 | H185: =Allocations!G179 -> 0.003205128205 | I185: =Allocations!H179 -> 0.1602564103 | J185: =Allocations!I179 -> 0.08012820513 | K185: =Allocations!J179 -> 0.08012820513 | L185: =Allocations!K179 -> 0.08012820513
B186: CO12 | C186: Data Equipment | E186: =Allocations!E180 -> 0.008620689655 | H186: =Allocations!G180 -> 0.01149425287 | I186: =Allocations!H180 -> 0 | J186: =Allocations!I180 -> 0 | K186: =Allocations!J180 -> 0.2873563218 | L186: =Allocations!K180 -> 0.2873563218
B187: CO13 | C187: Spare Core Asset Class 13
B188: CO14 | C188: Spare Core Asset Class 14
B189: CO15 | C189: Spare Core Asset Class 15
B190: CO16 | C190: Spare Core Asset Class 16
B191: CO17 | C191: Spare Core Asset Class 17
B192: CO18 | C192: Spare Core Asset Class 18
B193: CO19 | C193: Spare Core Asset Class 19
B194: CO20 | C194: Spare Core Asset Class 20
B196: Y09 | C196: FY2018
F197: S01 | G197: S02 | H197: S03 | I197: S04 | J197: S05 | K197: S06 | L197: S07
B198: Code | C198: Asset Class | E198: ULLS | F198: Band 1 | G198: Band 4 | H198: WLR | I198: PSTN | J198: LCS | K198: LSS | L198: WADSL
B199: CAN Asset Class
B200: CA01 | C200: =VLOOKUP(B200,CAN_AC,2,FALSE) -> Ducts and pipes | E200: =SUM(F200:G200) -> 0.07651035003 | F200: =Allocations!E193 -> 0.05738276252 | G200: =Allocations!F193 -> 0.01912758751 | H200: =Allocations!G193 -> 0.07651035003 | I200: =Allocations!H193 -> 0 | J200: =Allocations!I193 -> 0 | K200: =Allocations!J193 -> 0 | L200: =Allocations!K193 -> 0
B201: CA02 | C201: Copper cables | E201: =SUM(F201:G201) -> 0.1666666667 | F201: =Allocations!E194 -> 0.125 | G201: =Allocations!F194 -> 0.04166666667 | H201: =Allocations!G194 -> 0.1666666667 | I201: =Allocations!H194 -> 0 | J201: =Allocations!I194 -> 0 | K201: =Allocations!J194 -> 0 | L201: =Allocations!K194 -> 0
B202: CA03 | C202: Other cables | E202: =Allocations!E195 -> 0.008620689655 | H202: =Allocations!G195 -> 0.01149425287 | I202: =Allocations!H195 -> 0 | J202: =Allocations!I195 -> 0 | K202: =Allocations!J195 -> 0.2873563218 | L202: =Allocations!K195 -> 0.2873563218
B203: CA04 | C203: Pair gain systems | E203: =Allocations!E196 -> 0.008620689655 | H203: =Allocations!G196 -> 0.01149425287 | I203: =Allocations!H196 -> 0 | J203: =Allocations!I196 -> 0 | K203: =Allocations!J196 -> 0.2873563218 | L203: =Allocations!K196 -> 0.2873563218
B204: CA05 | C204: CAN Radio Bearer Equipment | E204: =Allocations!E197 -> 0.008620689655 | H204: =Allocations!G197 -> 0.01149425287 | I204: =Allocations!H197 -> 0 | J204: =Allocations!I197 -> 0 | K204: =Allocations!J197 -> 0.2873563218 | L204: =Allocations!K197 -> 0.2873563218
B205: CA06 | C205: Other CAN assets | E205: =SUM(F205:G205) -> 0.01149425287 | F205: =Allocations!E198 -> 0.008620689655 | G205: =Allocations!F198 -> 0.002873563218 | H205: =Allocations!G198 -> 0.01149425287 | I205: =Allocations!H198 -> 0 | J205: =Allocations!I198 -> 0 | K205: =Allocations!J198 -> 0.2873563218 | L205: =Allocations!K198 -> 0.2873563218
B206: CA07 | C206: Other Communications Plant and Equipment | E206: =SUM(F206:G206) -> 0.01149425287 | F206: =Allocations!E199 -> 0.008620689655 | G206: =Allocations!F199 -> 0.002873563218 | H206: =Allocations!G199 -> 0.01149425287 | I206: =Allocations!H199 -> 0 | J206: =Allocations!I199 -> 0 | K206: =Allocations!J199 -> 0.2873563218 | L206: =Allocations!K199 -> 0.2873563218
B207: CA08 | C207: Network Land | E207: =SUM(F207:G207) -> 0.01149425287 | F207: =Allocations!E200 -> 0.008620689655 | G207: =Allocations!F200 -> 0.002873563218 | H207: =Allocations!G200 -> 0.01149425287 | I207: =Allocations!H200 -> 0 | J207: =Allocations!I200 -> 0 | K207: =Allocations!J200 -> 0.2873563218 | L207: =Allocations!K200 -> 0.2873563218
B208: CA09 | C208: Network Buildings/Support | E208: =SUM(F208:G208) -> 0.01149425287 | F208: =Allocations!E201 -> 0.008620689655 | G208: =Allocations!F201 -> 0.002873563218 | H208: =Allocations!G201 -> 0.01149425287 | I208: =Allocations!H201 -> 0 | J208: =Allocations!I201 -> 0 | K208: =Allocations!J201 -> 0.2873563218 | L208: =Allocations!K201 -> 0.2873563218
B209: CA10 | C209: Indirect Capital Assets | E209: =SUM(F209:G209) -> 0.1667200582 | F209: =Allocations!E202 -> 0.1250400436 | G209: =Allocations!F202 -> 0.04168001455 | H209: =Allocations!G202 -> 0.1667200582 | I209: =Allocations!H202 -> 0 | J209: =Allocations!I202 -> 0 | K209: =Allocations!J202 -> -8.640975147e-05 | L209: =Allocations!K202 -> -8.640975147e-05
... 76 more rows

Sheet Allocations
B2: Allocations
F3: 5 | G3: 6 | H3: 7 | I3: 8 | J3: 9 | K3: 10
B4: Purpose
B5: Calculate allocators per Asset Class, Service and year
F7: 5 | G7: 6 | H7: 7 | I7: 8 | J7: 9 | K7: 10
B8: Allocation Calculations for Wholesale Regulated Services
A10: FY2014
B11: FY2014 | D11: ULLS | E11: ULLS Band 1-3 | F11: ULLS Band 4 | G11: WLR | H11: PSTN OTA | I11: LCS | J11: LSS | K11: WADSL | L11: Total | M11: Other Fixed Line Services | N11: Other Services | O11: Total
B12: CAN Asset Class
B13: CA01 | C13: =VLOOKUP(B13,CAN_AC,2,FALSE) -> Ducts and pipes | D13: =SUM(E13:F13) -> 0.03333333333 | E13: =SUM(AE323:AG323) -> 0.025 | F13: =AH323 -> 0.008333333333 | G13: =SUM(S323:V323,AI323:AL323)*F305 -> 0.03333333333 | H13: =H323 -> 0 | I13: =I323 -> 0 | J13: =N323 -> 0 | K13: =Q323 -> 0 | L13: =SUM(E13:K13) -> 0.06666666667 | M13: =SUM($C323:$AP323)-L13 -> 0.1333333333 | N13: =SUM($G296:$J296) -> 0.8 | O13: =SUM(L13:N13) -> 1
B14: CA02 | C14: Copper cables | D14: 0.1666666667 | E14: =SUM(AE383:AG383) -> 0.125 | F14: =AH383 -> 0.04166666667 | G14: =SUM(S383:V383,AI383:AL383)*F365 -> 0.1666666667 | H14: =H383 -> 0 | I14: =I383 -> 0 | J14: =N383 -> 0 | K14: =Q383 -> 0 | L14: 0.3333333333 | M14: =SUM($C$383:$AP$383)-L14 -> 0.6666666667 | N14: 0 | O14: 1
B15: CA03 | C15: Other cables | D15: 0.01149425287 | E15: =SUM(AE406:AG406) -> 0.008620689655 | F15: =AH406 -> 0.002873563218 | G15: =MAX(O406,SUM(AI406:AL406)) -> 0.01149425287 | H15: =H406 -> 0 | I15: =I406 -> 0 | J15: =N406 -> 0.2873563218 | K15: =Q406 -> 0.2873563218 | L15: 0.5977011494 | M15: =SUM($C$406:$AP$406)-L15 -> 0.4022988506 | N15: 0 | O15: 1
B16: CA04 | C16: Pair gain systems | D16: 0.01149425287 | E16: =SUM(AE429:AG429) -> 0.008620689655 | F16: =AH429 -> 0.002873563218 | G16: =MAX(O429,SUM(AI429:AL429)) -> 0.01149425287 | H16: =H429 -> 0 | I16: =I429 -> 0 | J16: =N429 -> 0.2873563218 | K16: =Q429 -> 0.2873563218 | L16: 0.5977011494 | M16: =SUM($C$429:$AP$429)-L16 -> 0.4022988506 | N16: 0 | O16: 1
B17: CA05 | C17: CAN Radio Bearer Equipment | D17: 0.01149425287 | E17: =SUM(AE452:AG452) -> 0.008620689655 | F17: =AH452 -> 0.002873563218 | G17: =MAX(O452,SUM(AI452:AL452)) -> 0.01149425287 | H17: =H452 -> 0 | I17: =I452 -> 0 | J17: =N452 -> 0.2873563218 | K17: =Q452 -> 0.2873563218 | L17: 0.5977011494 | M17: =SUM($C$452:$AP$452)-L17 -> 0.4022988506 | N17: 0 | O17: 1
B18: CA06 | C18: Other CAN assets | D18: 0.01149425287 | E18: =SUM(AE475:AG475) -> 0.008620689655 | F18: =AH475 -> 0.002873563218 | G18: =MAX(O475,SUM(AI475:AL475)) -> 0.01149425287 | H18: =H475 -> 0 | I18: =I475 -> 0 | J18: =N475 -> 0.2873563218 | K18: =Q475 -> 0.2873563218 | L18: 0.5977011494 | M18: =SUM($C$475:$AP$475)-L18 -> 0.4022988506 | N18: 0 | O18: 1
B19: CA07 | C19: Other Communications Plant and Equipment | D19: 0.01149425287 | E19: =SUM(AE498:AG498) -> 0.008620689655 | F19: =AH498 -> 0.002873563218 | G19: =MAX(O498,SUM(AI498:AL498)) -> 0.01149425287 | H19: =H498 -> 0 | I19: =I498 -> 0 | J19: =N498 -> 0.2873563218 | K19: =Q498 -> 0.2873563218 | L19: 0.5977011494 | M19: =SUM($C$498:$AP$498)-L19 -> 0.4022988506 | N19: 0 | O19: 1
B20: CA08 | C20: Network Land | D20: 0.01149425287 | E20: =SUM(AE521:AG521) -> 0.008620689655 | F20: =AH521 -> 0.002873563218 | G20: =MAX(O521,SUM(AI521:AL521)) -> 0.01149425287 | H20: =H521 -> 0 | I20: =I521 -> 0 | J20: =N521 -> 0.2873563218 | K20: =Q521 -> 0.2873563218 | L20: 0.5977011494 | M20: =SUM($C$521:$AP$521)-L20 -> 0.4022988506 | N20: 0 | O20: 1
B21: CA09 | C21: Network Buildings/Support | D21: 0.01149425287 | E21: =SUM(AE544:AG544) -> 0.008620689655 | F21: =AH544 -> 0.002873563218 | G21: =MAX(O544,SUM(AI544:AL544)) -> 0.01149425287 | H21: =H544 -> 0 | I21: =I544 -> 0 | J21: =N544 -> 0.2873563218 | K21: =Q544 -> 0.2873563218 | L21: 0.5977011494 | M21: =SUM($C$544:$AP$544)-L21 -> 0.4022988506 | N21: 0 | O21: 1
B22: CA10 | C22: Indirect Capital Assets | D22: 0.03693018623 | E22: =E1048 -> 0.02769763967 | F22: 0.009232546558 | G22: 0.03693018623 | H22: 0 | I22: 0 | J22: 0.2068086819 | K22: 0.2068086819 | L22: 0.4874777364 | M22: =M1048 -> 0.4041635105 | N22: =N1048 -> 0.1083587531 | O22: 1
B23: CA11 | C23: Spare CAN Asset Class 11
B24: CA12 | C24: Spare CAN Asset Class 12
B25: CA13 | C25: Spare CAN Asset Class 13
B26: CA14 | C26: Spare CAN Asset Class 14
B27: CA15 | C27: Spare CAN Asset Class 15
B28: CA16 | C28: Spare CAN Asset Class 16
B29: CA17 | C29: Spare CAN Asset Class 17
B30: CA18 | C30: Spare CAN Asset Class 18
B31: CA19 | C31: Spare CAN Asset Class 19
B32: CA20 | C32: Spare CAN Asset Class 20
B33: Core Asset Class
B34: CO01 | C34: =VLOOKUP(B34,Core_AC,2,FALSE) -> Switching Equipment - Local | E34: =SUM(AE607:AG607) -> 0.004310344828 | F34: =AH607 -> 0.001436781609 | G34: =MAX(O607,SUM(AI607:AL607)) -> 0.005747126437 | H34: =H607 -> 0.07142857143 | I34: =I607 -> 0.07142857143 | J34: =N607 -> 0.1436781609 | K34: =Q607 -> 0.1436781609 | L34: =SUM(E34:K34) -> 0.4417077176 | M34: =SUM($C$607:$AP$607)-L34 -> 0.5582922824 | N34: 0 | O34: =SUM(L34:N34) -> 1
B35: CO02 | C35: Switching Equipment - Trunk | E35: =SUM(AE630:AG630) -> 0 | F35: =AH630 -> 0 | G35: =MAX(O630,SUM(AI630:AL630)) -> 0 | H35: =H630 -> 0.1428571429 | I35: =I630 -> 0.1428571429 | J35: =N630 -> 0 | K35: =Q630 -> 0 | L35: 0.2857142857 | M35: =SUM($C$630:$AP$630)-L35 -> 0.7142857143 | N35: 0 | O35: 1
B36: CO03 | C36: Switching Equipment - Other | E36: =SUM(AE653:AG653) -> 0 | F36: =AH653 -> 0 | G36: =MAX(O653,SUM(AI653:AL653)) -> 0 | H36: =H653 -> 0.1428571429 | I36: =I653 -> 0.1428571429 | J36: =N653 -> 0 | K36: =Q653 -> 0 | L36: 0.2857142857 | M36: =SUM($C$653:$AP$653)-L36 -> 0.7142857143 | N36: 0 | O36: 1
B37: CO04 | C37: Inter-exchange Cables | E37: =SUM(AE706:AG706) -> 0 | F37: =AH706 -> 0 | G37: =MAX(O706,SUM(AI706:AL706)) -> 0 | H37: =H706 -> 0.04761904762 | I37: =I706 -> 0.04761904762 | J37: =N706 -> 0 | K37: =Q706 -> 0.1666666667 | L37: 0.2619047619 | M37: =SUM($C$706:$AP$706)-L37 -> 0.4047619048 | N37: =SUM($E$677,$F$677*(1-SUM($C$768:$AP$768))) -> 0.3333333333 | O37: 1
B38: CO05 | C38: Transmission Equipment | E38: =SUM(AE768:AG768) -> 0 | F38: =AH768 -> 0 | G38: =MAX(O768,SUM(AI768:AL768)) -> 0 | H38: =H768 -> 0.04761904762 | I38: =I768 -> 0.04761904762 | J38: =N768 -> 0 | K38: =Q768 -> 0.1666666667 | L38: 0.2619047619 | M38: =SUM($C$768:$AP$768)-L38 -> 0.4047619048 | N38: =$O$730 -> 0.3333333333 | O38: 1
B39: CO06 | C39: Core Radio Bearer Equipment | E39: =SUM(AE830:AG830) -> 0 | F39: =AH830 -> 0 | G39: =MAX(O830,SUM(AI830:AL830)) -> 0 | H39: =H830 -> 0.04761904762 | I39: =I830 -> 0.04761904762 | J39: =N830 -> 0 | K39: =Q830 -> 0.1666666667 | L39: 0.2619047619 | M39: =SUM($C$830:$AP$830)-L39 -> 0.4047619048 | N39: =$O$792 -> 0.3333333333 | O39: 1
B40: CO07 | C40: Other Communications Plant and Equipment | E40: =E$1049*(1-INDEX(TPA_alloc,MATCH($B$11,$B$852:$B$857,0))) -> 0.001112934936 | F40: 0.0003709783118 | G40: 0.001483913247 | H40: 0.01578486034 | I40: 0.01578486034 | J40: 0.03709783118 | K40: 0.06053254579 | L40: 0.1321679242 | M40: =M$1049*(1-INDEX(TPA_alloc,MATCH($B$11,$B$852:$B$857,0))) -> 0.15429598 | N40: =N1049*(1-INDEX(TPA_alloc,MATCH($B$11,$B$852:$B$857,0)))+INDEX(TPA_alloc,MATCH($B$11,$B$852:$B$857,0)) -> 0.7135360959 | O40: 1
B41: CO08 | C41: Network Land | E41: 0.001112934936 | F41: 0.0003709783118 | G41: 0.001483913247 | H41: 0.01578486034 | I41: 0.01578486034 | J41: 0.03709783118 | K41: 0.06053254579 | L41: 0.1321679242 | M41: =M$1049*(1-INDEX(TPA_alloc,MATCH($B$11,$B$852:$B$857,0))) -> 0.15429598 | N41: =N1049*(1-INDEX(TPA_alloc,MATCH($B$11,$B$852:$B$857,0)))+INDEX(TPA_alloc,MATCH($B$11,$B$852:$B$857,0)) -> 0.7135360959 | O41: =SUM(L41:N41) -> 1
B42: CO09 | C42: Network Buildings/Support | E42: 0.001112934936 | F42: 0.0003709783118 | G42: 0.001483913247 | H42: 0.01578486034 | I42: 0.01578486034 | J42: 0.03709783118 | K42: 0.06053254579 | L42: 0.1321679242 | M42: =M$1049*(1-INDEX(TPA_alloc,MATCH($B$11,$B$852:$B$857,0))) -> 0.15429598 | N42: =N1049*(1-INDEX(TPA_alloc,MATCH($B$11,$B$852:$B$857,0)))+INDEX(TPA_alloc,MATCH($B$11,$B$852:$B$857,0)) -> 0.7135360959 | O42: =SUM(L42:N42) -> 1
B43: CO10 | C43: Indirect Capital Assets | E43: =E1050 -> 0.002662027836 | F43: 0.0008873426119 | G43: 0.003549370447 | H43: 0.0377557899 | I43: 0.0377557899 | J43: 0.08873426119 | K43: 0.144787729 | L43: 0.3161323109 | M43: =M1050 -> 0.369060383 | N43: =N1050 -> 0.3148073061 | O43: =SUM(L43:N43) -> 1
B44: CO11 | C44: LSS equipment | E44: =SUM(AE914:AG914) -> 0.00286259542 | F44: =AH914 -> 0.0009541984733 | G44: =O914 -> 0.003816793893 | H44: =H914 -> 0.09541984733 | I44: =I914 -> 0.09541984733 | J44: =N914 -> 0.09541984733 | K44: =Q914 -> 0.09541984733 | L44: 0.3893129771 | M44: =SUM($C$914:$AP$914)-L44 -> 0.6106870229 | N44: 0 | O44: =SUM(L44:N44) -> 1
B45: CO12 | C45: Data Equipment | E45: =SUM(AE937:AG937) -> 0.008620689655 | F45: =AH937 -> 0.002873563218 | G45: =MAX(O937,SUM(AI937:AL937)) -> 0.01149425287 | H45: =H937 -> 0 | I45: =I937 -> 0 | J45: =N937 -> 0.2873563218 | K45: =Q937 -> 0.2873563218 | L45: 0.5977011494 | M45: =SUM($C$937:$AP$937)-L45 -> 0.4022988506 | N45: 0 | O45: =SUM(L45:N45) -> 1
B46: CO13 | C46: Spare Core Asset Class 13
B47: CO14 | C47: Spare Core Asset Class 14
B48: CO15 | C48: Spare Core Asset Class 15
B49: CO16 | C49: Spare Core Asset Class 16
B50: CO17 | C50: Spare Core Asset Class 17
B51: CO18 | C51: Spare Core Asset Class 18
B52: CO19 | C52: Spare Core Asset Class 19
B53: CO20 | C53: Spare Core Asset Class 20
A55: FY2015 Allocations
B56: FY2015 | D56: ULLS | E56: ULLS Band 1-3 | F56: ULLS Band 4 | G56: WLR | H56: PSTN OTA | I56: LCS | J56: LSS | K56: WADSL | L56: Total | M56: Other Fixed Line Services | N56: Other Services | O56: Total
B57: CAN Asset Class
B58: CA01 | C58: =VLOOKUP(B58,CAN_AC,2,FALSE) -> Ducts and pipes | D58: =SUM(E58:F58) -> 0.08206755451 | E58: =SUM(AE324:AG324) -> 0.06155066588 | F58: =AH324 -> 0.02051688863 | G58: =SUM(S324:V324,AI324:AL324)*F306 -> 0.08206755451 | H58: =H324 -> 0 | I58: =I324 -> 0 | J58: =N324 -> 0 | K58: =Q324 -> 0 | L58: =SUM(E58:K58) -> 0.164135109 | M58: =SUM($C324:$AP324)-L58 -> 0.328270218 | N58: =SUM($G297:$J297) -> 0.507594673 | O58: =SUM(L58:N58) -> 1
B59: CA02 | C59: Copper cables | D59: =SUM(E59:F59) -> 0.1666666667 | E59: =SUM(AE384:AG384) -> 0.125 | F59: =AH384 -> 0.04166666667 | G59: =SUM(S384:V384,AI384:AL384)*F366 -> 0.1666666667 | H59: =H384 -> 0 | I59: =I384 -> 0 | J59: =N384 -> 0 | K59: =Q384 -> 0 | L59: 0.3333333333 | M59: =SUM($C$384:$AP$384)-L59 -> 0.6666666667 | N59: 0 | O59: 1
B60: CA03 | C60: Other cables | D60: 0.01149425287 | E60: =SUM(AE407:AG407) -> 0.008620689655 | F60: =AH407 -> 0.002873563218 | G60: =MAX(O407,SUM(AI407:AL407)) -> 0.01149425287 | H60: =H407 -> 0 | I60: =I407 -> 0 | J60: =N407 -> 0.2873563218 | K60: =Q407 -> 0.2873563218 | L60: 0.5977011494 | M60: =SUM($C$407:$AP$407)-L60 -> 0.4022988506 | N60: 0 | O60: 1
B61: CA04 | C61: Pair gain systems | D61: 0.01149425287 | E61: =SUM(AE430:AG430) -> 0.008620689655 | F61: =AH430 -> 0.002873563218 | G61: =MAX(O430,SUM(AI430:AL430)) -> 0.01149425287 | H61: =H430 -> 0 | I61: =I430 -> 0 | J61: =N430 -> 0.2873563218 | K61: =Q430 -> 0.2873563218 | L61: 0.5977011494 | M61: =SUM($C$430:$AP$430)-L61 -> 0.4022988506 | N61: 0 | O61: 1
B62: CA05 | C62: CAN Radio Bearer Equipment | D62: 0.01149425287 | E62: =SUM(AE453:AG453) -> 0.008620689655 | F62: =AH453 -> 0.002873563218 | G62: =MAX(O453,SUM(AI453:AL453)) -> 0.01149425287 | H62: =H453 -> 0 | I62: =I453 -> 0 | J62: =N453 -> 0.2873563218 | K62: =Q453 -> 0.2873563218 | L62: 0.5977011494 | M62: =SUM($C$453:$AP$453)-L62 -> 0.4022988506 | N62: 0 | O62: 1
B63: CA06 | C63: Other CAN assets | D63: 0.01149425287 | E63: =SUM(AE476:AG476) -> 0.008620689655 | F63: =AH476 -> 0.002873563218 | G63: =MAX(O476,SUM(AI476:AL476)) -> 0.01149425287 | H63: =H476 -> 0 | I63: =I476 -> 0 | J63: =N476 -> 0.2873563218 | K63: =Q476 -> 0.2873563218 | L63: 0.5977011494 | M63: =SUM($C$476:$AP$476)-L63 -> 0.4022988506 | N63: 0 | O63: 1
B64: CA07 | C64: Other Communications Plant and Equipment | D64: 0.01149425287 | E64: =SUM(AE499:AG499) -> 0.008620689655 | F64: =AH499 -> 0.002873563218 | G64: =MAX(O499,SUM(AI499:AL499)) -> 0.01149425287 | H64: =H499 -> 0 | I64: =I499 -> 0 | J64: =N499 -> 0.2873563218 | K64: =Q499 -> 0.2873563218 | L64: 0.5977011494 | M64: =SUM($C$499:$AP$499)-L64 -> 0.4022988506 | N64: 0 | O64: 1
B65: CA08 | C65: Network Land | D65: 0.01149425287 | E65: =SUM(AE522:AG522) -> 0.008620689655 | F65: =AH522 -> 0.002873563218 | G65: =MAX(O522,SUM(AI522:AL522)) -> 0.01149425287 | H65: =H522 -> 0 | I65: =I522 -> 0 | J65: =N522 -> 0.2873563218 | K65: =Q522 -> 0.2873563218 | L65: 0.5977011494 | M65: =SUM($C$522:$AP$522)-L65 -> 0.4022988506 | N65: 0 | O65: 1
B66: CA09 | C66: Network Buildings/Support | D66: 0.01149425287 | E66: =SUM(AE545:AG545) -> 0.008620689655 | F66: =AH545 -> 0.002873563218 | G66: =MAX(O545,SUM(AI545:AL545)) -> 0.01149425287 | H66: =H545 -> 0 | I66: =I545 -> 0 | J66: =N545 -> 0.2873563218 | K66: =Q545 -> 0.2873563218 | L66: 0.5977011494 | M66: =SUM($C$545:$AP$545)-L66 -> 0.4022988506 | N66: 0 | O66: 1
B67: CA10 | C67: Indirect Capital Assets | D67: 0.03355391335 | E67: =E1105 -> 0.02516543502 | F67: 0.008388478338 | G67: 0.03355391335 | H67: 0 | I67: 0 | J67: 0.231337807 | K67: 0.231337807 | L67: 0.5297834408 | M67: =M1105 -> 0.4210745342 | N67: =N1105 -> 0.04914202504 | O67: 1
B68: CA11 | C68: Spare CAN Asset Class 11
B69: CA12 | C69: Spare CAN Asset Class 12
B70: CA13 | C70: Spare CAN Asset Class 13
B71: CA14 | C71: Spare CAN Asset Class 14
B72: CA15 | C72: Spare CAN Asset Class 15
B73: CA16 | C73: Spare CAN Asset Class 16
B74: CA17 | C74: Spare CAN Asset Class 17
B75: CA18 | C75: Spare CAN Asset Class 18
B76: CA19 | C76: Spare CAN Asset Class 19
B77: CA20 | C77: Spare CAN Asset Class 20
B78: Core Asset Class
B79: CO01 | C79: =VLOOKUP(B79,Core_AC,2,FALSE) -> Switching Equipment - Local | E79: =SUM(AE608:AG608) -> 0.004310344828 | F79: =AH608 -> 0.001436781609 | G79: =MAX(O608,SUM(AI608:AL608)) -> 0.005747126437 | H79: =H608 -> 0.1111111111 | I79: =I608 -> 0.05555555556 | J79: =N608 -> 0.1436781609 | K79: =Q608 -> 0.1436781609 | L79: =SUM(E79:K79) -> 0.4655172414 | M79: =SUM($C$608:$AP$608)-L79 -> 0.5344827586 | N79: 0 | O79: =SUM(L79:N79) -> 1
B80: CO02 | C80: Switching Equipment - Trunk | E80: =SUM(AE631:AG631) -> 0 | F80: =AH631 -> 0 | G80: =MAX(O631,SUM(AI631:AL631)) -> 0 | H80: =H631 -> 0.2222222222 | I80: =I631 -> 0.1111111111 | J80: =N631 -> 0 | K80: =Q631 -> 0 | L80: 0.3333333333 | M80: =SUM($C$631:$AP$631)-L80 -> 0.6666666667 | N80: 0 | O80: 1
B81: CO03 | C81: Switching Equipment - Other | E81: =SUM(AE654:AG654) -> 0 | F81: =AH654 -> 0 | G81: =MAX(O654,SUM(AI654:AL654)) -> 0 | H81: =H654 -> 0.2222222222 | I81: =I654 -> 0.1111111111 | J81: =N654 -> 0 | K81: =Q654 -> 0 | L81: 0.3333333333 | M81: =SUM($C$654:$AP$654)-L81 -> 0.6666666667 | N81: 0 | O81: 1
B82: CO04 | C82: Inter-exchange Cables | E82: =SUM(AE707:AG707) -> 0 | F82: =AH707 -> 0 | G82: =MAX(O707,SUM(AI707:AL707)) -> 0 | H82: =H707 -> 0.07407407407 | I82: =I707 -> 0.03703703704 | J82: =N707 -> 0 | K82: =Q707 -> 0.1666666667 | L82: 0.2777777778 | M82: =SUM($C$707:$AP$707)-L82 -> 0.3888888889 | N82: =SUM($E$678,$F$678*(1-SUM($C$769:$AP$769))) -> 0.3333333333 | O82: 1
B83: CO05 | C83: Transmission Equipment | E83: =SUM(AE769:AG769) -> 0 | F83: =AH769 -> 0 | G83: =MAX(O769,SUM(AI769:AL769)) -> 0 | H83: =H769 -> 0.07407407407 | I83: =I769 -> 0.03703703704 | J83: =N769 -> 0 | K83: =Q769 -> 0.1666666667 | L83: 0.2777777778 | M83: =SUM($C$769:$AP$769)-L83 -> 0.3888888889 | N83: =$O$731 -> 0.3333333333 | O83: 1
B84: CO06 | C84: Core Radio Bearer Equipment | E84: =SUM(AE831:AG831) -> 0 | F84: =AH831 -> 0 | G84: =MAX(O831,SUM(AI831:AL831)) -> 0 | H84: =H831 -> 0.07407407407 | I84: =I831 -> 0.03703703704 | J84: =N831 -> 0 | K84: =Q831 -> 0.1666666667 | L84: 0.2777777778 | M84: =SUM($C$831:$AP$831)-L84 -> 0.3888888889 | N84: =$O$793 -> 0.3333333333 | O84: 1
B85: CO07 | C85: Other Communications Plant and Equipment | E85: =E$1106*(1-INDEX(TPA_alloc,MATCH($B$56,$B$852:$B$857,0))) -> 0.00105403486 | F85: 0.0003513449533 | G85: 0.001405379813 | H85: 0.04944333247 | I85: 0.02472166623 | J85: 0.03513449533 | K85: 0.06849439985 | L85: 0.1806046535 | M85: =M$1106*(1-INDEX(TPA_alloc,MATCH($B$56,$B$852:$B$857,0))) -> 0.2308781954 | N85: =N$1106*(1-INDEX(TPA_alloc,MATCH($B$56,$B$852:$B$857,0)))+INDEX(TPA_alloc,MATCH($B$56,$B$852:$B$857,0)) -> 0.5885171511 | O85: 1
B86: CO08 | C86: Network Land | E86: 0.00105403486 | F86: 0.0003513449533 | G86: 0.001405379813 | H86: 0.04944333247 | I86: 0.02472166623 | J86: 0.03513449533 | K86: 0.06849439985 | L86: 0.1806046535 | M86: =M$1106*(1-INDEX(TPA_alloc,MATCH($B$56,$B$852:$B$857,0))) -> 0.2308781954 | N86: =N$1106*(1-INDEX(TPA_alloc,MATCH($B$56,$B$852:$B$857,0)))+INDEX(TPA_alloc,MATCH($B$56,$B$852:$B$857,0)) -> 0.5885171511 | O86: =SUM(L86:N86) -> 1
B87: CO09 | C87: Network Buildings/Support | E87: 0.00105403486 | F87: 0.0003513449533 | G87: 0.001405379813 | H87: 0.04944333247 | I87: 0.02472166623 | J87: 0.03513449533 | K87: 0.06849439985 | L87: 0.1806046535 | M87: =M$1106*(1-INDEX(TPA_alloc,MATCH($B$56,$B$852:$B$857,0))) -> 0.2308781954 | N87: =N$1106*(1-INDEX(TPA_alloc,MATCH($B$56,$B$852:$B$857,0)))+INDEX(TPA_alloc,MATCH($B$56,$B$852:$B$857,0)) -> 0.5885171511 | O87: =SUM(L87:N87) -> 1
B88: CO10 | C88: Indirect Capital Assets | E88: =E1107 -> 0.001887282483 | F88: 0.0006290941611 | G88: 0.002516376644 | H88: 0.0885298379 | I88: 0.04426491895 | J88: 0.06290941611 | K88: 0.1226413717 | L88: 0.323378298 | M88: =M1107 -> 0.4133946519 | N88: =N1107 -> 0.2632270502 | O88: =SUM(L88:N88) -> 1
B89: CO11 | C89: LSS equipment | E89: =SUM(AE915:AG915) -> 0.002403846154 | F89: =AH915 -> 0.0008012820513 | G89: =O915 -> 0.003205128205 | H89: =H915 -> 0.1602564103 | I89: =I915 -> 0.08012820513 | J89: =N915 -> 0.08012820513 | K89: =Q915 -> 0.08012820513 | L89: 0.4070512821 | M89: =SUM($C$915:$AP$915)-L89 -> 0.5929487179 | N89: 0 | O89: =SUM(L89:N89) -> 1
B90: CO12 | C90: Data Equipment | E90: =SUM(AE938:AG938) -> 0.008620689655 | F90: =AH938 -> 0.002873563218 | G90: =MAX(O938,SUM(AI938:AL938)) -> 0.01149425287 | H90: =H938 -> 0 | I90: =I938 -> 0 | J90: =N938 -> 0.2873563218 | K90: =Q938 -> 0.2873563218 | L90: 0.5977011494 | M90: =SUM($C$938:$AP$938)-L90 -> 0.4022988506 | N90: 0 | O90: =SUM(L90:N90) -> 1
B91: CO13 | C91: Spare Core Asset Class 13
B92: CO14 | C92: Spare Core Asset Class 14
B93: CO15 | C93: Spare Core Asset Class 15
B94: CO16 | C94: Spare Core Asset Class 16
B95: CO17 | C95: Spare Core Asset Class 17
B96: CO18 | C96: Spare Core Asset Class 18
B97: CO19 | C97: Spare Core Asset Class 19
B98: CO20 | C98: Spare Core Asset Class 20
A100: FY2016 Allocations
B101: FY2016 | D101: ULLS | E101: ULLS Band 1-3 | F101: ULLS Band 4 | G101: WLR | H101: PSTN OTA | I101: LCS | J101: LSS | K101: WADSL | L101: Total | M101: Other Fixed Line Services | N101: Other Services | O101: Total
B102: CAN Asset Class
B103: CA01 | C103: =VLOOKUP(B103,CAN_AC,2,FALSE) -> Ducts and pipes | D103: =SUM(E103:F103) -> 0.08103901085 | E103: =SUM(AE325:AG325) -> 0.06077925813 | F103: =AH325 -> 0.02025975271 | G103: =SUM(S325:V325,AI325:AL325)*F307 -> 0.08103901085 | H103: =H325 -> 0 | I103: =I325 -> 0 | J103: =N325 -> 0 | K103: =Q325 -> 0 | L103: =SUM(E103:K103) -> 0.1620780217 | M103: =SUM($C325:$AP325)-L103 -> 0.3241560434 | N103: =SUM($G298:$J298) -> 0.5137659349 | O103: =SUM(L103:N103) -> 1
B104: CA02 | C104: Copper cables | D104: =SUM(E104:F104) -> 0.1666666667 | E104: =SUM(AE385:AG385) -> 0.125 | F104: =AH385 -> 0.04166666667 | G104: =SUM(S385:V385,AI385:AL385)*F367 -> 0.1666666667 | H104: =H385 -> 0 | I104: =I385 -> 0 | J104: =N385 -> 0 | K104: =Q385 -> 0 | L104: 0.3333333333 | M104: =SUM($C$385:$AP$385)-L104 -> 0.6666666667 | N104: 0 | O104: =SUM(L104:N104) -> 1
B105: CA03 | C105: Other cables | D105: 0.01149425287 | E105: =SUM(AE408:AG408) -> 0.008620689655 | F105: =AH408 -> 0.002873563218 | G105: =MAX(O408,SUM(AI408:AL408)) -> 0.01149425287 | H105: =H408 -> 0 | I105: =I408 -> 0 | J105: =N408 -> 0.2873563218 | K105: =Q408 -> 0.2873563218 | L105: 0.5977011494 | M105: =SUM($C$408:$AP$408)-L105 -> 0.4022988506 | N105: 0 | O105: 1
B106: CA04 | C106: Pair gain systems | D106: 0.01149425287 | E106: =SUM(AE431:AG431) -> 0.008620689655 | F106: =AH431 -> 0.002873563218 | G106: =MAX(O431,SUM(AI431:AL431)) -> 0.01149425287 | H106: =H431 -> 0 | I106: =I431 -> 0 | J106: =N431 -> 0.2873563218 | K106: =Q431 -> 0.2873563218 | L106: 0.5977011494 | M106: =SUM($C$431:$AP$431)-L106 -> 0.4022988506 | N106: 0 | O106: 1
B107: CA05 | C107: CAN Radio Bearer Equipment | D107: 0.01149425287 | E107: =SUM(AE454:AG454) -> 0.008620689655 | F107: =AH454 -> 0.002873563218 | G107: =MAX(O454,SUM(AI454:AL454)) -> 0.01149425287 | H107: =H454 -> 0 | I107: =I454 -> 0 | J107: =N454 -> 0.2873563218 | K107: =Q454 -> 0.2873563218 | L107: 0.5977011494 | M107: =SUM($C$454:$AP$454)-L107 -> 0.4022988506 | N107: 0 | O107: 1
B108: CA06 | C108: Other CAN assets | D108: 0.01149425287 | E108: =SUM(AE477:AG477) -> 0.008620689655 | F108: =AH477 -> 0.002873563218 | G108: =MAX(O477,SUM(AI477:AL477)) -> 0.01149425287 | H108: =H477 -> 0 | I108: =I477 -> 0 | J108: =N477 -> 0.2873563218 | K108: =Q477 -> 0.2873563218 | L108: 0.5977011494 | M108: =SUM($C$477:$AP$477)-L108 -> 0.4022988506 | N108: 0 | O108: 1
B109: CA07 | C109: Other Communications Plant and Equipment | D109: 0.01149425287 | E109: =SUM(AE500:AG500) -> 0.008620689655 | F109: =AH500 -> 0.002873563218 | G109: =MAX(O500,SUM(AI500:AL500)) -> 0.01149425287 | H109: =H500 -> 0 | I109: =I500 -> 0 | J109: =N500 -> 0.2873563218 | K109: =Q500 -> 0.2873563218 | L109: 0.5977011494 | M109: =SUM($C$500:$AP$500)-L109 -> 0.4022988506 | N109: 0 | O109: 1
B110: CA08 | C110: Network Land | D110: 0.01149425287 | E110: =SUM(AE523:AG523) -> 0.008620689655 | F110: =AH523 -> 0.002873563218 | G110: =MAX(O523,SUM(AI523:AL523)) -> 0.01149425287 | H110: =H523 -> 0 | I110: =I523 -> 0 | J110: =N523 -> 0.2873563218 | K110: =Q523 -> 0.2873563218 | L110: 0.5977011494 | M110: =SUM($C$523:$AP$523)-L110 -> 0.4022988506 | N110: 0 | O110: 1
B111: CA09 | C111: Network Buildings/Support | D111: 0.01149425287 | E111: =SUM(AE546:AG546) -> 0.008620689655 | F111: =AH546 -> 0.002873563218 | G111: =MAX(O546,SUM(AI546:AL546)) -> 0.01149425287 | H111: =H546 -> 0 | I111: =I546 -> 0 | J111: =N546 -> 0.2873563218 | K111: =Q546 -> 0.2873563218 | L111: 0.5977011494 | M111: =SUM($C$546:$AP$546)-L111 -> 0.4022988506 | N111: 0 | O111: 1
B112: CA10 | C112: Indirect Capital Assets | D112: 0.1668479998 | E112: =E1162 -> 0.1251359999 | F112: 0.04171199996 | G112: 0.1668479998 | H112: 0 | I112: 0 | J112: -0.0002952749877 | K112: -0.0002952749877 | L112: 0.3331054497 | M112: =M1162 -> 0.6670258583 | N112: =N1162 -> -0.000131308041 | O112: 1
B113: CA11 | C113: Spare CAN Asset Class 11
B114: CA12 | C114: Spare CAN Asset Class 12
B115: CA13 | C115: Spare CAN Asset Class 13
B116: CA14 | C116: Spare CAN Asset Class 14
B117: CA15 | C117: Spare CAN Asset Class 15
B118: CA16 | C118: Spare CAN Asset Class 16
B119: CA17 | C119: Spare CAN Asset Class 17
B120: CA18 | C120: Spare CAN Asset Class 18
B121: CA19 | C121: Spare CAN Asset Class 19
B122: CA20 | C122: Spare CAN Asset Class 20
B123: Core Asset Class
B124: CO01 | C124: =VLOOKUP(B124,Core_AC,2,FALSE) -> Switching Equipment - Local | E124: =SUM(AE609:AG609) -> 0.004310344828 | F124: =AH609 -> 0.001436781609 | G124: =MAX(O609,SUM(AI609:AL609)) -> 0.005747126437 | H124: =H609 -> 0.1111111111 | I124: =I609 -> 0.05555555556 | J124: =N609 -> 0.1436781609 | K124: =Q609 -> 0.1436781609 | L124: =SUM(E124:K124) -> 0.4655172414 | M124: =SUM($C$609:$AP$609)-L124 -> 0.5344827586 | N124: 0 | O124: =SUM(L124:N124) -> 1
B125: CO02 | C125: Switching Equipment - Trunk | E125: =SUM(AE632:AG632) -> 0 | F125: =AH632 -> 0 | G125: =MAX(O632,SUM(AI632:AL632)) -> 0 | H125: =H632 -> 0.2222222222 | I125: =I632 -> 0.1111111111 | J125: =N632 -> 0 | K125: =Q632 -> 0 | L125: 0.3333333333 | M125: =SUM($C$632:$AP$632)-L125 -> 0.6666666667 | N125: 0 | O125: 1
B126: CO03 | C126: Switching Equipment - Other | E126: =SUM(AE655:AG655) -> 0 | F126: =AH655 -> 0 | G126: =MAX(O655,SUM(AI655:AL655)) -> 0 | H126: =H655 -> 0.2222222222 | I126: =I655 -> 0.1111111111 | J126: =N655 -> 0 | K126: =Q655 -> 0 | L126: 0.3333333333 | M126: =SUM($C$655:$AP$655)-L126 -> 0.6666666667 | N126: 0 | O126: 1
B127: CO04 | C127: Inter-exchange Cables | E127: =SUM(AE708:AG708) -> 0 | F127: =AH708 -> 0 | G127: =MAX(O708,SUM(AI708:AL708)) -> 0 | H127: =H708 -> 0.07407407407 | I127: =I708 -> 0.03703703704 | J127: =N708 -> 0 | K127: =Q708 -> 0.1666666667 | L127: 0.2777777778 | M127: =SUM($C$708:$AP$708)-L127 -> 0.3888888889 | N127: =SUM($E$679,$F$679*(1-SUM($C$770:$AP$770))) -> 0.3333333333 | O127: 1
B128: CO05 | C128: Transmission Equipment | E128: =SUM(AE770:AG770) -> 0 | F128: =AH770 -> 0 | G128: =MAX(O770,SUM(AI770:AL770)) -> 0 | H128: =H770 -> 0.07407407407 | I128: =I770 -> 0.03703703704 | J128: =N770 -> 0 | K128: =Q770 -> 0.1666666667 | L128: 0.2777777778 | M128: =SUM($C$770:$AP$770)-L128 -> 0.3888888889 | N128: =$O$732 -> 0.3333333333 | O128: 1
B129: CO06 | C129: Core Radio Bearer Equipment | E129: =SUM(AE832:AG832) -> 0 | F129: =AH832 -> 0 | G129: =MAX(O832,SUM(AI832:AL832)) -> 0 | H129: =H832 -> 0.07407407407 | I129: =I832 -> 0.03703703704 | J129: =N832 -> 0 | K129: =Q832 -> 0.1666666667 | L129: 0.2777777778 | M129: =SUM($C$832:$AP$832)-L129 -> 0.3888888889 | N129: =$O$794 -> 0.3333333333 | O129: 1
B130: CO07 | C130: Other Communications Plant and Equipment | E130: =E$1163*(1-INDEX(TPA_alloc,MATCH($B$101,$B$852:$B$857,0))) -> 0.001624589193 | F130: 0.0005415297309 | G130: 0.002166118923 | H130: 0.05127758739 | I130: 0.02563879369 | J130: 0.05415297309 | K130: 0.07873027311 | L130: 0.2141318651 | M130: =M$1163*(1-INDEX(TPA_alloc,MATCH($B$101,$B$852:$B$857,0))) -> 0.2542242245 | N130: =N1163*(1-INDEX(TPA_alloc,MATCH($B$101,$B$852:$B$857,0)))+INDEX(TPA_alloc,MATCH($B$101,$B$852:$B$857,0)) -> 0.5316439104 | O130: 1
B131: CO08 | C131: Network Land | E131: 0.001624589193 | F131: 0.0005415297309 | G131: 0.002166118923 | H131: 0.05127758739 | I131: 0.02563879369 | J131: 0.05415297309 | K131: 0.07873027311 | L131: 0.2141318651 | M131: =M$1163*(1-INDEX(TPA_alloc,MATCH($B$101,$B$852:$B$857,0))) -> 0.2542242245 | N131: =N1163*(1-INDEX(TPA_alloc,MATCH($B$101,$B$852:$B$857,0)))+INDEX(TPA_alloc,MATCH($B$101,$B$852:$B$857,0)) -> 0.5316439104 | O131: =SUM(L131:N131) -> 1
B132: CO09 | C132: Network Buildings/Support | E132: 0.001624589193 | F132: 0.0005415297309 | G132: 0.002166118923 | H132: 0.05127758739 | I132: 0.02563879369 | J132: 0.05415297309 | K132: 0.07873027311 | L132: 0.2141318651 | M132: =M$1163*(1-INDEX(TPA_alloc,MATCH($B$101,$B$852:$B$857,0))) -> 0.2542242245 | N132: =N1163*(1-INDEX(TPA_alloc,MATCH($B$101,$B$852:$B$857,0)))+INDEX(TPA_alloc,MATCH($B$101,$B$852:$B$857,0)) -> 0.5316439104 | O132: =SUM(L132:N132) -> 1
B133: CO10 | C133: Indirect Capital Assets | E133: =E1164 -> 0.003109901854 | F133: 0.001036633951 | G133: 0.004146535805 | H133: 0.09815913144 | I133: 0.04907956572 | J133: 0.1036633951 | K133: 0.1507109757 | L133: 0.4099061396 | M133: =M1164 -> 0.4866537281 | N133: =N1164 -> 0.1034401323 | O133: =SUM(L133:N133) -> 1
B134: CO11 | C134: LSS equipment | E134: =SUM(AE916:AG916) -> 0.002403846154 | F134: =AH916 -> 0.0008012820513 | G134: =O916 -> 0.003205128205 | H134: =H916 -> 0.1602564103 | I134: =I916 -> 0.08012820513 | J134: =N916 -> 0.08012820513 | K134: =Q916 -> 0.08012820513 | L134: 0.4070512821 | M134: =SUM($C$916:$AP$916)-L134 -> 0.5929487179 | N134: 0 | O134: =SUM(L134:N134) -> 1
B135: CO12 | C135: Data Equipment | E135: =SUM(AE939:AG939) -> 0.008620689655 | F135: =AH939 -> 0.002873563218 | G135: =MAX(O939,SUM(AI939:AL939)) -> 0.01149425287 | H135: =H939 -> 0 | I135: =I939 -> 0 | J135: =N939 -> 0.2873563218 | K135: =Q939 -> 0.2873563218 | L135: 0.5977011494 | M135: =SUM($C$939:$AP$939)-L135 -> 0.4022988506 | N135: 0 | O135: =SUM(L135:N135) -> 1
B136: CO13 | C136: Spare Core Asset Class 13
B137: CO14 | C137: Spare Core Asset Class 14
B138: CO15 | C138: Spare Core Asset Class 15
B139: CO16 | C139: Spare Core Asset Class 16
B140: CO17 | C140: Spare Core Asset Class 17
B141: CO18 | C141: Spare Core Asset Class 18
B142: CO19 | C142: Spare Core Asset Class 19
B143: CO20 | C143: Spare Core Asset Class 20
A145: FY2017 Allocations
B146: FY2017 | D146: ULLS | E146: ULLS Band 1-3 | F146: ULLS Band 4 | G146: WLR | H146: PSTN OTA | I146: LCS | J146: LSS | K146: WADSL | L146: Total | M146: Other Fixed Line Services | N146: Other Services | O146: Total
B147: CAN Asset Class
B148: CA01 | C148: =VLOOKUP(B148,CAN_AC,2,FALSE) -> Ducts and pipes | D148: =SUM(E148:F148) -> 0.07917200876 | E148: =SUM(AE326:AG326) -> 0.05937900657 | F148: =AH326 -> 0.01979300219 | G148: =SUM(S326:V326,AI326:AL326)*F308 -> 0.07917200876 | H148: =H326 -> 0 | I148: =I326 -> 0 | J148: =N326 -> 0 | K148: =Q326 -> 0 | L148: =SUM(E148:K148) -> 0.1583440175 | M148: =SUM($C326:$AP326)-L148 -> 0.316688035 | N148: =SUM($G299:$J299) -> 0.5249679475 | O148: =SUM(L148:N148) -> 1
B149: CA02 | C149: Copper cables | D149: =SUM(E149:F149) -> 0.1666666667 | E149: =SUM(AE386:AG386) -> 0.125 | F149: =AH386 -> 0.04166666667 | G149: =SUM(S386:V386,AI386:AL386)*F368 -> 0.1666666667 | H149: =H386 -> 0 | I149: =I386 -> 0 | J149: =N386 -> 0 | K149: =Q386 -> 0 | L149: 0.3333333333 | M149: =SUM($C$386:$AP$386)-L149 -> 0.6666666667 | N149: 0 | O149: =SUM(L149:N149) -> 1
B150: CA03 | C150: Other cables | D150: 0.01149425287 | E150: =SUM(AE409:AG409) -> 0.008620689655 | F150: =AH409 -> 0.002873563218 | G150: =MAX(O409,SUM(AI409:AL409)) -> 0.01149425287 | H150: =H409 -> 0 | I150: =I409 -> 0 | J150: =N409 -> 0.2873563218 | K150: =Q409 -> 0.2873563218 | L150: 0.5977011494 | M150: =SUM($C$409:$AP$409)-L150 -> 0.4022988506 | N150: 0 | O150: 1
B151: CA04 | C151: Pair gain systems | D151: 0.01149425287 | E151: =SUM(AE432:AG432) -> 0.008620689655 | F151: =AH432 -> 0.002873563218 | G151: =MAX(O432,SUM(AI432:AL432)) -> 0.01149425287 | H151: =H432 -> 0 | I151: =I432 -> 0 | J151: =N432 -> 0.2873563218 | K151: =Q432 -> 0.2873563218 | L151: 0.5977011494 | M151: =SUM($C$432:$AP$432)-L151 -> 0.4022988506 | N151: 0 | O151: 1
B152: CA05 | C152: CAN Radio Bearer Equipment | D152: 0.01149425287 | E152: =SUM(AE455:AG455) -> 0.008620689655 | F152: =AH455 -> 0.002873563218 | G152: =MAX(O455,SUM(AI455:AL455)) -> 0.01149425287 | H152: =H455 -> 0 | I152: =I455 -> 0 | J152: =N455 -> 0.2873563218 | K152: =Q455 -> 0.2873563218 | L152: 0.5977011494 | M152: =SUM($C$455:$AP$455)-L152 -> 0.4022988506 | N152: 0 | O152: 1
B153: CA06 | C153: Other CAN assets | D153: 0.01149425287 | E153: =SUM(AE478:AG478) -> 0.008620689655 | F153: =AH478 -> 0.002873563218 | G153: =MAX(O478,SUM(AI478:AL478)) -> 0.01149425287 | H153: =H478 -> 0 | I153: =I478 -> 0 | J153: =N478 -> 0.2873563218 | K153: =Q478 -> 0.2873563218 | L153: 0.5977011494 | M153: =SUM($C$478:$AP$478)-L153 -> 0.4022988506 | N153: 0 | O153: 1
B154: CA07 | C154: Other Communications Plant and Equipment | D154: 0.01149425287 | E154: =SUM(AE501:AG501) -> 0.008620689655 | F154: =AH501 -> 0.002873563218 | G154: =MAX(O501,SUM(AI501:AL501)) -> 0.01149425287 | H154: =H501 -> 0 | I154: =I501 -> 0 | J154: =N501 -> 0.2873563218 | K154: =Q501 -> 0.2873563218 | L154: 0.5977011494 | M154: =SUM($C$501:$AP$501)-L154 -> 0.4022988506 | N154: 0 | O154: 1
B155: CA08 | C155: Network Land | D155: 0.01149425287 | E155: =SUM(AE524:AG524) -> 0.008620689655 | F155: =AH524 -> 0.002873563218 | G155: =MAX(O524,SUM(AI524:AL524)) -> 0.01149425287 | H155: =H524 -> 0 | I155: =I524 -> 0 | J155: =N524 -> 0.2873563218 | K155: =Q524 -> 0.2873563218 | L155: 0.5977011494 | M155: =SUM($C$524:$AP$524)-L155 -> 0.4022988506 | N155: 0 | O155: 1
B156: CA09 | C156: Network Buildings/Support | D156: 0.01149425287 | E156: =SUM(AE547:AG547) -> 0.008620689655 | F156: =AH547 -> 0.002873563218 | G156: =MAX(O547,SUM(AI547:AL547)) -> 0.01149425287 | H156: =H547 -> 0 | I156: =I547 -> 0 | J156: =N547 -> 0.2873563218 | K156: =Q547 -> 0.2873563218 | L156: 0.5977011494 | M156: =SUM($C$547:$AP$547)-L156 -> 0.4022988506 | N156: 0 | O156: 1
B157: CA10 | C157: Indirect Capital Assets | D157: 0.16682363 | E157: =E1219 -> 0.1251177225 | F157: 0.04170590749 | G157: 0.16682363 | H157: 0 | I157: 0 | J157: -0.0002549442608 | K157: -0.0002549442608 | L157: 0.3331373714 | M157: =M1219 -> 0.666978389 | N157: =N1219 -> -0.000115760426 | O157: 1
B158: CA11 | C158: Spare CAN Asset Class 11
B159: CA12 | C159: Spare CAN Asset Class 12
B160: CA13 | C160: Spare CAN Asset Class 13
B161: CA14 | C161: Spare CAN Asset Class 14
B162: CA15 | C162: Spare CAN Asset Class 15
B163: CA16 | C163: Spare CAN Asset Class 16
B164: CA17 | C164: Spare CAN Asset Class 17
B165: CA18 | C165: Spare CAN Asset Class 18
B166: CA19 | C166: Spare CAN Asset Class 19
B167: CA20 | C167: Spare CAN Asset Class 20
B168: Core Asset Class
B169: CO01 | C169: =VLOOKUP(B169,Core_AC,2,FALSE) -> Switching Equipment - Local | E169: =SUM(AE610:AG610) -> 0.004310344828 | F169: =AH610 -> 0.001436781609 | G169: =MAX(O610,SUM(AI610:AL610)) -> 0.005747126437 | H169: =H610 -> 0.1111111111 | I169: =I610 -> 0.05555555556 | J169: =N610 -> 0.1436781609 | K169: =Q610 -> 0.1436781609 | L169: =SUM(E169:K169) -> 0.4655172414 | M169: =SUM($C$610:$AP$610)-L169 -> 0.5344827586 | N169: 0 | O169: =SUM(L169:N169) -> 1
B170: CO02 | C170: Switching Equipment - Trunk | E170: =SUM(AE633:AG633) -> 0 | F170: =AH633 -> 0 | G170: =MAX(O633,SUM(AI633:AL633)) -> 0 | H170: =H633 -> 0.2222222222 | I170: =I633 -> 0.1111111111 | J170: =N633 -> 0 | K170: =Q633 -> 0 | L170: 0.3333333333 | M170: =SUM($C$633:$AP$633)-L170 -> 0.6666666667 | N170: 0 | O170: 1
B171: CO03 | C171: Switching Equipment - Other | E171: =SUM(AE656:AG656) -> 0 | F171: =AH656 -> 0 | G171: =MAX(O656,SUM(AI656:AL656)) -> 0 | H171: =H656 -> 0.2222222222 | I171: =I656 -> 0.1111111111 | J171: =N656 -> 0 | K171: =Q656 -> 0 | L171: 0.3333333333 | M171: =SUM($C$656:$AP$656)-L171 -> 0.6666666667 | N171: 0 | O171: 1
B172: CO04 | C172: Inter-exchange Cables | E172: =SUM(AE709:AG709) -> 0 | F172: =AH709 -> 0 | G172: =MAX(O709,SUM(AI709:AL709)) -> 0 | H172: =H709 -> 0.07407407407 | I172: =I709 -> 0.03703703704 | J172: =N709 -> 0 | K172: =Q709 -> 0.1666666667 | L172: 0.2777777778 | M172: =SUM($C$709:$AP$709)-L172 -> 0.3888888889 | N172: =SUM($E$680,$F$680*(1-SUM($C$771:$AP$771))) -> 0.3333333333 | O172: 1
B173: CO05 | C173: Transmission Equipment | E173: =SUM(AE771:AG771) -> 0 | F173: =AH771 -> 0 | G173: =MAX(O771,SUM(AI771:AL771)) -> 0 | H173: =H771 -> 0.07407407407 | I173: =I771 -> 0.03703703704 | J173: =N771 -> 0 | K173: =Q771 -> 0.1666666667 | L173: 0.2777777778 | M173: =SUM($C$771:$AP$771)-L173 -> 0.3888888889 | N173: =$O$733 -> 0.3333333333 | O173: 1
B174: CO06 | C174: Core Radio Bearer Equipment | E174: =SUM(AE833:AG833) -> 0 | F174: =AH833 -> 0 | G174: =MAX(O833,SUM(AI833:AL833)) -> 0 | H174: =H833 -> 0.07407407407 | I174: =I833 -> 0.03703703704 | J174: =N833 -> 0 | K174: =Q833 -> 0.1666666667 | L174: 0.2777777778 | M174: =SUM($C$833:$AP$833)-L174 -> 0.3888888889 | N174: =$O$795 -> 0.3333333333 | O174: 1
B175: CO07 | C175: Other Communications Plant and Equipment | E175: =E$1220*(1-INDEX(TPA_alloc,MATCH($B$146,$B$852:$B$857,0))) -> 0.001570536461 | F175: 0.0005235121535 | G175: 0.002094048614 | H175: 0.05921649709 | I175: 0.02960824855 | J175: 0.05235121535 | K175: 0.08070181664 | L175: 0.2260658749 | M175: =M$1220*(1-INDEX(TPA_alloc,MATCH($B$146,$B$852:$B$857,0))) -> 0.2792917941 | N175: =N$1220*(1-INDEX(TPA_alloc,MATCH($B$146,$B$852:$B$857,0)))+INDEX(TPA_alloc,MATCH($B$146,$B$852:$B$857,0)) -> 0.4946423311 | O175: 1
B176: CO08 | C176: Network Land | E176: 0.001570536461 | F176: 0.0005235121535 | G176: 0.002094048614 | H176: 0.05921649709 | I176: 0.02960824855 | J176: 0.05235121535 | K176: 0.08070181664 | L176: 0.2260658749 | M176: =M$1220*(1-INDEX(TPA_alloc,MATCH($B$146,$B$852:$B$857,0))) -> 0.2792917941 | N176: =N$1220*(1-INDEX(TPA_alloc,MATCH($B$146,$B$852:$B$857,0)))+INDEX(TPA_alloc,MATCH($B$146,$B$852:$B$857,0)) -> 0.4946423311 | O176: =SUM(L176:N176) -> 1
B177: CO09 | C177: Network Buildings/Support | E177: 0.001570536461 | F177: 0.0005235121535 | G177: 0.002094048614 | H177: 0.05921649709 | I177: 0.02960824855 | J177: 0.05235121535 | K177: 0.08070181664 | L177: 0.2260658749 | M177: =M$1220*(1-INDEX(TPA_alloc,MATCH($B$146,$B$852:$B$857,0))) -> 0.2792917941 | N177: =N$1220*(1-INDEX(TPA_alloc,MATCH($B$146,$B$852:$B$857,0)))+INDEX(TPA_alloc,MATCH($B$146,$B$852:$B$857,0)) -> 0.4946423311 | O177: =SUM(L177:N177) -> 1
B178: CO10 | C178: Indirect Capital Assets | E178: =E1221 -> 0.002769197907 | F178: 0.0009230659691 | G178: 0.003692263876 | H178: 0.1044115842 | I178: 0.05220579208 | J178: 0.09230659691 | K178: 0.1422948829 | L178: 0.3986033838 | M178: =M1221 -> 0.4924522741 | N178: =N1221 -> 0.1089443421 | O178: =SUM(L178:N178) -> 1
B179: CO11 | C179: LSS equipment | E179: =SUM(AE917:AG917) -> 0.002403846154 | F179: =AH917 -> 0.0008012820513 | G179: =O917 -> 0.003205128205 | H179: =H917 -> 0.1602564103 | I179: =I917 -> 0.08012820513 | J179: =N917 -> 0.08012820513 | K179: =Q917 -> 0.08012820513 | L179: 0.4070512821 | M179: =SUM($C$917:$AP$917)-L179 -> 0.5929487179 | N179: 0 | O179: =SUM(L179:N179) -> 1
B180: CO12 | C180: Data Equipment | E180: =SUM(AE940:AG940) -> 0.008620689655 | F180: =AH940 -> 0.002873563218 | G180: =MAX(O940,SUM(AI940:AL940)) -> 0.01149425287 | H180: =H940 -> 0 | I180: =I940 -> 0 | J180: =N940 -> 0.2873563218 | K180: =Q940 -> 0.2873563218 | L180: 0.5977011494 | M180: =SUM($C$940:$AP$940)-L180 -> 0.4022988506 | N180: 0 | O180: =SUM(L180:N180) -> 1
B181: CO13 | C181: Spare Core Asset Class 13
B182: CO14 | C182: Spare Core Asset Class 14
B183: CO15 | C183: Spare Core Asset Class 15
B184: CO16 | C184: Spare Core Asset Class 16
B185: CO17 | C185: Spare Core Asset Class 17
B186: CO18 | C186: Spare Core Asset Class 18
B187: CO19 | C187: Spare Core Asset Class 19
B188: CO20 | C188: Spare Core Asset Class 20
A190: FY2018 Allocations
B191: FY2018 | D191: ULLS | E191: ULLS Band 1-3 | F191: ULLS Band 4 | G191: WLR | H191: PSTN OTA | I191: LCS | J191: LSS | K191: WADSL | L191: Total | M191: Other Fixed Line Services | N191: Other Services | O191: Total
B192: CAN Asset Class
B193: CA01 | C193: =VLOOKUP(B193,CAN_AC,2,FALSE) -> Ducts and pipes | D193: =SUM(E193:F193) -> 0.07651035003 | E193: =SUM(AE327:AG327) -> 0.05738276252 | F193: =AH327 -> 0.01912758751 | G193: =SUM(S327:V327,AI327:AL327)*F309 -> 0.07651035003 | H193: =H327 -> 0 | I193: =I327 -> 0 | J193: =N327 -> 0 | K193: =Q327 -> 0 | L193: =SUM(E193:K193) -> 0.1530207001 | M193: =SUM($C327:$AP327)-L193 -> 0.3060414001 | N193: =SUM($G300:$J300) -> 0.5409378998 | O193: =SUM(L193:N193) -> 1
B194: CA02 | C194: Copper cables | D194: =SUM(E194:F194) -> 0.1666666667 | E194: =SUM(AE387:AG387) -> 0.125 | F194: =AH387 -> 0.04166666667 | G194: =SUM(S387:V387,AI387:AL387)*F369 -> 0.1666666667 | H194: =H387 -> 0 | I194: =I387 -> 0 | J194: =N387 -> 0 | K194: =Q387 -> 0 | L194: 0.3333333333 | M194: =SUM($C$387:$AP$387)-L194 -> 0.6666666667 | N194: 0 | O194: =SUM(L194:N194) -> 1
B195: CA03 | C195: Other cables | D195: 0.01149425287 | E195: =SUM(AE410:AG410) -> 0.008620689655 | F195: =AH410 -> 0.002873563218 | G195: =MAX(O410,SUM(AI410:AL410)) -> 0.01149425287 | H195: =H410 -> 0 | I195: =I410 -> 0 | J195: =N410 -> 0.2873563218 | K195: =Q410 -> 0.2873563218 | L195: 0.5977011494 | M195: =SUM($C$410:$AP$410)-L195 -> 0.4022988506 | N195: 0 | O195: 1
B196: CA04 | C196: Pair gain systems | D196: 0.01149425287 | E196: =SUM(AE433:AG433) -> 0.008620689655 | F196: =AH433 -> 0.002873563218 | G196: =MAX(O433,SUM(AI433:AL433)) -> 0.01149425287 | H196: =H433 -> 0 | I196: =I433 -> 0 | J196: =N433 -> 0.2873563218 | K196: =Q433 -> 0.2873563218 | L196: 0.5977011494 | M196: =SUM($C$433:$AP$433)-L196 -> 0.4022988506 | N196: 0 | O196: 1
B197: CA05 | C197: CAN Radio Bearer Equipment | D197: 0.01149425287 | E197: =SUM(AE456:AG456) -> 0.008620689655 | F197: =AH456 -> 0.002873563218 | G197: =MAX(O456,SUM(AI456:AL456)) -> 0.01149425287 | H197: =H456 -> 0 | I197: =I456 -> 0 | J197: =N456 -> 0.2873563218 | K197: =Q456 -> 0.2873563218 | L197: 0.5977011494 | M197: =SUM($C$456:$AP$456)-L197 -> 0.4022988506 | N197: 0 | O197: 1
B198: CA06 | C198: Other CAN assets | D198: 0.01149425287 | E198: =SUM(AE479:AG479) -> 0.008620689655 | F198: =AH479 -> 0.002873563218 | G198: =MAX(O479,SUM(AI479:AL479)) -> 0.01149425287 | H198: =H479 -> 0 | I198: =I479 -> 0 | J198: =N479 -> 0.2873563218 | K198: =Q479 -> 0.2873563218 | L198: 0.5977011494 | M198: =SUM($C$479:$AP$479)-L198 -> 0.4022988506 | N198: 0 | O198: 1
B199: CA07 | C199: Other Communications Plant and Equipment | D199: 0.01149425287 | E199: =SUM(AE502:AG502) -> 0.008620689655 | F199: =AH502 -> 0.002873563218 | G199: =MAX(O502,SUM(AI502:AL502)) -> 0.01149425287 | H199: =H502 -> 0 | I199: =I502 -> 0 | J199: =N502 -> 0.2873563218 | K199: =Q502 -> 0.2873563218 | L199: 0.5977011494 | M199: =SUM($C$502:$AP$502)-L199 -> 0.4022988506 | N199: 0 | O199: 1
B200: CA08 | C200: Network Land | D200: 0.01149425287 | E200: =SUM(AE525:AG525) -> 0.008620689655 | F200: =AH525 -> 0.002873563218 | G200: =MAX(O525,SUM(AI525:AL525)) -> 0.01149425287 | H200: =H525 -> 0 | I200: =I525 -> 0 | J200: =N525 -> 0.2873563218 | K200: =Q525 -> 0.2873563218 | L200: 0.5977011494 | M200: =SUM($C$525:$AP$525)-L200 -> 0.4022988506 | N200: 0 | O200: 1
B201: CA09 | C201: Network Buildings/Support | D201: 0.01149425287 | E201: =SUM(AE548:AG548) -> 0.008620689655 | F201: =AH548 -> 0.002873563218 | G201: =MAX(O548,SUM(AI548:AL548)) -> 0.01149425287 | H201: =H548 -> 0 | I201: =I548 -> 0 | J201: =N548 -> 0.2873563218 | K201: =Q548 -> 0.2873563218 | L201: 0.5977011494 | M201: =SUM($C$548:$AP$548)-L201 -> 0.4022988506 | N201: 0 | O201: 1
B202: CA10 | C202: Indirect Capital Assets | D202: 0.1667200582 | E202: =E1276 -> 0.1250400436 | F202: 0.04168001455 | G202: 0.1667200582 | H202: 0 | I202: 0 | J202: -8.640975147e-05 | K202: -8.640975147e-05 | L202: 0.3332672969 | M202: =M1276 -> 0.6667730846 | N202: =N1276 -> -4.038151726e-05 | O202: 1
B203: CA11 | C203: Spare CAN Asset Class 11
B204: CA12 | C204: Spare CAN Asset Class 12
B205: CA13 | C205: Spare CAN Asset Class 13
B206: CA14 | C206: Spare CAN Asset Class 14
B207: CA15 | C207: Spare CAN Asset Class 15
... 1005 more rows

Sheet G. Revenue Disaggregate
A2: G. | B2: Revenue Disaggregate
C3: 1 | D3: 2 | E3: 3 | F3: 4 | G3: 5 | H3: 6 | I3: 7 | J3: 8 | K3: 9 | L3: 10 | M3: 11 | N3: 12 | O3: 13 | P3: 14 | Q3: 15 | R3: 16 | S3: 17
B4: G.0 | C4: Purpose
C5: To disaggregate the revenue requirement into individual building blocks for each declared service.
C6: All dollar values are in millions.
B8: G.1 | C8: Summary of inputs for calculations
B10: G.1.1 | C10: Operating Costs and Overheads allocated to each Asset Class
H11: Y01 | I11: Y02 | J11: Y03 | K11: Y04 | L11: Y05 | M11: Y06 | N11: Y07 | O11: Y08 | P11: Y09 | Q11: Y10 | R11: Y11 | S11: Y12
C12: Code | D12: Asset Class | H12: =VLOOKUP(H11,FYears,2,FALSE) -> 2009/2010 | I12: 2010/2011 | J12: 2011/2012 | K12: 2012/2013 | L12: 2013/2014 | M12: 2014/2015 | N12: 2015/2016 | O12: 2016/2017 | P12: 2017/2018 | Q12: 2018/2019 | R12: 2019/2020 | S12: 2020/2021 | T12: Total
C13: CAN Asset Class
C14: CA01 | D14: =VLOOKUP(C14,CAN_AC,2,FALSE) -> Ducts and pipes | H14: =VLOOKUP($C14,'3. Additions, Disposals & Opex'!$C$13:$S$54,H$3,FALSE) -> 0.515638954 | I14: =VLOOKUP($C14,'3. Additions, Disposals & Opex'!$C$13:$S$54,I$3,FALSE) -> 0.515638954 | J14: =VLOOKUP($C14,'3. Additions, Disposals & Opex'!$C$13:$S$54,J$3,FALSE) -> 0.515638954 | K14: =VLOOKUP($C14,'3. Additions, Disposals & Opex'!$C$13:$S$54,K$3,FALSE) -> 0.515638954 | L14: =VLOOKUP($C14,'3. Additions, Disposals & Opex'!$C$13:$S$54,L$3,FALSE) -> 0.515638954 | M14: =VLOOKUP($C14,'3. Additions, Disposals & Opex'!$C$13:$S$54,M$3,FALSE) -> 6.8092225 | N14: =VLOOKUP($C14,'3. Additions, Disposals & Opex'!$C$13:$S$54,N$3,FALSE) -> 42.5969205 | O14: =VLOOKUP($C14,'3. Additions, Disposals & Opex'!$C$13:$S$54,O$3,FALSE) -> 34.94036536 | P14: =VLOOKUP($C14,'3. Additions, Disposals & Opex'!$C$13:$S$54,P$3,FALSE) -> 27.19431202 | Q14: =VLOOKUP($C14,'3. Additions, Disposals & Opex'!$C$13:$S$54,Q$3,FALSE) -> 19.95539069 | R14: =VLOOKUP($C14,'3. Additions, Disposals & Opex'!$C$13:$S$54,R$3,FALSE) -> 0 | S14: =VLOOKUP($C14,'3. Additions, Disposals & Opex'!$C$13:$S$54,S$3,FALSE) -> 0 | T14: =SUM(OFFSET(H14,0,0,1,Model_period)) -> 134.0744058
C15: CA02 | D15: Copper cables | H15: =VLOOKUP($C15,'3. Additions, Disposals & Opex'!$C$13:$S$54,H$3,FALSE) -> 0.4980407272 | I15: =VLOOKUP($C15,'3. Additions, Disposals & Opex'!$C$13:$S$54,I$3,FALSE) -> 0.4980407272 | J15: =VLOOKUP($C15,'3. Additions, Disposals & Opex'!$C$13:$S$54,J$3,FALSE) -> 0.4980407272 | K15: =VLOOKUP($C15,'3. Additions, Disposals & Opex'!$C$13:$S$54,K$3,FALSE) -> 0.4980407272 | L15: =VLOOKUP($C15,'3. Additions, Disposals & Opex'!$C$13:$S$54,L$3,FALSE) -> 0.4980407272 | M15: =VLOOKUP($C15,'3. Additions, Disposals & Opex'!$C$13:$S$54,M$3,FALSE) -> 6.8092225 | N15: =VLOOKUP($C15,'3. Additions, Disposals & Opex'!$C$13:$S$54,N$3,FALSE) -> 42.5969205 | O15: =VLOOKUP($C15,'3. Additions, Disposals & Opex'!$C$13:$S$54,O$3,FALSE) -> 34.94036536 | P15: =VLOOKUP($C15,'3. Additions, Disposals & Opex'!$C$13:$S$54,P$3,FALSE) -> 27.19431202 | Q15: =VLOOKUP($C15,'3. Additions, Disposals & Opex'!$C$13:$S$54,Q$3,FALSE) -> 19.95539069 | R15: =VLOOKUP($C15,'3. Additions, Disposals & Opex'!$C$13:$S$54,R$3,FALSE) -> 0 | S15: =VLOOKUP($C15,'3. Additions, Disposals & Opex'!$C$13:$S$54,S$3,FALSE) -> 0 | T15: 133.9864147
C16: CA03 | D16: Other cables | H16: =VLOOKUP($C16,'3. Additions, Disposals & Opex'!$C$13:$S$54,H$3,FALSE) -> 0.002085015855 | I16: =VLOOKUP($C16,'3. Additions, Disposals & Opex'!$C$13:$S$54,I$3,FALSE) -> 0.002085015855 | J16: =VLOOKUP($C16,'3. Additions, Disposals & Opex'!$C$13:$S$54,J$3,FALSE) -> 0.002085015855 | K16: =VLOOKUP($C16,'3. Additions, Disposals & Opex'!$C$13:$S$54,K$3,FALSE) -> 0.002085015855 | L16: =VLOOKUP($C16,'3. Additions, Disposals & Opex'!$C$13:$S$54,L$3,FALSE) -> 0.002085015855 | M16: =VLOOKUP($C16,'3. Additions, Disposals & Opex'!$C$13:$S$54,M$3,FALSE) -> 6.8092225 | N16: =VLOOKUP($C16,'3. Additions, Disposals & Opex'!$C$13:$S$54,N$3,FALSE) -> 42.59731848 | O16: =VLOOKUP($C16,'3. Additions, Disposals & Opex'!$C$13:$S$54,O$3,FALSE) -> 34.94064131 | P16: =VLOOKUP($C16,'3. Additions, Disposals & Opex'!$C$13:$S$54,P$3,FALSE) -> 27.19448633 | Q16: =VLOOKUP($C16,'3. Additions, Disposals & Opex'!$C$13:$S$54,Q$3,FALSE) -> 19.95548284 | R16: =VLOOKUP($C16,'3. Additions, Disposals & Opex'!$C$13:$S$54,R$3,FALSE) -> 0 | S16: =VLOOKUP($C16,'3. Additions, Disposals & Opex'!$C$13:$S$54,S$3,FALSE) -> 0 | T16: 131.5075765
C17: CA04 | D17: Pair gain systems | H17: =VLOOKUP($C17,'3. Additions, Disposals & Opex'!$C$13:$S$54,H$3,FALSE) -> 0.1676905703 | I17: =VLOOKUP($C17,'3. Additions, Disposals & Opex'!$C$13:$S$54,I$3,FALSE) -> 0.1676905703 | J17: =VLOOKUP($C17,'3. Additions, Disposals & Opex'!$C$13:$S$54,J$3,FALSE) -> 0.1676905703 | K17: =VLOOKUP($C17,'3. Additions, Disposals & Opex'!$C$13:$S$54,K$3,FALSE) -> 0.1676905703 | L17: =VLOOKUP($C17,'3. Additions, Disposals & Opex'!$C$13:$S$54,L$3,FALSE) -> 0.1676905703 | M17: =VLOOKUP($C17,'3. Additions, Disposals & Opex'!$C$13:$S$54,M$3,FALSE) -> 9.337231347 | N17: =VLOOKUP($C17,'3. Additions, Disposals & Opex'!$C$13:$S$54,N$3,FALSE) -> 42.59881755 | O17: =VLOOKUP($C17,'3. Additions, Disposals & Opex'!$C$13:$S$54,O$3,FALSE) -> 34.9419632 | P17: =VLOOKUP($C17,'3. Additions, Disposals & Opex'!$C$13:$S$54,P$3,FALSE) -> 27.19559076 | Q17: =VLOOKUP($C17,'3. Additions, Disposals & Opex'!$C$13:$S$54,Q$3,FALSE) -> 19.95631976 | R17: =VLOOKUP($C17,'3. Additions, Disposals & Opex'!$C$13:$S$54,R$3,FALSE) -> 0 | S17: =VLOOKUP($C17,'3. Additions, Disposals & Opex'!$C$13:$S$54,S$3,FALSE) -> 0 | T17: 134.8683755
C18: CA05 | D18: CAN Radio Bearer Equipment | H18: =VLOOKUP($C18,'3. Additions, Disposals & Opex'!$C$13:$S$54,H$3,FALSE) -> 0.06311216585 | I18: =VLOOKUP($C18,'3. Additions, Disposals & Opex'!$C$13:$S$54,I$3,FALSE) -> 0.06311216585 | J18: =VLOOKUP($C18,'3. Additions, Disposals & Opex'!$C$13:$S$54,J$3,FALSE) -> 0.06311216585 | K18: =VLOOKUP($C18,'3. Additions, Disposals & Opex'!$C$13:$S$54,K$3,FALSE) -> 0.06311216585 | L18: =VLOOKUP($C18,'3. Additions, Disposals & Opex'!$C$13:$S$54,L$3,FALSE) -> 0.06311216585 | M18: =VLOOKUP($C18,'3. Additions, Disposals & Opex'!$C$13:$S$54,M$3,FALSE) -> 9.362263616 | N18: =VLOOKUP($C18,'3. Additions, Disposals & Opex'!$C$13:$S$54,N$3,FALSE) -> 0.005833289719 | O18: =VLOOKUP($C18,'3. Additions, Disposals & Opex'!$C$13:$S$54,O$3,FALSE) -> 0.00458934228 | P18: =VLOOKUP($C18,'3. Additions, Disposals & Opex'!$C$13:$S$54,P$3,FALSE) -> 0.003396697541 | Q18: =VLOOKUP($C18,'3. Additions, Disposals & Opex'!$C$13:$S$54,Q$3,FALSE) -> 0.002265925313 | R18: =VLOOKUP($C18,'3. Additions, Disposals & Opex'!$C$13:$S$54,R$3,FALSE) -> 0 | S18: =VLOOKUP($C18,'3. Additions, Disposals & Opex'!$C$13:$S$54,S$3,FALSE) -> 0 | T18: 9.6939097
C19: CA06 | D19: Other CAN assets | H19: =VLOOKUP($C19,'3. Additions, Disposals & Opex'!$C$13:$S$54,H$3,FALSE) -> 0.0001562917511 | I19: =VLOOKUP($C19,'3. Additions, Disposals & Opex'!$C$13:$S$54,I$3,FALSE) -> 0.0001562917511 | J19: =VLOOKUP($C19,'3. Additions, Disposals & Opex'!$C$13:$S$54,J$3,FALSE) -> 0.0001562917511 | K19: =VLOOKUP($C19,'3. Additions, Disposals & Opex'!$C$13:$S$54,K$3,FALSE) -> 0.0001562917511 | L19: =VLOOKUP($C19,'3. Additions, Disposals & Opex'!$C$13:$S$54,L$3,FALSE) -> 0.0001562917511 | M19: =VLOOKUP($C19,'3. Additions, Disposals & Opex'!$C$13:$S$54,M$3,FALSE) -> 9.337231347 | N19: =VLOOKUP($C19,'3. Additions, Disposals & Opex'!$C$13:$S$54,N$3,FALSE) -> 0.005814317335 | O19: =VLOOKUP($C19,'3. Additions, Disposals & Opex'!$C$13:$S$54,O$3,FALSE) -> 0.004573202588 | P19: =VLOOKUP($C19,'3. Additions, Disposals & Opex'!$C$13:$S$54,P$3,FALSE) -> 0.003383651804 | Q19: =VLOOKUP($C19,'3. Additions, Disposals & Opex'!$C$13:$S$54,Q$3,FALSE) -> 0.002256352149 | R19: =VLOOKUP($C19,'3. Additions, Disposals & Opex'!$C$13:$S$54,R$3,FALSE) -> 0 | S19: =VLOOKUP($C19,'3. Additions, Disposals & Opex'!$C$13:$S$54,S$3,FALSE) -> 0 | T19: 9.35404033
C20: CA07 | D20: Other Communications Plant and Equipment | H20: =VLOOKUP($C20,'3. Additions, Disposals & Opex'!$C$13:$S$54,H$3,FALSE) -> 0.001626498815 | I20: =VLOOKUP($C20,'3. Additions, Disposals & Opex'!$C$13:$S$54,I$3,FALSE) -> 0.001626498815 | J20: =VLOOKUP($C20,'3. Additions, Disposals & Opex'!$C$13:$S$54,J$3,FALSE) -> 0.001626498815 | K20: =VLOOKUP($C20,'3. Additions, Disposals & Opex'!$C$13:$S$54,K$3,FALSE) -> 0.001626498815 | L20: =VLOOKUP($C20,'3. Additions, Disposals & Opex'!$C$13:$S$54,L$3,FALSE) -> 0.001626498815 | M20: =VLOOKUP($C20,'3. Additions, Disposals & Opex'!$C$13:$S$54,M$3,FALSE) -> 6.8092225 | N20: =VLOOKUP($C20,'3. Additions, Disposals & Opex'!$C$13:$S$54,N$3,FALSE) -> 42.59731848 | O20: =VLOOKUP($C20,'3. Additions, Disposals & Opex'!$C$13:$S$54,O$3,FALSE) -> 34.94064131 | P20: =VLOOKUP($C20,'3. Additions, Disposals & Opex'!$C$13:$S$54,P$3,FALSE) -> 27.19448633 | Q20: =VLOOKUP($C20,'3. Additions, Disposals & Opex'!$C$13:$S$54,Q$3,FALSE) -> 19.95548284 | R20: =VLOOKUP($C20,'3. Additions, Disposals & Opex'!$C$13:$S$54,R$3,FALSE) -> 0 | S20: =VLOOKUP($C20,'3. Additions, Disposals & Opex'!$C$13:$S$54,S$3,FALSE) -> 0 | T20: 131.505284
C21: CA08 | D21: Network Land | H21: =VLOOKUP($C21,'3. Additions, Disposals & Opex'!$C$13:$S$54,H$3,FALSE) -> 0.005208371587 | I21: =VLOOKUP($C21,'3. Additions, Disposals & Opex'!$C$13:$S$54,I$3,FALSE) -> 0.005208371587 | J21: =VLOOKUP($C21,'3. Additions, Disposals & Opex'!$C$13:$S$54,J$3,FALSE) -> 0.005208371587 | K21: =VLOOKUP($C21,'3. Additions, Disposals & Opex'!$C$13:$S$54,K$3,FALSE) -> 0.005208371587 | L21: =VLOOKUP($C21,'3. Additions, Disposals & Opex'!$C$13:$S$54,L$3,FALSE) -> 0.005208371587 | M21: =VLOOKUP($C21,'3. Additions, Disposals & Opex'!$C$13:$S$54,M$3,FALSE) -> 6.8092225 | N21: =VLOOKUP($C21,'3. Additions, Disposals & Opex'!$C$13:$S$54,N$3,FALSE) -> 0.003121310578 | O21: =VLOOKUP($C21,'3. Additions, Disposals & Opex'!$C$13:$S$54,O$3,FALSE) -> 0.002423478422 | P21: =VLOOKUP($C21,'3. Additions, Disposals & Opex'!$C$13:$S$54,P$3,FALSE) -> 0.00175627461 | Q21: =VLOOKUP($C21,'3. Additions, Disposals & Opex'!$C$13:$S$54,Q$3,FALSE) -> 0.001142965361 | R21: =VLOOKUP($C21,'3. Additions, Disposals & Opex'!$C$13:$S$54,R$3,FALSE) -> 0 | S21: =VLOOKUP($C21,'3. Additions, Disposals & Opex'!$C$13:$S$54,S$3,FALSE) -> 0 | T21: 6.843708387
C22: CA09 | D22: Network Buildings/Support | H22: =VLOOKUP($C22,'3. Additions, Disposals & Opex'!$C$13:$S$54,H$3,FALSE) -> 0.04644140463 | I22: =VLOOKUP($C22,'3. Additions, Disposals & Opex'!$C$13:$S$54,I$3,FALSE) -> 0.04644140463 | J22: =VLOOKUP($C22,'3. Additions, Disposals & Opex'!$C$13:$S$54,J$3,FALSE) -> 0.04644140463 | K22: =VLOOKUP($C22,'3. Additions, Disposals & Opex'!$C$13:$S$54,K$3,FALSE) -> 0.04644140463 | L22: =VLOOKUP($C22,'3. Additions, Disposals & Opex'!$C$13:$S$54,L$3,FALSE) -> 0.04644140463 | M22: =VLOOKUP($C22,'3. Additions, Disposals & Opex'!$C$13:$S$54,M$3,FALSE) -> 6.85977107 | N22: =VLOOKUP($C22,'3. Additions, Disposals & Opex'!$C$13:$S$54,N$3,FALSE) -> 42.59735673 | O22: =VLOOKUP($C22,'3. Additions, Disposals & Opex'!$C$13:$S$54,O$3,FALSE) -> 34.94067375 | P22: =VLOOKUP($C22,'3. Additions, Disposals & Opex'!$C$13:$S$54,P$3,FALSE) -> 27.19451248 | Q22: =VLOOKUP($C22,'3. Additions, Disposals & Opex'!$C$13:$S$54,Q$3,FALSE) -> 19.95550198 | R22: =VLOOKUP($C22,'3. Additions, Disposals & Opex'!$C$13:$S$54,R$3,FALSE) -> 0 | S22: =VLOOKUP($C22,'3. Additions, Disposals & Opex'!$C$13:$S$54,S$3,FALSE) -> 0 | T22: 131.780023
C23: CA10 | D23: Indirect Capital Assets | H23: =VLOOKUP($C23,'3. Additions, Disposals & Opex'!$C$13:$S$54,H$3,FALSE) -> 0 | I23: =VLOOKUP($C23,'3. Additions, Disposals & Opex'!$C$13:$S$54,I$3,FALSE) -> 0 | J23: =VLOOKUP($C23,'3. Additions, Disposals & Opex'!$C$13:$S$54,J$3,FALSE) -> 0 | K23: =VLOOKUP($C23,'3. Additions, Disposals & Opex'!$C$13:$S$54,K$3,FALSE) -> 0 | L23: =VLOOKUP($C23,'3. Additions, Disposals & Opex'!$C$13:$S$54,L$3,FALSE) -> 0 | M23: =VLOOKUP($C23,'3. Additions, Disposals & Opex'!$C$13:$S$54,M$3,FALSE) -> 6.8092225 | N23: =VLOOKUP($C23,'3. Additions, Disposals & Opex'!$C$13:$S$54,N$3,FALSE) -> 0.004315244776 | O23: =VLOOKUP($C23,'3. Additions, Disposals & Opex'!$C$13:$S$54,O$3,FALSE) -> 0.003251315559 | P23: =VLOOKUP($C23,'3. Additions, Disposals & Opex'!$C$13:$S$54,P$3,FALSE) -> 0.002279221902 | Q23: =VLOOKUP($C23,'3. Additions, Disposals & Opex'!$C$13:$S$54,Q$3,FALSE) -> 0.001419432286 | R23: =VLOOKUP($C23,'3. Additions, Disposals & Opex'!$C$13:$S$54,R$3,FALSE) -> 0 | S23: =VLOOKUP($C23,'3. Additions, Disposals & Opex'!$C$13:$S$54,S$3,FALSE) -> 0 | T23: 6.820487714
C24: CA11 | D24: Spare CAN Asset Class 11 | H24: =VLOOKUP($C24,'3. Additions, Disposals & Opex'!$C$13:$S$54,H$3,FALSE) -> 0 | I24: =VLOOKUP($C24,'3. Additions, Disposals & Opex'!$C$13:$S$54,I$3,FALSE) -> 0 | J24: =VLOOKUP($C24,'3. Additions, Disposals & Opex'!$C$13:$S$54,J$3,FALSE) -> 0 | K24: =VLOOKUP($C24,'3. Additions, Disposals & Opex'!$C$13:$S$54,K$3,FALSE) -> 0 | L24: =VLOOKUP($C24,'3. Additions, Disposals & Opex'!$C$13:$S$54,L$3,FALSE) -> 0 | M24: =VLOOKUP($C24,'3. Additions, Disposals & Opex'!$C$13:$S$54,M$3,FALSE) -> 0 | N24: =VLOOKUP($C24,'3. Additions, Disposals & Opex'!$C$13:$S$54,N$3,FALSE) -> 0 | O24: =VLOOKUP($C24,'3. Additions, Disposals & Opex'!$C$13:$S$54,O$3,FALSE) -> 0 | P24: =VLOOKUP($C24,'3. Additions, Disposals & Opex'!$C$13:$S$54,P$3,FALSE) -> 0 | Q24: =VLOOKUP($C24,'3. Additions, Disposals & Opex'!$C$13:$S$54,Q$3,FALSE) -> 0 | R24: =VLOOKUP($C24,'3. Additions, Disposals & Opex'!$C$13:$S$54,R$3,FALSE) -> 0 | S24: =VLOOKUP($C24,'3. Additions, Disposals & Opex'!$C$13:$S$54,S$3,FALSE) -> 0 | T24: 0
C25: CA12 | D25: Spare CAN Asset Class 12 | H25: =VLOOKUP($C25,'3. Additions, Disposals & Opex'!$C$13:$S$54,H$3,FALSE) -> 0 | I25: =VLOOKUP($C25,'3. Additions, Disposals & Opex'!$C$13:$S$54,I$3,FALSE) -> 0 | J25: =VLOOKUP($C25,'3. Additions, Disposals & Opex'!$C$13:$S$54,J$3,FALSE) -> 0 | K25: =VLOOKUP($C25,'3. Additions, Disposals & Opex'!$C$13:$S$54,K$3,FALSE) -> 0 | L25: =VLOOKUP($C25,'3. Additions, Disposals & Opex'!$C$13:$S$54,L$3,FALSE) -> 0 | M25: =VLOOKUP($C25,'3. Additions, Disposals & Opex'!$C$13:$S$54,M$3,FALSE) -> 0 | N25: =VLOOKUP($C25,'3. Additions, Disposals & Opex'!$C$13:$S$54,N$3,FALSE) -> 0 | O25: =VLOOKUP($C25,'3. Additions, Disposals & Opex'!$C$13:$S$54,O$3,FALSE) -> 0 | P25: =VLOOKUP($C25,'3. Additions, Disposals & Opex'!$C$13:$S$54,P$3,FALSE) -> 0 | Q25: =VLOOKUP($C25,'3. Additions, Disposals & Opex'!$C$13:$S$54,Q$3,FALSE) -> 0 | R25: =VLOOKUP($C25,'3. Additions, Disposals & Opex'!$C$13:$S$54,R$3,FALSE) -> 0 | S25: =VLOOKUP($C25,'3. Additions, Disposals & Opex'!$C$13:$S$54,S$3,FALSE) -> 0 | T25: 0
C26: CA13 | D26: Spare CAN Asset Class 13 | H26: =VLOOKUP($C26,'3. Additions, Disposals & Opex'!$C$13:$S$54,H$3,FALSE) -> 0 | I26: =VLOOKUP($C26,'3. Additions, Disposals & Opex'!$C$13:$S$54,I$3,FALSE) -> 0 | J26: =VLOOKUP($C26,'3. Additions, Disposals & Opex'!$C$13:$S$54,J$3,FALSE) -> 0 | K26: =VLOOKUP($C26,'3. Additions, Disposals & Opex'!$C$13:$S$54,K$3,FALSE) -> 0 | L26: =VLOOKUP($C26,'3. Additions, Disposals & Opex'!$C$13:$S$54,L$3,FALSE) -> 0 | M26: =VLOOKUP($C26,'3. Additions, Disposals & Opex'!$C$13:$S$54,M$3,FALSE) -> 0 | N26: =VLOOKUP($C26,'3. Additions, Disposals & Opex'!$C$13:$S$54,N$3,FALSE) -> 0 | O26: =VLOOKUP($C26,'3. Additions, Disposals & Opex'!$C$13:$S$54,O$3,FALSE) -> 0 | P26: =VLOOKUP($C26,'3. Additions, Disposals & Opex'!$C$13:$S$54,P$3,FALSE) -> 0 | Q26: =VLOOKUP($C26,'3. Additions, Disposals & Opex'!$C$13:$S$54,Q$3,FALSE) -> 0 | R26: =VLOOKUP($C26,'3. Additions, Disposals & Opex'!$C$13:$S$54,R$3,FALSE) -> 0 | S26: =VLOOKUP($C26,'3. Additions, Disposals & Opex'!$C$13:$S$54,S$3,FALSE) -> 0 | T26: 0
C27: CA14 | D27: Spare CAN Asset Class 14 | H27: =VLOOKUP($C27,'3. Additions, Disposals & Opex'!$C$13:$S$54,H$3,FALSE) -> 0 | I27: =VLOOKUP($C27,'3. Additions, Disposals & Opex'!$C$13:$S$54,I$3,FALSE) -> 0 | J27: =VLOOKUP($C27,'3. Additions, Disposals & Opex'!$C$13:$S$54,J$3,FALSE) -> 0 | K27: =VLOOKUP($C27,'3. Additions, Disposals & Opex'!$C$13:$S$54,K$3,FALSE) -> 0 | L27: =VLOOKUP($C27,'3. Additions, Disposals & Opex'!$C$13:$S$54,L$3,FALSE) -> 0 | M27: =VLOOKUP($C27,'3. Additions, Disposals & Opex'!$C$13:$S$54,M$3,FALSE) -> 0 | N27: =VLOOKUP($C27,'3. Additions, Disposals & Opex'!$C$13:$S$54,N$3,FALSE) -> 0 | O27: =VLOOKUP($C27,'3. Additions, Disposals & Opex'!$C$13:$S$54,O$3,FALSE) -> 0 | P27: =VLOOKUP($C27,'3. Additions, Disposals & Opex'!$C$13:$S$54,P$3,FALSE) -> 0 | Q27: =VLOOKUP($C27,'3. Additions, Disposals & Opex'!$C$13:$S$54,Q$3,FALSE) -> 0 | R27: =VLOOKUP($C27,'3. Additions, Disposals & Opex'!$C$13:$S$54,R$3,FALSE) -> 0 | S27: =VLOOKUP($C27,'3. Additions, Disposals & Opex'!$C$13:$S$54,S$3,FALSE) -> 0 | T27: 0
C28: CA15 | D28: Spare CAN Asset Class 15 | H28: =VLOOKUP($C28,'3. Additions, Disposals & Opex'!$C$13:$S$54,H$3,FALSE) -> 0 | I28: =VLOOKUP($C28,'3. Additions, Disposals & Opex'!$C$13:$S$54,I$3,FALSE) -> 0 | J28: =VLOOKUP($C28,'3. Additions, Disposals & Opex'!$C$13:$S$54,J$3,FALSE) -> 0 | K28: =VLOOKUP($C28,'3. Additions, Disposals & Opex'!$C$13:$S$54,K$3,FALSE) -> 0 | L28: =VLOOKUP($C28,'3. Additions, Disposals & Opex'!$C$13:$S$54,L$3,FALSE) -> 0 | M28: =VLOOKUP($C28,'3. Additions, Disposals & Opex'!$C$13:$S$54,M$3,FALSE) -> 0 | N28: =VLOOKUP($C28,'3. Additions, Disposals & Opex'!$C$13:$S$54,N$3,FALSE) -> 0 | O28: =VLOOKUP($C28,'3. Additions, Disposals & Opex'!$C$13:$S$54,O$3,FALSE) -> 0 | P28: =VLOOKUP($C28,'3. Additions, Disposals & Opex'!$C$13:$S$54,P$3,FALSE) -> 0 | Q28: =VLOOKUP($C28,'3. Additions, Disposals & Opex'!$C$13:$S$54,Q$3,FALSE) -> 0 | R28: =VLOOKUP($C28,'3. Additions, Disposals & Opex'!$C$13:$S$54,R$3,FALSE) -> 0 | S28: =VLOOKUP($C28,'3. Additions, Disposals & Opex'!$C$13:$S$54,S$3,FALSE) -> 0 | T28: 0
C29: CA16 | D29: Spare CAN Asset Class 16 | H29: =VLOOKUP($C29,'3. Additions, Disposals & Opex'!$C$13:$S$54,H$3,FALSE) -> 0 | I29: =VLOOKUP($C29,'3. Additions, Disposals & Opex'!$C$13:$S$54,I$3,FALSE) -> 0 | J29: =VLOOKUP($C29,'3. Additions, Disposals & Opex'!$C$13:$S$54,J$3,FALSE) -> 0 | K29: =VLOOKUP($C29,'3. Additions, Disposals & Opex'!$C$13:$S$54,K$3,FALSE) -> 0 | L29: =VLOOKUP($C29,'3. Additions, Disposals & Opex'!$C$13:$S$54,L$3,FALSE) -> 0 | M29: =VLOOKUP($C29,'3. Additions, Disposals & Opex'!$C$13:$S$54,M$3,FALSE) -> 0 | N29: =VLOOKUP($C29,'3. Additions, Disposals & Opex'!$C$13:$S$54,N$3,FALSE) -> 0 | O29: =VLOOKUP($C29,'3. Additions, Disposals & Opex'!$C$13:$S$54,O$3,FALSE) -> 0 | P29: =VLOOKUP($C29,'3. Additions, Disposals & Opex'!$C$13:$S$54,P$3,FALSE) -> 0 | Q29: =VLOOKUP($C29,'3. Additions, Disposals & Opex'!$C$13:$S$54,Q$3,FALSE) -> 0 | R29: =VLOOKUP($C29,'3. Additions, Disposals & Opex'!$C$13:$S$54,R$3,FALSE) -> 0 | S29: =VLOOKUP($C29,'3. Additions, Disposals & Opex'!$C$13:$S$54,S$3,FALSE) -> 0 | T29: 0
C30: CA17 | D30: Spare CAN Asset Class 17 | H30: =VLOOKUP($C30,'3. Additions, Disposals & Opex'!$C$13:$S$54,H$3,FALSE) -> 0 | I30: =VLOOKUP($C30,'3. Additions, Disposals & Opex'!$C$13:$S$54,I$3,FALSE) -> 0 | J30: =VLOOKUP($C30,'3. Additions, Disposals & Opex'!$C$13:$S$54,J$3,FALSE) -> 0 | K30: =VLOOKUP($C30,'3. Additions, Disposals & Opex'!$C$13:$S$54,K$3,FALSE) -> 0 | L30: =VLOOKUP($C30,'3. Additions, Disposals & Opex'!$C$13:$S$54,L$3,FALSE) -> 0 | M30: =VLOOKUP($C30,'3. Additions, Disposals & Opex'!$C$13:$S$54,M$3,FALSE) -> 0 | N30: =VLOOKUP($C30,'3. Additions, Disposals & Opex'!$C$13:$S$54,N$3,FALSE) -> 0 | O30: =VLOOKUP($C30,'3. Additions, Disposals & Opex'!$C$13:$S$54,O$3,FALSE) -> 0 | P30: =VLOOKUP($C30,'3. Additions, Disposals & Opex'!$C$13:$S$54,P$3,FALSE) -> 0 | Q30: =VLOOKUP($C30,'3. Additions, Disposals & Opex'!$C$13:$S$54,Q$3,FALSE) -> 0 | R30: =VLOOKUP($C30,'3. Additions, Disposals & Opex'!$C$13:$S$54,R$3,FALSE) -> 0 | S30: =VLOOKUP($C30,'3. Additions, Disposals & Opex'!$C$13:$S$54,S$3,FALSE) -> 0 | T30: 0
C31: CA18 | D31: Spare CAN Asset Class 18 | H31: =VLOOKUP($C31,'3. Additions, Disposals & Opex'!$C$13:$S$54,H$3,FALSE) -> 0 | I31: =VLOOKUP($C31,'3. Additions, Disposals & Opex'!$C$13:$S$54,I$3,FALSE) -> 0 | J31: =VLOOKUP($C31,'3. Additions, Disposals & Opex'!$C$13:$S$54,J$3,FALSE) -> 0 | K31: =VLOOKUP($C31,'3. Additions, Disposals & Opex'!$C$13:$S$54,K$3,FALSE) -> 0 | L31: =VLOOKUP($C31,'3. Additions, Disposals & Opex'!$C$13:$S$54,L$3,FALSE) -> 0 | M31: =VLOOKUP($C31,'3. Additions, Disposals & Opex'!$C$13:$S$54,M$3,FALSE) -> 0 | N31: =VLOOKUP($C31,'3. Additions, Disposals & Opex'!$C$13:$S$54,N$3,FALSE) -> 0 | O31: =VLOOKUP($C31,'3. Additions, Disposals & Opex'!$C$13:$S$54,O$3,FALSE) -> 0 | P31: =VLOOKUP($C31,'3. Additions, Disposals & Opex'!$C$13:$S$54,P$3,FALSE) -> 0 | Q31: =VLOOKUP($C31,'3. Additions, Disposals & Opex'!$C$13:$S$54,Q$3,FALSE) -> 0 | R31: =VLOOKUP($C31,'3. Additions, Disposals & Opex'!$C$13:$S$54,R$3,FALSE) -> 0 | S31: =VLOOKUP($C31,'3. Additions, Disposals & Opex'!$C$13:$S$54,S$3,FALSE) -> 0 | T31: 0
C32: CA19 | D32: Spare CAN Asset Class 19 | H32: =VLOOKUP($C32,'3. Additions, Disposals & Opex'!$C$13:$S$54,H$3,FALSE) -> 0 | I32: =VLOOKUP($C32,'3. Additions, Disposals & Opex'!$C$13:$S$54,I$3,FALSE) -> 0 | J32: =VLOOKUP($C32,'3. Additions, Disposals & Opex'!$C$13:$S$54,J$3,FALSE) -> 0 | K32: =VLOOKUP($C32,'3. Additions, Disposals & Opex'!$C$13:$S$54,K$3,FALSE) -> 0 | L32: =VLOOKUP($C32,'3. Additions, Disposals & Opex'!$C$13:$S$54,L$3,FALSE) -> 0 | M32: =VLOOKUP($C32,'3. Additions, Disposals & Opex'!$C$13:$S$54,M$3,FALSE) -> 0 | N32: =VLOOKUP($C32,'3. Additions, Disposals & Opex'!$C$13:$S$54,N$3,FALSE) -> 0 | O32: =VLOOKUP($C32,'3. Additions, Disposals & Opex'!$C$13:$S$54,O$3,FALSE) -> 0 | P32: =VLOOKUP($C32,'3. Additions, Disposals & Opex'!$C$13:$S$54,P$3,FALSE) -> 0 | Q32: =VLOOKUP($C32,'3. Additions, Disposals & Opex'!$C$13:$S$54,Q$3,FALSE) -> 0 | R32: =VLOOKUP($C32,'3. Additions, Disposals & Opex'!$C$13:$S$54,R$3,FALSE) -> 0 | S32: =VLOOKUP($C32,'3. Additions, Disposals & Opex'!$C$13:$S$54,S$3,FALSE) -> 0 | T32: 0
C33: CA20 | D33: Spare CAN Asset Class 20 | H33: =VLOOKUP($C33,'3. Additions, Disposals & Opex'!$C$13:$S$54,H$3,FALSE) -> 0 | I33: =VLOOKUP($C33,'3. Additions, Disposals & Opex'!$C$13:$S$54,I$3,FALSE) -> 0 | J33: =VLOOKUP($C33,'3. Additions, Disposals & Opex'!$C$13:$S$54,J$3,FALSE) -> 0 | K33: =VLOOKUP($C33,'3. Additions, Disposals & Opex'!$C$13:$S$54,K$3,FALSE) -> 0 | L33: =VLOOKUP($C33,'3. Additions, Disposals & Opex'!$C$13:$S$54,L$3,FALSE) -> 0 | M33: =VLOOKUP($C33,'3. Additions, Disposals & Opex'!$C$13:$S$54,M$3,FALSE) -> 0 | N33: =VLOOKUP($C33,'3. Additions, Disposals & Opex'!$C$13:$S$54,N$3,FALSE) -> 0 | O33: =VLOOKUP($C33,'3. Additions, Disposals & Opex'!$C$13:$S$54,O$3,FALSE) -> 0 | P33: =VLOOKUP($C33,'3. Additions, Disposals & Opex'!$C$13:$S$54,P$3,FALSE) -> 0 | Q33: =VLOOKUP($C33,'3. Additions, Disposals & Opex'!$C$13:$S$54,Q$3,FALSE) -> 0 | R33: =VLOOKUP($C33,'3. Additions, Disposals & Opex'!$C$13:$S$54,R$3,FALSE) -> 0 | S33: =VLOOKUP($C33,'3. Additions, Disposals & Opex'!$C$13:$S$54,S$3,FALSE) -> 0 | T33: 0
D34: Total | H34: =SUM(H14:H33) -> 1.3 | I34: =SUM(I14:I33) -> 1.3 | J34: 1.3 | K34: 1.3 | L34: 1.3 | M34: 75.75183238 | N34: 255.6037364 | O34: 209.6594876 | P34: 163.1785158 | Q34: 119.7406535 | R34: 0 | S34: 0 | T34: 830.4342257
C35: Core Asset Class
C36: CO01 | D36: =VLOOKUP(C36,Core_AC,2,FALSE) -> Switching Equipment - Local | H36: =VLOOKUP($C36,'3. Additions, Disposals & Opex'!$C$13:$S$54,H$3,FALSE) -> 0.4068919708 | I36: =VLOOKUP($C36,'3. Additions, Disposals & Opex'!$C$13:$S$54,I$3,FALSE) -> 0.4068919708 | J36: =VLOOKUP($C36,'3. Additions, Disposals & Opex'!$C$13:$S$54,J$3,FALSE) -> 0.4068919708 | K36: =VLOOKUP($C36,'3. Additions, Disposals & Opex'!$C$13:$S$54,K$3,FALSE) -> 0.4068919708 | L36: =VLOOKUP($C36,'3. Additions, Disposals & Opex'!$C$13:$S$54,L$3,FALSE) -> 0.4068919708 | M36: =VLOOKUP($C36,'3. Additions, Disposals & Opex'!$C$13:$S$54,M$3,FALSE) -> 8.811499977 | N36: =VLOOKUP($C36,'3. Additions, Disposals & Opex'!$C$13:$S$54,N$3,FALSE) -> 0.006121478386 | O36: =VLOOKUP($C36,'3. Additions, Disposals & Opex'!$C$13:$S$54,O$3,FALSE) -> 0.004977323038 | P36: =VLOOKUP($C36,'3. Additions, Disposals & Opex'!$C$13:$S$54,P$3,FALSE) -> 0.003822719372 | Q36: =VLOOKUP($C36,'3. Additions, Disposals & Opex'!$C$13:$S$54,Q$3,FALSE) -> 0.002660802 | R36: =VLOOKUP($C36,'3. Additions, Disposals & Opex'!$C$13:$S$54,R$3,FALSE) -> 0 | S36: =VLOOKUP($C36,'3. Additions, Disposals & Opex'!$C$13:$S$54,S$3,FALSE) -> 0 | T36: =SUM(OFFSET(H36,0,0,1,Model_period)) -> 10.86354215
C37: CO02 | D37: Switching Equipment - Trunk | H37: =VLOOKUP($C37,'3. Additions, Disposals & Opex'!$C$13:$S$54,H$3,FALSE) -> 0.01112674703 | I37: =VLOOKUP($C37,'3. Additions, Disposals & Opex'!$C$13:$S$54,I$3,FALSE) -> 0.01112674703 | J37: =VLOOKUP($C37,'3. Additions, Disposals & Opex'!$C$13:$S$54,J$3,FALSE) -> 0.01112674703 | K37: =VLOOKUP($C37,'3. Additions, Disposals & Opex'!$C$13:$S$54,K$3,FALSE) -> 0.01112674703 | L37: =VLOOKUP($C37,'3. Additions, Disposals & Opex'!$C$13:$S$54,L$3,FALSE) -> 0.01112674703 | M37: =VLOOKUP($C37,'3. Additions, Disposals & Opex'!$C$13:$S$54,M$3,FALSE) -> 6.425830278 | N37: =VLOOKUP($C37,'3. Additions, Disposals & Opex'!$C$13:$S$54,N$3,FALSE) -> 0.003867856775 | O37: =VLOOKUP($C37,'3. Additions, Disposals & Opex'!$C$13:$S$54,O$3,FALSE) -> 0.003073338949 | P37: =VLOOKUP($C37,'3. Additions, Disposals & Opex'!$C$13:$S$54,P$3,FALSE) -> 0.00229409941 | Q37: =VLOOKUP($C37,'3. Additions, Disposals & Opex'!$C$13:$S$54,Q$3,FALSE) -> 0.001546514571 | R37: =VLOOKUP($C37,'3. Additions, Disposals & Opex'!$C$13:$S$54,R$3,FALSE) -> 0 | S37: =VLOOKUP($C37,'3. Additions, Disposals & Opex'!$C$13:$S$54,S$3,FALSE) -> 0 | T37: =SUM(OFFSET(H37,0,0,1,Model_period)) -> 6.492245823
C38: CO03 | D38: Switching Equipment - Other | H38: =VLOOKUP($C38,'3. Additions, Disposals & Opex'!$C$13:$S$54,H$3,FALSE) -> 0.001134468034 | I38: =VLOOKUP($C38,'3. Additions, Disposals & Opex'!$C$13:$S$54,I$3,FALSE) -> 0.001134468034 | J38: =VLOOKUP($C38,'3. Additions, Disposals & Opex'!$C$13:$S$54,J$3,FALSE) -> 0.001134468034 | K38: =VLOOKUP($C38,'3. Additions, Disposals & Opex'!$C$13:$S$54,K$3,FALSE) -> 0.001134468034 | L38: =VLOOKUP($C38,'3. Additions, Disposals & Opex'!$C$13:$S$54,L$3,FALSE) -> 0.001134468034 | M38: =VLOOKUP($C38,'3. Additions, Disposals & Opex'!$C$13:$S$54,M$3,FALSE) -> 6.425830278 | N38: =VLOOKUP($C38,'3. Additions, Disposals & Opex'!$C$13:$S$54,N$3,FALSE) -> 0.003867856775 | O38: =VLOOKUP($C38,'3. Additions, Disposals & Opex'!$C$13:$S$54,O$3,FALSE) -> 0.003073338949 | P38: =VLOOKUP($C38,'3. Additions, Disposals & Opex'!$C$13:$S$54,P$3,FALSE) -> 0.00229409941 | Q38: =VLOOKUP($C38,'3. Additions, Disposals & Opex'!$C$13:$S$54,Q$3,FALSE) -> 0.001546514571 | R38: =VLOOKUP($C38,'3. Additions, Disposals & Opex'!$C$13:$S$54,R$3,FALSE) -> 0 | S38: =VLOOKUP($C38,'3. Additions, Disposals & Opex'!$C$13:$S$54,S$3,FALSE) -> 0 | T38: 6.442284428
C39: CO04 | D39: Inter-exchange Cables | H39: =VLOOKUP($C39,'3. Additions, Disposals & Opex'!$C$13:$S$54,H$3,FALSE) -> 0.2622245147 | I39: =VLOOKUP($C39,'3. Additions, Disposals & Opex'!$C$13:$S$54,I$3,FALSE) -> 0.2622245147 | J39: =VLOOKUP($C39,'3. Additions, Disposals & Opex'!$C$13:$S$54,J$3,FALSE) -> 0.2622245147 | K39: =VLOOKUP($C39,'3. Additions, Disposals & Opex'!$C$13:$S$54,K$3,FALSE) -> 0.2622245147 | L39: =VLOOKUP($C39,'3. Additions, Disposals & Opex'!$C$13:$S$54,L$3,FALSE) -> 0.2622245147 | M39: =VLOOKUP($C39,'3. Additions, Disposals & Opex'!$C$13:$S$54,M$3,FALSE) -> 6.425830278 | N39: =VLOOKUP($C39,'3. Additions, Disposals & Opex'!$C$13:$S$54,N$3,FALSE) -> 0.004318616798 | O39: =VLOOKUP($C39,'3. Additions, Disposals & Opex'!$C$13:$S$54,O$3,FALSE) -> 0.003457206093 | P39: =VLOOKUP($C39,'3. Additions, Disposals & Opex'!$C$13:$S$54,P$3,FALSE) -> 0.002604743516 | Q39: =VLOOKUP($C39,'3. Additions, Disposals & Opex'!$C$13:$S$54,Q$3,FALSE) -> 0.001774758626 | R39: =VLOOKUP($C39,'3. Additions, Disposals & Opex'!$C$13:$S$54,R$3,FALSE) -> 0 | S39: =VLOOKUP($C39,'3. Additions, Disposals & Opex'!$C$13:$S$54,S$3,FALSE) -> 0 | T39: 7.749108177
C40: CO05 | D40: Transmission Equipment | H40: =VLOOKUP($C40,'3. Additions, Disposals & Opex'!$C$13:$S$54,H$3,FALSE) -> 0.30672134 | I40: =VLOOKUP($C40,'3. Additions, Disposals & Opex'!$C$13:$S$54,I$3,FALSE) -> 0.30672134 | J40: =VLOOKUP($C40,'3. Additions, Disposals & Opex'!$C$13:$S$54,J$3,FALSE) -> 0.30672134 | K40: =VLOOKUP($C40,'3. Additions, Disposals & Opex'!$C$13:$S$54,K$3,FALSE) -> 0.30672134 | L40: =VLOOKUP($C40,'3. Additions, Disposals & Opex'!$C$13:$S$54,L$3,FALSE) -> 0.30672134 | M40: =VLOOKUP($C40,'3. Additions, Disposals & Opex'!$C$13:$S$54,M$3,FALSE) -> 8.811499977 | N40: =VLOOKUP($C40,'3. Additions, Disposals & Opex'!$C$13:$S$54,N$3,FALSE) -> 0.006121478386 | O40: =VLOOKUP($C40,'3. Additions, Disposals & Opex'!$C$13:$S$54,O$3,FALSE) -> 0.004977323038 | P40: =VLOOKUP($C40,'3. Additions, Disposals & Opex'!$C$13:$S$54,P$3,FALSE) -> 0.003822719372 | Q40: =VLOOKUP($C40,'3. Additions, Disposals & Opex'!$C$13:$S$54,Q$3,FALSE) -> 0.002660802 | R40: =VLOOKUP($C40,'3. Additions, Disposals & Opex'!$C$13:$S$54,R$3,FALSE) -> 0 | S40: =VLOOKUP($C40,'3. Additions, Disposals & Opex'!$C$13:$S$54,S$3,FALSE) -> 0 | T40: 10.362689
C41: CO06 | D41: Core Radio Bearer Equipment | H41: =VLOOKUP($C41,'3. Additions, Disposals & Opex'!$C$13:$S$54,H$3,FALSE) -> 0.03925005165 | I41: =VLOOKUP($C41,'3. Additions, Disposals & Opex'!$C$13:$S$54,I$3,FALSE) -> 0.03925005165 | J41: =VLOOKUP($C41,'3. Additions, Disposals & Opex'!$C$13:$S$54,J$3,FALSE) -> 0.03925005165 | K41: =VLOOKUP($C41,'3. Additions, Disposals & Opex'!$C$13:$S$54,K$3,FALSE) -> 0.03925005165 | L41: =VLOOKUP($C41,'3. Additions, Disposals & Opex'!$C$13:$S$54,L$3,FALSE) -> 0.03925005165 | M41: =VLOOKUP($C41,'3. Additions, Disposals & Opex'!$C$13:$S$54,M$3,FALSE) -> 6.425830278 | N41: =VLOOKUP($C41,'3. Additions, Disposals & Opex'!$C$13:$S$54,N$3,FALSE) -> 0.003867856775 | O41: =VLOOKUP($C41,'3. Additions, Disposals & Opex'!$C$13:$S$54,O$3,FALSE) -> 0.003073338949 | P41: =VLOOKUP($C41,'3. Additions, Disposals & Opex'!$C$13:$S$54,P$3,FALSE) -> 0.00229409941 | Q41: =VLOOKUP($C41,'3. Additions, Disposals & Opex'!$C$13:$S$54,Q$3,FALSE) -> 0.001546514571 | R41: =VLOOKUP($C41,'3. Additions, Disposals & Opex'!$C$13:$S$54,R$3,FALSE) -> 0 | S41: =VLOOKUP($C41,'3. Additions, Disposals & Opex'!$C$13:$S$54,S$3,FALSE) -> 0 | T41: 6.632862346
C42: CO07 | D42: Other Communications Plant and Equipment | H42: =VLOOKUP($C42,'3. Additions, Disposals & Opex'!$C$13:$S$54,H$3,FALSE) -> 0.002166340551 | I42: =VLOOKUP($C42,'3. Additions, Disposals & Opex'!$C$13:$S$54,I$3,FALSE) -> 0.002166340551 | J42: =VLOOKUP($C42,'3. Additions, Disposals & Opex'!$C$13:$S$54,J$3,FALSE) -> 0.002166340551 | K42: =VLOOKUP($C42,'3. Additions, Disposals & Opex'!$C$13:$S$54,K$3,FALSE) -> 0.002166340551 | L42: =VLOOKUP($C42,'3. Additions, Disposals & Opex'!$C$13:$S$54,L$3,FALSE) -> 0.002166340551 | M42: =VLOOKUP($C42,'3. Additions, Disposals & Opex'!$C$13:$S$54,M$3,FALSE) -> 6.425830278 | N42: =VLOOKUP($C42,'3. Additions, Disposals & Opex'!$C$13:$S$54,N$3,FALSE) -> 0.004318616798 | O42: =VLOOKUP($C42,'3. Additions, Disposals & Opex'!$C$13:$S$54,O$3,FALSE) -> 0.003457206093 | P42: =VLOOKUP($C42,'3. Additions, Disposals & Opex'!$C$13:$S$54,P$3,FALSE) -> 0.002604743516 | Q42: =VLOOKUP($C42,'3. Additions, Disposals & Opex'!$C$13:$S$54,Q$3,FALSE) -> 0.001774758626 | R42: =VLOOKUP($C42,'3. Additions, Disposals & Opex'!$C$13:$S$54,R$3,FALSE) -> 0 | S42: =VLOOKUP($C42,'3. Additions, Disposals & Opex'!$C$13:$S$54,S$3,FALSE) -> 0 | T42: 6.448817306
C43: CO08 | D43: Network Land | H43: =VLOOKUP($C43,'3. Additions, Disposals & Opex'!$C$13:$S$54,H$3,FALSE) -> 0.04347977679 | I43: =VLOOKUP($C43,'3. Additions, Disposals & Opex'!$C$13:$S$54,I$3,FALSE) -> 0.04347977679 | J43: =VLOOKUP($C43,'3. Additions, Disposals & Opex'!$C$13:$S$54,J$3,FALSE) -> 0.04347977679 | K43: =VLOOKUP($C43,'3. Additions, Disposals & Opex'!$C$13:$S$54,K$3,FALSE) -> 0.04347977679 | L43: =VLOOKUP($C43,'3. Additions, Disposals & Opex'!$C$13:$S$54,L$3,FALSE) -> 0.04347977679 | M43: =VLOOKUP($C43,'3. Additions, Disposals & Opex'!$C$13:$S$54,M$3,FALSE) -> 6.425830278 | N43: =VLOOKUP($C43,'3. Additions, Disposals & Opex'!$C$13:$S$54,N$3,FALSE) -> 0.00296633673 | O43: =VLOOKUP($C43,'3. Additions, Disposals & Opex'!$C$13:$S$54,O$3,FALSE) -> 0.002305604662 | P43: =VLOOKUP($C43,'3. Additions, Disposals & Opex'!$C$13:$S$54,P$3,FALSE) -> 0.001672811199 | Q43: =VLOOKUP($C43,'3. Additions, Disposals & Opex'!$C$13:$S$54,Q$3,FALSE) -> 0.001090026462 | R43: =VLOOKUP($C43,'3. Additions, Disposals & Opex'!$C$13:$S$54,R$3,FALSE) -> 0 | S43: =VLOOKUP($C43,'3. Additions, Disposals & Opex'!$C$13:$S$54,S$3,FALSE) -> 0 | T43: 6.651263941
C44: CO09 | D44: Network Buildings/Support | H44: =VLOOKUP($C44,'3. Additions, Disposals & Opex'!$C$13:$S$54,H$3,FALSE) -> 0.2270047904 | I44: =VLOOKUP($C44,'3. Additions, Disposals & Opex'!$C$13:$S$54,I$3,FALSE) -> 0.2270047904 | J44: =VLOOKUP($C44,'3. Additions, Disposals & Opex'!$C$13:$S$54,J$3,FALSE) -> 0.2270047904 | K44: =VLOOKUP($C44,'3. Additions, Disposals & Opex'!$C$13:$S$54,K$3,FALSE) -> 0.2270047904 | L44: =VLOOKUP($C44,'3. Additions, Disposals & Opex'!$C$13:$S$54,L$3,FALSE) -> 0.2270047904 | M44: =VLOOKUP($C44,'3. Additions, Disposals & Opex'!$C$13:$S$54,M$3,FALSE) -> 6.473532719 | N44: =VLOOKUP($C44,'3. Additions, Disposals & Opex'!$C$13:$S$54,N$3,FALSE) -> 0.00435496507 | O44: =VLOOKUP($C44,'3. Additions, Disposals & Opex'!$C$13:$S$54,O$3,FALSE) -> 0.003488071738 | P44: =VLOOKUP($C44,'3. Additions, Disposals & Opex'!$C$13:$S$54,P$3,FALSE) -> 0.0026296485 | Q44: =VLOOKUP($C44,'3. Additions, Disposals & Opex'!$C$13:$S$54,Q$3,FALSE) -> 0.001793007795 | R44: =VLOOKUP($C44,'3. Additions, Disposals & Opex'!$C$13:$S$54,R$3,FALSE) -> 0 | S44: =VLOOKUP($C44,'3. Additions, Disposals & Opex'!$C$13:$S$54,S$3,FALSE) -> 0 | T44: 7.620822364
C45: CO10 | D45: Indirect Capital Assets | H45: =VLOOKUP($C45,'3. Additions, Disposals & Opex'!$C$13:$S$54,H$3,FALSE) -> 0 | I45: =VLOOKUP($C45,'3. Additions, Disposals & Opex'!$C$13:$S$54,I$3,FALSE) -> 0 | J45: =VLOOKUP($C45,'3. Additions, Disposals & Opex'!$C$13:$S$54,J$3,FALSE) -> 0 | K45: =VLOOKUP($C45,'3. Additions, Disposals & Opex'!$C$13:$S$54,K$3,FALSE) -> 0 | L45: =VLOOKUP($C45,'3. Additions, Disposals & Opex'!$C$13:$S$54,L$3,FALSE) -> 0 | M45: =VLOOKUP($C45,'3. Additions, Disposals & Opex'!$C$13:$S$54,M$3,FALSE) -> 46.51944391 | N45: =VLOOKUP($C45,'3. Additions, Disposals & Opex'!$C$13:$S$54,N$3,FALSE) -> 0.03683865895 | O45: =VLOOKUP($C45,'3. Additions, Disposals & Opex'!$C$13:$S$54,O$3,FALSE) -> 0.03278633612 | P45: =VLOOKUP($C45,'3. Additions, Disposals & Opex'!$C$13:$S$54,P$3,FALSE) -> 0.02766379367 | Q45: =VLOOKUP($C45,'3. Additions, Disposals & Opex'!$C$13:$S$54,Q$3,FALSE) -> 0.02116088041 | R45: =VLOOKUP($C45,'3. Additions, Disposals & Opex'!$C$13:$S$54,R$3,FALSE) -> 0 | S45: =VLOOKUP($C45,'3. Additions, Disposals & Opex'!$C$13:$S$54,S$3,FALSE) -> 0 | T45: 46.63789358
C46: CO11 | D46: LSS equipment | H46: =VLOOKUP($C46,'3. Additions, Disposals & Opex'!$C$13:$S$54,H$3,FALSE) -> 1 | I46: =VLOOKUP($C46,'3. Additions, Disposals & Opex'!$C$13:$S$54,I$3,FALSE) -> 1 | J46: =VLOOKUP($C46,'3. Additions, Disposals & Opex'!$C$13:$S$54,J$3,FALSE) -> 1 | K46: =VLOOKUP($C46,'3. Additions, Disposals & Opex'!$C$13:$S$54,K$3,FALSE) -> 1 | L46: =VLOOKUP($C46,'3. Additions, Disposals & Opex'!$C$13:$S$54,L$3,FALSE) -> 1 | M46: =VLOOKUP($C46,'3. Additions, Disposals & Opex'!$C$13:$S$54,M$3,FALSE) -> 3.194476336e-06 | N46: =VLOOKUP($C46,'3. Additions, Disposals & Opex'!$C$13:$S$54,N$3,FALSE) -> 2.211677382e-06 | O46: =VLOOKUP($C46,'3. Additions, Disposals & Opex'!$C$13:$S$54,O$3,FALSE) -> 2.034623534e-06 | P46: =VLOOKUP($C46,'3. Additions, Disposals & Opex'!$C$13:$S$54,P$3,FALSE) -> 1.858126006e-06 | Q46: =VLOOKUP($C46,'3. Additions, Disposals & Opex'!$C$13:$S$54,Q$3,FALSE) -> 1.691817788e-06 | R46: =VLOOKUP($C46,'3. Additions, Disposals & Opex'!$C$13:$S$54,R$3,FALSE) -> 0 | S46: =VLOOKUP($C46,'3. Additions, Disposals & Opex'!$C$13:$S$54,S$3,FALSE) -> 0 | T46: 5.000010991
C47: CO12 | D47: Data Equipment | H47: =VLOOKUP($C47,'3. Additions, Disposals & Opex'!$C$13:$S$54,H$3,FALSE) -> 1 | I47: =VLOOKUP($C47,'3. Additions, Disposals & Opex'!$C$13:$S$54,I$3,FALSE) -> 1 | J47: =VLOOKUP($C47,'3. Additions, Disposals & Opex'!$C$13:$S$54,J$3,FALSE) -> 1 | K47: =VLOOKUP($C47,'3. Additions, Disposals & Opex'!$C$13:$S$54,K$3,FALSE) -> 1 | L47: =VLOOKUP($C47,'3. Additions, Disposals & Opex'!$C$13:$S$54,L$3,FALSE) -> 1 | M47: =VLOOKUP($C47,'3. Additions, Disposals & Opex'!$C$13:$S$54,M$3,FALSE) -> 8.811499977 | N47: =VLOOKUP($C47,'3. Additions, Disposals & Opex'!$C$13:$S$54,N$3,FALSE) -> 0.005903853386 | O47: =VLOOKUP($C47,'3. Additions, Disposals & Opex'!$C$13:$S$54,O$3,FALSE) -> 0.00461329419 | P47: =VLOOKUP($C47,'3. Additions, Disposals & Opex'!$C$13:$S$54,P$3,FALSE) -> 0.003388882332 | Q47: =VLOOKUP($C47,'3. Additions, Disposals & Opex'!$C$13:$S$54,Q$3,FALSE) -> 0.002239731601 | R47: =VLOOKUP($C47,'3. Additions, Disposals & Opex'!$C$13:$S$54,R$3,FALSE) -> 0 | S47: =VLOOKUP($C47,'3. Additions, Disposals & Opex'!$C$13:$S$54,S$3,FALSE) -> 0 | T47: 13.82764574
C48: CO13 | D48: Spare Core Asset Class 13 | H48: =VLOOKUP($C48,'3. Additions, Disposals & Opex'!$C$13:$S$54,H$3,FALSE) -> 0 | I48: =VLOOKUP($C48,'3. Additions, Disposals & Opex'!$C$13:$S$54,I$3,FALSE) -> 0 | J48: =VLOOKUP($C48,'3. Additions, Disposals & Opex'!$C$13:$S$54,J$3,FALSE) -> 0 | K48: =VLOOKUP($C48,'3. Additions, Disposals & Opex'!$C$13:$S$54,K$3,FALSE) -> 0 | L48: =VLOOKUP($C48,'3. Additions, Disposals & Opex'!$C$13:$S$54,L$3,FALSE) -> 0 | M48: =VLOOKUP($C48,'3. Additions, Disposals & Opex'!$C$13:$S$54,M$3,FALSE) -> 0 | N48: =VLOOKUP($C48,'3. Additions, Disposals & Opex'!$C$13:$S$54,N$3,FALSE) -> 0 | O48: =VLOOKUP($C48,'3. Additions, Disposals & Opex'!$C$13:$S$54,O$3,FALSE) -> 0 | P48: =VLOOKUP($C48,'3. Additions, Disposals & Opex'!$C$13:$S$54,P$3,FALSE) -> 0 | Q48: =VLOOKUP($C48,'3. Additions, Disposals & Opex'!$C$13:$S$54,Q$3,FALSE) -> 0 | R48: =VLOOKUP($C48,'3. Additions, Disposals & Opex'!$C$13:$S$54,R$3,FALSE) -> 0 | S48: =VLOOKUP($C48,'3. Additions, Disposals & Opex'!$C$13:$S$54,S$3,FALSE) -> 0 | T48: 0
C49: CO14 | D49: Spare Core Asset Class 14 | H49: =VLOOKUP($C49,'3. Additions, Disposals & Opex'!$C$13:$S$54,H$3,FALSE) -> 0 | I49: =VLOOKUP($C49,'3. Additions, Disposals & Opex'!$C$13:$S$54,I$3,FALSE) -> 0 | J49: =VLOOKUP($C49,'3. Additions, Disposals & Opex'!$C$13:$S$54,J$3,FALSE) -> 0 | K49: =VLOOKUP($C49,'3. Additions, Disposals & Opex'!$C$13:$S$54,K$3,FALSE) -> 0 | L49: =VLOOKUP($C49,'3. Additions, Disposals & Opex'!$C$13:$S$54,L$3,FALSE) -> 0 | M49: =VLOOKUP($C49,'3. Additions, Disposals & Opex'!$C$13:$S$54,M$3,FALSE) -> 0 | N49: =VLOOKUP($C49,'3. Additions, Disposals & Opex'!$C$13:$S$54,N$3,FALSE) -> 0 | O49: =VLOOKUP($C49,'3. Additions, Disposals & Opex'!$C$13:$S$54,O$3,FALSE) -> 0 | P49: =VLOOKUP($C49,'3. Additions, Disposals & Opex'!$C$13:$S$54,P$3,FALSE) -> 0 | Q49: =VLOOKUP($C49,'3. Additions, Disposals & Opex'!$C$13:$S$54,Q$3,FALSE) -> 0 | R49: =VLOOKUP($C49,'3. Additions, Disposals & Opex'!$C$13:$S$54,R$3,FALSE) -> 0 | S49: =VLOOKUP($C49,'3. Additions, Disposals & Opex'!$C$13:$S$54,S$3,FALSE) -> 0 | T49: 0
C50: CO15 | D50: Spare Core Asset Class 15 | H50: =VLOOKUP($C50,'3. Additions, Disposals & Opex'!$C$13:$S$54,H$3,FALSE) -> 0 | I50: =VLOOKUP($C50,'3. Additions, Disposals & Opex'!$C$13:$S$54,I$3,FALSE) -> 0 | J50: =VLOOKUP($C50,'3. Additions, Disposals & Opex'!$C$13:$S$54,J$3,FALSE) -> 0 | K50: =VLOOKUP($C50,'3. Additions, Disposals & Opex'!$C$13:$S$54,K$3,FALSE) -> 0 | L50: =VLOOKUP($C50,'3. Additions, Disposals & Opex'!$C$13:$S$54,L$3,FALSE) -> 0 | M50: =VLOOKUP($C50,'3. Additions, Disposals & Opex'!$C$13:$S$54,M$3,FALSE) -> 0 | N50: =VLOOKUP($C50,'3. Additions, Disposals & Opex'!$C$13:$S$54,N$3,FALSE) -> 0 | O50: =VLOOKUP($C50,'3. Additions, Disposals & Opex'!$C$13:$S$54,O$3,FALSE) -> 0 | P50: =VLOOKUP($C50,'3. Additions, Disposals & Opex'!$C$13:$S$54,P$3,FALSE) -> 0 | Q50: =VLOOKUP($C50,'3. Additions, Disposals & Opex'!$C$13:$S$54,Q$3,FALSE) -> 0 | R50: =VLOOKUP($C50,'3. Additions, Disposals & Opex'!$C$13:$S$54,R$3,FALSE) -> 0 | S50: =VLOOKUP($C50,'3. Additions, Disposals & Opex'!$C$13:$S$54,S$3,FALSE) -> 0 | T50: 0
C51: CO16 | D51: Spare Core Asset Class 16 | H51: =VLOOKUP($C51,'3. Additions, Disposals & Opex'!$C$13:$S$54,H$3,FALSE) -> 0 | I51: =VLOOKUP($C51,'3. Additions, Disposals & Opex'!$C$13:$S$54,I$3,FALSE) -> 0 | J51: =VLOOKUP($C51,'3. Additions, Disposals & Opex'!$C$13:$S$54,J$3,FALSE) -> 0 | K51: =VLOOKUP($C51,'3. Additions, Disposals & Opex'!$C$13:$S$54,K$3,FALSE) -> 0 | L51: =VLOOKUP($C51,'3. Additions, Disposals & Opex'!$C$13:$S$54,L$3,FALSE) -> 0 | M51: =VLOOKUP($C51,'3. Additions, Disposals & Opex'!$C$13:$S$54,M$3,FALSE) -> 0 | N51: =VLOOKUP($C51,'3. Additions, Disposals & Opex'!$C$13:$S$54,N$3,FALSE) -> 0 | O51: =VLOOKUP($C51,'3. Additions, Disposals & Opex'!$C$13:$S$54,O$3,FALSE) -> 0 | P51: =VLOOKUP($C51,'3. Additions, Disposals & Opex'!$C$13:$S$54,P$3,FALSE) -> 0 | Q51: =VLOOKUP($C51,'3. Additions, Disposals & Opex'!$C$13:$S$54,Q$3,FALSE) -> 0 | R51: =VLOOKUP($C51,'3. Additions, Disposals & Opex'!$C$13:$S$54,R$3,FALSE) -> 0 | S51: =VLOOKUP($C51,'3. Additions, Disposals & Opex'!$C$13:$S$54,S$3,FALSE) -> 0 | T51: 0
C52: CO17 | D52: Spare Core Asset Class 17 | H52: =VLOOKUP($C52,'3. Additions, Disposals & Opex'!$C$13:$S$54,H$3,FALSE) -> 0 | I52: =VLOOKUP($C52,'3. Additions, Disposals & Opex'!$C$13:$S$54,I$3,FALSE) -> 0 | J52: =VLOOKUP($C52,'3. Additions, Disposals & Opex'!$C$13:$S$54,J$3,FALSE) -> 0 | K52: =VLOOKUP($C52,'3. Additions, Disposals & Opex'!$C$13:$S$54,K$3,FALSE) -> 0 | L52: =VLOOKUP($C52,'3. Additions, Disposals & Opex'!$C$13:$S$54,L$3,FALSE) -> 0 | M52: =VLOOKUP($C52,'3. Additions, Disposals & Opex'!$C$13:$S$54,M$3,FALSE) -> 0 | N52: =VLOOKUP($C52,'3. Additions, Disposals & Opex'!$C$13:$S$54,N$3,FALSE) -> 0 | O52: =VLOOKUP($C52,'3. Additions, Disposals & Opex'!$C$13:$S$54,O$3,FALSE) -> 0 | P52: =VLOOKUP($C52,'3. Additions, Disposals & Opex'!$C$13:$S$54,P$3,FALSE) -> 0 | Q52: =VLOOKUP($C52,'3. Additions, Disposals & Opex'!$C$13:$S$54,Q$3,FALSE) -> 0 | R52: =VLOOKUP($C52,'3. Additions, Disposals & Opex'!$C$13:$S$54,R$3,FALSE) -> 0 | S52: =VLOOKUP($C52,'3. Additions, Disposals & Opex'!$C$13:$S$54,S$3,FALSE) -> 0 | T52: 0
C53: CO18 | D53: Spare Core Asset Class 18 | H53: =VLOOKUP($C53,'3. Additions, Disposals & Opex'!$C$13:$S$54,H$3,FALSE) -> 0 | I53: =VLOOKUP($C53,'3. Additions, Disposals & Opex'!$C$13:$S$54,I$3,FALSE) -> 0 | J53: =VLOOKUP($C53,'3. Additions, Disposals & Opex'!$C$13:$S$54,J$3,FALSE) -> 0 | K53: =VLOOKUP($C53,'3. Additions, Disposals & Opex'!$C$13:$S$54,K$3,FALSE) -> 0 | L53: =VLOOKUP($C53,'3. Additions, Disposals & Opex'!$C$13:$S$54,L$3,FALSE) -> 0 | M53: =VLOOKUP($C53,'3. Additions, Disposals & Opex'!$C$13:$S$54,M$3,FALSE) -> 0 | N53: =VLOOKUP($C53,'3. Additions, Disposals & Opex'!$C$13:$S$54,N$3,FALSE) -> 0 | O53: =VLOOKUP($C53,'3. Additions, Disposals & Opex'!$C$13:$S$54,O$3,FALSE) -> 0 | P53: =VLOOKUP($C53,'3. Additions, Disposals & Opex'!$C$13:$S$54,P$3,FALSE) -> 0 | Q53: =VLOOKUP($C53,'3. Additions, Disposals & Opex'!$C$13:$S$54,Q$3,FALSE) -> 0 | R53: =VLOOKUP($C53,'3. Additions, Disposals & Opex'!$C$13:$S$54,R$3,FALSE) -> 0 | S53: =VLOOKUP($C53,'3. Additions, Disposals & Opex'!$C$13:$S$54,S$3,FALSE) -> 0 | T53: 0
C54: CO19 | D54: Spare Core Asset Class 19 | H54: =VLOOKUP($C54,'3. Additions, Disposals & Opex'!$C$13:$S$54,H$3,FALSE) -> 0 | I54: =VLOOKUP($C54,'3. Additions, Disposals & Opex'!$C$13:$S$54,I$3,FALSE) -> 0 | J54: =VLOOKUP($C54,'3. Additions, Disposals & Opex'!$C$13:$S$54,J$3,FALSE) -> 0 | K54: =VLOOKUP($C54,'3. Additions, Disposals & Opex'!$C$13:$S$54,K$3,FALSE) -> 0 | L54: =VLOOKUP($C54,'3. Additions, Disposals & Opex'!$C$13:$S$54,L$3,FALSE) -> 0 | M54: =VLOOKUP($C54,'3. Additions, Disposals & Opex'!$C$13:$S$54,M$3,FALSE) -> 0 | N54: =VLOOKUP($C54,'3. Additions, Disposals & Opex'!$C$13:$S$54,N$3,FALSE) -> 0 | O54: =VLOOKUP($C54,'3. Additions, Disposals & Opex'!$C$13:$S$54,O$3,FALSE) -> 0 | P54: =VLOOKUP($C54,'3. Additions, Disposals & Opex'!$C$13:$S$54,P$3,FALSE) -> 0 | Q54: =VLOOKUP($C54,'3. Additions, Disposals & Opex'!$C$13:$S$54,Q$3,FALSE) -> 0 | R54: =VLOOKUP($C54,'3. Additions, Disposals & Opex'!$C$13:$S$54,R$3,FALSE) -> 0 | S54: =VLOOKUP($C54,'3. Additions, Disposals & Opex'!$C$13:$S$54,S$3,FALSE) -> 0 | T54: 0
C55: CO20 | D55: Spare Core Asset Class 20 | H55: =VLOOKUP($C55,'3. Additions, Disposals & Opex'!$C$13:$S$54,H$3,FALSE) -> 0 | I55: =VLOOKUP($C55,'3. Additions, Disposals & Opex'!$C$13:$S$54,I$3,FALSE) -> 0 | J55: =VLOOKUP($C55,'3. Additions, Disposals & Opex'!$C$13:$S$54,J$3,FALSE) -> 0 | K55: =VLOOKUP($C55,'3. Additions, Disposals & Opex'!$C$13:$S$54,K$3,FALSE) -> 0 | L55: =VLOOKUP($C55,'3. Additions, Disposals & Opex'!$C$13:$S$54,L$3,FALSE) -> 0 | M55: =VLOOKUP($C55,'3. Additions, Disposals & Opex'!$C$13:$S$54,M$3,FALSE) -> 0 | N55: =VLOOKUP($C55,'3. Additions, Disposals & Opex'!$C$13:$S$54,N$3,FALSE) -> 0 | O55: =VLOOKUP($C55,'3. Additions, Disposals & Opex'!$C$13:$S$54,O$3,FALSE) -> 0 | P55: =VLOOKUP($C55,'3. Additions, Disposals & Opex'!$C$13:$S$54,P$3,FALSE) -> 0 | Q55: =VLOOKUP($C55,'3. Additions, Disposals & Opex'!$C$13:$S$54,Q$3,FALSE) -> 0 | R55: =VLOOKUP($C55,'3. Additions, Disposals & Opex'!$C$13:$S$54,R$3,FALSE) -> 0 | S55: =VLOOKUP($C55,'3. Additions, Disposals & Opex'!$C$13:$S$54,S$3,FALSE) -> 0 | T55: 0
D56: Total | H56: =SUM(H36:H55) -> 3.3 | I56: =SUM(I36:I55) -> 3.3 | J56: 3.3 | K56: 3.3 | L56: 3.3 | M56: 117.9824614 | N56: 0.08254978651 | O56: 0.06928441644 | P56: 0.05509421783 | Q56: 0.03979600304 | R56: 0 | S56: 0 | T56: 134.7291858
B59: G.1.2 | C59: Return on capital
H60: Y01 | I60: Y02 | J60: Y03 | K60: Y04 | L60: Y05 | M60: Y06 | N60: Y07 | O60: Y08 | P60: Y09 | Q60: Y10 | R60: Y11 | S60: Y12
C61: Code | D61: Asset Class | H61: =VLOOKUP(H60,FYears,2,FALSE) -> 2009/2010 | I61: 2010/2011 | J61: 2011/2012 | K61: 2012/2013 | L61: 2013/2014 | M61: 2014/2015 | N61: 2015/2016 | O61: 2016/2017 | P61: 2017/2018 | Q61: 2018/2019 | R61: 2019/2020 | S61: 2020/2021 | T61: Total
C62: CAN Asset Class
C63: CA01 | D63: =VLOOKUP(C63,CAN_AC,2,FALSE) -> Ducts and pipes | H63: =VLOOKUP($C63,'8. RAB Roll-Forward'!$C$513:$S$554,H$3,FALSE)*WACC -> 0.05841318677 | I63: =VLOOKUP($C63,'8. RAB Roll-Forward'!$C$513:$S$554,I$3,FALSE)*WACC -> 0.06021156972 | J63: =VLOOKUP($C63,'8. RAB Roll-Forward'!$C$513:$S$554,J$3,FALSE)*WACC -> 0.1187028089 | K63: =VLOOKUP($C63,'8. RAB Roll-Forward'!$C$513:$S$554,K$3,FALSE)*WACC -> 0.1753571729 | L63: =VLOOKUP($C63,'8. RAB Roll-Forward'!$C$513:$S$554,L$3,FALSE)*WACC -> 0.2302945362 | M63: =VLOOKUP($C63,'8. RAB Roll-Forward'!$C$513:$S$554,M$3,FALSE)*WACC_FY1519 -> 0.2196221277 | N63: =VLOOKUP($C63,'8. RAB Roll-Forward'!$C$513:$S$554,N$3,FALSE)*WACC_FY1519 -> 0.2129668361 | O63: =VLOOKUP($C63,'8. RAB Roll-Forward'!$C$513:$S$554,O$3,FALSE)*WACC_FY1519 -> 0.2097847563 | P63: =VLOOKUP($C63,'8. RAB Roll-Forward'!$C$513:$S$554,P$3,FALSE)*WACC_FY1519 -> 0.2029138094 | Q63: =VLOOKUP($C63,'8. RAB Roll-Forward'!$C$513:$S$554,Q$3,FALSE)*WACC_FY1519 -> 0.1960549965 | R63: =VLOOKUP($C63,'8. RAB Roll-Forward'!$C$513:$S$554,R$3,FALSE)*WACC -> 0.2443962374 | S63: =VLOOKUP($C63,'8. RAB Roll-Forward'!$C$513:$S$554,S$3,FALSE)*WACC -> 0.2319649191 | T63: =SUM(OFFSET($H63,0,0,1,Model_period)) -> 1.6843218
C64: CA02 | D64: Copper cables | H64: =VLOOKUP($C64,'8. RAB Roll-Forward'!$C$513:$S$554,H$3,FALSE)*WACC -> 0.05841318677 | I64: =VLOOKUP($C64,'8. RAB Roll-Forward'!$C$513:$S$554,I$3,FALSE)*WACC -> 0.06021156972 | J64: =VLOOKUP($C64,'8. RAB Roll-Forward'!$C$513:$S$554,J$3,FALSE)*WACC -> 0.117412561 | K64: =VLOOKUP($C64,'8. RAB Roll-Forward'!$C$513:$S$554,K$3,FALSE)*WACC -> 0.1714864291 | L64: =VLOOKUP($C64,'8. RAB Roll-Forward'!$C$513:$S$554,L$3,FALSE)*WACC -> 0.222555546 | M64: =VLOOKUP($C64,'8. RAB Roll-Forward'!$C$513:$S$554,M$3,FALSE)*WACC_FY1519 -> 0.2096331482 | N64: =VLOOKUP($C64,'8. RAB Roll-Forward'!$C$513:$S$554,N$3,FALSE)*WACC_FY1519 -> -7259.292709 | O64: =VLOOKUP($C64,'8. RAB Roll-Forward'!$C$513:$S$554,O$3,FALSE)*WACC_FY1519 -> -6927.784102 | P64: =VLOOKUP($C64,'8. RAB Roll-Forward'!$C$513:$S$554,P$3,FALSE)*WACC_FY1519 -> -15964.50035 | Q64: =VLOOKUP($C64,'8. RAB Roll-Forward'!$C$513:$S$554,Q$3,FALSE)*WACC_FY1519 -> -27773.78315 | R64: =VLOOKUP($C64,'8. RAB Roll-Forward'!$C$513:$S$554,R$3,FALSE)*WACC -> -42148.54107 | S64: =VLOOKUP($C64,'8. RAB Roll-Forward'!$C$513:$S$554,S$3,FALSE)*WACC -> 0.1804074472 | T64: -57924.5206
C65: CA03 | D65: Other cables | H65: =VLOOKUP($C65,'8. RAB Roll-Forward'!$C$513:$S$554,H$3,FALSE)*WACC -> 0.05841318677 | I65: =VLOOKUP($C65,'8. RAB Roll-Forward'!$C$513:$S$554,I$3,FALSE)*WACC -> 0.06021156972 | J65: =VLOOKUP($C65,'8. RAB Roll-Forward'!$C$513:$S$554,J$3,FALSE)*WACC -> 0.117412561 | K65: =VLOOKUP($C65,'8. RAB Roll-Forward'!$C$513:$S$554,K$3,FALSE)*WACC -> 0.1714864291 | L65: =VLOOKUP($C65,'8. RAB Roll-Forward'!$C$513:$S$554,L$3,FALSE)*WACC -> 0.222555546 | M65: =VLOOKUP($C65,'8. RAB Roll-Forward'!$C$513:$S$554,M$3,FALSE)*WACC_FY1519 -> 0.2096331482 | N65: =VLOOKUP($C65,'8. RAB Roll-Forward'!$C$513:$S$554,N$3,FALSE)*WACC_FY1519 -> 0.1979862688 | O65: =VLOOKUP($C65,'8. RAB Roll-Forward'!$C$513:$S$554,O$3,FALSE)*WACC_FY1519 -> 0.1898126336 | P65: =VLOOKUP($C65,'8. RAB Roll-Forward'!$C$513:$S$554,P$3,FALSE)*WACC_FY1519 -> 0.1779500921 | Q65: =VLOOKUP($C65,'8. RAB Roll-Forward'!$C$513:$S$554,Q$3,FALSE)*WACC_FY1519 -> 0.1660996852 | R65: =VLOOKUP($C65,'8. RAB Roll-Forward'!$C$513:$S$554,R$3,FALSE)*WACC -> 0.1992825307 | S65: =VLOOKUP($C65,'8. RAB Roll-Forward'!$C$513:$S$554,S$3,FALSE)*WACC -> 0.1804074472 | T65: 1.571561121
C66: CA04 | D66: Pair gain systems | H66: =VLOOKUP($C66,'8. RAB Roll-Forward'!$C$513:$S$554,H$3,FALSE)*WACC -> 0.05841318677 | I66: =VLOOKUP($C66,'8. RAB Roll-Forward'!$C$513:$S$554,I$3,FALSE)*WACC -> 0.06021156972 | J66: =VLOOKUP($C66,'8. RAB Roll-Forward'!$C$513:$S$554,J$3,FALSE)*WACC -> 0.1154055086 | K66: =VLOOKUP($C66,'8. RAB Roll-Forward'!$C$513:$S$554,K$3,FALSE)*WACC -> 0.1654652722 | L66: =VLOOKUP($C66,'8. RAB Roll-Forward'!$C$513:$S$554,L$3,FALSE)*WACC -> 0.2105171169 | M66: =VLOOKUP($C66,'8. RAB Roll-Forward'!$C$513:$S$554,M$3,FALSE)*WACC_FY1519 -> 0.1940947357 | N66: =VLOOKUP($C66,'8. RAB Roll-Forward'!$C$513:$S$554,N$3,FALSE)*WACC_FY1519 -> 0.1746831641 | O66: =VLOOKUP($C66,'8. RAB Roll-Forward'!$C$513:$S$554,O$3,FALSE)*WACC_FY1519 -> 0.1587448042 | P66: =VLOOKUP($C66,'8. RAB Roll-Forward'!$C$513:$S$554,P$3,FALSE)*WACC_FY1519 -> 0.1391175772 | Q66: =VLOOKUP($C66,'8. RAB Roll-Forward'!$C$513:$S$554,Q$3,FALSE)*WACC_FY1519 -> 0.1195024842 | R66: =VLOOKUP($C66,'8. RAB Roll-Forward'!$C$513:$S$554,R$3,FALSE)*WACC -> 0.1291056084 | S66: =VLOOKUP($C66,'8. RAB Roll-Forward'!$C$513:$S$554,S$3,FALSE)*WACC -> 0.1002069355 | T66: 1.39615542
C67: CA05 | D67: CAN Radio Bearer Equipment | H67: =VLOOKUP($C67,'8. RAB Roll-Forward'!$C$513:$S$554,H$3,FALSE)*WACC -> 0.05841318677 | I67: =VLOOKUP($C67,'8. RAB Roll-Forward'!$C$513:$S$554,I$3,FALSE)*WACC -> 0.06021156972 | J67: =VLOOKUP($C67,'8. RAB Roll-Forward'!$C$513:$S$554,J$3,FALSE)*WACC -> 0.1154055086 | K67: =VLOOKUP($C67,'8. RAB Roll-Forward'!$C$513:$S$554,K$3,FALSE)*WACC -> 0.1654652722 | L67: =VLOOKUP($C67,'8. RAB Roll-Forward'!$C$513:$S$554,L$3,FALSE)*WACC -> 0.2105171169 | M67: =VLOOKUP($C67,'8. RAB Roll-Forward'!$C$513:$S$554,M$3,FALSE)*WACC_FY1519 -> 0.1940947357 | N67: =VLOOKUP($C67,'8. RAB Roll-Forward'!$C$513:$S$554,N$3,FALSE)*WACC_FY1519 -> 0.1746831641 | O67: =VLOOKUP($C67,'8. RAB Roll-Forward'!$C$513:$S$554,O$3,FALSE)*WACC_FY1519 -> 0.1552713395 | P67: =VLOOKUP($C67,'8. RAB Roll-Forward'!$C$513:$S$554,P$3,FALSE)*WACC_FY1519 -> 0.1358595955 | Q67: =VLOOKUP($C67,'8. RAB Roll-Forward'!$C$513:$S$554,Q$3,FALSE)*WACC_FY1519 -> 0.1164478526 | R67: =VLOOKUP($C67,'8. RAB Roll-Forward'!$C$513:$S$554,R$3,FALSE)*WACC -> 0.1252659888 | S67: =VLOOKUP($C67,'8. RAB Roll-Forward'!$C$513:$S$554,S$3,FALSE)*WACC -> 0.1002069355 | T67: 1.386369342
C68: CA06 | D68: Other CAN assets | H68: =VLOOKUP($C68,'8. RAB Roll-Forward'!$C$513:$S$554,H$3,FALSE)*WACC -> 0.05841318677 | I68: =VLOOKUP($C68,'8. RAB Roll-Forward'!$C$513:$S$554,I$3,FALSE)*WACC -> 0.06021156972 | J68: =VLOOKUP($C68,'8. RAB Roll-Forward'!$C$513:$S$554,J$3,FALSE)*WACC -> 0.1154055086 | K68: =VLOOKUP($C68,'8. RAB Roll-Forward'!$C$513:$S$554,K$3,FALSE)*WACC -> 0.1654652722 | L68: =VLOOKUP($C68,'8. RAB Roll-Forward'!$C$513:$S$554,L$3,FALSE)*WACC -> 0.2105171169 | M68: =VLOOKUP($C68,'8. RAB Roll-Forward'!$C$513:$S$554,M$3,FALSE)*WACC_FY1519 -> 0.1940947357 | N68: =VLOOKUP($C68,'8. RAB Roll-Forward'!$C$513:$S$554,N$3,FALSE)*WACC_FY1519 -> 0.1746831641 | O68: =VLOOKUP($C68,'8. RAB Roll-Forward'!$C$513:$S$554,O$3,FALSE)*WACC_FY1519 -> 0.1552713395 | P68: =VLOOKUP($C68,'8. RAB Roll-Forward'!$C$513:$S$554,P$3,FALSE)*WACC_FY1519 -> 0.1358595955 | Q68: =VLOOKUP($C68,'8. RAB Roll-Forward'!$C$513:$S$554,Q$3,FALSE)*WACC_FY1519 -> 0.1164478526 | R68: =VLOOKUP($C68,'8. RAB Roll-Forward'!$C$513:$S$554,R$3,FALSE)*WACC -> 0.1252659888 | S68: =VLOOKUP($C68,'8. RAB Roll-Forward'!$C$513:$S$554,S$3,FALSE)*WACC -> 0.1002069355 | T68: 1.386369342
C69: CA07 | D69: Other Communications Plant and Equipment | H69: =VLOOKUP($C69,'8. RAB Roll-Forward'!$C$513:$S$554,H$3,FALSE)*WACC -> 0.05841318677 | I69: =VLOOKUP($C69,'8. RAB Roll-Forward'!$C$513:$S$554,I$3,FALSE)*WACC -> 0.06021156972 | J69: =VLOOKUP($C69,'8. RAB Roll-Forward'!$C$513:$S$554,J$3,FALSE)*WACC -> 0.06021156972 | K69: =VLOOKUP($C69,'8. RAB Roll-Forward'!$C$513:$S$554,K$3,FALSE)*WACC -> 0.06009502514 | L69: =VLOOKUP($C69,'8. RAB Roll-Forward'!$C$513:$S$554,L$3,FALSE)*WACC -> 0.06009502514 | M69: =VLOOKUP($C69,'8. RAB Roll-Forward'!$C$513:$S$554,M$3,FALSE)*WACC_FY1519 -> 0.04655204132 | N69: =VLOOKUP($C69,'8. RAB Roll-Forward'!$C$513:$S$554,N$3,FALSE)*WACC_FY1519 -> 1.588974739e-07 | O69: =VLOOKUP($C69,'8. RAB Roll-Forward'!$C$513:$S$554,O$3,FALSE)*WACC_FY1519 -> 0.003473562106 | P69: =VLOOKUP($C69,'8. RAB Roll-Forward'!$C$513:$S$554,P$3,FALSE)*WACC_FY1519 -> 0.003258058923 | Q69: =VLOOKUP($C69,'8. RAB Roll-Forward'!$C$513:$S$554,Q$3,FALSE)*WACC_FY1519 -> 0.003054690391 | R69: =VLOOKUP($C69,'8. RAB Roll-Forward'!$C$513:$S$554,R$3,FALSE)*WACC -> 0.003839672751 | S69: =VLOOKUP($C69,'8. RAB Roll-Forward'!$C$513:$S$554,S$3,FALSE)*WACC -> 0 | T69: 0.3553648881
C70: CA08 | D70: Network Land | H70: =VLOOKUP($C70,'8. RAB Roll-Forward'!$C$513:$S$554,H$3,FALSE)*WACC -> 0.05841318677 | I70: =VLOOKUP($C70,'8. RAB Roll-Forward'!$C$513:$S$554,I$3,FALSE)*WACC -> 0.05840734545 | J70: =VLOOKUP($C70,'8. RAB Roll-Forward'!$C$513:$S$554,J$3,FALSE)*WACC -> 0.05840150413 | K70: =VLOOKUP($C70,'8. RAB Roll-Forward'!$C$513:$S$554,K$3,FALSE)*WACC -> 0.05839566282 | L70: =VLOOKUP($C70,'8. RAB Roll-Forward'!$C$513:$S$554,L$3,FALSE)*WACC -> 0.0583898215 | M70: =VLOOKUP($C70,'8. RAB Roll-Forward'!$C$513:$S$554,M$3,FALSE)*WACC_FY1519 -> 0.04522659657 | N70: =VLOOKUP($C70,'8. RAB Roll-Forward'!$C$513:$S$554,N$3,FALSE)*WACC_FY1519 -> 0.04522223055 | O70: =VLOOKUP($C70,'8. RAB Roll-Forward'!$C$513:$S$554,O$3,FALSE)*WACC_FY1519 -> 0.04521770561 | P70: =VLOOKUP($C70,'8. RAB Roll-Forward'!$C$513:$S$554,P$3,FALSE)*WACC_FY1519 -> 0.04521318067 | Q70: =VLOOKUP($C70,'8. RAB Roll-Forward'!$C$513:$S$554,Q$3,FALSE)*WACC_FY1519 -> 0.04520865573 | R70: =VLOOKUP($C70,'8. RAB Roll-Forward'!$C$513:$S$554,R$3,FALSE)*WACC -> 0.05835497863 | S70: =VLOOKUP($C70,'8. RAB Roll-Forward'!$C$513:$S$554,S$3,FALSE)*WACC -> 0.05834913729 | T70: 0.5180958898
C71: CA09 | D71: Network Buildings/Support | H71: =VLOOKUP($C71,'8. RAB Roll-Forward'!$C$513:$S$554,H$3,FALSE)*WACC -> 0.05841318677 | I71: =VLOOKUP($C71,'8. RAB Roll-Forward'!$C$513:$S$554,I$3,FALSE)*WACC -> 0.06021156972 | J71: =VLOOKUP($C71,'8. RAB Roll-Forward'!$C$513:$S$554,J$3,FALSE)*WACC -> 0.06021156972 | K71: =VLOOKUP($C71,'8. RAB Roll-Forward'!$C$513:$S$554,K$3,FALSE)*WACC -> 0.06009502514 | L71: =VLOOKUP($C71,'8. RAB Roll-Forward'!$C$513:$S$554,L$3,FALSE)*WACC -> 0.06009502514 | M71: =VLOOKUP($C71,'8. RAB Roll-Forward'!$C$513:$S$554,M$3,FALSE)*WACC_FY1519 -> 0.04655204132 | N71: =VLOOKUP($C71,'8. RAB Roll-Forward'!$C$513:$S$554,N$3,FALSE)*WACC_FY1519 -> 1.588974739e-07 | O71: =VLOOKUP($C71,'8. RAB Roll-Forward'!$C$513:$S$554,O$3,FALSE)*WACC_FY1519 -> 0.003473562106 | P71: =VLOOKUP($C71,'8. RAB Roll-Forward'!$C$513:$S$554,P$3,FALSE)*WACC_FY1519 -> 0.003258058923 | Q71: =VLOOKUP($C71,'8. RAB Roll-Forward'!$C$513:$S$554,Q$3,FALSE)*WACC_FY1519 -> 0.003054690391 | R71: =VLOOKUP($C71,'8. RAB Roll-Forward'!$C$513:$S$554,R$3,FALSE)*WACC -> 0.003839672751 | S71: =VLOOKUP($C71,'8. RAB Roll-Forward'!$C$513:$S$554,S$3,FALSE)*WACC -> 0 | T71: 0.3553648881
C72: CA10 | D72: Indirect Capital Assets | H72: =VLOOKUP($C72,'8. RAB Roll-Forward'!$C$513:$S$554,H$3,FALSE)*WACC -> 0.05841318677 | I72: =VLOOKUP($C72,'8. RAB Roll-Forward'!$C$513:$S$554,I$3,FALSE)*WACC -> 0.1069421191 | J72: =VLOOKUP($C72,'8. RAB Roll-Forward'!$C$513:$S$554,J$3,FALSE)*WACC -> 0.1494498945 | K72: =VLOOKUP($C72,'8. RAB Roll-Forward'!$C$513:$S$554,K$3,FALSE)*WACC -> 0.1858199684 | L72: =VLOOKUP($C72,'8. RAB Roll-Forward'!$C$513:$S$554,L$3,FALSE)*WACC -> 0.2161805397 | M72: =VLOOKUP($C72,'8. RAB Roll-Forward'!$C$513:$S$554,M$3,FALSE)*WACC_FY1519 -> 0.1863255295 | N72: =VLOOKUP($C72,'8. RAB Roll-Forward'!$C$513:$S$554,N$3,FALSE)*WACC_FY1519 -> 0.1630316117 | O72: =VLOOKUP($C72,'8. RAB Roll-Forward'!$C$513:$S$554,O$3,FALSE)*WACC_FY1519 -> 0.1397374735 | P72: =VLOOKUP($C72,'8. RAB Roll-Forward'!$C$513:$S$554,P$3,FALSE)*WACC_FY1519 -> 0.1164433766 | Q72: =VLOOKUP($C72,'8. RAB Roll-Forward'!$C$513:$S$554,Q$3,FALSE)*WACC_FY1519 -> 0.09314928147 | R72: =VLOOKUP($C72,'8. RAB Roll-Forward'!$C$513:$S$554,R$3,FALSE)*WACC -> 0.09017755428 | S72: =VLOOKUP($C72,'8. RAB Roll-Forward'!$C$513:$S$554,S$3,FALSE)*WACC -> 0.0601066796 | T72: 1.415492981
C73: CA11 | D73: Spare CAN Asset Class 11 | H73: =VLOOKUP($C73,'8. RAB Roll-Forward'!$C$513:$S$554,H$3,FALSE)*WACC -> 0 | I73: =VLOOKUP($C73,'8. RAB Roll-Forward'!$C$513:$S$554,I$3,FALSE)*WACC -> 0 | J73: =VLOOKUP($C73,'8. RAB Roll-Forward'!$C$513:$S$554,J$3,FALSE)*WACC -> 0 | K73: =VLOOKUP($C73,'8. RAB Roll-Forward'!$C$513:$S$554,K$3,FALSE)*WACC -> 0 | L73: =VLOOKUP($C73,'8. RAB Roll-Forward'!$C$513:$S$554,L$3,FALSE)*WACC -> 0 | M73: =VLOOKUP($C73,'8. RAB Roll-Forward'!$C$513:$S$554,M$3,FALSE)*WACC_FY1519 -> 0 | N73: =VLOOKUP($C73,'8. RAB Roll-Forward'!$C$513:$S$554,N$3,FALSE)*WACC_FY1519 -> 0 | O73: =VLOOKUP($C73,'8. RAB Roll-Forward'!$C$513:$S$554,O$3,FALSE)*WACC_FY1519 -> 0 | P73: =VLOOKUP($C73,'8. RAB Roll-Forward'!$C$513:$S$554,P$3,FALSE)*WACC_FY1519 -> 0 | Q73: =VLOOKUP($C73,'8. RAB Roll-Forward'!$C$513:$S$554,Q$3,FALSE)*WACC_FY1519 -> 0 | R73: =VLOOKUP($C73,'8. RAB Roll-Forward'!$C$513:$S$554,R$3,FALSE)*WACC -> 0 | S73: =VLOOKUP($C73,'8. RAB Roll-Forward'!$C$513:$S$554,S$3,FALSE)*WACC -> 0 | T73: 0
C74: CA12 | D74: Spare CAN Asset Class 12 | H74: =VLOOKUP($C74,'8. RAB Roll-Forward'!$C$513:$S$554,H$3,FALSE)*WACC -> 0 | I74: =VLOOKUP($C74,'8. RAB Roll-Forward'!$C$513:$S$554,I$3,FALSE)*WACC -> 0 | J74: =VLOOKUP($C74,'8. RAB Roll-Forward'!$C$513:$S$554,J$3,FALSE)*WACC -> 0 | K74: =VLOOKUP($C74,'8. RAB Roll-Forward'!$C$513:$S$554,K$3,FALSE)*WACC -> 0 | L74: =VLOOKUP($C74,'8. RAB Roll-Forward'!$C$513:$S$554,L$3,FALSE)*WACC -> 0 | M74: =VLOOKUP($C74,'8. RAB Roll-Forward'!$C$513:$S$554,M$3,FALSE)*WACC_FY1519 -> 0 | N74: =VLOOKUP($C74,'8. RAB Roll-Forward'!$C$513:$S$554,N$3,FALSE)*WACC_FY1519 -> 0 | O74: =VLOOKUP($C74,'8. RAB Roll-Forward'!$C$513:$S$554,O$3,FALSE)*WACC_FY1519 -> 0 | P74: =VLOOKUP($C74,'8. RAB Roll-Forward'!$C$513:$S$554,P$3,FALSE)*WACC_FY1519 -> 0 | Q74: =VLOOKUP($C74,'8. RAB Roll-Forward'!$C$513:$S$554,Q$3,FALSE)*WACC_FY1519 -> 0 | R74: =VLOOKUP($C74,'8. RAB Roll-Forward'!$C$513:$S$554,R$3,FALSE)*WACC -> 0 | S74: =VLOOKUP($C74,'8. RAB Roll-Forward'!$C$513:$S$554,S$3,FALSE)*WACC -> 0 | T74: 0
C75: CA13 | D75: Spare CAN Asset Class 13 | H75: =VLOOKUP($C75,'8. RAB Roll-Forward'!$C$513:$S$554,H$3,FALSE)*WACC -> 0 | I75: =VLOOKUP($C75,'8. RAB Roll-Forward'!$C$513:$S$554,I$3,FALSE)*WACC -> 0 | J75: =VLOOKUP($C75,'8. RAB Roll-Forward'!$C$513:$S$554,J$3,FALSE)*WACC -> 0 | K75: =VLOOKUP($C75,'8. RAB Roll-Forward'!$C$513:$S$554,K$3,FALSE)*WACC -> 0 | L75: =VLOOKUP($C75,'8. RAB Roll-Forward'!$C$513:$S$554,L$3,FALSE)*WACC -> 0 | M75: =VLOOKUP($C75,'8. RAB Roll-Forward'!$C$513:$S$554,M$3,FALSE)*WACC_FY1519 -> 0 | N75: =VLOOKUP($C75,'8. RAB Roll-Forward'!$C$513:$S$554,N$3,FALSE)*WACC_FY1519 -> 0 | O75: =VLOOKUP($C75,'8. RAB Roll-Forward'!$C$513:$S$554,O$3,FALSE)*WACC_FY1519 -> 0 | P75: =VLOOKUP($C75,'8. RAB Roll-Forward'!$C$513:$S$554,P$3,FALSE)*WACC_FY1519 -> 0 | Q75: =VLOOKUP($C75,'8. RAB Roll-Forward'!$C$513:$S$554,Q$3,FALSE)*WACC_FY1519 -> 0 | R75: =VLOOKUP($C75,'8. RAB Roll-Forward'!$C$513:$S$554,R$3,FALSE)*WACC -> 0 | S75: =VLOOKUP($C75,'8. RAB Roll-Forward'!$C$513:$S$554,S$3,FALSE)*WACC -> 0 | T75: 0
C76: CA14 | D76: Spare CAN Asset Class 14 | H76: =VLOOKUP($C76,'8. RAB Roll-Forward'!$C$513:$S$554,H$3,FALSE)*WACC -> 0 | I76: =VLOOKUP($C76,'8. RAB Roll-Forward'!$C$513:$S$554,I$3,FALSE)*WACC -> 0 | J76: =VLOOKUP($C76,'8. RAB Roll-Forward'!$C$513:$S$554,J$3,FALSE)*WACC -> 0 | K76: =VLOOKUP($C76,'8. RAB Roll-Forward'!$C$513:$S$554,K$3,FALSE)*WACC -> 0 | L76: =VLOOKUP($C76,'8. RAB Roll-Forward'!$C$513:$S$554,L$3,FALSE)*WACC -> 0 | M76: =VLOOKUP($C76,'8. RAB Roll-Forward'!$C$513:$S$554,M$3,FALSE)*WACC_FY1519 -> 0 | N76: =VLOOKUP($C76,'8. RAB Roll-Forward'!$C$513:$S$554,N$3,FALSE)*WACC_FY1519 -> 0 | O76: =VLOOKUP($C76,'8. RAB Roll-Forward'!$C$513:$S$554,O$3,FALSE)*WACC_FY1519 -> 0 | P76: =VLOOKUP($C76,'8. RAB Roll-Forward'!$C$513:$S$554,P$3,FALSE)*WACC_FY1519 -> 0 | Q76: =VLOOKUP($C76,'8. RAB Roll-Forward'!$C$513:$S$554,Q$3,FALSE)*WACC_FY1519 -> 0 | R76: =VLOOKUP($C76,'8. RAB Roll-Forward'!$C$513:$S$554,R$3,FALSE)*WACC -> 0 | S76: =VLOOKUP($C76,'8. RAB Roll-Forward'!$C$513:$S$554,S$3,FALSE)*WACC -> 0 | T76: 0
C77: CA15 | D77: Spare CAN Asset Class 15 | H77: =VLOOKUP($C77,'8. RAB Roll-Forward'!$C$513:$S$554,H$3,FALSE)*WACC -> 0 | I77: =VLOOKUP($C77,'8. RAB Roll-Forward'!$C$513:$S$554,I$3,FALSE)*WACC -> 0 | J77: =VLOOKUP($C77,'8. RAB Roll-Forward'!$C$513:$S$554,J$3,FALSE)*WACC -> 0 | K77: =VLOOKUP($C77,'8. RAB Roll-Forward'!$C$513:$S$554,K$3,FALSE)*WACC -> 0 | L77: =VLOOKUP($C77,'8. RAB Roll-Forward'!$C$513:$S$554,L$3,FALSE)*WACC -> 0 | M77: =VLOOKUP($C77,'8. RAB Roll-Forward'!$C$513:$S$554,M$3,FALSE)*WACC_FY1519 -> 0 | N77: =VLOOKUP($C77,'8. RAB Roll-Forward'!$C$513:$S$554,N$3,FALSE)*WACC_FY1519 -> 0 | O77: =VLOOKUP($C77,'8. RAB Roll-Forward'!$C$513:$S$554,O$3,FALSE)*WACC_FY1519 -> 0 | P77: =VLOOKUP($C77,'8. RAB Roll-Forward'!$C$513:$S$554,P$3,FALSE)*WACC_FY1519 -> 0 | Q77: =VLOOKUP($C77,'8. RAB Roll-Forward'!$C$513:$S$554,Q$3,FALSE)*WACC_FY1519 -> 0 | R77: =VLOOKUP($C77,'8. RAB Roll-Forward'!$C$513:$S$554,R$3,FALSE)*WACC -> 0 | S77: =VLOOKUP($C77,'8. RAB Roll-Forward'!$C$513:$S$554,S$3,FALSE)*WACC -> 0 | T77: 0
C78: CA16 | D78: Spare CAN Asset Class 16 | H78: =VLOOKUP($C78,'8. RAB Roll-Forward'!$C$513:$S$554,H$3,FALSE)*WACC -> 0 | I78: =VLOOKUP($C78,'8. RAB Roll-Forward'!$C$513:$S$554,I$3,FALSE)*WACC -> 0 | J78: =VLOOKUP($C78,'8. RAB Roll-Forward'!$C$513:$S$554,J$3,FALSE)*WACC -> 0 | K78: =VLOOKUP($C78,'8. RAB Roll-Forward'!$C$513:$S$554,K$3,FALSE)*WACC -> 0 | L78: =VLOOKUP($C78,'8. RAB Roll-Forward'!$C$513:$S$554,L$3,FALSE)*WACC -> 0 | M78: =VLOOKUP($C78,'8. RAB Roll-Forward'!$C$513:$S$554,M$3,FALSE)*WACC_FY1519 -> 0 | N78: =VLOOKUP($C78,'8. RAB Roll-Forward'!$C$513:$S$554,N$3,FALSE)*WACC_FY1519 -> 0 | O78: =VLOOKUP($C78,'8. RAB Roll-Forward'!$C$513:$S$554,O$3,FALSE)*WACC_FY1519 -> 0 | P78: =VLOOKUP($C78,'8. RAB Roll-Forward'!$C$513:$S$554,P$3,FALSE)*WACC_FY1519 -> 0 | Q78: =VLOOKUP($C78,'8. RAB Roll-Forward'!$C$513:$S$554,Q$3,FALSE)*WACC_FY1519 -> 0 | R78: =VLOOKUP($C78,'8. RAB Roll-Forward'!$C$513:$S$554,R$3,FALSE)*WACC -> 0 | S78: =VLOOKUP($C78,'8. RAB Roll-Forward'!$C$513:$S$554,S$3,FALSE)*WACC -> 0 | T78: 0
C79: CA17 | D79: Spare CAN Asset Class 17 | H79: =VLOOKUP($C79,'8. RAB Roll-Forward'!$C$513:$S$554,H$3,FALSE)*WACC -> 0 | I79: =VLOOKUP($C79,'8. RAB Roll-Forward'!$C$513:$S$554,I$3,FALSE)*WACC -> 0 | J79: =VLOOKUP($C79,'8. RAB Roll-Forward'!$C$513:$S$554,J$3,FALSE)*WACC -> 0 | K79: =VLOOKUP($C79,'8. RAB Roll-Forward'!$C$513:$S$554,K$3,FALSE)*WACC -> 0 | L79: =VLOOKUP($C79,'8. RAB Roll-Forward'!$C$513:$S$554,L$3,FALSE)*WACC -> 0 | M79: =VLOOKUP($C79,'8. RAB Roll-Forward'!$C$513:$S$554,M$3,FALSE)*WACC_FY1519 -> 0 | N79: =VLOOKUP($C79,'8. RAB Roll-Forward'!$C$513:$S$554,N$3,FALSE)*WACC_FY1519 -> 0 | O79: =VLOOKUP($C79,'8. RAB Roll-Forward'!$C$513:$S$554,O$3,FALSE)*WACC_FY1519 -> 0 | P79: =VLOOKUP($C79,'8. RAB Roll-Forward'!$C$513:$S$554,P$3,FALSE)*WACC_FY1519 -> 0 | Q79: =VLOOKUP($C79,'8. RAB Roll-Forward'!$C$513:$S$554,Q$3,FALSE)*WACC_FY1519 -> 0 | R79: =VLOOKUP($C79,'8. RAB Roll-Forward'!$C$513:$S$554,R$3,FALSE)*WACC -> 0 | S79: =VLOOKUP($C79,'8. RAB Roll-Forward'!$C$513:$S$554,S$3,FALSE)*WACC -> 0 | T79: 0
C80: CA18 | D80: Spare CAN Asset Class 18 | H80: =VLOOKUP($C80,'8. RAB Roll-Forward'!$C$513:$S$554,H$3,FALSE)*WACC -> 0 | I80: =VLOOKUP($C80,'8. RAB Roll-Forward'!$C$513:$S$554,I$3,FALSE)*WACC -> 0 | J80: =VLOOKUP($C80,'8. RAB Roll-Forward'!$C$513:$S$554,J$3,FALSE)*WACC -> 0 | K80: =VLOOKUP($C80,'8. RAB Roll-Forward'!$C$513:$S$554,K$3,FALSE)*WACC -> 0 | L80: =VLOOKUP($C80,'8. RAB Roll-Forward'!$C$513:$S$554,L$3,FALSE)*WACC -> 0 | M80: =VLOOKUP($C80,'8. RAB Roll-Forward'!$C$513:$S$554,M$3,FALSE)*WACC_FY1519 -> 0 | N80: =VLOOKUP($C80,'8. RAB Roll-Forward'!$C$513:$S$554,N$3,FALSE)*WACC_FY1519 -> 0 | O80: =VLOOKUP($C80,'8. RAB Roll-Forward'!$C$513:$S$554,O$3,FALSE)*WACC_FY1519 -> 0 | P80: =VLOOKUP($C80,'8. RAB Roll-Forward'!$C$513:$S$554,P$3,FALSE)*WACC_FY1519 -> 0 | Q80: =VLOOKUP($C80,'8. RAB Roll-Forward'!$C$513:$S$554,Q$3,FALSE)*WACC_FY1519 -> 0 | R80: =VLOOKUP($C80,'8. RAB Roll-Forward'!$C$513:$S$554,R$3,FALSE)*WACC -> 0 | S80: =VLOOKUP($C80,'8. RAB Roll-Forward'!$C$513:$S$554,S$3,FALSE)*WACC -> 0 | T80: 0
C81: CA19 | D81: Spare CAN Asset Class 19 | H81: =VLOOKUP($C81,'8. RAB Roll-Forward'!$C$513:$S$554,H$3,FALSE)*WACC -> 0 | I81: =VLOOKUP($C81,'8. RAB Roll-Forward'!$C$513:$S$554,I$3,FALSE)*WACC -> 0 | J81: =VLOOKUP($C81,'8. RAB Roll-Forward'!$C$513:$S$554,J$3,FALSE)*WACC -> 0 | K81: =VLOOKUP($C81,'8. RAB Roll-Forward'!$C$513:$S$554,K$3,FALSE)*WACC -> 0 | L81: =VLOOKUP($C81,'8. RAB Roll-Forward'!$C$513:$S$554,L$3,FALSE)*WACC -> 0 | M81: =VLOOKUP($C81,'8. RAB Roll-Forward'!$C$513:$S$554,M$3,FALSE)*WACC_FY1519 -> 0 | N81: =VLOOKUP($C81,'8. RAB Roll-Forward'!$C$513:$S$554,N$3,FALSE)*WACC_FY1519 -> 0 | O81: =VLOOKUP($C81,'8. RAB Roll-Forward'!$C$513:$S$554,O$3,FALSE)*WACC_FY1519 -> 0 | P81: =VLOOKUP($C81,'8. RAB Roll-Forward'!$C$513:$S$554,P$3,FALSE)*WACC_FY1519 -> 0 | Q81: =VLOOKUP($C81,'8. RAB Roll-Forward'!$C$513:$S$554,Q$3,FALSE)*WACC_FY1519 -> 0 | R81: =VLOOKUP($C81,'8. RAB Roll-Forward'!$C$513:$S$554,R$3,FALSE)*WACC -> 0 | S81: =VLOOKUP($C81,'8. RAB Roll-Forward'!$C$513:$S$554,S$3,FALSE)*WACC -> 0 | T81: 0
C82: CA20 | D82: Spare CAN Asset Class 20 | H82: =VLOOKUP($C82,'8. RAB Roll-Forward'!$C$513:$S$554,H$3,FALSE)*WACC -> 0 | I82: =VLOOKUP($C82,'8. RAB Roll-Forward'!$C$513:$S$554,I$3,FALSE)*WACC -> 0 | J82: =VLOOKUP($C82,'8. RAB Roll-Forward'!$C$513:$S$554,J$3,FALSE)*WACC -> 0 | K82: =VLOOKUP($C82,'8. RAB Roll-Forward'!$C$513:$S$554,K$3,FALSE)*WACC -> 0 | L82: =VLOOKUP($C82,'8. RAB Roll-Forward'!$C$513:$S$554,L$3,FALSE)*WACC -> 0 | M82: =VLOOKUP($C82,'8. RAB Roll-Forward'!$C$513:$S$554,M$3,FALSE)*WACC_FY1519 -> 0 | N82: =VLOOKUP($C82,'8. RAB Roll-Forward'!$C$513:$S$554,N$3,FALSE)*WACC_FY1519 -> 0 | O82: =VLOOKUP($C82,'8. RAB Roll-Forward'!$C$513:$S$554,O$3,FALSE)*WACC_FY1519 -> 0 | P82: =VLOOKUP($C82,'8. RAB Roll-Forward'!$C$513:$S$554,P$3,FALSE)*WACC_FY1519 -> 0 | Q82: =VLOOKUP($C82,'8. RAB Roll-Forward'!$C$513:$S$554,Q$3,FALSE)*WACC_FY1519 -> 0 | R82: =VLOOKUP($C82,'8. RAB Roll-Forward'!$C$513:$S$554,R$3,FALSE)*WACC -> 0 | S82: =VLOOKUP($C82,'8. RAB Roll-Forward'!$C$513:$S$554,S$3,FALSE)*WACC -> 0 | T82: 0
D83: Total | H83: =SUM(H63:H82) -> 0.5841318677 | I83: =SUM(I63:I82) -> 0.6470420224 | J83: 1.028018995 | K83: 1.379131529 | L83: 1.70171739 | M83: 1.54582884 | N83: -7258.149452 | O83: -6926.723315 | P83: -15963.54048 | Q83: -27772.92413 | R83: -42147.56154 | S83: 1.011856437 | T83: -57914.45151
C84: Core Asset Class
C85: CO01 | D85: =VLOOKUP(C85,Core_AC,2,FALSE) -> Switching Equipment - Local | H85: =VLOOKUP($C85,'8. RAB Roll-Forward'!$C$513:$S$554,H$3,FALSE)*WACC -> 0.05841318677 | I85: =VLOOKUP($C85,'8. RAB Roll-Forward'!$C$513:$S$554,I$3,FALSE)*WACC -> 0.06021156972 | J85: =VLOOKUP($C85,'8. RAB Roll-Forward'!$C$513:$S$554,J$3,FALSE)*WACC -> 0.1181930813 | K85: =VLOOKUP($C85,'8. RAB Roll-Forward'!$C$513:$S$554,K$3,FALSE)*WACC -> 0.1738279902 | L85: =VLOOKUP($C85,'8. RAB Roll-Forward'!$C$513:$S$554,L$3,FALSE)*WACC -> 0.2272371574 | M85: =VLOOKUP($C85,'8. RAB Roll-Forward'!$C$513:$S$554,M$3,FALSE)*WACC_FY1519 -> 0.2156758642 | N85: =VLOOKUP($C85,'8. RAB Roll-Forward'!$C$513:$S$554,N$3,FALSE)*WACC_FY1519 -> 0.2070485873 | O85: =VLOOKUP($C85,'8. RAB Roll-Forward'!$C$513:$S$554,O$3,FALSE)*WACC_FY1519 -> 0.1984211086 | P85: =VLOOKUP($C85,'8. RAB Roll-Forward'!$C$513:$S$554,P$3,FALSE)*WACC_FY1519 -> 0.1897936696 | Q85: =VLOOKUP($C85,'8. RAB Roll-Forward'!$C$513:$S$554,Q$3,FALSE)*WACC_FY1519 -> 0.1811662308 | R85: =VLOOKUP($C85,'8. RAB Roll-Forward'!$C$513:$S$554,R$3,FALSE)*WACC -> 0.2227340146 | S85: =VLOOKUP($C85,'8. RAB Roll-Forward'!$C$513:$S$554,S$3,FALSE)*WACC -> 0.2115965351 | T85: =SUM(OFFSET($H85,0,0,1,Model_period)) -> 1.629988446
C86: CO02 | D86: Switching Equipment - Trunk | H86: =VLOOKUP($C86,'8. RAB Roll-Forward'!$C$513:$S$554,H$3,FALSE)*WACC -> 0.05841318677 | I86: =VLOOKUP($C86,'8. RAB Roll-Forward'!$C$513:$S$554,I$3,FALSE)*WACC -> 0.06021156972 | J86: =VLOOKUP($C86,'8. RAB Roll-Forward'!$C$513:$S$554,J$3,FALSE)*WACC -> 0.1180146767 | K86: =VLOOKUP($C86,'8. RAB Roll-Forward'!$C$513:$S$554,K$3,FALSE)*WACC -> 0.1732927762 | L86: =VLOOKUP($C86,'8. RAB Roll-Forward'!$C$513:$S$554,L$3,FALSE)*WACC -> 0.2261670748 | M86: =VLOOKUP($C86,'8. RAB Roll-Forward'!$C$513:$S$554,M$3,FALSE)*WACC_FY1519 -> 0.214294672 | N86: =VLOOKUP($C86,'8. RAB Roll-Forward'!$C$513:$S$554,N$3,FALSE)*WACC_FY1519 -> 0.2049772002 | O86: =VLOOKUP($C86,'8. RAB Roll-Forward'!$C$513:$S$554,O$3,FALSE)*WACC_FY1519 -> 0.195659488 | P86: =VLOOKUP($C86,'8. RAB Roll-Forward'!$C$513:$S$554,P$3,FALSE)*WACC_FY1519 -> 0.1863418552 | Q86: =VLOOKUP($C86,'8. RAB Roll-Forward'!$C$513:$S$554,Q$3,FALSE)*WACC_FY1519 -> 0.1770242225 | R86: =VLOOKUP($C86,'8. RAB Roll-Forward'!$C$513:$S$554,R$3,FALSE)*WACC -> 0.2164960214 | S86: =VLOOKUP($C86,'8. RAB Roll-Forward'!$C$513:$S$554,S$3,FALSE)*WACC -> 0.2044676008 | T86: 1.614396722
C87: CO03 | D87: Switching Equipment - Other | H87: =VLOOKUP($C87,'8. RAB Roll-Forward'!$C$513:$S$554,H$3,FALSE)*WACC -> 0.05841318677 | I87: =VLOOKUP($C87,'8. RAB Roll-Forward'!$C$513:$S$554,I$3,FALSE)*WACC -> 0.06021156972 | J87: =VLOOKUP($C87,'8. RAB Roll-Forward'!$C$513:$S$554,J$3,FALSE)*WACC -> 0.117412561 | K87: =VLOOKUP($C87,'8. RAB Roll-Forward'!$C$513:$S$554,K$3,FALSE)*WACC -> 0.1714864291 | L87: =VLOOKUP($C87,'8. RAB Roll-Forward'!$C$513:$S$554,L$3,FALSE)*WACC -> 0.222555546 | M87: =VLOOKUP($C87,'8. RAB Roll-Forward'!$C$513:$S$554,M$3,FALSE)*WACC_FY1519 -> 0.2096331482 | N87: =VLOOKUP($C87,'8. RAB Roll-Forward'!$C$513:$S$554,N$3,FALSE)*WACC_FY1519 -> 0.1979862688 | O87: =VLOOKUP($C87,'8. RAB Roll-Forward'!$C$513:$S$554,O$3,FALSE)*WACC_FY1519 -> 0.1863391489 | P87: =VLOOKUP($C87,'8. RAB Roll-Forward'!$C$513:$S$554,P$3,FALSE)*WACC_FY1519 -> 0.1746921084 | Q87: =VLOOKUP($C87,'8. RAB Roll-Forward'!$C$513:$S$554,Q$3,FALSE)*WACC_FY1519 -> 0.1630450681 | R87: =VLOOKUP($C87,'8. RAB Roll-Forward'!$C$513:$S$554,R$3,FALSE)*WACC -> 0.1954429501 | S87: =VLOOKUP($C87,'8. RAB Roll-Forward'!$C$513:$S$554,S$3,FALSE)*WACC -> 0.1804074472 | T87: 1.561775035
C88: CO04 | D88: Inter-exchange Cables | H88: =VLOOKUP($C88,'8. RAB Roll-Forward'!$C$513:$S$554,H$3,FALSE)*WACC -> 0.05841318677 | I88: =VLOOKUP($C88,'8. RAB Roll-Forward'!$C$513:$S$554,I$3,FALSE)*WACC -> 0.06021156972 | J88: =VLOOKUP($C88,'8. RAB Roll-Forward'!$C$513:$S$554,J$3,FALSE)*WACC -> 0.1188386245 | K88: =VLOOKUP($C88,'8. RAB Roll-Forward'!$C$513:$S$554,K$3,FALSE)*WACC -> 0.1757646196 | L88: =VLOOKUP($C88,'8. RAB Roll-Forward'!$C$513:$S$554,L$3,FALSE)*WACC -> 0.2311091667 | M88: =VLOOKUP($C88,'8. RAB Roll-Forward'!$C$513:$S$554,M$3,FALSE)*WACC_FY1519 -> 0.2206735992 | N88: =VLOOKUP($C88,'8. RAB Roll-Forward'!$C$513:$S$554,N$3,FALSE)*WACC_FY1519 -> 0.2145437379 | O88: =VLOOKUP($C88,'8. RAB Roll-Forward'!$C$513:$S$554,O$3,FALSE)*WACC_FY1519 -> 0.2084136749 | P88: =VLOOKUP($C88,'8. RAB Roll-Forward'!$C$513:$S$554,P$3,FALSE)*WACC_FY1519 -> 0.2022836515 | Q88: =VLOOKUP($C88,'8. RAB Roll-Forward'!$C$513:$S$554,Q$3,FALSE)*WACC_FY1519 -> 0.1961536284 | R88: =VLOOKUP($C88,'8. RAB Roll-Forward'!$C$513:$S$554,R$3,FALSE)*WACC -> 0.2453055336 | S88: =VLOOKUP($C88,'8. RAB Roll-Forward'!$C$513:$S$554,S$3,FALSE)*WACC -> 0.2373920214 | T88: 1.686405459
C89: CO05 | D89: Transmission Equipment | H89: =VLOOKUP($C89,'8. RAB Roll-Forward'!$C$513:$S$554,H$3,FALSE)*WACC -> 0.05841318677 | I89: =VLOOKUP($C89,'8. RAB Roll-Forward'!$C$513:$S$554,I$3,FALSE)*WACC -> 0.06021156972 | J89: =VLOOKUP($C89,'8. RAB Roll-Forward'!$C$513:$S$554,J$3,FALSE)*WACC -> 0.06021156972 | K89: =VLOOKUP($C89,'8. RAB Roll-Forward'!$C$513:$S$554,K$3,FALSE)*WACC -> 0.06009502514 | L89: =VLOOKUP($C89,'8. RAB Roll-Forward'!$C$513:$S$554,L$3,FALSE)*WACC -> 0.06009502514 | M89: =VLOOKUP($C89,'8. RAB Roll-Forward'!$C$513:$S$554,M$3,FALSE)*WACC_FY1519 -> 0.04655204132 | N89: =VLOOKUP($C89,'8. RAB Roll-Forward'!$C$513:$S$554,N$3,FALSE)*WACC_FY1519 -> 1.588974739e-07 | O89: =VLOOKUP($C89,'8. RAB Roll-Forward'!$C$513:$S$554,O$3,FALSE)*WACC_FY1519 -> 1.160400247e-07 | P89: =VLOOKUP($C89,'8. RAB Roll-Forward'!$C$513:$S$554,P$3,FALSE)*WACC_FY1519 -> 1.128794015e-07 | Q89: =VLOOKUP($C89,'8. RAB Roll-Forward'!$C$513:$S$554,Q$3,FALSE)*WACC_FY1519 -> 1.099117833e-07 | R89: =VLOOKUP($C89,'8. RAB Roll-Forward'!$C$513:$S$554,R$3,FALSE)*WACC -> 1.381572253e-07 | S89: =VLOOKUP($C89,'8. RAB Roll-Forward'!$C$513:$S$554,S$3,FALSE)*WACC -> 0 | T89: 0.3455789155
C90: CO06 | D90: Core Radio Bearer Equipment | H90: =VLOOKUP($C90,'8. RAB Roll-Forward'!$C$513:$S$554,H$3,FALSE)*WACC -> 0.05841318677 | I90: =VLOOKUP($C90,'8. RAB Roll-Forward'!$C$513:$S$554,I$3,FALSE)*WACC -> 0.06021156972 | J90: =VLOOKUP($C90,'8. RAB Roll-Forward'!$C$513:$S$554,J$3,FALSE)*WACC -> 0.1166599163 | K90: =VLOOKUP($C90,'8. RAB Roll-Forward'!$C$513:$S$554,K$3,FALSE)*WACC -> 0.1692284953 | L90: =VLOOKUP($C90,'8. RAB Roll-Forward'!$C$513:$S$554,L$3,FALSE)*WACC -> 0.2180411351 | M90: =VLOOKUP($C90,'8. RAB Roll-Forward'!$C$513:$S$554,M$3,FALSE)*WACC_FY1519 -> 0.2038062435 | N90: =VLOOKUP($C90,'8. RAB Roll-Forward'!$C$513:$S$554,N$3,FALSE)*WACC_FY1519 -> 0.1892476045 | O90: =VLOOKUP($C90,'8. RAB Roll-Forward'!$C$513:$S$554,O$3,FALSE)*WACC_FY1519 -> 0.174688725 | P90: =VLOOKUP($C90,'8. RAB Roll-Forward'!$C$513:$S$554,P$3,FALSE)*WACC_FY1519 -> 0.160129925 | Q90: =VLOOKUP($C90,'8. RAB Roll-Forward'!$C$513:$S$554,Q$3,FALSE)*WACC_FY1519 -> 0.1455711251 | R90: =VLOOKUP($C90,'8. RAB Roll-Forward'!$C$513:$S$554,R$3,FALSE)*WACC -> 0.1691266109 | S90: =VLOOKUP($C90,'8. RAB Roll-Forward'!$C$513:$S$554,S$3,FALSE)*WACC -> 0.1503322553 | T90: 1.495997926
C91: CO07 | D91: Other Communications Plant and Equipment | H91: =VLOOKUP($C91,'8. RAB Roll-Forward'!$C$513:$S$554,H$3,FALSE)*WACC -> 0.05841318677 | I91: =VLOOKUP($C91,'8. RAB Roll-Forward'!$C$513:$S$554,I$3,FALSE)*WACC -> 0.06021156972 | J91: =VLOOKUP($C91,'8. RAB Roll-Forward'!$C$513:$S$554,J$3,FALSE)*WACC -> 0.06021156972 | K91: =VLOOKUP($C91,'8. RAB Roll-Forward'!$C$513:$S$554,K$3,FALSE)*WACC -> 0.06009502514 | L91: =VLOOKUP($C91,'8. RAB Roll-Forward'!$C$513:$S$554,L$3,FALSE)*WACC -> 0.06009502514 | M91: =VLOOKUP($C91,'8. RAB Roll-Forward'!$C$513:$S$554,M$3,FALSE)*WACC_FY1519 -> 0.04655204132 | N91: =VLOOKUP($C91,'8. RAB Roll-Forward'!$C$513:$S$554,N$3,FALSE)*WACC_FY1519 -> 1.588974739e-07 | O91: =VLOOKUP($C91,'8. RAB Roll-Forward'!$C$513:$S$554,O$3,FALSE)*WACC_FY1519 -> 1.160400247e-07 | P91: =VLOOKUP($C91,'8. RAB Roll-Forward'!$C$513:$S$554,P$3,FALSE)*WACC_FY1519 -> 1.128794015e-07 | Q91: =VLOOKUP($C91,'8. RAB Roll-Forward'!$C$513:$S$554,Q$3,FALSE)*WACC_FY1519 -> 1.099117833e-07 | R91: =VLOOKUP($C91,'8. RAB Roll-Forward'!$C$513:$S$554,R$3,FALSE)*WACC -> 1.381572253e-07 | S91: =VLOOKUP($C91,'8. RAB Roll-Forward'!$C$513:$S$554,S$3,FALSE)*WACC -> 0 | T91: 0.3455789155
C92: CO08 | D92: Network Land | H92: =VLOOKUP($C92,'8. RAB Roll-Forward'!$C$513:$S$554,H$3,FALSE)*WACC -> 0.05841318677 | I92: =VLOOKUP($C92,'8. RAB Roll-Forward'!$C$513:$S$554,I$3,FALSE)*WACC -> 0.05840734545 | J92: =VLOOKUP($C92,'8. RAB Roll-Forward'!$C$513:$S$554,J$3,FALSE)*WACC -> 0.05840150413 | K92: =VLOOKUP($C92,'8. RAB Roll-Forward'!$C$513:$S$554,K$3,FALSE)*WACC -> 0.05839566282 | L92: =VLOOKUP($C92,'8. RAB Roll-Forward'!$C$513:$S$554,L$3,FALSE)*WACC -> 0.0583898215 | M92: =VLOOKUP($C92,'8. RAB Roll-Forward'!$C$513:$S$554,M$3,FALSE)*WACC_FY1519 -> 0.04522659657 | N92: =VLOOKUP($C92,'8. RAB Roll-Forward'!$C$513:$S$554,N$3,FALSE)*WACC_FY1519 -> 0.04522223055 | O92: =VLOOKUP($C92,'8. RAB Roll-Forward'!$C$513:$S$554,O$3,FALSE)*WACC_FY1519 -> 0.04521770561 | P92: =VLOOKUP($C92,'8. RAB Roll-Forward'!$C$513:$S$554,P$3,FALSE)*WACC_FY1519 -> 0.04521318067 | Q92: =VLOOKUP($C92,'8. RAB Roll-Forward'!$C$513:$S$554,Q$3,FALSE)*WACC_FY1519 -> 0.04520865573 | R92: =VLOOKUP($C92,'8. RAB Roll-Forward'!$C$513:$S$554,R$3,FALSE)*WACC -> 0.05835497863 | S92: =VLOOKUP($C92,'8. RAB Roll-Forward'!$C$513:$S$554,S$3,FALSE)*WACC -> 0.05834913729 | T92: 0.5180958898
C93: CO09 | D93: Network Buildings/Support | H93: =VLOOKUP($C93,'8. RAB Roll-Forward'!$C$513:$S$554,H$3,FALSE)*WACC -> 0.05841318677 | I93: =VLOOKUP($C93,'8. RAB Roll-Forward'!$C$513:$S$554,I$3,FALSE)*WACC -> 0.06021156972 | J93: =VLOOKUP($C93,'8. RAB Roll-Forward'!$C$513:$S$554,J$3,FALSE)*WACC -> 0.06021156972 | K93: =VLOOKUP($C93,'8. RAB Roll-Forward'!$C$513:$S$554,K$3,FALSE)*WACC -> 0.06009502514 | L93: =VLOOKUP($C93,'8. RAB Roll-Forward'!$C$513:$S$554,L$3,FALSE)*WACC -> 0.06009502514 | M93: =VLOOKUP($C93,'8. RAB Roll-Forward'!$C$513:$S$554,M$3,FALSE)*WACC_FY1519 -> 0.04655204132 | N93: =VLOOKUP($C93,'8. RAB Roll-Forward'!$C$513:$S$554,N$3,FALSE)*WACC_FY1519 -> 1.588974739e-07 | O93: =VLOOKUP($C93,'8. RAB Roll-Forward'!$C$513:$S$554,O$3,FALSE)*WACC_FY1519 -> 1.160400247e-07 | P93: =VLOOKUP($C93,'8. RAB Roll-Forward'!$C$513:$S$554,P$3,FALSE)*WACC_FY1519 -> 1.128794015e-07 | Q93: =VLOOKUP($C93,'8. RAB Roll-Forward'!$C$513:$S$554,Q$3,FALSE)*WACC_FY1519 -> 1.099117833e-07 | R93: =VLOOKUP($C93,'8. RAB Roll-Forward'!$C$513:$S$554,R$3,FALSE)*WACC -> 1.381572253e-07 | S93: =VLOOKUP($C93,'8. RAB Roll-Forward'!$C$513:$S$554,S$3,FALSE)*WACC -> 0 | T93: 0.3455789155
C94: CO10 | D94: Indirect Capital Assets | H94: =VLOOKUP($C94,'8. RAB Roll-Forward'!$C$513:$S$554,H$3,FALSE)*WACC -> 0.05841318677 | I94: =VLOOKUP($C94,'8. RAB Roll-Forward'!$C$513:$S$554,I$3,FALSE)*WACC -> 0.1069421191 | J94: =VLOOKUP($C94,'8. RAB Roll-Forward'!$C$513:$S$554,J$3,FALSE)*WACC -> 0.1494498945 | K94: =VLOOKUP($C94,'8. RAB Roll-Forward'!$C$513:$S$554,K$3,FALSE)*WACC -> 0.1858199684 | L94: =VLOOKUP($C94,'8. RAB Roll-Forward'!$C$513:$S$554,L$3,FALSE)*WACC -> 0.2161805397 | M94: =VLOOKUP($C94,'8. RAB Roll-Forward'!$C$513:$S$554,M$3,FALSE)*WACC_FY1519 -> 0.1863255295 | N94: =VLOOKUP($C94,'8. RAB Roll-Forward'!$C$513:$S$554,N$3,FALSE)*WACC_FY1519 -> 0.1630316117 | O94: =VLOOKUP($C94,'8. RAB Roll-Forward'!$C$513:$S$554,O$3,FALSE)*WACC_FY1519 -> 0.1397374922 | P94: =VLOOKUP($C94,'8. RAB Roll-Forward'!$C$513:$S$554,P$3,FALSE)*WACC_FY1519 -> 0.1164434123 | Q94: =VLOOKUP($C94,'8. RAB Roll-Forward'!$C$513:$S$554,Q$3,FALSE)*WACC_FY1519 -> 0.09314933264 | R94: =VLOOKUP($C94,'8. RAB Roll-Forward'!$C$513:$S$554,R$3,FALSE)*WACC -> 0.09017763924 | S94: =VLOOKUP($C94,'8. RAB Roll-Forward'!$C$513:$S$554,S$3,FALSE)*WACC -> 0.0601066796 | T94: 1.415493087
C95: CO11 | D95: LSS equipment | H95: =VLOOKUP($C95,'8. RAB Roll-Forward'!$C$513:$S$554,H$3,FALSE)*WACC -> 0 | I95: =VLOOKUP($C95,'8. RAB Roll-Forward'!$C$513:$S$554,I$3,FALSE)*WACC -> 0 | J95: =VLOOKUP($C95,'8. RAB Roll-Forward'!$C$513:$S$554,J$3,FALSE)*WACC -> 0 | K95: =VLOOKUP($C95,'8. RAB Roll-Forward'!$C$513:$S$554,K$3,FALSE)*WACC -> 0 | L95: =VLOOKUP($C95,'8. RAB Roll-Forward'!$C$513:$S$554,L$3,FALSE)*WACC -> 0 | M95: =VLOOKUP($C95,'8. RAB Roll-Forward'!$C$513:$S$554,M$3,FALSE)*WACC_FY1519 -> 0 | N95: =VLOOKUP($C95,'8. RAB Roll-Forward'!$C$513:$S$554,N$3,FALSE)*WACC_FY1519 -> 1.588974739e-07 | O95: =VLOOKUP($C95,'8. RAB Roll-Forward'!$C$513:$S$554,O$3,FALSE)*WACC_FY1519 -> 0 | P95: =VLOOKUP($C95,'8. RAB Roll-Forward'!$C$513:$S$554,P$3,FALSE)*WACC_FY1519 -> 0 | Q95: =VLOOKUP($C95,'8. RAB Roll-Forward'!$C$513:$S$554,Q$3,FALSE)*WACC_FY1519 -> 0 | R95: =VLOOKUP($C95,'8. RAB Roll-Forward'!$C$513:$S$554,R$3,FALSE)*WACC -> 0 | S95: =VLOOKUP($C95,'8. RAB Roll-Forward'!$C$513:$S$554,S$3,FALSE)*WACC -> 0 | T95: 1.588974739e-07
C96: CO12 | D96: Data Equipment | H96: =VLOOKUP($C96,'8. RAB Roll-Forward'!$C$513:$S$554,H$3,FALSE)*WACC -> 0.05841318677 | I96: =VLOOKUP($C96,'8. RAB Roll-Forward'!$C$513:$S$554,I$3,FALSE)*WACC -> 0.06021156972 | J96: =VLOOKUP($C96,'8. RAB Roll-Forward'!$C$513:$S$554,J$3,FALSE)*WACC -> 0.1103878778 | K96: =VLOOKUP($C96,'8. RAB Roll-Forward'!$C$513:$S$554,K$3,FALSE)*WACC -> 0.1504123797 | L96: =VLOOKUP($C96,'8. RAB Roll-Forward'!$C$513:$S$554,L$3,FALSE)*WACC -> 0.1804210441 | M96: =VLOOKUP($C96,'8. RAB Roll-Forward'!$C$513:$S$554,M$3,FALSE)*WACC_FY1519 -> 0.1552487045 | N96: =VLOOKUP($C96,'8. RAB Roll-Forward'!$C$513:$S$554,N$3,FALSE)*WACC_FY1519 -> 0.1164254023 | O96: =VLOOKUP($C96,'8. RAB Roll-Forward'!$C$513:$S$554,O$3,FALSE)*WACC_FY1519 -> 0.0776018796 | P96: =VLOOKUP($C96,'8. RAB Roll-Forward'!$C$513:$S$554,P$3,FALSE)*WACC_FY1519 -> 0.04655211852 | Q96: =VLOOKUP($C96,'8. RAB Roll-Forward'!$C$513:$S$554,Q$3,FALSE)*WACC_FY1519 -> 0.02327607941 | R96: =VLOOKUP($C96,'8. RAB Roll-Forward'!$C$513:$S$554,R$3,FALSE)*WACC -> 0.01001589072 | S96: =VLOOKUP($C96,'8. RAB Roll-Forward'!$C$513:$S$554,S$3,FALSE)*WACC -> 0 | T96: 0.9789502425
C97: CO13 | D97: Spare Core Asset Class 13 | H97: =VLOOKUP($C97,'8. RAB Roll-Forward'!$C$513:$S$554,H$3,FALSE)*WACC -> 0 | I97: =VLOOKUP($C97,'8. RAB Roll-Forward'!$C$513:$S$554,I$3,FALSE)*WACC -> 0 | J97: =VLOOKUP($C97,'8. RAB Roll-Forward'!$C$513:$S$554,J$3,FALSE)*WACC -> 0 | K97: =VLOOKUP($C97,'8. RAB Roll-Forward'!$C$513:$S$554,K$3,FALSE)*WACC -> 0 | L97: =VLOOKUP($C97,'8. RAB Roll-Forward'!$C$513:$S$554,L$3,FALSE)*WACC -> 0 | M97: =VLOOKUP($C97,'8. RAB Roll-Forward'!$C$513:$S$554,M$3,FALSE)*WACC_FY1519 -> 0 | N97: =VLOOKUP($C97,'8. RAB Roll-Forward'!$C$513:$S$554,N$3,FALSE)*WACC_FY1519 -> 0 | O97: =VLOOKUP($C97,'8. RAB Roll-Forward'!$C$513:$S$554,O$3,FALSE)*WACC_FY1519 -> 0 | P97: =VLOOKUP($C97,'8. RAB Roll-Forward'!$C$513:$S$554,P$3,FALSE)*WACC_FY1519 -> 0 | Q97: =VLOOKUP($C97,'8. RAB Roll-Forward'!$C$513:$S$554,Q$3,FALSE)*WACC_FY1519 -> 0 | R97: =VLOOKUP($C97,'8. RAB Roll-Forward'!$C$513:$S$554,R$3,FALSE)*WACC -> 0 | S97: =VLOOKUP($C97,'8. RAB Roll-Forward'!$C$513:$S$554,S$3,FALSE)*WACC -> 0 | T97: 0
C98: CO14 | D98: Spare Core Asset Class 14 | H98: =VLOOKUP($C98,'8. RAB Roll-Forward'!$C$513:$S$554,H$3,FALSE)*WACC -> 0 | I98: =VLOOKUP($C98,'8. RAB Roll-Forward'!$C$513:$S$554,I$3,FALSE)*WACC -> 0 | J98: =VLOOKUP($C98,'8. RAB Roll-Forward'!$C$513:$S$554,J$3,FALSE)*WACC -> 0 | K98: =VLOOKUP($C98,'8. RAB Roll-Forward'!$C$513:$S$554,K$3,FALSE)*WACC -> 0 | L98: =VLOOKUP($C98,'8. RAB Roll-Forward'!$C$513:$S$554,L$3,FALSE)*WACC -> 0 | M98: =VLOOKUP($C98,'8. RAB Roll-Forward'!$C$513:$S$554,M$3,FALSE)*WACC_FY1519 -> 0 | N98: =VLOOKUP($C98,'8. RAB Roll-Forward'!$C$513:$S$554,N$3,FALSE)*WACC_FY1519 -> 0 | O98: =VLOOKUP($C98,'8. RAB Roll-Forward'!$C$513:$S$554,O$3,FALSE)*WACC_FY1519 -> 0 | P98: =VLOOKUP($C98,'8. RAB Roll-Forward'!$C$513:$S$554,P$3,FALSE)*WACC_FY1519 -> 0 | Q98: =VLOOKUP($C98,'8. RAB Roll-Forward'!$C$513:$S$554,Q$3,FALSE)*WACC_FY1519 -> 0 | R98: =VLOOKUP($C98,'8. RAB Roll-Forward'!$C$513:$S$554,R$3,FALSE)*WACC -> 0 | S98: =VLOOKUP($C98,'8. RAB Roll-Forward'!$C$513:$S$554,S$3,FALSE)*WACC -> 0 | T98: 0
C99: CO15 | D99: Spare Core Asset Class 15 | H99: =VLOOKUP($C99,'8. RAB Roll-Forward'!$C$513:$S$554,H$3,FALSE)*WACC -> 0 | I99: =VLOOKUP($C99,'8. RAB Roll-Forward'!$C$513:$S$554,I$3,FALSE)*WACC -> 0 | J99: =VLOOKUP($C99,'8. RAB Roll-Forward'!$C$513:$S$554,J$3,FALSE)*WACC -> 0 | K99: =VLOOKUP($C99,'8. RAB Roll-Forward'!$C$513:$S$554,K$3,FALSE)*WACC -> 0 | L99: =VLOOKUP($C99,'8. RAB Roll-Forward'!$C$513:$S$554,L$3,FALSE)*WACC -> 0 | M99: =VLOOKUP($C99,'8. RAB Roll-Forward'!$C$513:$S$554,M$3,FALSE)*WACC_FY1519 -> 0 | N99: =VLOOKUP($C99,'8. RAB Roll-Forward'!$C$513:$S$554,N$3,FALSE)*WACC_FY1519 -> 0 | O99: =VLOOKUP($C99,'8. RAB Roll-Forward'!$C$513:$S$554,O$3,FALSE)*WACC_FY1519 -> 0 | P99: =VLOOKUP($C99,'8. RAB Roll-Forward'!$C$513:$S$554,P$3,FALSE)*WACC_FY1519 -> 0 | Q99: =VLOOKUP($C99,'8. RAB Roll-Forward'!$C$513:$S$554,Q$3,FALSE)*WACC_FY1519 -> 0 | R99: =VLOOKUP($C99,'8. RAB Roll-Forward'!$C$513:$S$554,R$3,FALSE)*WACC -> 0 | S99: =VLOOKUP($C99,'8. RAB Roll-Forward'!$C$513:$S$554,S$3,FALSE)*WACC -> 0 | T99: 0
C100: CO16 | D100: Spare Core Asset Class 16 | H100: =VLOOKUP($C100,'8. RAB Roll-Forward'!$C$513:$S$554,H$3,FALSE)*WACC -> 0 | I100: =VLOOKUP($C100,'8. RAB Roll-Forward'!$C$513:$S$554,I$3,FALSE)*WACC -> 0 | J100: =VLOOKUP($C100,'8. RAB Roll-Forward'!$C$513:$S$554,J$3,FALSE)*WACC -> 0 | K100: =VLOOKUP($C100,'8. RAB Roll-Forward'!$C$513:$S$554,K$3,FALSE)*WACC -> 0 | L100: =VLOOKUP($C100,'8. RAB Roll-Forward'!$C$513:$S$554,L$3,FALSE)*WACC -> 0 | M100: =VLOOKUP($C100,'8. RAB Roll-Forward'!$C$513:$S$554,M$3,FALSE)*WACC_FY1519 -> 0 | N100: =VLOOKUP($C100,'8. RAB Roll-Forward'!$C$513:$S$554,N$3,FALSE)*WACC_FY1519 -> 0 | O100: =VLOOKUP($C100,'8. RAB Roll-Forward'!$C$513:$S$554,O$3,FALSE)*WACC_FY1519 -> 0 | P100: =VLOOKUP($C100,'8. RAB Roll-Forward'!$C$513:$S$554,P$3,FALSE)*WACC_FY1519 -> 0 | Q100: =VLOOKUP($C100,'8. RAB Roll-Forward'!$C$513:$S$554,Q$3,FALSE)*WACC_FY1519 -> 0 | R100: =VLOOKUP($C100,'8. RAB Roll-Forward'!$C$513:$S$554,R$3,FALSE)*WACC -> 0 | S100: =VLOOKUP($C100,'8. RAB Roll-Forward'!$C$513:$S$554,S$3,FALSE)*WACC -> 0 | T100: 0
C101: CO17 | D101: Spare Core Asset Class 17 | H101: =VLOOKUP($C101,'8. RAB Roll-Forward'!$C$513:$S$554,H$3,FALSE)*WACC -> 0 | I101: =VLOOKUP($C101,'8. RAB Roll-Forward'!$C$513:$S$554,I$3,FALSE)*WACC -> 0 | J101: =VLOOKUP($C101,'8. RAB Roll-Forward'!$C$513:$S$554,J$3,FALSE)*WACC -> 0 | K101: =VLOOKUP($C101,'8. RAB Roll-Forward'!$C$513:$S$554,K$3,FALSE)*WACC -> 0 | L101: =VLOOKUP($C101,'8. RAB Roll-Forward'!$C$513:$S$554,L$3,FALSE)*WACC -> 0 | M101: =VLOOKUP($C101,'8. RAB Roll-Forward'!$C$513:$S$554,M$3,FALSE)*WACC_FY1519 -> 0 | N101: =VLOOKUP($C101,'8. RAB Roll-Forward'!$C$513:$S$554,N$3,FALSE)*WACC_FY1519 -> 0 | O101: =VLOOKUP($C101,'8. RAB Roll-Forward'!$C$513:$S$554,O$3,FALSE)*WACC_FY1519 -> 0 | P101: =VLOOKUP($C101,'8. RAB Roll-Forward'!$C$513:$S$554,P$3,FALSE)*WACC_FY1519 -> 0 | Q101: =VLOOKUP($C101,'8. RAB Roll-Forward'!$C$513:$S$554,Q$3,FALSE)*WACC_FY1519 -> 0 | R101: =VLOOKUP($C101,'8. RAB Roll-Forward'!$C$513:$S$554,R$3,FALSE)*WACC -> 0 | S101: =VLOOKUP($C101,'8. RAB Roll-Forward'!$C$513:$S$554,S$3,FALSE)*WACC -> 0 | T101: 0
C102: CO18 | D102: Spare Core Asset Class 18 | H102: =VLOOKUP($C102,'8. RAB Roll-Forward'!$C$513:$S$554,H$3,FALSE)*WACC -> 0 | I102: =VLOOKUP($C102,'8. RAB Roll-Forward'!$C$513:$S$554,I$3,FALSE)*WACC -> 0 | J102: =VLOOKUP($C102,'8. RAB Roll-Forward'!$C$513:$S$554,J$3,FALSE)*WACC -> 0 | K102: =VLOOKUP($C102,'8. RAB Roll-Forward'!$C$513:$S$554,K$3,FALSE)*WACC -> 0 | L102: =VLOOKUP($C102,'8. RAB Roll-Forward'!$C$513:$S$554,L$3,FALSE)*WACC -> 0 | M102: =VLOOKUP($C102,'8. RAB Roll-Forward'!$C$513:$S$554,M$3,FALSE)*WACC_FY1519 -> 0 | N102: =VLOOKUP($C102,'8. RAB Roll-Forward'!$C$513:$S$554,N$3,FALSE)*WACC_FY1519 -> 0 | O102: =VLOOKUP($C102,'8. RAB Roll-Forward'!$C$513:$S$554,O$3,FALSE)*WACC_FY1519 -> 0 | P102: =VLOOKUP($C102,'8. RAB Roll-Forward'!$C$513:$S$554,P$3,FALSE)*WACC_FY1519 -> 0 | Q102: =VLOOKUP($C102,'8. RAB Roll-Forward'!$C$513:$S$554,Q$3,FALSE)*WACC_FY1519 -> 0 | R102: =VLOOKUP($C102,'8. RAB Roll-Forward'!$C$513:$S$554,R$3,FALSE)*WACC -> 0 | S102: =VLOOKUP($C102,'8. RAB Roll-Forward'!$C$513:$S$554,S$3,FALSE)*WACC -> 0 | T102: 0
C103: CO19 | D103: Spare Core Asset Class 19 | H103: =VLOOKUP($C103,'8. RAB Roll-Forward'!$C$513:$S$554,H$3,FALSE)*WACC -> 0 | I103: =VLOOKUP($C103,'8. RAB Roll-Forward'!$C$513:$S$554,I$3,FALSE)*WACC -> 0 | J103: =VLOOKUP($C103,'8. RAB Roll-Forward'!$C$513:$S$554,J$3,FALSE)*WACC -> 0 | K103: =VLOOKUP($C103,'8. RAB Roll-Forward'!$C$513:$S$554,K$3,FALSE)*WACC -> 0 | L103: =VLOOKUP($C103,'8. RAB Roll-Forward'!$C$513:$S$554,L$3,FALSE)*WACC -> 0 | M103: =VLOOKUP($C103,'8. RAB Roll-Forward'!$C$513:$S$554,M$3,FALSE)*WACC_FY1519 -> 0 | N103: =VLOOKUP($C103,'8. RAB Roll-Forward'!$C$513:$S$554,N$3,FALSE)*WACC_FY1519 -> 0 | O103: =VLOOKUP($C103,'8. RAB Roll-Forward'!$C$513:$S$554,O$3,FALSE)*WACC_FY1519 -> 0 | P103: =VLOOKUP($C103,'8. RAB Roll-Forward'!$C$513:$S$554,P$3,FALSE)*WACC_FY1519 -> 0 | Q103: =VLOOKUP($C103,'8. RAB Roll-Forward'!$C$513:$S$554,Q$3,FALSE)*WACC_FY1519 -> 0 | R103: =VLOOKUP($C103,'8. RAB Roll-Forward'!$C$513:$S$554,R$3,FALSE)*WACC -> 0 | S103: =VLOOKUP($C103,'8. RAB Roll-Forward'!$C$513:$S$554,S$3,FALSE)*WACC -> 0 | T103: 0
C104: CO20 | D104: Spare Core Asset Class 20 | H104: =VLOOKUP($C104,'8. RAB Roll-Forward'!$C$513:$S$554,H$3,FALSE)*WACC -> 0 | I104: =VLOOKUP($C104,'8. RAB Roll-Forward'!$C$513:$S$554,I$3,FALSE)*WACC -> 0 | J104: =VLOOKUP($C104,'8. RAB Roll-Forward'!$C$513:$S$554,J$3,FALSE)*WACC -> 0 | K104: =VLOOKUP($C104,'8. RAB Roll-Forward'!$C$513:$S$554,K$3,FALSE)*WACC -> 0 | L104: =VLOOKUP($C104,'8. RAB Roll-Forward'!$C$513:$S$554,L$3,FALSE)*WACC -> 0 | M104: =VLOOKUP($C104,'8. RAB Roll-Forward'!$C$513:$S$554,M$3,FALSE)*WACC_FY1519 -> 0 | N104: =VLOOKUP($C104,'8. RAB Roll-Forward'!$C$513:$S$554,N$3,FALSE)*WACC_FY1519 -> 0 | O104: =VLOOKUP($C104,'8. RAB Roll-Forward'!$C$513:$S$554,O$3,FALSE)*WACC_FY1519 -> 0 | P104: =VLOOKUP($C104,'8. RAB Roll-Forward'!$C$513:$S$554,P$3,FALSE)*WACC_FY1519 -> 0 | Q104: =VLOOKUP($C104,'8. RAB Roll-Forward'!$C$513:$S$554,Q$3,FALSE)*WACC_FY1519 -> 0 | R104: =VLOOKUP($C104,'8. RAB Roll-Forward'!$C$513:$S$554,R$3,FALSE)*WACC -> 0 | S104: =VLOOKUP($C104,'8. RAB Roll-Forward'!$C$513:$S$554,S$3,FALSE)*WACC -> 0 | T104: 0
D105: Total | H105: =SUM(H85:H104) -> 0.6425450545 | I105: =SUM(I85:I104) -> 0.7072535921 | J105: 1.087992845 | K105: 1.438513397 | L105: 1.760386561 | M105: 1.590540482 | N105: 1.338483279 | O105: 1.226079571 | P105: 1.12145026 | Q105: 1.024594672 | R105: 1.207654054 | S105: 1.102651677 | T105: 11.93783971
B108: G.1.3 | C108: Return of capital (Depreciation)
H109: Y01 | I109: Y02 | J109: Y03 | K109: Y04 | L109: Y05 | M109: Y06 | N109: Y07 | O109: Y08 | P109: Y09 | Q109: Y10 | R109: Y11 | S109: Y12
C110: Code | D110: Asset Class | H110: =VLOOKUP(H109,FYears,2,FALSE) -> 2009/2010 | I110: 2010/2011 | J110: 2011/2012 | K110: 2012/2013 | L110: 2013/2014 | M110: 2014/2015 | N110: 2015/2016 | O110: 2016/2017 | P110: 2017/2018 | Q110: 2018/2019 | R110: 2019/2020 | S110: 2020/2021 | T110: Total
C111: CAN Asset Class
C112: CA01 | D112: =VLOOKUP(C112,CAN_AC,2,FALSE) -> Ducts and pipes | H112: =VLOOKUP($C112,'8. RAB Roll-Forward'!$C$661:$S$702,H$3,FALSE) -> 1 | I112: =VLOOKUP($C112,'8. RAB Roll-Forward'!$C$661:$S$702,I$3,FALSE) -> 0.02945106505 | J112: =VLOOKUP($C112,'8. RAB Roll-Forward'!$C$661:$S$702,J$3,FALSE) -> 0.0589021301 | K112: =VLOOKUP($C112,'8. RAB Roll-Forward'!$C$661:$S$702,K$3,FALSE) -> 0.08829619013 | L112: =VLOOKUP($C112,'8. RAB Roll-Forward'!$C$661:$S$702,L$3,FALSE) -> 0.1176902502 | M112: =VLOOKUP($C112,'8. RAB Roll-Forward'!$C$661:$S$702,M$3,FALSE) -> 0.1470843102 | N112: =VLOOKUP($C112,'8. RAB Roll-Forward'!$C$661:$S$702,N$3,FALSE) -> 0.1470878218 | O112: =VLOOKUP($C112,'8. RAB Roll-Forward'!$C$661:$S$702,O$3,FALSE) -> 0.2238487176 | P112: =VLOOKUP($C112,'8. RAB Roll-Forward'!$C$661:$S$702,P$3,FALSE) -> 0.2190862829 | Q112: =VLOOKUP($C112,'8. RAB Roll-Forward'!$C$661:$S$702,Q$3,FALSE) -> 0.2145920093 | R112: =VLOOKUP($C112,'8. RAB Roll-Forward'!$C$312:$S$355,R$3,FALSE) -> 0 | S112: =VLOOKUP($C112,'8. RAB Roll-Forward'!$C$312:$S$355,S$3,FALSE) -> 0 | T112: =SUM(OFFSET($H112,0,0,1,Model_period)) -> 2.246038777
C113: CA02 | D113: Copper cables | H113: =VLOOKUP($C113,'8. RAB Roll-Forward'!$C$661:$S$702,H$3,FALSE) -> 1 | I113: =VLOOKUP($C113,'8. RAB Roll-Forward'!$C$661:$S$702,I$3,FALSE) -> 0.05153936384 | J113: =VLOOKUP($C113,'8. RAB Roll-Forward'!$C$661:$S$702,J$3,FALSE) -> 0.1030787277 | K113: =VLOOKUP($C113,'8. RAB Roll-Forward'!$C$661:$S$702,K$3,FALSE) -> 0.1545183327 | L113: =VLOOKUP($C113,'8. RAB Roll-Forward'!$C$661:$S$702,L$3,FALSE) -> 0.2059579378 | M113: =VLOOKUP($C113,'8. RAB Roll-Forward'!$C$661:$S$702,M$3,FALSE) -> 0.2573975428 | N113: =VLOOKUP($C113,'8. RAB Roll-Forward'!$C$661:$S$702,N$3,FALSE) -> -160433.2375 | O113: =VLOOKUP($C113,'8. RAB Roll-Forward'!$C$661:$S$702,O$3,FALSE) -> -153106.6969 | P113: =VLOOKUP($C113,'8. RAB Roll-Forward'!$C$661:$S$702,P$3,FALSE) -> -352816.3133 | Q113: =VLOOKUP($C113,'8. RAB Roll-Forward'!$C$661:$S$702,Q$3,FALSE) -> -613799.1732 | R113: =VLOOKUP($C113,'8. RAB Roll-Forward'!$C$312:$S$355,R$3,FALSE) -> 0 | S113: =VLOOKUP($C113,'8. RAB Roll-Forward'!$C$312:$S$355,S$3,FALSE) -> 0 | T113: -1280153.648
C114: CA03 | D114: Other cables | H114: =VLOOKUP($C114,'8. RAB Roll-Forward'!$C$661:$S$702,H$3,FALSE) -> 1 | I114: =VLOOKUP($C114,'8. RAB Roll-Forward'!$C$661:$S$702,I$3,FALSE) -> 0.05153936384 | J114: =VLOOKUP($C114,'8. RAB Roll-Forward'!$C$661:$S$702,J$3,FALSE) -> 0.1030787277 | K114: =VLOOKUP($C114,'8. RAB Roll-Forward'!$C$661:$S$702,K$3,FALSE) -> 0.1545183327 | L114: =VLOOKUP($C114,'8. RAB Roll-Forward'!$C$661:$S$702,L$3,FALSE) -> 0.2059579378 | M114: =VLOOKUP($C114,'8. RAB Roll-Forward'!$C$661:$S$702,M$3,FALSE) -> 0.2573975428 | N114: =VLOOKUP($C114,'8. RAB Roll-Forward'!$C$661:$S$702,N$3,FALSE) -> 0.2574010544 | O114: =VLOOKUP($C114,'8. RAB Roll-Forward'!$C$661:$S$702,O$3,FALSE) -> 0.3341626675 | P114: =VLOOKUP($C114,'8. RAB Roll-Forward'!$C$661:$S$702,P$3,FALSE) -> 0.3294000842 | Q114: =VLOOKUP($C114,'8. RAB Roll-Forward'!$C$661:$S$702,Q$3,FALSE) -> 0.3249056747 | R114: =VLOOKUP($C114,'8. RAB Roll-Forward'!$C$312:$S$355,R$3,FALSE) -> 0 | S114: =VLOOKUP($C114,'8. RAB Roll-Forward'!$C$312:$S$355,S$3,FALSE) -> 0 | T114: 3.018361386
C115: CA04 | D115: Pair gain systems | H115: =VLOOKUP($C115,'8. RAB Roll-Forward'!$C$661:$S$702,H$3,FALSE) -> 1 | I115: =VLOOKUP($C115,'8. RAB Roll-Forward'!$C$661:$S$702,I$3,FALSE) -> 0.08589893973 | J115: =VLOOKUP($C115,'8. RAB Roll-Forward'!$C$661:$S$702,J$3,FALSE) -> 0.1717978795 | K115: =VLOOKUP($C115,'8. RAB Roll-Forward'!$C$661:$S$702,K$3,FALSE) -> 0.2575305545 | L115: =VLOOKUP($C115,'8. RAB Roll-Forward'!$C$661:$S$702,L$3,FALSE) -> 0.3432632296 | M115: =VLOOKUP($C115,'8. RAB Roll-Forward'!$C$661:$S$702,M$3,FALSE) -> 0.4289959047 | N115: =VLOOKUP($C115,'8. RAB Roll-Forward'!$C$661:$S$702,N$3,FALSE) -> 0.4289994163 | O115: =VLOOKUP($C115,'8. RAB Roll-Forward'!$C$661:$S$702,O$3,FALSE) -> 0.5057603121 | P115: =VLOOKUP($C115,'8. RAB Roll-Forward'!$C$661:$S$702,P$3,FALSE) -> 0.5009978774 | Q115: =VLOOKUP($C115,'8. RAB Roll-Forward'!$C$661:$S$702,Q$3,FALSE) -> 0.4965036038 | R115: =VLOOKUP($C115,'8. RAB Roll-Forward'!$C$312:$S$355,R$3,FALSE) -> 0 | S115: =VLOOKUP($C115,'8. RAB Roll-Forward'!$C$312:$S$355,S$3,FALSE) -> 0 | T115: 4.219747718
C116: CA05 | D116: CAN Radio Bearer Equipment | H116: =VLOOKUP($C116,'8. RAB Roll-Forward'!$C$661:$S$702,H$3,FALSE) -> 1 | I116: =VLOOKUP($C116,'8. RAB Roll-Forward'!$C$661:$S$702,I$3,FALSE) -> 0.08589893973 | J116: =VLOOKUP($C116,'8. RAB Roll-Forward'!$C$661:$S$702,J$3,FALSE) -> 0.1717978795 | K116: =VLOOKUP($C116,'8. RAB Roll-Forward'!$C$661:$S$702,K$3,FALSE) -> 0.2575305545 | L116: =VLOOKUP($C116,'8. RAB Roll-Forward'!$C$661:$S$702,L$3,FALSE) -> 0.3432632296 | M116: =VLOOKUP($C116,'8. RAB Roll-Forward'!$C$661:$S$702,M$3,FALSE) -> 0.4289959047 | N116: =VLOOKUP($C116,'8. RAB Roll-Forward'!$C$661:$S$702,N$3,FALSE) -> 0.4289994163 | O116: =VLOOKUP($C116,'8. RAB Roll-Forward'!$C$661:$S$702,O$3,FALSE) -> 0.4289973392 | P116: =VLOOKUP($C116,'8. RAB Roll-Forward'!$C$661:$S$702,P$3,FALSE) -> 0.428997042 | Q116: =VLOOKUP($C116,'8. RAB Roll-Forward'!$C$661:$S$702,Q$3,FALSE) -> 0.4289967702 | R116: =VLOOKUP($C116,'8. RAB Roll-Forward'!$C$312:$S$355,R$3,FALSE) -> 0 | S116: =VLOOKUP($C116,'8. RAB Roll-Forward'!$C$312:$S$355,S$3,FALSE) -> 0 | T116: 4.003477076
C117: CA06 | D117: Other CAN assets | H117: =VLOOKUP($C117,'8. RAB Roll-Forward'!$C$661:$S$702,H$3,FALSE) -> 1 | I117: =VLOOKUP($C117,'8. RAB Roll-Forward'!$C$661:$S$702,I$3,FALSE) -> 0.08589893973 | J117: =VLOOKUP($C117,'8. RAB Roll-Forward'!$C$661:$S$702,J$3,FALSE) -> 0.1717978795 | K117: =VLOOKUP($C117,'8. RAB Roll-Forward'!$C$661:$S$702,K$3,FALSE) -> 0.2575305545 | L117: =VLOOKUP($C117,'8. RAB Roll-Forward'!$C$661:$S$702,L$3,FALSE) -> 0.3432632296 | M117: =VLOOKUP($C117,'8. RAB Roll-Forward'!$C$661:$S$702,M$3,FALSE) -> 0.4289959047 | N117: =VLOOKUP($C117,'8. RAB Roll-Forward'!$C$661:$S$702,N$3,FALSE) -> 0.4289994163 | O117: =VLOOKUP($C117,'8. RAB Roll-Forward'!$C$661:$S$702,O$3,FALSE) -> 0.4289973392 | P117: =VLOOKUP($C117,'8. RAB Roll-Forward'!$C$661:$S$702,P$3,FALSE) -> 0.428997042 | Q117: =VLOOKUP($C117,'8. RAB Roll-Forward'!$C$661:$S$702,Q$3,FALSE) -> 0.4289967702 | R117: =VLOOKUP($C117,'8. RAB Roll-Forward'!$C$312:$S$355,R$3,FALSE) -> 0 | S117: =VLOOKUP($C117,'8. RAB Roll-Forward'!$C$312:$S$355,S$3,FALSE) -> 0 | T117: 4.003477076
C118: CA07 | D118: Other Communications Plant and Equipment | H118: =VLOOKUP($C118,'8. RAB Roll-Forward'!$C$661:$S$702,H$3,FALSE) -> 1 | I118: =VLOOKUP($C118,'8. RAB Roll-Forward'!$C$661:$S$702,I$3,FALSE) -> 1.030787277 | J118: =VLOOKUP($C118,'8. RAB Roll-Forward'!$C$661:$S$702,J$3,FALSE) -> 1.030787277 | K118: =VLOOKUP($C118,'8. RAB Roll-Forward'!$C$661:$S$702,K$3,FALSE) -> 1.028792101 | L118: =VLOOKUP($C118,'8. RAB Roll-Forward'!$C$661:$S$702,L$3,FALSE) -> 1.028792101 | M118: =VLOOKUP($C118,'8. RAB Roll-Forward'!$C$661:$S$702,M$3,FALSE) -> 1.028792101 | N118: =VLOOKUP($C118,'8. RAB Roll-Forward'!$C$661:$S$702,N$3,FALSE) -> 3.511606824e-06 | O118: =VLOOKUP($C118,'8. RAB Roll-Forward'!$C$661:$S$702,O$3,FALSE) -> 0.07676512468 | P118: =VLOOKUP($C118,'8. RAB Roll-Forward'!$C$661:$S$702,P$3,FALSE) -> 0.07200254144 | Q118: =VLOOKUP($C118,'8. RAB Roll-Forward'!$C$661:$S$702,Q$3,FALSE) -> 0.06750813187 | R118: =VLOOKUP($C118,'8. RAB Roll-Forward'!$C$312:$S$355,R$3,FALSE) -> 0 | S118: =VLOOKUP($C118,'8. RAB Roll-Forward'!$C$312:$S$355,S$3,FALSE) -> 0 | T118: 6.364230166
C119: CA08 | D119: Network Land | H119: =VLOOKUP($C119,'8. RAB Roll-Forward'!$C$661:$S$702,H$3,FALSE) -> 0.0001 | I119: =VLOOKUP($C119,'8. RAB Roll-Forward'!$C$661:$S$702,I$3,FALSE) -> 0.0001 | J119: =VLOOKUP($C119,'8. RAB Roll-Forward'!$C$661:$S$702,J$3,FALSE) -> 0.0001 | K119: =VLOOKUP($C119,'8. RAB Roll-Forward'!$C$661:$S$702,K$3,FALSE) -> 0.0001 | L119: =VLOOKUP($C119,'8. RAB Roll-Forward'!$C$661:$S$702,L$3,FALSE) -> 0.0001 | M119: =VLOOKUP($C119,'8. RAB Roll-Forward'!$C$661:$S$702,M$3,FALSE) -> 0.0001 | N119: =VLOOKUP($C119,'8. RAB Roll-Forward'!$C$661:$S$702,N$3,FALSE) -> 0.0001000003512 | O119: =VLOOKUP($C119,'8. RAB Roll-Forward'!$C$661:$S$702,O$3,FALSE) -> 0.0001000003512 | P119: =VLOOKUP($C119,'8. RAB Roll-Forward'!$C$661:$S$702,P$3,FALSE) -> 0.0001000003512 | Q119: =VLOOKUP($C119,'8. RAB Roll-Forward'!$C$661:$S$702,Q$3,FALSE) -> 0.0001000003512 | R119: =VLOOKUP($C119,'8. RAB Roll-Forward'!$C$312:$S$355,R$3,FALSE) -> 0.0001 | S119: =VLOOKUP($C119,'8. RAB Roll-Forward'!$C$312:$S$355,S$3,FALSE) -> 0.0001 | T119: 0.001000001405
C120: CA09 | D120: Network Buildings/Support | H120: =VLOOKUP($C120,'8. RAB Roll-Forward'!$C$661:$S$702,H$3,FALSE) -> 1 | I120: =VLOOKUP($C120,'8. RAB Roll-Forward'!$C$661:$S$702,I$3,FALSE) -> 1.030787277 | J120: =VLOOKUP($C120,'8. RAB Roll-Forward'!$C$661:$S$702,J$3,FALSE) -> 1.030787277 | K120: =VLOOKUP($C120,'8. RAB Roll-Forward'!$C$661:$S$702,K$3,FALSE) -> 1.028792101 | L120: =VLOOKUP($C120,'8. RAB Roll-Forward'!$C$661:$S$702,L$3,FALSE) -> 1.028792101 | M120: =VLOOKUP($C120,'8. RAB Roll-Forward'!$C$661:$S$702,M$3,FALSE) -> 1.028792101 | N120: =VLOOKUP($C120,'8. RAB Roll-Forward'!$C$661:$S$702,N$3,FALSE) -> 3.511606824e-06 | O120: =VLOOKUP($C120,'8. RAB Roll-Forward'!$C$661:$S$702,O$3,FALSE) -> 0.07676512468 | P120: =VLOOKUP($C120,'8. RAB Roll-Forward'!$C$661:$S$702,P$3,FALSE) -> 0.07200254144 | Q120: =VLOOKUP($C120,'8. RAB Roll-Forward'!$C$661:$S$702,Q$3,FALSE) -> 0.06750813187 | R120: =VLOOKUP($C120,'8. RAB Roll-Forward'!$C$312:$S$355,R$3,FALSE) -> 0 | S120: =VLOOKUP($C120,'8. RAB Roll-Forward'!$C$312:$S$355,S$3,FALSE) -> 0 | T120: 6.364230166
C121: CA10 | D121: Indirect Capital Assets | H121: =VLOOKUP($C121,'8. RAB Roll-Forward'!$C$661:$S$702,H$3,FALSE) -> 0.2 | I121: =VLOOKUP($C121,'8. RAB Roll-Forward'!$C$661:$S$702,I$3,FALSE) -> 0.3030787277 | J121: =VLOOKUP($C121,'8. RAB Roll-Forward'!$C$661:$S$702,J$3,FALSE) -> 0.4061574554 | K121: =VLOOKUP($C121,'8. RAB Roll-Forward'!$C$661:$S$702,K$3,FALSE) -> 0.5090366654 | L121: =VLOOKUP($C121,'8. RAB Roll-Forward'!$C$661:$S$702,L$3,FALSE) -> 0.6119158755 | M121: =VLOOKUP($C121,'8. RAB Roll-Forward'!$C$661:$S$702,M$3,FALSE) -> 0.5147950856 | N121: =VLOOKUP($C121,'8. RAB Roll-Forward'!$C$661:$S$702,N$3,FALSE) -> 0.5147985972 | O121: =VLOOKUP($C121,'8. RAB Roll-Forward'!$C$661:$S$702,O$3,FALSE) -> 0.5147972374 | P121: =VLOOKUP($C121,'8. RAB Roll-Forward'!$C$661:$S$702,P$3,FALSE) -> 0.5147967917 | Q121: =VLOOKUP($C121,'8. RAB Roll-Forward'!$C$661:$S$702,Q$3,FALSE) -> 0.5147963839 | R121: =VLOOKUP($C121,'8. RAB Roll-Forward'!$C$312:$S$355,R$3,FALSE) -> 0 | S121: =VLOOKUP($C121,'8. RAB Roll-Forward'!$C$312:$S$355,S$3,FALSE) -> 0 | T121: 4.60417282
C122: CA11 | D122: Spare CAN Asset Class 11 | H122: =VLOOKUP($C122,'8. RAB Roll-Forward'!$C$661:$S$702,H$3,FALSE) -> 0 | I122: =VLOOKUP($C122,'8. RAB Roll-Forward'!$C$661:$S$702,I$3,FALSE) -> 0 | J122: =VLOOKUP($C122,'8. RAB Roll-Forward'!$C$661:$S$702,J$3,FALSE) -> 0 | K122: =VLOOKUP($C122,'8. RAB Roll-Forward'!$C$661:$S$702,K$3,FALSE) -> 0 | L122: =VLOOKUP($C122,'8. RAB Roll-Forward'!$C$661:$S$702,L$3,FALSE) -> 0 | M122: =VLOOKUP($C122,'8. RAB Roll-Forward'!$C$661:$S$702,M$3,FALSE) -> 0 | N122: =VLOOKUP($C122,'8. RAB Roll-Forward'!$C$661:$S$702,N$3,FALSE) -> 0 | O122: =VLOOKUP($C122,'8. RAB Roll-Forward'!$C$661:$S$702,O$3,FALSE) -> 0 | P122: =VLOOKUP($C122,'8. RAB Roll-Forward'!$C$661:$S$702,P$3,FALSE) -> 0 | Q122: =VLOOKUP($C122,'8. RAB Roll-Forward'!$C$661:$S$702,Q$3,FALSE) -> 0 | R122: =VLOOKUP($C122,'8. RAB Roll-Forward'!$C$312:$S$355,R$3,FALSE) -> 0 | S122: =VLOOKUP($C122,'8. RAB Roll-Forward'!$C$312:$S$355,S$3,FALSE) -> 0 | T122: 0
C123: CA12 | D123: Spare CAN Asset Class 12 | H123: =VLOOKUP($C123,'8. RAB Roll-Forward'!$C$661:$S$702,H$3,FALSE) -> 0 | I123: =VLOOKUP($C123,'8. RAB Roll-Forward'!$C$661:$S$702,I$3,FALSE) -> 0 | J123: =VLOOKUP($C123,'8. RAB Roll-Forward'!$C$661:$S$702,J$3,FALSE) -> 0 | K123: =VLOOKUP($C123,'8. RAB Roll-Forward'!$C$661:$S$702,K$3,FALSE) -> 0 | L123: =VLOOKUP($C123,'8. RAB Roll-Forward'!$C$661:$S$702,L$3,FALSE) -> 0 | M123: =VLOOKUP($C123,'8. RAB Roll-Forward'!$C$661:$S$702,M$3,FALSE) -> 0 | N123: =VLOOKUP($C123,'8. RAB Roll-Forward'!$C$661:$S$702,N$3,FALSE) -> 0 | O123: =VLOOKUP($C123,'8. RAB Roll-Forward'!$C$661:$S$702,O$3,FALSE) -> 0 | P123: =VLOOKUP($C123,'8. RAB Roll-Forward'!$C$661:$S$702,P$3,FALSE) -> 0 | Q123: =VLOOKUP($C123,'8. RAB Roll-Forward'!$C$661:$S$702,Q$3,FALSE) -> 0 | R123: =VLOOKUP($C123,'8. RAB Roll-Forward'!$C$312:$S$355,R$3,FALSE) -> 0 | S123: =VLOOKUP($C123,'8. RAB Roll-Forward'!$C$312:$S$355,S$3,FALSE) -> 0 | T123: 0
C124: CA13 | D124: Spare CAN Asset Class 13 | H124: =VLOOKUP($C124,'8. RAB Roll-Forward'!$C$661:$S$702,H$3,FALSE) -> 0 | I124: =VLOOKUP($C124,'8. RAB Roll-Forward'!$C$661:$S$702,I$3,FALSE) -> 0 | J124: =VLOOKUP($C124,'8. RAB Roll-Forward'!$C$661:$S$702,J$3,FALSE) -> 0 | K124: =VLOOKUP($C124,'8. RAB Roll-Forward'!$C$661:$S$702,K$3,FALSE) -> 0 | L124: =VLOOKUP($C124,'8. RAB Roll-Forward'!$C$661:$S$702,L$3,FALSE) -> 0 | M124: =VLOOKUP($C124,'8. RAB Roll-Forward'!$C$661:$S$702,M$3,FALSE) -> 0 | N124: =VLOOKUP($C124,'8. RAB Roll-Forward'!$C$661:$S$702,N$3,FALSE) -> 0 | O124: =VLOOKUP($C124,'8. RAB Roll-Forward'!$C$661:$S$702,O$3,FALSE) -> 0 | P124: =VLOOKUP($C124,'8. RAB Roll-Forward'!$C$661:$S$702,P$3,FALSE) -> 0 | Q124: =VLOOKUP($C124,'8. RAB Roll-Forward'!$C$661:$S$702,Q$3,FALSE) -> 0 | R124: =VLOOKUP($C124,'8. RAB Roll-Forward'!$C$312:$S$355,R$3,FALSE) -> 0 | S124: =VLOOKUP($C124,'8. RAB Roll-Forward'!$C$312:$S$355,S$3,FALSE) -> 0 | T124: 0
C125: CA14 | D125: Spare CAN Asset Class 14 | H125: =VLOOKUP($C125,'8. RAB Roll-Forward'!$C$661:$S$702,H$3,FALSE) -> 0 | I125: =VLOOKUP($C125,'8. RAB Roll-Forward'!$C$661:$S$702,I$3,FALSE) -> 0 | J125: =VLOOKUP($C125,'8. RAB Roll-Forward'!$C$661:$S$702,J$3,FALSE) -> 0 | K125: =VLOOKUP($C125,'8. RAB Roll-Forward'!$C$661:$S$702,K$3,FALSE) -> 0 | L125: =VLOOKUP($C125,'8. RAB Roll-Forward'!$C$661:$S$702,L$3,FALSE) -> 0 | M125: =VLOOKUP($C125,'8. RAB Roll-Forward'!$C$661:$S$702,M$3,FALSE) -> 0 | N125: =VLOOKUP($C125,'8. RAB Roll-Forward'!$C$661:$S$702,N$3,FALSE) -> 0 | O125: =VLOOKUP($C125,'8. RAB Roll-Forward'!$C$661:$S$702,O$3,FALSE) -> 0 | P125: =VLOOKUP($C125,'8. RAB Roll-Forward'!$C$661:$S$702,P$3,FALSE) -> 0 | Q125: =VLOOKUP($C125,'8. RAB Roll-Forward'!$C$661:$S$702,Q$3,FALSE) -> 0 | R125: =VLOOKUP($C125,'8. RAB Roll-Forward'!$C$312:$S$355,R$3,FALSE) -> 0 | S125: =VLOOKUP($C125,'8. RAB Roll-Forward'!$C$312:$S$355,S$3,FALSE) -> 0 | T125: 0
C126: CA15 | D126: Spare CAN Asset Class 15 | H126: =VLOOKUP($C126,'8. RAB Roll-Forward'!$C$661:$S$702,H$3,FALSE) -> 0 | I126: =VLOOKUP($C126,'8. RAB Roll-Forward'!$C$661:$S$702,I$3,FALSE) -> 0 | J126: =VLOOKUP($C126,'8. RAB Roll-Forward'!$C$661:$S$702,J$3,FALSE) -> 0 | K126: =VLOOKUP($C126,'8. RAB Roll-Forward'!$C$661:$S$702,K$3,FALSE) -> 0 | L126: =VLOOKUP($C126,'8. RAB Roll-Forward'!$C$661:$S$702,L$3,FALSE) -> 0 | M126: =VLOOKUP($C126,'8. RAB Roll-Forward'!$C$661:$S$702,M$3,FALSE) -> 0 | N126: =VLOOKUP($C126,'8. RAB Roll-Forward'!$C$661:$S$702,N$3,FALSE) -> 0 | O126: =VLOOKUP($C126,'8. RAB Roll-Forward'!$C$661:$S$702,O$3,FALSE) -> 0 | P126: =VLOOKUP($C126,'8. RAB Roll-Forward'!$C$661:$S$702,P$3,FALSE) -> 0 | Q126: =VLOOKUP($C126,'8. RAB Roll-Forward'!$C$661:$S$702,Q$3,FALSE) -> 0 | R126: =VLOOKUP($C126,'8. RAB Roll-Forward'!$C$312:$S$355,R$3,FALSE) -> 0 | S126: =VLOOKUP($C126,'8. RAB Roll-Forward'!$C$312:$S$355,S$3,FALSE) -> 0 | T126: 0
C127: CA16 | D127: Spare CAN Asset Class 16 | H127: =VLOOKUP($C127,'8. RAB Roll-Forward'!$C$661:$S$702,H$3,FALSE) -> 0 | I127: =VLOOKUP($C127,'8. RAB Roll-Forward'!$C$661:$S$702,I$3,FALSE) -> 0 | J127: =VLOOKUP($C127,'8. RAB Roll-Forward'!$C$661:$S$702,J$3,FALSE) -> 0 | K127: =VLOOKUP($C127,'8. RAB Roll-Forward'!$C$661:$S$702,K$3,FALSE) -> 0 | L127: =VLOOKUP($C127,'8. RAB Roll-Forward'!$C$661:$S$702,L$3,FALSE) -> 0 | M127: =VLOOKUP($C127,'8. RAB Roll-Forward'!$C$661:$S$702,M$3,FALSE) -> 0 | N127: =VLOOKUP($C127,'8. RAB Roll-Forward'!$C$661:$S$702,N$3,FALSE) -> 0 | O127: =VLOOKUP($C127,'8. RAB Roll-Forward'!$C$661:$S$702,O$3,FALSE) -> 0 | P127: =VLOOKUP($C127,'8. RAB Roll-Forward'!$C$661:$S$702,P$3,FALSE) -> 0 | Q127: =VLOOKUP($C127,'8. RAB Roll-Forward'!$C$661:$S$702,Q$3,FALSE) -> 0 | R127: =VLOOKUP($C127,'8. RAB Roll-Forward'!$C$312:$S$355,R$3,FALSE) -> 0 | S127: =VLOOKUP($C127,'8. RAB Roll-Forward'!$C$312:$S$355,S$3,FALSE) -> 0 | T127: 0
C128: CA17 | D128: Spare CAN Asset Class 17 | H128: =VLOOKUP($C128,'8. RAB Roll-Forward'!$C$661:$S$702,H$3,FALSE) -> 0 | I128: =VLOOKUP($C128,'8. RAB Roll-Forward'!$C$661:$S$702,I$3,FALSE) -> 0 | J128: =VLOOKUP($C128,'8. RAB Roll-Forward'!$C$661:$S$702,J$3,FALSE) -> 0 | K128: =VLOOKUP($C128,'8. RAB Roll-Forward'!$C$661:$S$702,K$3,FALSE) -> 0 | L128: =VLOOKUP($C128,'8. RAB Roll-Forward'!$C$661:$S$702,L$3,FALSE) -> 0 | M128: =VLOOKUP($C128,'8. RAB Roll-Forward'!$C$661:$S$702,M$3,FALSE) -> 0 | N128: =VLOOKUP($C128,'8. RAB Roll-Forward'!$C$661:$S$702,N$3,FALSE) -> 0 | O128: =VLOOKUP($C128,'8. RAB Roll-Forward'!$C$661:$S$702,O$3,FALSE) -> 0 | P128: =VLOOKUP($C128,'8. RAB Roll-Forward'!$C$661:$S$702,P$3,FALSE) -> 0 | Q128: =VLOOKUP($C128,'8. RAB Roll-Forward'!$C$661:$S$702,Q$3,FALSE) -> 0 | R128: =VLOOKUP($C128,'8. RAB Roll-Forward'!$C$312:$S$355,R$3,FALSE) -> 0 | S128: =VLOOKUP($C128,'8. RAB Roll-Forward'!$C$312:$S$355,S$3,FALSE) -> 0 | T128: 0
C129: CA18 | D129: Spare CAN Asset Class 18 | H129: =VLOOKUP($C129,'8. RAB Roll-Forward'!$C$661:$S$702,H$3,FALSE) -> 0 | I129: =VLOOKUP($C129,'8. RAB Roll-Forward'!$C$661:$S$702,I$3,FALSE) -> 0 | J129: =VLOOKUP($C129,'8. RAB Roll-Forward'!$C$661:$S$702,J$3,FALSE) -> 0 | K129: =VLOOKUP($C129,'8. RAB Roll-Forward'!$C$661:$S$702,K$3,FALSE) -> 0 | L129: =VLOOKUP($C129,'8. RAB Roll-Forward'!$C$661:$S$702,L$3,FALSE) -> 0 | M129: =VLOOKUP($C129,'8. RAB Roll-Forward'!$C$661:$S$702,M$3,FALSE) -> 0 | N129: =VLOOKUP($C129,'8. RAB Roll-Forward'!$C$661:$S$702,N$3,FALSE) -> 0 | O129: =VLOOKUP($C129,'8. RAB Roll-Forward'!$C$661:$S$702,O$3,FALSE) -> 0 | P129: =VLOOKUP($C129,'8. RAB Roll-Forward'!$C$661:$S$702,P$3,FALSE) -> 0 | Q129: =VLOOKUP($C129,'8. RAB Roll-Forward'!$C$661:$S$702,Q$3,FALSE) -> 0 | R129: =VLOOKUP($C129,'8. RAB Roll-Forward'!$C$312:$S$355,R$3,FALSE) -> 0 | S129: =VLOOKUP($C129,'8. RAB Roll-Forward'!$C$312:$S$355,S$3,FALSE) -> 0 | T129: 0
C130: CA19 | D130: Spare CAN Asset Class 19 | H130: =VLOOKUP($C130,'8. RAB Roll-Forward'!$C$661:$S$702,H$3,FALSE) -> 0 | I130: =VLOOKUP($C130,'8. RAB Roll-Forward'!$C$661:$S$702,I$3,FALSE) -> 0 | J130: =VLOOKUP($C130,'8. RAB Roll-Forward'!$C$661:$S$702,J$3,FALSE) -> 0 | K130: =VLOOKUP($C130,'8. RAB Roll-Forward'!$C$661:$S$702,K$3,FALSE) -> 0 | L130: =VLOOKUP($C130,'8. RAB Roll-Forward'!$C$661:$S$702,L$3,FALSE) -> 0 | M130: =VLOOKUP($C130,'8. RAB Roll-Forward'!$C$661:$S$702,M$3,FALSE) -> 0 | N130: =VLOOKUP($C130,'8. RAB Roll-Forward'!$C$661:$S$702,N$3,FALSE) -> 0 | O130: =VLOOKUP($C130,'8. RAB Roll-Forward'!$C$661:$S$702,O$3,FALSE) -> 0 | P130: =VLOOKUP($C130,'8. RAB Roll-Forward'!$C$661:$S$702,P$3,FALSE) -> 0 | Q130: =VLOOKUP($C130,'8. RAB Roll-Forward'!$C$661:$S$702,Q$3,FALSE) -> 0 | R130: =VLOOKUP($C130,'8. RAB Roll-Forward'!$C$312:$S$355,R$3,FALSE) -> 0 | S130: =VLOOKUP($C130,'8. RAB Roll-Forward'!$C$312:$S$355,S$3,FALSE) -> 0 | T130: 0
C131: CA20 | D131: Spare CAN Asset Class 20 | H131: =VLOOKUP($C131,'8. RAB Roll-Forward'!$C$661:$S$702,H$3,FALSE) -> 0 | I131: =VLOOKUP($C131,'8. RAB Roll-Forward'!$C$661:$S$702,I$3,FALSE) -> 0 | J131: =VLOOKUP($C131,'8. RAB Roll-Forward'!$C$661:$S$702,J$3,FALSE) -> 0 | K131: =VLOOKUP($C131,'8. RAB Roll-Forward'!$C$661:$S$702,K$3,FALSE) -> 0 | L131: =VLOOKUP($C131,'8. RAB Roll-Forward'!$C$661:$S$702,L$3,FALSE) -> 0 | M131: =VLOOKUP($C131,'8. RAB Roll-Forward'!$C$661:$S$702,M$3,FALSE) -> 0 | N131: =VLOOKUP($C131,'8. RAB Roll-Forward'!$C$661:$S$702,N$3,FALSE) -> 0 | O131: =VLOOKUP($C131,'8. RAB Roll-Forward'!$C$661:$S$702,O$3,FALSE) -> 0 | P131: =VLOOKUP($C131,'8. RAB Roll-Forward'!$C$661:$S$702,P$3,FALSE) -> 0 | Q131: =VLOOKUP($C131,'8. RAB Roll-Forward'!$C$661:$S$702,Q$3,FALSE) -> 0 | R131: =VLOOKUP($C131,'8. RAB Roll-Forward'!$C$312:$S$355,R$3,FALSE) -> 0 | S131: =VLOOKUP($C131,'8. RAB Roll-Forward'!$C$312:$S$355,S$3,FALSE) -> 0 | T131: 0
D132: Total | H132: =SUM(H112:H131) -> 8.2001 | I132: =SUM(I112:I131) -> 2.754979893 | J132: 3.248285233 | K132: 3.736645386 | L132: 4.228995892 | M132: 4.521346397 | N132: -160431.0311 | O132: -153104.1067 | P132: -352813.7469 | Q132: -613796.6293 | R132: 0.0001 | S132: 0.0001 | T132: -1280118.824
C133: Core Asset Class
C134: CO01 | D134: =VLOOKUP(C134,Core_AC,2,FALSE) -> Switching Equipment - Local | H134: =VLOOKUP($C134,'8. RAB Roll-Forward'!$C$661:$S$702,H$3,FALSE) -> 1 | I134: =VLOOKUP($C134,'8. RAB Roll-Forward'!$C$661:$S$702,I$3,FALSE) -> 0.03817730655 | J134: =VLOOKUP($C134,'8. RAB Roll-Forward'!$C$661:$S$702,J$3,FALSE) -> 0.0763546131 | K134: =VLOOKUP($C134,'8. RAB Roll-Forward'!$C$661:$S$702,K$3,FALSE) -> 0.1144580242 | L134: =VLOOKUP($C134,'8. RAB Roll-Forward'!$C$661:$S$702,L$3,FALSE) -> 0.1525614354 | M134: =VLOOKUP($C134,'8. RAB Roll-Forward'!$C$661:$S$702,M$3,FALSE) -> 0.1906648465 | N134: =VLOOKUP($C134,'8. RAB Roll-Forward'!$C$661:$S$702,N$3,FALSE) -> 0.1906683581 | O134: =VLOOKUP($C134,'8. RAB Roll-Forward'!$C$661:$S$702,O$3,FALSE) -> 0.190667411 | P134: =VLOOKUP($C134,'8. RAB Roll-Forward'!$C$661:$S$702,P$3,FALSE) -> 0.1906673411 | Q134: =VLOOKUP($C134,'8. RAB Roll-Forward'!$C$661:$S$702,Q$3,FALSE) -> 0.1906672756 | R134: =VLOOKUP($C134,'8. RAB Roll-Forward'!$C$312:$S$355,R$3,FALSE) -> 0 | S134: =VLOOKUP($C134,'8. RAB Roll-Forward'!$C$312:$S$355,S$3,FALSE) -> 0 | T134: =SUM(OFFSET($H134,0,0,1,Model_period)) -> 2.334886612
C135: CO02 | D135: Switching Equipment - Trunk | H135: =VLOOKUP($C135,'8. RAB Roll-Forward'!$C$661:$S$702,H$3,FALSE) -> 1 | I135: =VLOOKUP($C135,'8. RAB Roll-Forward'!$C$661:$S$702,I$3,FALSE) -> 0.04123149107 | J135: =VLOOKUP($C135,'8. RAB Roll-Forward'!$C$661:$S$702,J$3,FALSE) -> 0.08246298214 | K135: =VLOOKUP($C135,'8. RAB Roll-Forward'!$C$661:$S$702,K$3,FALSE) -> 0.1236146662 | L135: =VLOOKUP($C135,'8. RAB Roll-Forward'!$C$661:$S$702,L$3,FALSE) -> 0.1647663502 | M135: =VLOOKUP($C135,'8. RAB Roll-Forward'!$C$661:$S$702,M$3,FALSE) -> 0.2059180342 | N135: =VLOOKUP($C135,'8. RAB Roll-Forward'!$C$661:$S$702,N$3,FALSE) -> 0.2059215459 | O135: =VLOOKUP($C135,'8. RAB Roll-Forward'!$C$661:$S$702,O$3,FALSE) -> 0.2059197439 | P135: =VLOOKUP($C135,'8. RAB Roll-Forward'!$C$661:$S$702,P$3,FALSE) -> 0.2059196973 | Q135: =VLOOKUP($C135,'8. RAB Roll-Forward'!$C$661:$S$702,Q$3,FALSE) -> 0.2059196536 | R135: =VLOOKUP($C135,'8. RAB Roll-Forward'!$C$312:$S$355,R$3,FALSE) -> 0 | S135: =VLOOKUP($C135,'8. RAB Roll-Forward'!$C$312:$S$355,S$3,FALSE) -> 0 | T135: 2.441674165
C136: CO03 | D136: Switching Equipment - Other | H136: =VLOOKUP($C136,'8. RAB Roll-Forward'!$C$661:$S$702,H$3,FALSE) -> 1 | I136: =VLOOKUP($C136,'8. RAB Roll-Forward'!$C$661:$S$702,I$3,FALSE) -> 0.05153936384 | J136: =VLOOKUP($C136,'8. RAB Roll-Forward'!$C$661:$S$702,J$3,FALSE) -> 0.1030787277 | K136: =VLOOKUP($C136,'8. RAB Roll-Forward'!$C$661:$S$702,K$3,FALSE) -> 0.1545183327 | L136: =VLOOKUP($C136,'8. RAB Roll-Forward'!$C$661:$S$702,L$3,FALSE) -> 0.2059579378 | M136: =VLOOKUP($C136,'8. RAB Roll-Forward'!$C$661:$S$702,M$3,FALSE) -> 0.2573975428 | N136: =VLOOKUP($C136,'8. RAB Roll-Forward'!$C$661:$S$702,N$3,FALSE) -> 0.2574010544 | O136: =VLOOKUP($C136,'8. RAB Roll-Forward'!$C$661:$S$702,O$3,FALSE) -> 0.2573992525 | P136: =VLOOKUP($C136,'8. RAB Roll-Forward'!$C$661:$S$702,P$3,FALSE) -> 0.2573992059 | Q136: =VLOOKUP($C136,'8. RAB Roll-Forward'!$C$661:$S$702,Q$3,FALSE) -> 0.2573991622 | R136: =VLOOKUP($C136,'8. RAB Roll-Forward'!$C$312:$S$355,R$3,FALSE) -> 0 | S136: =VLOOKUP($C136,'8. RAB Roll-Forward'!$C$312:$S$355,S$3,FALSE) -> 0 | T136: 2.80209058
C137: CO04 | D137: Inter-exchange Cables | H137: =VLOOKUP($C137,'8. RAB Roll-Forward'!$C$661:$S$702,H$3,FALSE) -> 1 | I137: =VLOOKUP($C137,'8. RAB Roll-Forward'!$C$661:$S$702,I$3,FALSE) -> 0.02712598097 | J137: =VLOOKUP($C137,'8. RAB Roll-Forward'!$C$661:$S$702,J$3,FALSE) -> 0.05425196194 | K137: =VLOOKUP($C137,'8. RAB Roll-Forward'!$C$661:$S$702,K$3,FALSE) -> 0.08132543827 | L137: =VLOOKUP($C137,'8. RAB Roll-Forward'!$C$661:$S$702,L$3,FALSE) -> 0.1083989146 | M137: =VLOOKUP($C137,'8. RAB Roll-Forward'!$C$661:$S$702,M$3,FALSE) -> 0.135472391 | N137: =VLOOKUP($C137,'8. RAB Roll-Forward'!$C$661:$S$702,N$3,FALSE) -> 0.1354759026 | O137: =VLOOKUP($C137,'8. RAB Roll-Forward'!$C$661:$S$702,O$3,FALSE) -> 0.1354749554 | P137: =VLOOKUP($C137,'8. RAB Roll-Forward'!$C$661:$S$702,P$3,FALSE) -> 0.1354748856 | Q137: =VLOOKUP($C137,'8. RAB Roll-Forward'!$C$661:$S$702,Q$3,FALSE) -> 0.13547482 | R137: =VLOOKUP($C137,'8. RAB Roll-Forward'!$C$312:$S$355,R$3,FALSE) -> 0 | S137: =VLOOKUP($C137,'8. RAB Roll-Forward'!$C$312:$S$355,S$3,FALSE) -> 0 | T137: 1.94847525
C138: CO05 | D138: Transmission Equipment | H138: =VLOOKUP($C138,'8. RAB Roll-Forward'!$C$661:$S$702,H$3,FALSE) -> 1 | I138: =VLOOKUP($C138,'8. RAB Roll-Forward'!$C$661:$S$702,I$3,FALSE) -> 1.030787277 | J138: =VLOOKUP($C138,'8. RAB Roll-Forward'!$C$661:$S$702,J$3,FALSE) -> 1.030787277 | K138: =VLOOKUP($C138,'8. RAB Roll-Forward'!$C$661:$S$702,K$3,FALSE) -> 1.028792101 | L138: =VLOOKUP($C138,'8. RAB Roll-Forward'!$C$661:$S$702,L$3,FALSE) -> 1.028792101 | M138: =VLOOKUP($C138,'8. RAB Roll-Forward'!$C$661:$S$702,M$3,FALSE) -> 1.028792101 | N138: =VLOOKUP($C138,'8. RAB Roll-Forward'!$C$661:$S$702,N$3,FALSE) -> 3.511606824e-06 | O138: =VLOOKUP($C138,'8. RAB Roll-Forward'!$C$661:$S$702,O$3,FALSE) -> 2.564464574e-06 | P138: =VLOOKUP($C138,'8. RAB Roll-Forward'!$C$661:$S$702,P$3,FALSE) -> 2.494615345e-06 | Q138: =VLOOKUP($C138,'8. RAB Roll-Forward'!$C$661:$S$702,Q$3,FALSE) -> 2.429031494e-06 | R138: =VLOOKUP($C138,'8. RAB Roll-Forward'!$C$312:$S$355,R$3,FALSE) -> 0 | S138: =VLOOKUP($C138,'8. RAB Roll-Forward'!$C$312:$S$355,S$3,FALSE) -> 0 | T138: 6.147961856
C139: CO06 | D139: Core Radio Bearer Equipment | H139: =VLOOKUP($C139,'8. RAB Roll-Forward'!$C$661:$S$702,H$3,FALSE) -> 1 | I139: =VLOOKUP($C139,'8. RAB Roll-Forward'!$C$661:$S$702,I$3,FALSE) -> 0.0644242048 | J139: =VLOOKUP($C139,'8. RAB Roll-Forward'!$C$661:$S$702,J$3,FALSE) -> 0.1288484096 | K139: =VLOOKUP($C139,'8. RAB Roll-Forward'!$C$661:$S$702,K$3,FALSE) -> 0.1931479159 | L139: =VLOOKUP($C139,'8. RAB Roll-Forward'!$C$661:$S$702,L$3,FALSE) -> 0.2574474222 | M139: =VLOOKUP($C139,'8. RAB Roll-Forward'!$C$661:$S$702,M$3,FALSE) -> 0.3217469285 | N139: =VLOOKUP($C139,'8. RAB Roll-Forward'!$C$661:$S$702,N$3,FALSE) -> 0.3217504401 | O139: =VLOOKUP($C139,'8. RAB Roll-Forward'!$C$661:$S$702,O$3,FALSE) -> 0.3217486382 | P139: =VLOOKUP($C139,'8. RAB Roll-Forward'!$C$661:$S$702,P$3,FALSE) -> 0.3217485916 | Q139: =VLOOKUP($C139,'8. RAB Roll-Forward'!$C$661:$S$702,Q$3,FALSE) -> 0.3217485479 | R139: =VLOOKUP($C139,'8. RAB Roll-Forward'!$C$312:$S$355,R$3,FALSE) -> 0 | S139: =VLOOKUP($C139,'8. RAB Roll-Forward'!$C$312:$S$355,S$3,FALSE) -> 0 | T139: 3.252611099
C140: CO07 | D140: Other Communications Plant and Equipment | H140: =VLOOKUP($C140,'8. RAB Roll-Forward'!$C$661:$S$702,H$3,FALSE) -> 1 | I140: =VLOOKUP($C140,'8. RAB Roll-Forward'!$C$661:$S$702,I$3,FALSE) -> 1.030787277 | J140: =VLOOKUP($C140,'8. RAB Roll-Forward'!$C$661:$S$702,J$3,FALSE) -> 1.030787277 | K140: =VLOOKUP($C140,'8. RAB Roll-Forward'!$C$661:$S$702,K$3,FALSE) -> 1.028792101 | L140: =VLOOKUP($C140,'8. RAB Roll-Forward'!$C$661:$S$702,L$3,FALSE) -> 1.028792101 | M140: =VLOOKUP($C140,'8. RAB Roll-Forward'!$C$661:$S$702,M$3,FALSE) -> 1.028792101 | N140: =VLOOKUP($C140,'8. RAB Roll-Forward'!$C$661:$S$702,N$3,FALSE) -> 3.511606824e-06 | O140: =VLOOKUP($C140,'8. RAB Roll-Forward'!$C$661:$S$702,O$3,FALSE) -> 2.564464574e-06 | P140: =VLOOKUP($C140,'8. RAB Roll-Forward'!$C$661:$S$702,P$3,FALSE) -> 2.494615345e-06 | Q140: =VLOOKUP($C140,'8. RAB Roll-Forward'!$C$661:$S$702,Q$3,FALSE) -> 2.429031494e-06 | R140: =VLOOKUP($C140,'8. RAB Roll-Forward'!$C$312:$S$355,R$3,FALSE) -> 0 | S140: =VLOOKUP($C140,'8. RAB Roll-Forward'!$C$312:$S$355,S$3,FALSE) -> 0 | T140: 6.147961856
C141: CO08 | D141: Network Land | H141: =VLOOKUP($C141,'8. RAB Roll-Forward'!$C$661:$S$702,H$3,FALSE) -> 0.0001 | I141: =VLOOKUP($C141,'8. RAB Roll-Forward'!$C$661:$S$702,I$3,FALSE) -> 0.0001 | J141: =VLOOKUP($C141,'8. RAB Roll-Forward'!$C$661:$S$702,J$3,FALSE) -> 0.0001 | K141: =VLOOKUP($C141,'8. RAB Roll-Forward'!$C$661:$S$702,K$3,FALSE) -> 0.0001 | L141: =VLOOKUP($C141,'8. RAB Roll-Forward'!$C$661:$S$702,L$3,FALSE) -> 0.0001 | M141: =VLOOKUP($C141,'8. RAB Roll-Forward'!$C$661:$S$702,M$3,FALSE) -> 0.0001 | N141: =VLOOKUP($C141,'8. RAB Roll-Forward'!$C$661:$S$702,N$3,FALSE) -> 0.0001000003512 | O141: =VLOOKUP($C141,'8. RAB Roll-Forward'!$C$661:$S$702,O$3,FALSE) -> 0.0001000003512 | P141: =VLOOKUP($C141,'8. RAB Roll-Forward'!$C$661:$S$702,P$3,FALSE) -> 0.0001000003512 | Q141: =VLOOKUP($C141,'8. RAB Roll-Forward'!$C$661:$S$702,Q$3,FALSE) -> 0.0001000003512 | R141: =VLOOKUP($C141,'8. RAB Roll-Forward'!$C$312:$S$355,R$3,FALSE) -> 0.0001 | S141: =VLOOKUP($C141,'8. RAB Roll-Forward'!$C$312:$S$355,S$3,FALSE) -> 0.0001 | T141: 0.001000001405
C142: CO09 | D142: Network Buildings/Support | H142: =VLOOKUP($C142,'8. RAB Roll-Forward'!$C$661:$S$702,H$3,FALSE) -> 1 | I142: =VLOOKUP($C142,'8. RAB Roll-Forward'!$C$661:$S$702,I$3,FALSE) -> 1.030787277 | J142: =VLOOKUP($C142,'8. RAB Roll-Forward'!$C$661:$S$702,J$3,FALSE) -> 1.030787277 | K142: =VLOOKUP($C142,'8. RAB Roll-Forward'!$C$661:$S$702,K$3,FALSE) -> 1.028792101 | L142: =VLOOKUP($C142,'8. RAB Roll-Forward'!$C$661:$S$702,L$3,FALSE) -> 1.028792101 | M142: =VLOOKUP($C142,'8. RAB Roll-Forward'!$C$661:$S$702,M$3,FALSE) -> 1.028792101 | N142: =VLOOKUP($C142,'8. RAB Roll-Forward'!$C$661:$S$702,N$3,FALSE) -> 3.511606824e-06 | O142: =VLOOKUP($C142,'8. RAB Roll-Forward'!$C$661:$S$702,O$3,FALSE) -> 2.564464574e-06 | P142: =VLOOKUP($C142,'8. RAB Roll-Forward'!$C$661:$S$702,P$3,FALSE) -> 2.494615345e-06 | Q142: =VLOOKUP($C142,'8. RAB Roll-Forward'!$C$661:$S$702,Q$3,FALSE) -> 2.429031494e-06 | R142: =VLOOKUP($C142,'8. RAB Roll-Forward'!$C$312:$S$355,R$3,FALSE) -> 0 | S142: =VLOOKUP($C142,'8. RAB Roll-Forward'!$C$312:$S$355,S$3,FALSE) -> 0 | T142: 6.147961856
C143: CO10 | D143: Indirect Capital Assets | H143: =VLOOKUP($C143,'8. RAB Roll-Forward'!$C$661:$S$702,H$3,FALSE) -> 0.2 | I143: =VLOOKUP($C143,'8. RAB Roll-Forward'!$C$661:$S$702,I$3,FALSE) -> 0.3030787277 | J143: =VLOOKUP($C143,'8. RAB Roll-Forward'!$C$661:$S$702,J$3,FALSE) -> 0.4061574554 | K143: =VLOOKUP($C143,'8. RAB Roll-Forward'!$C$661:$S$702,K$3,FALSE) -> 0.5090366654 | L143: =VLOOKUP($C143,'8. RAB Roll-Forward'!$C$661:$S$702,L$3,FALSE) -> 0.6119158755 | M143: =VLOOKUP($C143,'8. RAB Roll-Forward'!$C$661:$S$702,M$3,FALSE) -> 0.5147950856 | N143: =VLOOKUP($C143,'8. RAB Roll-Forward'!$C$661:$S$702,N$3,FALSE) -> 0.5147985972 | O143: =VLOOKUP($C143,'8. RAB Roll-Forward'!$C$661:$S$702,O$3,FALSE) -> 0.5147976501 | P143: =VLOOKUP($C143,'8. RAB Roll-Forward'!$C$661:$S$702,P$3,FALSE) -> 0.5147975802 | Q143: =VLOOKUP($C143,'8. RAB Roll-Forward'!$C$661:$S$702,Q$3,FALSE) -> 0.5147975146 | R143: =VLOOKUP($C143,'8. RAB Roll-Forward'!$C$312:$S$355,R$3,FALSE) -> 0 | S143: =VLOOKUP($C143,'8. RAB Roll-Forward'!$C$312:$S$355,S$3,FALSE) -> 0 | T143: 4.604175152
C144: CO11 | D144: LSS equipment | H144: =VLOOKUP($C144,'8. RAB Roll-Forward'!$C$661:$S$702,H$3,FALSE) -> 0 | I144: =VLOOKUP($C144,'8. RAB Roll-Forward'!$C$661:$S$702,I$3,FALSE) -> 0 | J144: =VLOOKUP($C144,'8. RAB Roll-Forward'!$C$661:$S$702,J$3,FALSE) -> 0 | K144: =VLOOKUP($C144,'8. RAB Roll-Forward'!$C$661:$S$702,K$3,FALSE) -> 0 | L144: =VLOOKUP($C144,'8. RAB Roll-Forward'!$C$661:$S$702,L$3,FALSE) -> 0 | M144: =VLOOKUP($C144,'8. RAB Roll-Forward'!$C$661:$S$702,M$3,FALSE) -> 0 | N144: =VLOOKUP($C144,'8. RAB Roll-Forward'!$C$661:$S$702,N$3,FALSE) -> 3.511606824e-06 | O144: =VLOOKUP($C144,'8. RAB Roll-Forward'!$C$661:$S$702,O$3,FALSE) -> 0 | P144: =VLOOKUP($C144,'8. RAB Roll-Forward'!$C$661:$S$702,P$3,FALSE) -> 0 | Q144: =VLOOKUP($C144,'8. RAB Roll-Forward'!$C$661:$S$702,Q$3,FALSE) -> 0 | R144: =VLOOKUP($C144,'8. RAB Roll-Forward'!$C$312:$S$355,R$3,FALSE) -> 0 | S144: =VLOOKUP($C144,'8. RAB Roll-Forward'!$C$312:$S$355,S$3,FALSE) -> 0 | T144: 3.511606824e-06
C145: CO12 | D145: Data Equipment | H145: =VLOOKUP($C145,'8. RAB Roll-Forward'!$C$661:$S$702,H$3,FALSE) -> 1 | I145: =VLOOKUP($C145,'8. RAB Roll-Forward'!$C$661:$S$702,I$3,FALSE) -> 0.1717978795 | J145: =VLOOKUP($C145,'8. RAB Roll-Forward'!$C$661:$S$702,J$3,FALSE) -> 0.3435957589 | K145: =VLOOKUP($C145,'8. RAB Roll-Forward'!$C$661:$S$702,K$3,FALSE) -> 0.5150611091 | L145: =VLOOKUP($C145,'8. RAB Roll-Forward'!$C$661:$S$702,L$3,FALSE) -> 0.6865264592 | M145: =VLOOKUP($C145,'8. RAB Roll-Forward'!$C$661:$S$702,M$3,FALSE) -> 0.8579918094 | N145: =VLOOKUP($C145,'8. RAB Roll-Forward'!$C$661:$S$702,N$3,FALSE) -> 0.857995321 | O145: =VLOOKUP($C145,'8. RAB Roll-Forward'!$C$661:$S$702,O$3,FALSE) -> 0.6861960817 | P145: =VLOOKUP($C145,'8. RAB Roll-Forward'!$C$661:$S$702,P$3,FALSE) -> 0.5143977565 | Q145: =VLOOKUP($C145,'8. RAB Roll-Forward'!$C$661:$S$702,Q$3,FALSE) -> 0.3429319985 | R145: =VLOOKUP($C145,'8. RAB Roll-Forward'!$C$312:$S$355,R$3,FALSE) -> 0 | S145: =VLOOKUP($C145,'8. RAB Roll-Forward'!$C$312:$S$355,S$3,FALSE) -> 0 | T145: 5.976494174
C146: CO13 | D146: Spare Core Asset Class 13 | H146: =VLOOKUP($C146,'8. RAB Roll-Forward'!$C$661:$S$702,H$3,FALSE) -> 0 | I146: =VLOOKUP($C146,'8. RAB Roll-Forward'!$C$661:$S$702,I$3,FALSE) -> 0 | J146: =VLOOKUP($C146,'8. RAB Roll-Forward'!$C$661:$S$702,J$3,FALSE) -> 0 | K146: =VLOOKUP($C146,'8. RAB Roll-Forward'!$C$661:$S$702,K$3,FALSE) -> 0 | L146: =VLOOKUP($C146,'8. RAB Roll-Forward'!$C$661:$S$702,L$3,FALSE) -> 0 | M146: =VLOOKUP($C146,'8. RAB Roll-Forward'!$C$661:$S$702,M$3,FALSE) -> 0 | N146: =VLOOKUP($C146,'8. RAB Roll-Forward'!$C$661:$S$702,N$3,FALSE) -> 0 | O146: =VLOOKUP($C146,'8. RAB Roll-Forward'!$C$661:$S$702,O$3,FALSE) -> 0 | P146: =VLOOKUP($C146,'8. RAB Roll-Forward'!$C$661:$S$702,P$3,FALSE) -> 0 | Q146: =VLOOKUP($C146,'8. RAB Roll-Forward'!$C$661:$S$702,Q$3,FALSE) -> 0 | R146: =VLOOKUP($C146,'8. RAB Roll-Forward'!$C$312:$S$355,R$3,FALSE) -> 0 | S146: =VLOOKUP($C146,'8. RAB Roll-Forward'!$C$312:$S$355,S$3,FALSE) -> 0 | T146: 0
C147: CO14 | D147: Spare Core Asset Class 14 | H147: =VLOOKUP($C147,'8. RAB Roll-Forward'!$C$661:$S$702,H$3,FALSE) -> 0 | I147: =VLOOKUP($C147,'8. RAB Roll-Forward'!$C$661:$S$702,I$3,FALSE) -> 0 | J147: =VLOOKUP($C147,'8. RAB Roll-Forward'!$C$661:$S$702,J$3,FALSE) -> 0 | K147: =VLOOKUP($C147,'8. RAB Roll-Forward'!$C$661:$S$702,K$3,FALSE) -> 0 | L147: =VLOOKUP($C147,'8. RAB Roll-Forward'!$C$661:$S$702,L$3,FALSE) -> 0 | M147: =VLOOKUP($C147,'8. RAB Roll-Forward'!$C$661:$S$702,M$3,FALSE) -> 0 | N147: =VLOOKUP($C147,'8. RAB Roll-Forward'!$C$661:$S$702,N$3,FALSE) -> 0 | O147: =VLOOKUP($C147,'8. RAB Roll-Forward'!$C$661:$S$702,O$3,FALSE) -> 0 | P147: =VLOOKUP($C147,'8. RAB Roll-Forward'!$C$661:$S$702,P$3,FALSE) -> 0 | Q147: =VLOOKUP($C147,'8. RAB Roll-Forward'!$C$661:$S$702,Q$3,FALSE) -> 0 | R147: =VLOOKUP($C147,'8. RAB Roll-Forward'!$C$312:$S$355,R$3,FALSE) -> 0 | S147: =VLOOKUP($C147,'8. RAB Roll-Forward'!$C$312:$S$355,S$3,FALSE) -> 0 | T147: 0
C148: CO15 | D148: Spare Core Asset Class 15 | H148: =VLOOKUP($C148,'8. RAB Roll-Forward'!$C$661:$S$702,H$3,FALSE) -> 0 | I148: =VLOOKUP($C148,'8. RAB Roll-Forward'!$C$661:$S$702,I$3,FALSE) -> 0 | J148: =VLOOKUP($C148,'8. RAB Roll-Forward'!$C$661:$S$702,J$3,FALSE) -> 0 | K148: =VLOOKUP($C148,'8. RAB Roll-Forward'!$C$661:$S$702,K$3,FALSE) -> 0 | L148: =VLOOKUP($C148,'8. RAB Roll-Forward'!$C$661:$S$702,L$3,FALSE) -> 0 | M148: =VLOOKUP($C148,'8. RAB Roll-Forward'!$C$661:$S$702,M$3,FALSE) -> 0 | N148: =VLOOKUP($C148,'8. RAB Roll-Forward'!$C$661:$S$702,N$3,FALSE) -> 0 | O148: =VLOOKUP($C148,'8. RAB Roll-Forward'!$C$661:$S$702,O$3,FALSE) -> 0 | P148: =VLOOKUP($C148,'8. RAB Roll-Forward'!$C$661:$S$702,P$3,FALSE) -> 0 | Q148: =VLOOKUP($C148,'8. RAB Roll-Forward'!$C$661:$S$702,Q$3,FALSE) -> 0 | R148: =VLOOKUP($C148,'8. RAB Roll-Forward'!$C$312:$S$355,R$3,FALSE) -> 0 | S148: =VLOOKUP($C148,'8. RAB Roll-Forward'!$C$312:$S$355,S$3,FALSE) -> 0 | T148: 0
C149: CO16 | D149: Spare Core Asset Class 16 | H149: =VLOOKUP($C149,'8. RAB Roll-Forward'!$C$661:$S$702,H$3,FALSE) -> 0 | I149: =VLOOKUP($C149,'8. RAB Roll-Forward'!$C$661:$S$702,I$3,FALSE) -> 0 | J149: =VLOOKUP($C149,'8. RAB Roll-Forward'!$C$661:$S$702,J$3,FALSE) -> 0 | K149: =VLOOKUP($C149,'8. RAB Roll-Forward'!$C$661:$S$702,K$3,FALSE) -> 0 | L149: =VLOOKUP($C149,'8. RAB Roll-Forward'!$C$661:$S$702,L$3,FALSE) -> 0 | M149: =VLOOKUP($C149,'8. RAB Roll-Forward'!$C$661:$S$702,M$3,FALSE) -> 0 | N149: =VLOOKUP($C149,'8. RAB Roll-Forward'!$C$661:$S$702,N$3,FALSE) -> 0 | O149: =VLOOKUP($C149,'8. RAB Roll-Forward'!$C$661:$S$702,O$3,FALSE) -> 0 | P149: =VLOOKUP($C149,'8. RAB Roll-Forward'!$C$661:$S$702,P$3,FALSE) -> 0 | Q149: =VLOOKUP($C149,'8. RAB Roll-Forward'!$C$661:$S$702,Q$3,FALSE) -> 0 | R149: =VLOOKUP($C149,'8. RAB Roll-Forward'!$C$312:$S$355,R$3,FALSE) -> 0 | S149: =VLOOKUP($C149,'8. RAB Roll-Forward'!$C$312:$S$355,S$3,FALSE) -> 0 | T149: 0
C150: CO17 | D150: Spare Core Asset Class 17 | H150: =VLOOKUP($C150,'8. RAB Roll-Forward'!$C$661:$S$702,H$3,FALSE) -> 0 | I150: =VLOOKUP($C150,'8. RAB Roll-Forward'!$C$661:$S$702,I$3,FALSE) -> 0 | J150: =VLOOKUP($C150,'8. RAB Roll-Forward'!$C$661:$S$702,J$3,FALSE) -> 0 | K150: =VLOOKUP($C150,'8. RAB Roll-Forward'!$C$661:$S$702,K$3,FALSE) -> 0 | L150: =VLOOKUP($C150,'8. RAB Roll-Forward'!$C$661:$S$702,L$3,FALSE) -> 0 | M150: =VLOOKUP($C150,'8. RAB Roll-Forward'!$C$661:$S$702,M$3,FALSE) -> 0 | N150: =VLOOKUP($C150,'8. RAB Roll-Forward'!$C$661:$S$702,N$3,FALSE) -> 0 | O150: =VLOOKUP($C150,'8. RAB Roll-Forward'!$C$661:$S$702,O$3,FALSE) -> 0 | P150: =VLOOKUP($C150,'8. RAB Roll-Forward'!$C$661:$S$702,P$3,FALSE) -> 0 | Q150: =VLOOKUP($C150,'8. RAB Roll-Forward'!$C$661:$S$702,Q$3,FALSE) -> 0 | R150: =VLOOKUP($C150,'8. RAB Roll-Forward'!$C$312:$S$355,R$3,FALSE) -> 0 | S150: =VLOOKUP($C150,'8. RAB Roll-Forward'!$C$312:$S$355,S$3,FALSE) -> 0 | T150: 0
C151: CO18 | D151: Spare Core Asset Class 18 | H151: =VLOOKUP($C151,'8. RAB Roll-Forward'!$C$661:$S$702,H$3,FALSE) -> 0 | I151: =VLOOKUP($C151,'8. RAB Roll-Forward'!$C$661:$S$702,I$3,FALSE) -> 0 | J151: =VLOOKUP($C151,'8. RAB Roll-Forward'!$C$661:$S$702,J$3,FALSE) -> 0 | K151: =VLOOKUP($C151,'8. RAB Roll-Forward'!$C$661:$S$702,K$3,FALSE) -> 0 | L151: =VLOOKUP($C151,'8. RAB Roll-Forward'!$C$661:$S$702,L$3,FALSE) -> 0 | M151: =VLOOKUP($C151,'8. RAB Roll-Forward'!$C$661:$S$702,M$3,FALSE) -> 0 | N151: =VLOOKUP($C151,'8. RAB Roll-Forward'!$C$661:$S$702,N$3,FALSE) -> 0 | O151: =VLOOKUP($C151,'8. RAB Roll-Forward'!$C$661:$S$702,O$3,FALSE) -> 0 | P151: =VLOOKUP($C151,'8. RAB Roll-Forward'!$C$661:$S$702,P$3,FALSE) -> 0 | Q151: =VLOOKUP($C151,'8. RAB Roll-Forward'!$C$661:$S$702,Q$3,FALSE) -> 0 | R151: =VLOOKUP($C151,'8. RAB Roll-Forward'!$C$312:$S$355,R$3,FALSE) -> 0 | S151: =VLOOKUP($C151,'8. RAB Roll-Forward'!$C$312:$S$355,S$3,FALSE) -> 0 | T151: 0
C152: CO19 | D152: Spare Core Asset Class 19 | H152: =VLOOKUP($C152,'8. RAB Roll-Forward'!$C$661:$S$702,H$3,FALSE) -> 0 | I152: =VLOOKUP($C152,'8. RAB Roll-Forward'!$C$661:$S$702,I$3,FALSE) -> 0 | J152: =VLOOKUP($C152,'8. RAB Roll-Forward'!$C$661:$S$702,J$3,FALSE) -> 0 | K152: =VLOOKUP($C152,'8. RAB Roll-Forward'!$C$661:$S$702,K$3,FALSE) -> 0 | L152: =VLOOKUP($C152,'8. RAB Roll-Forward'!$C$661:$S$702,L$3,FALSE) -> 0 | M152: =VLOOKUP($C152,'8. RAB Roll-Forward'!$C$661:$S$702,M$3,FALSE) -> 0 | N152: =VLOOKUP($C152,'8. RAB Roll-Forward'!$C$661:$S$702,N$3,FALSE) -> 0 | O152: =VLOOKUP($C152,'8. RAB Roll-Forward'!$C$661:$S$702,O$3,FALSE) -> 0 | P152: =VLOOKUP($C152,'8. RAB Roll-Forward'!$C$661:$S$702,P$3,FALSE) -> 0 | Q152: =VLOOKUP($C152,'8. RAB Roll-Forward'!$C$661:$S$702,Q$3,FALSE) -> 0 | R152: =VLOOKUP($C152,'8. RAB Roll-Forward'!$C$312:$S$355,R$3,FALSE) -> 0 | S152: =VLOOKUP($C152,'8. RAB Roll-Forward'!$C$312:$S$355,S$3,FALSE) -> 0 | T152: 0
C153: CO20 | D153: Spare Core Asset Class 20 | H153: =VLOOKUP($C153,'8. RAB Roll-Forward'!$C$661:$S$702,H$3,FALSE) -> 0 | I153: =VLOOKUP($C153,'8. RAB Roll-Forward'!$C$661:$S$702,I$3,FALSE) -> 0 | J153: =VLOOKUP($C153,'8. RAB Roll-Forward'!$C$661:$S$702,J$3,FALSE) -> 0 | K153: =VLOOKUP($C153,'8. RAB Roll-Forward'!$C$661:$S$702,K$3,FALSE) -> 0 | L153: =VLOOKUP($C153,'8. RAB Roll-Forward'!$C$661:$S$702,L$3,FALSE) -> 0 | M153: =VLOOKUP($C153,'8. RAB Roll-Forward'!$C$661:$S$702,M$3,FALSE) -> 0 | N153: =VLOOKUP($C153,'8. RAB Roll-Forward'!$C$661:$S$702,N$3,FALSE) -> 0 | O153: =VLOOKUP($C153,'8. RAB Roll-Forward'!$C$661:$S$702,O$3,FALSE) -> 0 | P153: =VLOOKUP($C153,'8. RAB Roll-Forward'!$C$661:$S$702,P$3,FALSE) -> 0 | Q153: =VLOOKUP($C153,'8. RAB Roll-Forward'!$C$661:$S$702,Q$3,FALSE) -> 0 | R153: =VLOOKUP($C153,'8. RAB Roll-Forward'!$C$312:$S$355,R$3,FALSE) -> 0 | S153: =VLOOKUP($C153,'8. RAB Roll-Forward'!$C$312:$S$355,S$3,FALSE) -> 0 | T153: 0
D154: Total | H154: =SUM(H134:H153) -> 9.2001 | I154: =SUM(I134:I153) -> 3.789836785 | J154: 4.287211739 | K154: 4.777638454 | L154: 5.274050697 | M154: 5.570462941 | N154: 2.484125266 | O154: 2.312311426 | P154: 2.140512542 | Q154: 1.96904626 | R154: 0.0001 | S154: 0.0001 | T154: 41.80529611
B157: G.1.4 | C157: Tax Allowance
H158: Y01 | I158: Y02 | J158: Y03 | K158: Y04 | L158: Y05 | M158: Y06 | N158: Y07 | O158: Y08 | P158: Y09 | Q158: Y10 | R158: Y11 | S158: Y12
C159: Code | D159: Asset Class | H159: =VLOOKUP(H158,FYears,2,FALSE) -> 2009/2010 | I159: 2010/2011 | J159: 2011/2012 | K159: 2012/2013 | L159: 2013/2014 | M159: 2014/2015 | N159: 2015/2016 | O159: 2016/2017 | P159: 2017/2018 | Q159: 2018/2019 | R159: 2019/2020 | S159: 2020/2021 | T159: Total
C160: CAN Asset Class
C161: CA01 | D161: =VLOOKUP(C161,CAN_AC,2,FALSE) -> Ducts and pipes | H161: =VLOOKUP($C161,'6. Revenue Requirement'!$C$182:$S$225,H$3,FALSE) -> 0.009938902432 | I161: =VLOOKUP($C161,'6. Revenue Requirement'!$C$182:$S$225,I$3,FALSE) -> 0.007444840818 | J161: =VLOOKUP($C161,'6. Revenue Requirement'!$C$182:$S$225,J$3,FALSE) -> 0.014352727 | K161: =VLOOKUP($C161,'6. Revenue Requirement'!$C$182:$S$225,K$3,FALSE) -> 0.02133942778 | L161: =VLOOKUP($C161,'6. Revenue Requirement'!$C$182:$S$225,L$3,FALSE) -> 0.02851459305 | M161: =VLOOKUP($C161,'6. Revenue Requirement'!$C$182:$S$225,M$3,FALSE) -> 0.04530544616 | N161: =VLOOKUP($C161,'6. Revenue Requirement'!$C$182:$S$225,N$3,FALSE) -> 0.02129668361 | O161: =VLOOKUP($C161,'6. Revenue Requirement'!$C$182:$S$225,O$3,FALSE) -> 0.02097847563 | P161: =VLOOKUP($C161,'6. Revenue Requirement'!$C$182:$S$225,P$3,FALSE) -> 0.02029138094 | Q161: =VLOOKUP($C161,'6. Revenue Requirement'!$C$182:$S$225,Q$3,FALSE) -> 0.01960549965 | R161: =VLOOKUP($C161,'6. Revenue Requirement'!$C$182:$S$225,R$3,FALSE) -> 0 | S161: =VLOOKUP($C161,'6. Revenue Requirement'!$C$182:$S$225,S$3,FALSE) -> 0 | T161: =SUM(OFFSET($H161,0,0,1,Model_period)) -> 0.2090679771
C162: CA02 | D162: Copper cables | H162: =VLOOKUP($C162,'6. Revenue Requirement'!$C$182:$S$225,H$3,FALSE) -> 0.009938902432 | I162: =VLOOKUP($C162,'6. Revenue Requirement'!$C$182:$S$225,I$3,FALSE) -> 0.007444840818 | J162: =VLOOKUP($C162,'6. Revenue Requirement'!$C$182:$S$225,J$3,FALSE) -> 0.0141967191 | K162: =VLOOKUP($C162,'6. Revenue Requirement'!$C$182:$S$225,K$3,FALSE) -> 0.02086839226 | L162: =VLOOKUP($C162,'6. Revenue Requirement'!$C$182:$S$225,L$3,FALSE) -> 0.0275563673 | M162: =VLOOKUP($C162,'6. Revenue Requirement'!$C$182:$S$225,M$3,FALSE) -> 0.0432448379 | N162: =VLOOKUP($C162,'6. Revenue Requirement'!$C$182:$S$225,N$3,FALSE) -> -725.9292709 | O162: =VLOOKUP($C162,'6. Revenue Requirement'!$C$182:$S$225,O$3,FALSE) -> -692.7784102 | P162: =VLOOKUP($C162,'6. Revenue Requirement'!$C$182:$S$225,P$3,FALSE) -> -1596.450035 | Q162: =VLOOKUP($C162,'6. Revenue Requirement'!$C$182:$S$225,Q$3,FALSE) -> -2777.378315 | R162: =VLOOKUP($C162,'6. Revenue Requirement'!$C$182:$S$225,R$3,FALSE) -> 0 | S162: =VLOOKUP($C162,'6. Revenue Requirement'!$C$182:$S$225,S$3,FALSE) -> 0 | T162: -5792.412782
C163: CA03 | D163: Other cables | H163: =VLOOKUP($C163,'6. Revenue Requirement'!$C$182:$S$225,H$3,FALSE) -> 0.009938902432 | I163: =VLOOKUP($C163,'6. Revenue Requirement'!$C$182:$S$225,I$3,FALSE) -> 0.007444840818 | J163: =VLOOKUP($C163,'6. Revenue Requirement'!$C$182:$S$225,J$3,FALSE) -> 0.0141967191 | K163: =VLOOKUP($C163,'6. Revenue Requirement'!$C$182:$S$225,K$3,FALSE) -> 0.02086839226 | L163: =VLOOKUP($C163,'6. Revenue Requirement'!$C$182:$S$225,L$3,FALSE) -> 0.0275563673 | M163: =VLOOKUP($C163,'6. Revenue Requirement'!$C$182:$S$225,M$3,FALSE) -> 0.0432448379 | N163: =VLOOKUP($C163,'6. Revenue Requirement'!$C$182:$S$225,N$3,FALSE) -> 0.01979862688 | O163: =VLOOKUP($C163,'6. Revenue Requirement'!$C$182:$S$225,O$3,FALSE) -> 0.01898126336 | P163: =VLOOKUP($C163,'6. Revenue Requirement'!$C$182:$S$225,P$3,FALSE) -> 0.01779500921 | Q163: =VLOOKUP($C163,'6. Revenue Requirement'!$C$182:$S$225,Q$3,FALSE) -> 0.01660996852 | R163: =VLOOKUP($C163,'6. Revenue Requirement'!$C$182:$S$225,R$3,FALSE) -> 0 | S163: =VLOOKUP($C163,'6. Revenue Requirement'!$C$182:$S$225,S$3,FALSE) -> 0 | T163: 0.1964349278
C164: CA04 | D164: Pair gain systems | H164: =VLOOKUP($C164,'6. Revenue Requirement'!$C$182:$S$225,H$3,FALSE) -> 0.009938902432 | I164: =VLOOKUP($C164,'6. Revenue Requirement'!$C$182:$S$225,I$3,FALSE) -> 0.007444840818 | J164: =VLOOKUP($C164,'6. Revenue Requirement'!$C$182:$S$225,J$3,FALSE) -> 0.01395404014 | K164: =VLOOKUP($C164,'6. Revenue Requirement'!$C$182:$S$225,K$3,FALSE) -> 0.02013567034 | L164: =VLOOKUP($C164,'6. Revenue Requirement'!$C$182:$S$225,L$3,FALSE) -> 0.02606579391 | M164: =VLOOKUP($C164,'6. Revenue Requirement'!$C$182:$S$225,M$3,FALSE) -> 0.04003944727 | N164: =VLOOKUP($C164,'6. Revenue Requirement'!$C$182:$S$225,N$3,FALSE) -> 0.01746831641 | O164: =VLOOKUP($C164,'6. Revenue Requirement'!$C$182:$S$225,O$3,FALSE) -> 0.01587448042 | P164: =VLOOKUP($C164,'6. Revenue Requirement'!$C$182:$S$225,P$3,FALSE) -> 0.01391175772 | Q164: =VLOOKUP($C164,'6. Revenue Requirement'!$C$182:$S$225,Q$3,FALSE) -> 0.01195024842 | R164: =VLOOKUP($C164,'6. Revenue Requirement'!$C$182:$S$225,R$3,FALSE) -> 0 | S164: =VLOOKUP($C164,'6. Revenue Requirement'!$C$182:$S$225,S$3,FALSE) -> 0 | T164: 0.1767834979
C165: CA05 | D165: CAN Radio Bearer Equipment | H165: =VLOOKUP($C165,'6. Revenue Requirement'!$C$182:$S$225,H$3,FALSE) -> 0.009938902432 | I165: =VLOOKUP($C165,'6. Revenue Requirement'!$C$182:$S$225,I$3,FALSE) -> 0.007444840818 | J165: =VLOOKUP($C165,'6. Revenue Requirement'!$C$182:$S$225,J$3,FALSE) -> 0.01395404014 | K165: =VLOOKUP($C165,'6. Revenue Requirement'!$C$182:$S$225,K$3,FALSE) -> 0.02013567034 | L165: =VLOOKUP($C165,'6. Revenue Requirement'!$C$182:$S$225,L$3,FALSE) -> 0.02606579391 | M165: =VLOOKUP($C165,'6. Revenue Requirement'!$C$182:$S$225,M$3,FALSE) -> 0.04003944727 | N165: =VLOOKUP($C165,'6. Revenue Requirement'!$C$182:$S$225,N$3,FALSE) -> 0.01746831641 | O165: =VLOOKUP($C165,'6. Revenue Requirement'!$C$182:$S$225,O$3,FALSE) -> 0.01552713395 | P165: =VLOOKUP($C165,'6. Revenue Requirement'!$C$182:$S$225,P$3,FALSE) -> 0.01358595955 | Q165: =VLOOKUP($C165,'6. Revenue Requirement'!$C$182:$S$225,Q$3,FALSE) -> 0.01164478526 | R165: =VLOOKUP($C165,'6. Revenue Requirement'!$C$182:$S$225,R$3,FALSE) -> 0 | S165: =VLOOKUP($C165,'6. Revenue Requirement'!$C$182:$S$225,S$3,FALSE) -> 0 | T165: 0.1758048901
C166: CA06 | D166: Other CAN assets | H166: =VLOOKUP($C166,'6. Revenue Requirement'!$C$182:$S$225,H$3,FALSE) -> 0.009938902432 | I166: =VLOOKUP($C166,'6. Revenue Requirement'!$C$182:$S$225,I$3,FALSE) -> 0.007444840818 | J166: =VLOOKUP($C166,'6. Revenue Requirement'!$C$182:$S$225,J$3,FALSE) -> 0.01395404014 | K166: =VLOOKUP($C166,'6. Revenue Requirement'!$C$182:$S$225,K$3,FALSE) -> 0.02013567034 | L166: =VLOOKUP($C166,'6. Revenue Requirement'!$C$182:$S$225,L$3,FALSE) -> 0.02606579391 | M166: =VLOOKUP($C166,'6. Revenue Requirement'!$C$182:$S$225,M$3,FALSE) -> 0.04003944727 | N166: =VLOOKUP($C166,'6. Revenue Requirement'!$C$182:$S$225,N$3,FALSE) -> 0.01746831641 | O166: =VLOOKUP($C166,'6. Revenue Requirement'!$C$182:$S$225,O$3,FALSE) -> 0.01552713395 | P166: =VLOOKUP($C166,'6. Revenue Requirement'!$C$182:$S$225,P$3,FALSE) -> 0.01358595955 | Q166: =VLOOKUP($C166,'6. Revenue Requirement'!$C$182:$S$225,Q$3,FALSE) -> 0.01164478526 | R166: =VLOOKUP($C166,'6. Revenue Requirement'!$C$182:$S$225,R$3,FALSE) -> 0 | S166: =VLOOKUP($C166,'6. Revenue Requirement'!$C$182:$S$225,S$3,FALSE) -> 0 | T166: 0.1758048901
C167: CA07 | D167: Other Communications Plant and Equipment | H167: =VLOOKUP($C167,'6. Revenue Requirement'!$C$182:$S$225,H$3,FALSE) -> 0.009938902432 | I167: =VLOOKUP($C167,'6. Revenue Requirement'!$C$182:$S$225,I$3,FALSE) -> 0.007444840818 | J167: =VLOOKUP($C167,'6. Revenue Requirement'!$C$182:$S$225,J$3,FALSE) -> 0.007280368767 | K167: =VLOOKUP($C167,'6. Revenue Requirement'!$C$182:$S$225,K$3,FALSE) -> 0.007313036746 | L167: =VLOOKUP($C167,'6. Revenue Requirement'!$C$182:$S$225,L$3,FALSE) -> 0.007440841692 | M167: =VLOOKUP($C167,'6. Revenue Requirement'!$C$182:$S$225,M$3,FALSE) -> 0.009603135276 | N167: =VLOOKUP($C167,'6. Revenue Requirement'!$C$182:$S$225,N$3,FALSE) -> 1.588974739e-08 | O167: =VLOOKUP($C167,'6. Revenue Requirement'!$C$182:$S$225,O$3,FALSE) -> 0.0003473562106 | P167: =VLOOKUP($C167,'6. Revenue Requirement'!$C$182:$S$225,P$3,FALSE) -> 0.0003258058923 | Q167: =VLOOKUP($C167,'6. Revenue Requirement'!$C$182:$S$225,Q$3,FALSE) -> 0.0003054690391 | R167: =VLOOKUP($C167,'6. Revenue Requirement'!$C$182:$S$225,R$3,FALSE) -> 0 | S167: =VLOOKUP($C167,'6. Revenue Requirement'!$C$182:$S$225,S$3,FALSE) -> 0 | T167: 0.04999977276
C168: CA08 | D168: Network Land | H168: =VLOOKUP($C168,'6. Revenue Requirement'!$C$182:$S$225,H$3,FALSE) -> 0.009938902432 | I168: =VLOOKUP($C168,'6. Revenue Requirement'!$C$182:$S$225,I$3,FALSE) -> 0.007221758069 | J168: =VLOOKUP($C168,'6. Revenue Requirement'!$C$182:$S$225,J$3,FALSE) -> 0.007061508089 | K168: =VLOOKUP($C168,'6. Revenue Requirement'!$C$182:$S$225,K$3,FALSE) -> 0.007106239277 | L168: =VLOOKUP($C168,'6. Revenue Requirement'!$C$182:$S$225,L$3,FALSE) -> 0.007229706905 | M168: =VLOOKUP($C168,'6. Revenue Requirement'!$C$182:$S$225,M$3,FALSE) -> 0.009329711708 | N168: =VLOOKUP($C168,'6. Revenue Requirement'!$C$182:$S$225,N$3,FALSE) -> 0.004522223055 | O168: =VLOOKUP($C168,'6. Revenue Requirement'!$C$182:$S$225,O$3,FALSE) -> 0.004521770561 | P168: =VLOOKUP($C168,'6. Revenue Requirement'!$C$182:$S$225,P$3,FALSE) -> 0.004521318067 | Q168: =VLOOKUP($C168,'6. Revenue Requirement'!$C$182:$S$225,Q$3,FALSE) -> 0.004520865573 | R168: =VLOOKUP($C168,'6. Revenue Requirement'!$C$182:$S$225,R$3,FALSE) -> 0 | S168: =VLOOKUP($C168,'6. Revenue Requirement'!$C$182:$S$225,S$3,FALSE) -> 0 | T168: 0.06597400374
C169: CA09 | D169: Network Buildings/Support | H169: =VLOOKUP($C169,'6. Revenue Requirement'!$C$182:$S$225,H$3,FALSE) -> 0.009938902432 | I169: =VLOOKUP($C169,'6. Revenue Requirement'!$C$182:$S$225,I$3,FALSE) -> 0.007444840818 | J169: =VLOOKUP($C169,'6. Revenue Requirement'!$C$182:$S$225,J$3,FALSE) -> 0.007280368767 | K169: =VLOOKUP($C169,'6. Revenue Requirement'!$C$182:$S$225,K$3,FALSE) -> 0.007313036746 | L169: =VLOOKUP($C169,'6. Revenue Requirement'!$C$182:$S$225,L$3,FALSE) -> 0.007440841692 | M169: =VLOOKUP($C169,'6. Revenue Requirement'!$C$182:$S$225,M$3,FALSE) -> 0.009603135276 | N169: =VLOOKUP($C169,'6. Revenue Requirement'!$C$182:$S$225,N$3,FALSE) -> 1.588974739e-08 | O169: =VLOOKUP($C169,'6. Revenue Requirement'!$C$182:$S$225,O$3,FALSE) -> 0.0003473562106 | P169: =VLOOKUP($C169,'6. Revenue Requirement'!$C$182:$S$225,P$3,FALSE) -> 0.0003258058923 | Q169: =VLOOKUP($C169,'6. Revenue Requirement'!$C$182:$S$225,Q$3,FALSE) -> 0.0003054690391 | R169: =VLOOKUP($C169,'6. Revenue Requirement'!$C$182:$S$225,R$3,FALSE) -> 0 | S169: =VLOOKUP($C169,'6. Revenue Requirement'!$C$182:$S$225,S$3,FALSE) -> 0 | T169: 0.04999977276
C170: CA10 | D170: Indirect Capital Assets | H170: =VLOOKUP($C170,'6. Revenue Requirement'!$C$182:$S$225,H$3,FALSE) -> 0.009938902432 | I170: =VLOOKUP($C170,'6. Revenue Requirement'!$C$182:$S$225,I$3,FALSE) -> 0.01322282507 | J170: =VLOOKUP($C170,'6. Revenue Requirement'!$C$182:$S$225,J$3,FALSE) -> 0.01807045306 | K170: =VLOOKUP($C170,'6. Revenue Requirement'!$C$182:$S$225,K$3,FALSE) -> 0.0226126581 | L170: =VLOOKUP($C170,'6. Revenue Requirement'!$C$182:$S$225,L$3,FALSE) -> 0.02676702721 | M170: =VLOOKUP($C170,'6. Revenue Requirement'!$C$182:$S$225,M$3,FALSE) -> 0.03843675195 | N170: =VLOOKUP($C170,'6. Revenue Requirement'!$C$182:$S$225,N$3,FALSE) -> 0.01630316117 | O170: =VLOOKUP($C170,'6. Revenue Requirement'!$C$182:$S$225,O$3,FALSE) -> 0.01397374735 | P170: =VLOOKUP($C170,'6. Revenue Requirement'!$C$182:$S$225,P$3,FALSE) -> 0.01164433766 | Q170: =VLOOKUP($C170,'6. Revenue Requirement'!$C$182:$S$225,Q$3,FALSE) -> 0.009314928147 | R170: =VLOOKUP($C170,'6. Revenue Requirement'!$C$182:$S$225,R$3,FALSE) -> 0 | S170: =VLOOKUP($C170,'6. Revenue Requirement'!$C$182:$S$225,S$3,FALSE) -> 0 | T170: 0.1802847922
C171: CA11 | D171: Spare CAN Asset Class 11 | H171: =VLOOKUP($C171,'6. Revenue Requirement'!$C$182:$S$225,H$3,FALSE) -> 0 | I171: =VLOOKUP($C171,'6. Revenue Requirement'!$C$182:$S$225,I$3,FALSE) -> 0 | J171: =VLOOKUP($C171,'6. Revenue Requirement'!$C$182:$S$225,J$3,FALSE) -> 0 | K171: =VLOOKUP($C171,'6. Revenue Requirement'!$C$182:$S$225,K$3,FALSE) -> 0 | L171: =VLOOKUP($C171,'6. Revenue Requirement'!$C$182:$S$225,L$3,FALSE) -> 0 | M171: =VLOOKUP($C171,'6. Revenue Requirement'!$C$182:$S$225,M$3,FALSE) -> 0 | N171: =VLOOKUP($C171,'6. Revenue Requirement'!$C$182:$S$225,N$3,FALSE) -> 0 | O171: =VLOOKUP($C171,'6. Revenue Requirement'!$C$182:$S$225,O$3,FALSE) -> 0 | P171: =VLOOKUP($C171,'6. Revenue Requirement'!$C$182:$S$225,P$3,FALSE) -> 0 | Q171: =VLOOKUP($C171,'6. Revenue Requirement'!$C$182:$S$225,Q$3,FALSE) -> 0 | R171: =VLOOKUP($C171,'6. Revenue Requirement'!$C$182:$S$225,R$3,FALSE) -> 0 | S171: =VLOOKUP($C171,'6. Revenue Requirement'!$C$182:$S$225,S$3,FALSE) -> 0 | T171: 0
C172: CA12 | D172: Spare CAN Asset Class 12 | H172: =VLOOKUP($C172,'6. Revenue Requirement'!$C$182:$S$225,H$3,FALSE) -> 0 | I172: =VLOOKUP($C172,'6. Revenue Requirement'!$C$182:$S$225,I$3,FALSE) -> 0 | J172: =VLOOKUP($C172,'6. Revenue Requirement'!$C$182:$S$225,J$3,FALSE) -> 0 | K172: =VLOOKUP($C172,'6. Revenue Requirement'!$C$182:$S$225,K$3,FALSE) -> 0 | L172: =VLOOKUP($C172,'6. Revenue Requirement'!$C$182:$S$225,L$3,FALSE) -> 0 | M172: =VLOOKUP($C172,'6. Revenue Requirement'!$C$182:$S$225,M$3,FALSE) -> 0 | N172: =VLOOKUP($C172,'6. Revenue Requirement'!$C$182:$S$225,N$3,FALSE) -> 0 | O172: =VLOOKUP($C172,'6. Revenue Requirement'!$C$182:$S$225,O$3,FALSE) -> 0 | P172: =VLOOKUP($C172,'6. Revenue Requirement'!$C$182:$S$225,P$3,FALSE) -> 0 | Q172: =VLOOKUP($C172,'6. Revenue Requirement'!$C$182:$S$225,Q$3,FALSE) -> 0 | R172: =VLOOKUP($C172,'6. Revenue Requirement'!$C$182:$S$225,R$3,FALSE) -> 0 | S172: =VLOOKUP($C172,'6. Revenue Requirement'!$C$182:$S$225,S$3,FALSE) -> 0 | T172: 0
C173: CA13 | D173: Spare CAN Asset Class 13 | H173: =VLOOKUP($C173,'6. Revenue Requirement'!$C$182:$S$225,H$3,FALSE) -> 0 | I173: =VLOOKUP($C173,'6. Revenue Requirement'!$C$182:$S$225,I$3,FALSE) -> 0 | J173: =VLOOKUP($C173,'6. Revenue Requirement'!$C$182:$S$225,J$3,FALSE) -> 0 | K173: =VLOOKUP($C173,'6. Revenue Requirement'!$C$182:$S$225,K$3,FALSE) -> 0 | L173: =VLOOKUP($C173,'6. Revenue Requirement'!$C$182:$S$225,L$3,FALSE) -> 0 | M173: =VLOOKUP($C173,'6. Revenue Requirement'!$C$182:$S$225,M$3,FALSE) -> 0 | N173: =VLOOKUP($C173,'6. Revenue Requirement'!$C$182:$S$225,N$3,FALSE) -> 0 | O173: =VLOOKUP($C173,'6. Revenue Requirement'!$C$182:$S$225,O$3,FALSE) -> 0 | P173: =VLOOKUP($C173,'6. Revenue Requirement'!$C$182:$S$225,P$3,FALSE) -> 0 | Q173: =VLOOKUP($C173,'6. Revenue Requirement'!$C$182:$S$225,Q$3,FALSE) -> 0 | R173: =VLOOKUP($C173,'6. Revenue Requirement'!$C$182:$S$225,R$3,FALSE) -> 0 | S173: =VLOOKUP($C173,'6. Revenue Requirement'!$C$182:$S$225,S$3,FALSE) -> 0 | T173: 0
C174: CA14 | D174: Spare CAN Asset Class 14 | H174: =VLOOKUP($C174,'6. Revenue Requirement'!$C$182:$S$225,H$3,FALSE) -> 0 | I174: =VLOOKUP($C174,'6. Revenue Requirement'!$C$182:$S$225,I$3,FALSE) -> 0 | J174: =VLOOKUP($C174,'6. Revenue Requirement'!$C$182:$S$225,J$3,FALSE) -> 0 | K174: =VLOOKUP($C174,'6. Revenue Requirement'!$C$182:$S$225,K$3,FALSE) -> 0 | L174: =VLOOKUP($C174,'6. Revenue Requirement'!$C$182:$S$225,L$3,FALSE) -> 0 | M174: =VLOOKUP($C174,'6. Revenue Requirement'!$C$182:$S$225,M$3,FALSE) -> 0 | N174: =VLOOKUP($C174,'6. Revenue Requirement'!$C$182:$S$225,N$3,FALSE) -> 0 | O174: =VLOOKUP($C174,'6. Revenue Requirement'!$C$182:$S$225,O$3,FALSE) -> 0 | P174: =VLOOKUP($C174,'6. Revenue Requirement'!$C$182:$S$225,P$3,FALSE) -> 0 | Q174: =VLOOKUP($C174,'6. Revenue Requirement'!$C$182:$S$225,Q$3,FALSE) -> 0 | R174: =VLOOKUP($C174,'6. Revenue Requirement'!$C$182:$S$225,R$3,FALSE) -> 0 | S174: =VLOOKUP($C174,'6. Revenue Requirement'!$C$182:$S$225,S$3,FALSE) -> 0 | T174: 0
C175: CA15 | D175: Spare CAN Asset Class 15 | H175: =VLOOKUP($C175,'6. Revenue Requirement'!$C$182:$S$225,H$3,FALSE) -> 0 | I175: =VLOOKUP($C175,'6. Revenue Requirement'!$C$182:$S$225,I$3,FALSE) -> 0 | J175: =VLOOKUP($C175,'6. Revenue Requirement'!$C$182:$S$225,J$3,FALSE) -> 0 | K175: =VLOOKUP($C175,'6. Revenue Requirement'!$C$182:$S$225,K$3,FALSE) -> 0 | L175: =VLOOKUP($C175,'6. Revenue Requirement'!$C$182:$S$225,L$3,FALSE) -> 0 | M175: =VLOOKUP($C175,'6. Revenue Requirement'!$C$182:$S$225,M$3,FALSE) -> 0 | N175: =VLOOKUP($C175,'6. Revenue Requirement'!$C$182:$S$225,N$3,FALSE) -> 0 | O175: =VLOOKUP($C175,'6. Revenue Requirement'!$C$182:$S$225,O$3,FALSE) -> 0 | P175: =VLOOKUP($C175,'6. Revenue Requirement'!$C$182:$S$225,P$3,FALSE) -> 0 | Q175: =VLOOKUP($C175,'6. Revenue Requirement'!$C$182:$S$225,Q$3,FALSE) -> 0 | R175: =VLOOKUP($C175,'6. Revenue Requirement'!$C$182:$S$225,R$3,FALSE) -> 0 | S175: =VLOOKUP($C175,'6. Revenue Requirement'!$C$182:$S$225,S$3,FALSE) -> 0 | T175: 0
C176: CA16 | D176: Spare CAN Asset Class 16 | H176: =VLOOKUP($C176,'6. Revenue Requirement'!$C$182:$S$225,H$3,FALSE) -> 0 | I176: =VLOOKUP($C176,'6. Revenue Requirement'!$C$182:$S$225,I$3,FALSE) -> 0 | J176: =VLOOKUP($C176,'6. Revenue Requirement'!$C$182:$S$225,J$3,FALSE) -> 0 | K176: =VLOOKUP($C176,'6. Revenue Requirement'!$C$182:$S$225,K$3,FALSE) -> 0 | L176: =VLOOKUP($C176,'6. Revenue Requirement'!$C$182:$S$225,L$3,FALSE) -> 0 | M176: =VLOOKUP($C176,'6. Revenue Requirement'!$C$182:$S$225,M$3,FALSE) -> 0 | N176: =VLOOKUP($C176,'6. Revenue Requirement'!$C$182:$S$225,N$3,FALSE) -> 0 | O176: =VLOOKUP($C176,'6. Revenue Requirement'!$C$182:$S$225,O$3,FALSE) -> 0 | P176: =VLOOKUP($C176,'6. Revenue Requirement'!$C$182:$S$225,P$3,FALSE) -> 0 | Q176: =VLOOKUP($C176,'6. Revenue Requirement'!$C$182:$S$225,Q$3,FALSE) -> 0 | R176: =VLOOKUP($C176,'6. Revenue Requirement'!$C$182:$S$225,R$3,FALSE) -> 0 | S176: =VLOOKUP($C176,'6. Revenue Requirement'!$C$182:$S$225,S$3,FALSE) -> 0 | T176: 0
C177: CA17 | D177: Spare CAN Asset Class 17 | H177: =VLOOKUP($C177,'6. Revenue Requirement'!$C$182:$S$225,H$3,FALSE) -> 0 | I177: =VLOOKUP($C177,'6. Revenue Requirement'!$C$182:$S$225,I$3,FALSE) -> 0 | J177: =VLOOKUP($C177,'6. Revenue Requirement'!$C$182:$S$225,J$3,FALSE) -> 0 | K177: =VLOOKUP($C177,'6. Revenue Requirement'!$C$182:$S$225,K$3,FALSE) -> 0 | L177: =VLOOKUP($C177,'6. Revenue Requirement'!$C$182:$S$225,L$3,FALSE) -> 0 | M177: =VLOOKUP($C177,'6. Revenue Requirement'!$C$182:$S$225,M$3,FALSE) -> 0 | N177: =VLOOKUP($C177,'6. Revenue Requirement'!$C$182:$S$225,N$3,FALSE) -> 0 | O177: =VLOOKUP($C177,'6. Revenue Requirement'!$C$182:$S$225,O$3,FALSE) -> 0 | P177: =VLOOKUP($C177,'6. Revenue Requirement'!$C$182:$S$225,P$3,FALSE) -> 0 | Q177: =VLOOKUP($C177,'6. Revenue Requirement'!$C$182:$S$225,Q$3,FALSE) -> 0 | R177: =VLOOKUP($C177,'6. Revenue Requirement'!$C$182:$S$225,R$3,FALSE) -> 0 | S177: =VLOOKUP($C177,'6. Revenue Requirement'!$C$182:$S$225,S$3,FALSE) -> 0 | T177: 0
